Workbook

Sheet Title
B2: Forecourt Hydrogen Production - Project Information
B5: Title: | C5: Current (2010) Hydrogen Production from Distributed Grid PEM Electrolysis
B6: Authors: | C6: G. Saur, T. Ramsden, B. James, W. Colella
B7: Contact: | C7: Genevieve Saur
B8: Contact phone: | C8: 303-275-3783
B9: Contact e-mail: | C9: genevieve.saur@nrel.gov
B10: Organization: | C10: NREL
B11: Date: | C11: 2013-09-30
B12: Web Site: | C12: http://www.hydrogen.energy.gov/h2a_production.html
B14: Plant Design Capacity (kg/day): | C14: 1500
B15: Start-up Year: | C15: 2010
B16: Primary Product Feedstock Source: | C16: Process Water
B17: Secondary Feedstock Source:
B18: Process Energy Source: | C18: Grid Electricity (industrial)
B19: Conversion Technology: | C19: PEM electrolysis
B20: Primary By-Product: | C20: none
B21: Secondary By-Product: | C21: none
B22: Based on Number of Plants Installed per Year (per manufacturer):
B23: H2 Onsite Storage Type | C23: none
B24: Assumed plant location: | C24: USA
B26: Reporting Spreadsheet Change History:
B27: Date spreadsheet created / modified | C27: Name | D27: Comments
B28: 2013-09-30 | C28: Genevieve Saur | D28: PEM electrolysis case study

Sheet Description
B2: Forecourt Hydrogen Production - Description
B6: Purpose:
B7: The purpose of this analysis was to analyze the technical and economic aspects of a process for production of hydrogen from the electrolysis of water using grid-based electricity.
B10: System Description:
B11: The system modeled is a standalone grid powered PEM electrolyzer system and hydrogen refueling station with a total hydrogen production capacity of 1,500 kg/day. The production system is based on a generic system using input from several key industry collaborators (KIC) with commercial experience in PEM electrolysis. The electrolyzer units use process water and grid electricity for electrolysis.
B14: Analysis Methodology Summary:
B15: Energy balances done manually from generic system estimates, equipment costing and performance from input from key industry collaborators (KIC). The delivered cost of hydrogen was determined using a discounted cash flow analysis on the total capital investment and the periodic expenditures for repair, maintenance, and replacement. A tornado plot was developed to show the sensitivity of the delivered hydrogen cost to several important variables.
B18: Plant Ownership and Entity Type Assumptions:
B19: Owner operated large for-profit business.
B21: References:
B22: PEP Yearbook 2002
B23: Plant Design and Economics for Chemical Engineers, Max S. Peters, Klaus D. Timmerhaus, Ronald E. West
B24: Johanna Ivy, "Summary of Electrolytic Hydrogen Production," September, 2004. NREL Report: NREL/MP-560-36734.
B25: Cost and performance projections based on input from H2A development team and key industrial collaborators (KIC) collected during H2A model development meetings, May-September 2013
B26: Plant Design and Economics for Chemical Engineers, Max S. Peters, Klaus D. Timmerhaus, Ronald E. West

Sheet ProcessFlow
B2: Forecourt Hydrogen Production - Process Flow Diagram
B6: Process Flow Diagram
D8: Energy Efficiency Calculations | G8: Forecourt | H8: Basis for Assumptions
G9: Current
E10: H2 Outlet Pressure | F10: psi | G10: 450 | H10: Industry feedback
D11: Stack Electrical Usage
E12: Cell voltage | F12: volts/cell | G12: 1.75 | H12: Based on literature and industry input (assuming 1.5A/cm2 current density).
E13: Voltage Efficiency | F13: % LHV | G13: =1.23/G12 -> 0.7028571429 | H13: Equation: 1.23/cell voltage
E14: Dryer Loss | F14: % of gross H2 | G14: 0.03 | H14: The 3% Dryer loss comes from industry input ("3-4%").
E15: Permeation Loss | F15: % of gross H2 | G15: 0.007 | H15: Based on back diffusion model (1.85x10-7cm2/s back diffusion coefficient): Industry input is 0.7% at 450psi, model says 0.5% at 450psi for a 3µm thick membrane.
E16: Total Stack Energy Usage per mass net H2 | F16: kWhelec/kgNet H2 | G16: =1/(1-G14)/(1-G15)/G13*33.33 -> 49.23197611 | H16: Based on 33.33 kWh/kg H2
D17: BOP Loads
B18: Stream Summaries | E18: Power Inverter Efficiency | F18: % | G18: 0.9435 | H18: Based on industry input.
E19: Inverter Electrical Load | F19: kWhelec/kgNet H2 | G19: =G16/G18-G16 -> 2.948178749
E20: Dryer Thermal Load | F20: kWhtherm/kgNet H2 | G20: =21.3/(1500/24) -> 0.3408 | H20: Based on Hysys Simulation.
E21: Dryer Efficiency | F21: kWhelec/kWhtherm | G21: 3.67 | H21: Based on industry input for the ratio of net electrical energy for the chiller.
E22: Dryer Electrical Load | F22: kWhelec/kgNet H2 | G22: =G20*G21 -> 1.250736
E23: Misc Electrical Load | F23: kWhelec/kgNet H2 | G23: 1.2 | H23: Based on industry input for current.
E24: Total BOP Electrical Load | F24: kWhelec/kgNet H2 | G24: =G19+G22+G23 -> 5.398914749
D25: Summary
E26: Stack Electrical Usage | F26: kWhelec/kgH2 | G26: =G16 -> 49.23197611
E27: BOP Electrical Usage | F27: kWhelec/kgH2 | G27: =G24 -> 5.398914749
D28: Total System Electral Usage per mass net H2 | F28: kWhelec/kgNet H2 | G28: =G16+G24 -> 54.63089086

Sheet Input_Sheet_Template
A1: Utility
B2: H2A Hydrogen Production Cash Flow Analysis Tool v3.1
A3: title | B3: 1500 kg/day Hydrogen Production Capacity - Current Timeframe
B5: Table of Contents
B6: View and edit project information
B8: H2A cell color coding
B10: Use H2A default values
B12: Technical Operating Parameters and Specifications | H12: Cash Flow NPV (Error if not 0) | I12: Cash Flow NPV (Error if not 0)
B13: Financial Input Values | H13: =+NPV -> 5.73819835e-09 | I13: =+'Refueling Cash Flow Analysis'!NPV -> 2.336822858e-09
B14: Capital Costs
B15: Fixed Operating Costs
B16: Variable Operating Costs - Energy Feedstocks, Utilities, and Byproducts
B17: Variable Operating Costs - Other Materials and Byproducts
B18: Variable Operating Costs - Other Variable Operating Costs
B20: Technical Operating Parameters and Specifications | E20: Notes
B21: Hydrogen Production Facility Design Capacity (kg of H2/day) | C21: 1500
B22: =IF('Refueling Station - GH2'!B100="no","","Summer Surge: % Above the System Average Demand") -> Summer Surge: % Above the System Average Demand | C22: 0.1 | E22: This number refers to the peak percentage of the System Hydrogen Demand that is required for the surge period. For example, if the surge period has an average hydrogen demand which is 20% greater than the System Hydrogen Demand, 20% should be entered
B23: Friday Average above Weekly Average (%) | C23: 0.08 | E23: This number represents the percentage that the Friday demand is higher than the average demand. Typically gas stations see a surge in demand prior to the weekend… it is this surge percentage that is important for sizing refueling station equipment
B24: Hours per unplanned outage (enter whole numbers only) | C24: 14
B25: Number of outages per year | C25: 10
B26: Days per planned outage (enter as whole numbers only) | C26: 5
B27: Number of planned outages per year | C27: 1 | E27: Planned outages are not covered by onsite storage. It is assumed that the station will close or hydrogen will be delivered.
B28: Maximum Daily Dispensing Rate (kg/day summer Friday) | C28: =YearlyDispensing*(1+Summer_surge)*(1+Friday_peak) -> 1578.78844 | E28: =YearlyDispensing*(1+Summer_surge)*(1+Friday_peak)
B29: Production equipment availability (%) | C29: =(8760-Outage_hrs*Outages_p_Year-C26*C27*24)/8760 -> 0.9703196347 | E29: Availability includes planned and unplanned outages
B30: Average period without outage (days) | C30: =(365*24-Outages_p_Year*Outage_hrs-C26*C27*24)/Outages_p_Year/24 -> 35.41666667
B31: Storage Size For Daily Variation Profile (kg) | C31: ='Refueling Station - GH2'!Daily_Storage -> 491.7754437 | E31: To edit see Refueling Station table
B32: Storage required for weekly demand variation - summer (kg H2) | C32: =WeeklyStorage -> 191.5011904 | E32: To edit see Refueling Station table
B33: Storage required for supply of hydrogen during outages (kg) | C33: =(VLOOKUP(MOD(Outage_hrs,24),Outage_dispensing,2,FALSE)+TRUNC(Outage_hrs/24)*Daily_demand) -> 1351.442904 | E33: Storage needed for "worst-case" hydrogen supply during an outage on a summer Friday. See outage table ~line 444 on "Refueling Station - GH2" tab.
B34: Yearly average system demand (kg/day) | C34: 1328.946498 | E34: calculated without regard to outages | H34: Set by macro
B35: Summer weekly average system demand (kg/day) | C35: =YearlyDispensing*(1+Summer_surge) -> 1461.841148 | E35: calculated without regard to outages
A36: cap_factor | B36: Plant Usage Factor (%) | C36: =output_kgyear/(design_cap*365) -> 0.859668587 | E36: Actual annual plant output/design output (includes overcapacity needed for summer period and outage supply)
A37: Soutput_kgyear | B37: Plant Output (kg/year) | C37: =YearlyDispensing*365*C29 -> 470668.5514
B38: Financial Input Values | E38: Notes
A39: ref_year | B39: Reference year | C39: 2007
B40: Basis Year for production system costs | C40: 2012
A41: startup_year | B41: Assumed start-up year | C41: 2010
B42: Current year for costs | C42: 2010
A43: construct | B43: Length of Construction Period (years) | C43: 1
A44: percent_cap1 | B44: % of Capital Spent in 1st Year of Construction | C44: 1
A45: percent_cap2 | B45: % of Capital Spent in 2nd Year of Construction
A46: start_time | B46: Start-up Time (years) | C46: 0
A47: plant_life | B47: Plant life (years) | C47: 20
A48: anal_period | B48: Analysis period (years) | C48: 20
A49: depr_length | B49: Depreciation Schedule Length (years) | C49: 7
A50: depr_type | B50: Depreciation Type | C50: MACRS
A51: equity | B51: % Equity Financing | C51: 1
A52: debt_interest | B52: Interest rate on debt, if applicable (%) | C52: 0.06
A53: debt_period | B53: Debt Period (years) | C53: =+depr_length -> 7
A54: percnt_fixed | B54: % of Fixed Operating Costs During Start-up (%) | C54: 0.75
A55: percnt_revs | B55: % of Revenues During Start-up (%) | C55: 0.5
A56: percnt_var | B56: % of Variable Operating Costs During Start-up (%) | C56: 0.5
A57: decom_percent | B57: Decommissioning costs (% of depreciable capital investment) | C57: 0.1 | E57: For Forecourt Production, salvage value is assumed to equal decommissioning costs.
A58: salvage_perct | B58: Salvage value (% of total capital investment) | C58: 0.1
A59: inflation_rate | B59: Inflation rate (%) | C59: 0.019
A60: real_irr | B60: After-tax Real IRR (%) | C60: =0.1*sensitivity_03 -> 0.1
A61: state_tax_rate | B61: State Taxes (%) | C61: 0.06
A62: fed_tax_rate | B62: Federal Taxes (%) | C62: 0.35
A63: Stotal_tax_rate | B63: Total Tax Rate (%) | C63: =fed_tax_rate+state_tax_rate*(1-fed_tax_rate) -> 0.389
A64: WorkingCap | B64: WORKING CAPITAL (% of yearly change in operating costs) | C64: 0.01 | E64: Based on 2009 electrolysis independent panel review where the H2A Default of 15% was thought to be too high.
B66: Capital Costs - Hydrogen Production Facility | E66: Notes
A68: direct_cap | B68: H2A Production Process Total Direct Capital Cost | C68: =Det_scaled_cap -> 3255103.358 | E68: Click to enter details on the Cost Detail Sheet
B69: Indirect Depreciable Capital Costs | C69: ="Enter values in basis year (" &BasisYear_production& ") dollars" -> Enter values in basis year (2012) dollars | D69: Combined Plant Scaling and Escalation Factor | E69: ="Reference Year ("& ref_year & ") Dollars" -> Reference Year (2007) Dollars
A70: Site_prep | B70: Site Preparation ($) | C70: =0.1885*direct_cap/(CPIinflator_production*CEPCInflator_production) -> 677220.18 | D70: =Site_prep_multiplier -> 0.9060376537 | E70: =C70*D70 -> 613586.9829 | F70: H2A Default for 1500kg/day. Site Prep Using AACE* cost categories for a “>150psi, >400F Gas Process”: Foundation: (% of process cost); Materials: 5% Labor: 6.65%. Miscellaneous (% of process cost); Materials: 4% Labor: 3.2%
A71: Engin | B71: Engineering & design ($) | C71: =50000 -> 50000 | D71: =Engin_multiplier -> 0.9060376537 | E71: 45301.88268 | F71: H2A Default for 1500kg/day.
A72: Process_cont | B72: Process contingency ($) | C72: 0 | D72: =Process_cont_multiplier -> 0.9060376537 | E72: 0 | F72: H2A Default for 1500kg/day FC Prod.: 0%
A73: Project_cont | B73: Project contingency ($) | C73: =0.15*direct_cap/(CPIinflator_production*CEPCInflator_production) -> 538902 | D73: =Project_cont_multiplier -> 0.9060376537 | E73: 488265.5036 | F73: H2A Default for 1500kg/day FC Prod.: 15% of Total Direct Cap. Cost
A74: Other_indirect | B74: Other (Depreciable) capital ($) | C74: 0 | D74: =Other_indirect_multiplier -> 0.9060376537 | E74: 0
A75: Fees | B75: One-time Licensing Fees ($) | C75: 0 | D75: =Fees_multiplier -> 0.9060376537 | E75: 0
A76: Permitting | B76: Up-Front Permitting Costs ($) | C76: 30000 | D76: =Permitting_multiplier -> 0.9060376537 | E76: 27181.12961 | F76: H2A Default for 1500kg/day FC Prod.: $30,000. Includes multiple visits to multiple agencies and a public review/ comment process.
A77: Sdepr_cap | B77: Total Depreciable Capital Costs | E77: =direct_cap+ SUM(E70:E76) -> 4429438.856
B79: Non-Depreciable Capital Costs | C79: ="Enter values in basis year (" & BasisYear_production& ") dollars" -> Enter values in basis year (2012) dollars | D79: Combined Plant Scaling and Escalation Factor | E79: ="Reference Year (" & ref_year&") Dollars" -> Reference Year (2007) Dollars
A80: acre_cost | B80: Cost of land ($/acre) | C80: 0 | D80: =acre_cost_multiplier -> 0.9616369142 | E80: =C80*D80 -> 0 | F80: Land is rented, not purchased.
A81: acres | B81: Land required (acres) | D81: =acres_multiplier -> 1 | E81: =C81*D81 -> 0
A82: Sland_cost | B82: Land Cost ($) | E82: =acre_cost*acres -> 0
B83: Other non depreciable capital costs | D83: =Other_non_depr_multiplier -> 1 | E83: =C83*D83 -> 0
A84: Snon_dep_cap | B84: Total Non-Depreciable Capital Costs | E84: =land_cost+Other_non_depr -> 0
A86: Stotal_cap | B86: Total Capital Costs | E86: =(depr_cap+non_dep_cap)*sensitivity_06 -> 4429438.856
B88: H2A Compression, Storage, and Dispensing Capital Cost | E88: Click to enter or view details on the Refueling Station calculation sheet.
B90: Fixed Operating Costs - Hydrogen Production Facility | C90: ="Enter values in basis year (" & BasisYear_production& ") dollars" -> Enter values in basis year (2012) dollars | D90: Combined Plant Scaling and Escalation Factor | E90: ="Reference Year (" & ref_year&") Dollars" -> Reference Year (2007) Dollars
A91: FTEs | B91: Production facility plant staff (number of FTEs) | C91: 0 | D91: =FTEs_multiplier -> 1 | E91: =C91*D91 -> 0
A92: FTE_cost | B92: Burdened labor cost, including overhead ($/man-hr) | C92: 50 | D92: =FTE_cost_multiplier -> 0.9114219114 | E92: =C92*D92 -> 45.57109557
A93: Slabor_cost | B93: Production Facility Labor cost, $/year | E93: =FTEs*FTE_cost*2080 -> 0
A94: overhead_rate | B94: G&A rate (% of labor cost) | C94: 0.2
A95: Soverhead_GA | B95: G&A ($/year) | E95: =(labor_cost)*overhead_rate -> 0
A96: licensing | B96: Licensing, Permits and Fees ($/year) | C96: 1000 | D96: =licensing_multiplier -> 0.9060376537 | E96: =1000*106.22/100*Scale_Factor -> 1062.2 | F96: H2A Default for 1500kg/day FC Prod.: $1000. Water, electrical, fire equipment permits but will be site specific
A97: tax_ins_rate | B97: Property tax and insurance rate (% of total capital investment/year) | C97: 0.02 | F97: H2A Default for 1500kg/day FC Prod.: 1% insurance rate, 1% property tax.
A98: Stax_insurance | B98: Property taxes and insurance ($/year) | E98: =tax_ins_rate*total_cap -> 88588.77713
A99: rent | B99: Rent ($/year) | C99: 3370 | D99: =rent_multiplier -> 0.9616369142 | E99: =C99*D99 -> 3240.716401 | F99: Based on $0.30/ft2/month ($3.23/m2/month) and 936 ft2 . (Square footage and rent for H2 dispensing operations are calculated on the Refueling tab.)
A100: material | B100: Material costs for maintenance and repairs ($/year) | D100: =material_multiplier -> 0.9060376537 | E100: =C100*D100 -> 0
A101: prod_maint | B101: Production Maintenance and Repairs ($/year) | C101: =0.032*direct_cap/(CPIinflator_production*CEPCInflator_production) -> 114965.76 | D101: =prod_maint_multiplier -> 0.9060376537 | E101: =C101*D101 -> 104163.3074 | F101: 0.032
A102: other_fees | B102: Other Fees ($/year) | D102: =other_fees_multiplier -> 0.9060376537 | E102: =C102*D102 -> 0
A103: other_fixed | B103: Other Fixed O&M Costs ($/year) | D103: =other_fixed_multiplier -> 0.9060376537 | E103: =C103*D103 -> 0
A104: Sfixed | B104: Total Fixed Operating Costs | E104: =(labor_cost+overhead_GA+tax_insurance+licensing+rent+material+prod_maint+other_fees+other_fixed)*sensitivity_07 -> 197055.001
B106: Variable Operating Costs
B107: Energy Feedstocks, Utilities, and Byproducts | G107: Notes
B108: Select the Price Table to Use
B109: AEO_2009_Reference_Case
B110: Select the Use
B111: feedstock | C111: =IF(OR(TMP_FeedType="Feedstock",TMP_FeedType = "Utility")," Enter usage in","Enter production in") -> Enter usage in | D111: =VLOOKUP(TMP_FeedName,INDIRECT(TMP_PriceTable),4,FALSE) -> kWh
B112: Select the Feed Type
B113: Industrial Electricity
B115: =SELECTED_FEED -> feedstock | C115: =B113 -> Industrial Electricity
B116: ="Price Conversion Factor (GJ/"&TMP_Units&")" -> Price Conversion Factor (GJ/kWh) | C116: =VLOOKUP(TMP_FeedName,MASTER_PROPERTY_TABLE,9,FALSE) -> 0.0036
B117: ="Price in Startup Year ($" & ref_year & ")/" & TMP_Units -> Price in Startup Year ($2007)/kWh | C117: =HLOOKUP(startup_year,INDIRECT(TMP_PriceTable),MATCH(TMP_FeedName,INDIRECT(Energy_Feed_List),0),FALSE)*TMP_Conversion -> 0.05742314849
B118: =IF(OR(TMP_FeedType="Feedstock",TMP_FeedType = "Utility"),"Usage ("&TMP_Units&"/kg H2)","Production ("&TMP_Units&"/kg H2)") -> Usage (kWh/kg H2) | C118: 54.6 | G118: 54.6 kWh/kg based on 49.2kWh/kg for stack usage and 5.4kWh/kg for BOP usage. See Process Flow tab.
B119: =IF(OR(TMP_FeedType = "Feedstock",TMP_FeedType = "Utility"), "Cost in Startup Year","Income in Startup Year") -> Cost in Startup Year | C119: =output_kgyear*TMP_Usage*TMP_StartPrice -> 1475688.948
B120: Lookup Prices | C120: yes
B122: Energy feedstocks, utilities, and byproducts currently in use
A123: START_TOP
B124: feedstock | C124: Price Conversion Factor (GJ/kWh) | D124: Price in Startup Year ($2007)/kWh | E124: Usage (kWh/kg H2) | F124: Cost in Startup Year | G124: Lookup Prices
B125: Industrial Electricity | C125: 0.0036 | D125: 0.05742314849 | E125: =54.6*sensitivity_04*sensitivity_01 -> 54.6 | F125: 1475689.371 | G125: yes
A126: START_FEED
A127: START_UTILITY
A128: START_BYPROD
F129: Total
A130: Total_Energy_Feed_Cost | B130: Total Energy Feedstock Cost ($/year) | F130: =SUM(Dynamic_Feed_Total) -> 1475689.371
A131: Total_Energy_Utilities_Cost | B131: Total Energy Utilities Cost ($/year) | F131: =SUM(Dynamic_Utilities_Total) -> 0
A132: Total_Energy_Byproduct_Credit | B132: Total Energy Byproduct Credit ($/year) | F132: =SUM(Dynamic_Byproduct_Total) -> 0
B133: Other Materials and Byproducts
B135: Select the Material
B136: Process Water
B137: Feed or utility | C137: =B136 -> Process Water
B138: =VLOOKUP(TMP_NonE_Feed,MASTER_OTHER_PRICES,2,FALSE) -> $(2007)/gal | C138: =HLOOKUP(startup_year,Tbl_Other_Inputs_and_Byproducts,MATCH(TMP_NonE_Feed,Other_Inputs_List,0),FALSE) -> 0.001807665884
B139: =IF(TMP_NonE_Type="Feed or utility","Usage per kg H2","Production per kg H2")&" (" &RIGHT(TMP_NonE_Usage_txt,RIGHT(LEN(TMP_NonE_Usage_txt)-SEARCH("/",TMP_NonE_Usage_txt)))& ")" -> Usage per kg H2 (gal)
B140: =IF(TMP_NonE_Type = "Feed or utility", "Cost in Startup Year","Income in Startup Year") -> Cost in Startup Year | C140: =design_cap*365*cap_factor*TMP_NonE_Usage*TMP_NonE_StartPrice -> 0
B141: Lookup Prices | C141: Yes
A142: START_NONE_TOP
B143: Feed or utility | C143: $(2007)/gal | D143: Usage per kg H2 (gal) | E143: Cost in Startup Year | F143: Lookup Prices
B144: Process Water | C144: 0.001807665884 | D144: 4.76 | E144: 4049.863818 | F144: Yes
A145: START_NONE_FEED
A146: START_NONE_BYPROD
B147: Total Non Energy Utility and Material Costs ($/year) | C147: =SUM(Dynamic_NonE_Feed_Total) -> 4049.863818
A148: total_non_energy_byproduct_credit | B148: Total Non Energy Byproduct Credits ($/year) | C148: =SUM(Dynamic_NonE_Byprod_Total) -> 0
A150: Stotal_feedstock | B150: Total Feedstock Costs ($/year) | C150: =Total_Energy_Feed_Cost -> 1475689.371
A151: Stotal_utilities | B151: Total Utility Costs ($/year) | C151: =Total_Energy_Utilities_Cost+Total_Non_Energy_Feed_Cost -> 4049.863818
A152: Stotal_byproducts | B152: Total Byproduct Credits ($/year) | C152: =Total_Energy_Byproduct_Credit+total_non_energy_byproduct_credit -> 0
B153: Other Variable Operating Costs | C153: ="Enter values in basis year (" & BasisYear_production& ") dollars" -> Enter values in basis year (2012) dollars | D153: Combined Plant Scaling and Escalation Factor | E153: ="Reference Year (" & ref_year&") Dollars" -> Reference Year (2007) Dollars
A154: var_misc | B154: Other variable operating costs (e.g. environmental surcharges) ($/year) | C154: 1800 | D154: =var_misc_multiplier -> 0.7810218978 | E154: =1800*106.22/100*Scale_Ratio -> 1911.96 | F154: This covers waste disposal costs, non-feedstock fuels, environmental surcharges, etc. and is estimated at $800/month with 50% being attributed to refueling operations (the other 50% goes to convenience store operations) and is further pro-rata for the fraction of hydrogen dispensers out of total dispensers (3 out of 8 for large stations). Thus for a large station, annual “Other Variable Costs” are $800/month * 12 months/year * 50% fueling fraction * (3 H2 dispensers/8 total dispensers) = $1,800/year.
A155: total_other_raw | B155: Other Material Costs ($/year) | D155: =total_other_raw_multiplier -> 0.7810218978 | E155: =C155*D155 -> 0
A156: waste_treat | B156: Waste treatment costs ($/year) | D156: =waste_treat_multiplier -> 0.7810218978 | E156: =C156*D156 -> 0
A157: solidwaste_treat | B157: Solid waste disposal costs ($/year) | D157: =solidwaste_treat_multiplier -> 0.7810218978 | E157: =C157*D157 -> 0
A158: replace_factor | B158: Total Unplanned Replacement Capital Cost Factor (% of total direct depreciable costs/year) | C158: 0 | F158: 0% replacement capital assumes the equipment is skid mounted and the "facilities" for production do not need funds available for upkeep. Upkeep to the equipment is covered by the maintenance and replacement costs.
A159: royalties | B159: Royalties ($/year) | D159: =royalties_multiplier -> 0.9616369142 | E159: 0
A160: operator_profit | B160: Operator Profit ($/year) | D160: =operator_profit_multiplier -> 0.9616369142 | E160: 0
A161: tax_credit | B161: Subsidies, Tax Incentives ($/year) | D161: =tax_credit_multiplier -> 0.9616369142 | E161: 0 | G161: Enter as a positive number
A162: Stotal_var | B162: Total Variable Operating Costs ($/year) | E162: =total_feedstock+total_utilities+total_other_raw-total_byproducts+var_misc+waste_treat+solidwaste_treat+royalties+operator_profit-tax_credit -> 1481651.195

Sheet Replacement Costs
A2: Replacement Costs
C5: Color Key
A8: ="NOTE: Enter costs in year "&TEXT(BasisYear_production,"0")&" $ - Do not inflate" -> NOTE: Enter costs in year 2012 $ - Do not inflate
A9: NOTE: All replacement costs are assumed to be equity financed.
A12: Unplanned Yearly Replacement Capital (Depreciable)
C13: Notes
A14: Total Unplanned Replacement Capital Cost Factor (% of total depreciable capital costs/year) | B14: =replace_factor -> 0 | C14: The yearly replacement percentage is entered on the Input Sheet Template
A15: Actual Year | B15: Analysis Year | C15: Operations Year | D15: Specified Yearly Replacement Costs | E15: Specified Yearly Replacement Costs | F15: Unplanned Replacement Costs | G15: Total Yearly Replacement Costs | H15: Notes
D16: Percent of Production System Direct Capital Cost | E16: ="Year "&TEXT(ref_year,"0")&" $" -> Year 2007 $ | F16: ="Year "&TEXT(ref_year,"0")&" $" -> Year 2007 $ | G16: Inflated to Start-up Year
A17: =IF(C17<>"",'Production Cash Flow Analysis'!A65,"") -> 2009 | B17: =construct+1 -> 2 | C17: 1 | E17: =direct_cap*D17 -> 0 | F17: =IF(C17>anal_period,0,IF(replace_factor<>"",replace_factor*depr_cap,0)) -> 0 | G17: =(E17+F17)*((1+inflation_rate)^(startup_year-ref_year)) -> 0
A18: =IF(C18<>"",'Production Cash Flow Analysis'!A66,"") -> 2010 | B18: =IF(B17<anal_period+construct,B17+1,"") -> 3 | C18: =IF(B18="","",C17+1) -> 2 | E18: 0 | F18: 0 | G18: 0
A19: =IF(C19<>"",'Production Cash Flow Analysis'!A67,"") -> 2011 | B19: 4 | C19: 3 | E19: 0 | F19: 0 | G19: 0
A20: =IF(C20<>"",'Production Cash Flow Analysis'!A68,"") -> 2012 | B20: 5 | C20: 4 | E20: 0 | F20: 0 | G20: 0
A21: =IF(C21<>"",'Production Cash Flow Analysis'!A69,"") -> 2013 | B21: 6 | C21: 5 | E21: 0 | F21: 0 | G21: 0
A22: =IF(C22<>"",'Production Cash Flow Analysis'!A70,"") -> 2014 | B22: 7 | C22: 6 | E22: 0 | F22: 0 | G22: 0
A23: =IF(C23<>"",'Production Cash Flow Analysis'!A71,"") -> 2015 | B23: 8 | C23: 7 | E23: 0 | F23: 0 | G23: 0
A24: =IF(C24<>"",'Production Cash Flow Analysis'!A72,"") -> 2016 | B24: 9 | C24: 8 | D24: 0.15 | E24: 488265.5036 | F24: 0 | G24: 516628.7779 | H24: 15% of direct capital cost based on industry input. 15% is less than the full replacement cost of stack or stack refurbishment. Lower replacement cost given a seven year design advancement.
A25: =IF(C25<>"",'Production Cash Flow Analysis'!A73,"") -> 2017 | B25: 10 | C25: 9 | E25: 0 | F25: 0 | G25: 0
A26: =IF(C26<>"",'Production Cash Flow Analysis'!A74,"") -> 2018 | B26: 11 | C26: 10 | E26: 0 | F26: 0 | G26: 0
A27: =IF(C27<>"",'Production Cash Flow Analysis'!A75,"") -> 2019 | B27: 12 | C27: 11 | E27: 0 | F27: 0 | G27: 0
A28: =IF(C28<>"",'Production Cash Flow Analysis'!A76,"") -> 2020 | B28: 13 | C28: 12 | E28: 0 | F28: 0 | G28: 0
A29: =IF(C29<>"",'Production Cash Flow Analysis'!A77,"") -> 2021 | B29: 14 | C29: 13 | E29: 0 | F29: 0 | G29: 0
A30: =IF(C30<>"",'Production Cash Flow Analysis'!A78,"") -> 2022 | B30: 15 | C30: 14 | E30: 0 | F30: 0 | G30: 0
A31: =IF(C31<>"",'Production Cash Flow Analysis'!A79,"") -> 2023 | B31: 16 | C31: 15 | D31: 0.15 | E31: 488265.5036 | F31: 0 | G31: 516628.7779 | H31: 15% of direct capital cost based on industry input. 15% is less than the full replacement cost of stack or stack refurbishment. Lower replacement cost given a seven year design advancement.
A32: =IF(C32<>"",'Production Cash Flow Analysis'!A80,"") -> 2024 | B32: 17 | C32: 16 | E32: 0 | F32: 0 | G32: 0
A33: =IF(C33<>"",'Production Cash Flow Analysis'!A81,"") -> 2025 | B33: 18 | C33: 17 | E33: 0 | F33: 0 | G33: 0
A34: =IF(C34<>"",'Production Cash Flow Analysis'!A82,"") -> 2026 | B34: 19 | C34: 18 | E34: 0 | F34: 0 | G34: 0
A35: =IF(C35<>"",'Production Cash Flow Analysis'!A83,"") -> 2027 | B35: 20 | C35: 19 | E35: 0 | F35: 0 | G35: 0
A36: =IF(C36<>"",'Production Cash Flow Analysis'!A84,"") -> 2028 | B36: 21 | C36: 20 | E36: 0 | F36: 0 | G36: 0
A37: =IF(C37<>"",'Production Cash Flow Analysis'!A85,"") ->  | E37: 0 | F37: 0 | G37: 0
A38: =IF(C38<>"",'Production Cash Flow Analysis'!A86,"") ->  | E38: 0 | F38: 0 | G38: 0
A39: =IF(C39<>"",'Production Cash Flow Analysis'!A87,"") ->  | E39: 0 | F39: 0 | G39: 0
A40: =IF(C40<>"",'Production Cash Flow Analysis'!A88,"") ->  | E40: 0 | F40: 0 | G40: 0
A41: =IF(C41<>"",'Production Cash Flow Analysis'!A89,"") ->  | E41: 0 | F41: 0 | G41: 0
A42: =IF(C42<>"",'Production Cash Flow Analysis'!A90,"") ->  | E42: 0 | F42: 0 | G42: 0
A43: =IF(C43<>"",'Production Cash Flow Analysis'!A91,"") ->  | E43: 0 | F43: 0 | G43: 0
A44: =IF(C44<>"",'Production Cash Flow Analysis'!A92,"") ->  | E44: 0 | F44: 0 | G44: 0
A45: =IF(C45<>"",'Production Cash Flow Analysis'!A93,"") ->  | E45: 0 | F45: 0 | G45: 0
A46: =IF(C46<>"",'Production Cash Flow Analysis'!A94,"") ->  | E46: 0 | F46: 0 | G46: 0
A47: =IF(C47<>"",'Production Cash Flow Analysis'!A95,"") ->  | E47: 0 | F47: 0 | G47: 0
A48: =IF(C48<>"",'Production Cash Flow Analysis'!A96,"") ->  | E48: 0 | F48: 0 | G48: 0
A49: =IF(C49<>"",'Production Cash Flow Analysis'!A97,"") ->  | E49: 0 | F49: 0 | G49: 0
A50: =IF(C50<>"",'Production Cash Flow Analysis'!A98,"") ->  | E50: 0 | F50: 0 | G50: 0
A51: =IF(C51<>"",'Production Cash Flow Analysis'!A99,"") ->  | E51: 0 | F51: 0 | G51: 0
A52: =IF(C52<>"",'Production Cash Flow Analysis'!A100,"") ->  | E52: 0 | F52: 0 | G52: 0
A53: =IF(C53<>"",'Production Cash Flow Analysis'!A101,"") ->  | E53: 0 | F53: 0 | G53: 0
A54: =IF(C54<>"",'Production Cash Flow Analysis'!A102,"") ->  | E54: 0 | F54: 0 | G54: 0
A55: =IF(C55<>"",'Production Cash Flow Analysis'!A103,"") ->  | E55: 0 | F55: 0 | G55: 0
A56: =IF(C56<>"",'Production Cash Flow Analysis'!A104,"") ->  | E56: 0 | F56: 0 | G56: 0

Sheet Capital Costs
B2: Capital Costs
C4: Color Key
B8: Note: Capital and operating costs for compression, storage, and dispensing can be entered on the "Input Sheet Template" or click the link button to automatically calculate optimized storage and dispensing values on the "Refueling Station" sheet.
B9: Basis year for capital costs | C9: =BasisYear_production -> 2012
B10: Current year for capital costs | C10: =CurrentYear -> 2010
B11: ="CEPCI Inflator (" & BasisYear_production & " to " & CurrentYear & ")" -> CEPCI Inflator (2012 to 2010) | C11: =VLOOKUP(CurrentYear,Tbl_PlantCostIndexes,2,FALSE)/VLOOKUP(BasisYear_production,Tbl_PlantCostIndexes,2,FALSE) -> 0.942182689
B12: ="Consumer Price Inflator (" & CurrentYear & " to " & ref_year & ")" -> Consumer Price Inflator (2010 to 2007) | C12: =VLOOKUP(ref_year,DeflatorTable,2,FALSE)/VLOOKUP(CurrentYear,DeflatorTable,2,FALSE) -> 0.9616369142
B15: ="PRODUCTION UNIT CAPITAL INVESTMENT (Inputs REQUIRED in basis year, (" & BasisYear_production & ") $)" -> PRODUCTION UNIT CAPITAL INVESTMENT (Inputs REQUIRED in basis year, (2012) $)
B16: Major pieces/systems of equipment | C16: ="Baseline Uninstalled Costs $" & BasisYear_production & " Dollars" -> Baseline Uninstalled Costs $2012 Dollars | D16: ="Baseline Uninstalled Costs $"&ref_year&" Dollars" -> Baseline Uninstalled Costs $2007 Dollars | E16: Installation Cost Factor | F16: Baseline Installed Costs | G16: Comments | H16: Data Source
B17: Stacks | C17: =$C$42*$C$44*C45 -> 1315177.5 | D17: =CEPCInflator_production*CPIinflator_production*C17 -> 1191600.336 | E17: 1.12 | F17: =$D17*$E17 -> 1334592.377 | G17: 12% installation factor based on industry feedback.
B18: BoP Breakdown | D18: 0 | E18: 1.12 | F18: =$D18*$E18 -> 0
B19: Hydrogen Gas Management System-Cathode system side | C19: =$C$42*$C$44*C47 -> 320775 | D19: 290634.2284 | E19: 1.12 | F19: 325510.3358
B20: Oxygen Gas Management System-Anode system side | C20: 160387.5 | D20: 145317.1142 | E20: 1.12 | F20: 162755.1679
B21: Water Reacant Delivery Management System | C21: 192465 | D21: 174380.537 | E21: 1.12 | F21: 195306.2015
B22: Thermal Management System | C22: 160387.5 | D22: 145317.1142 | E22: 1.12 | F22: 162755.1679
B23: Power Electronics | C23: 641550 | D23: 581268.4567 | E23: 1.12 | F23: 651020.6715
B24: Controls & Sensors | C24: 96232.5 | D24: 87190.26851 | E24: 1.12 | F24: 97653.10073
B25: Mechanical Balance of Plant-ss plumbing/copper cabling/Dryer valves... | C25: 160387.5 | D25: 145317.1142 | E25: 1.12 | F25: 162755.1679
B26: Item Breakdown- Other | C26: 32077.5 | D26: 29063.42284 | E26: 1.12 | F26: 32551.03358
B27: Item Breakdown-Assembly Labor | C27: 128310 | D27: 116253.6913 | E27: 1.12 | F27: 130204.1343
D28: 0 | F28: 0
D29: 0 | F29: 0
D30: 0 | F30: 0
D31: 0 | F31: 0
D32: 0 | F32: 0
D33: 0 | F33: 0
D34: 0 | F34: 0
D35: 0 | F35: 0
D36: 0 | F36: 0
D37: 0 | F37: 0
D38: 0 | F38: 0
B39: TOTALS | C39: =SUM(C17:C38) -> 3207750 | D39: =SUM(D17:D38) -> 2906342.284 | F39: =SUM(F17:F38) -> 3255103.358
B42: Uninstalled Cost - ($/kW) (with suggested subsystem breakdown, further breakdown desirable if available ) | C42: 940
B43: Electricity Usage (kWh/kg) | C43: =feedstockIndustrial_Electricity_Usage -> 54.6
B44: System Power (kW) | C44: =design_cap*C43/24 -> 3412.5
B45: Stacks | C45: 0.41
B46: BoP Total | C46: 0.59
B47: Hydrogen Gas Management System-Cathode system side | C47: 0.1
B48: Oxygen Gas Management System-Anode system side | C48: 0.05
B49: Water Reacant Delivery Management System | C49: 0.06
B50: Thermal Management System | C50: 0.05
B51: Power Electronics | C51: 0.2
B52: Controls & Sensors | C52: 0.03
B53: Mechanical Balance of Plant-ss plumbing/copper cabling/Dryer valves... | C53: 0.05
B54: Item Breakdown- Other | C54: 0.01
B55: Item Breakdown-Assembly Labor | C55: 0.04

Sheet Plant Scaling
B1: leave this sheet as is for scaled costs
B2: Plant Scaling Factors
B3: Baseline Design Capacity (kg H2/day) | C3: 1500 | D3: Design capacity for original H2A case. Imported from capital cost input sheet
B4: Scale Ratio | C4: =design_cap/Baseline_Design_Capacity -> 1 | D4: Ratio of new design capacity (enter on Input Sheet) to the Baseline Design Capacity. Used for linear scaling
B5: Scale Factor | C5: =$G$35/Det_direct_cap -> 1 | D5: Ratio of total scaled installed capital capital cost to total baseline installed capital costs. Used for exponential scaling.
B6: Default Scaling Factor Exponent | C6: 0.6 | D6: Scaling factor exponent used for scaling all capital equipment where an individual factor has not been entered below.
B7: Lower Limit for Scaling Capacity (kg H2/day) | C7: 1500
B8: Upper Limit for Scaling Capacity (kg H2/day) | C8: 1500
B11: ="CAPITAL INVESTMENT (Inputs REQUIRED in Reference Year, (" & ref_year & ") $)" -> CAPITAL INVESTMENT (Inputs REQUIRED in Reference Year, (2007) $)
B12: Major pieces/systems of equipment | C12: Baseline Uninstalled Costs | D12: Scaling Factor Exponent | E12: Scaled Uninstalled Costs | F12: Installation Cost Factor | G12: Installed Cost (scaled) | H12: Installed Cost (baseline) | I12: Comments | J12: Data Source
B13: ='Capital Costs'!B17 -> Stacks | C13: ='Capital Costs'!D17 -> 1191600.336 | E13: =IF($D13="",$C13*Scale_Ratio^Scaling_Factor_Exponent,$C13*Scale_Ratio^$D13) -> 1191600.336 | F13: ='Capital Costs'!E17 -> 1.12 | G13: =$E13*$F13 -> 1334592.377 | H13: =C13*F13 -> 1334592.377
B14: ='Capital Costs'!B18 -> BoP Breakdown | C14: ='Capital Costs'!D18 -> 0 | E14: 0 | F14: ='Capital Costs'!E18 -> 1.12 | G14: =$E14*$F14 -> 0 | H14: =C14*F14 -> 0
B15: ='Capital Costs'!B19 -> Hydrogen Gas Management System-Cathode system side | C15: ='Capital Costs'!D19 -> 290634.2284 | E15: 290634.2284 | F15: ='Capital Costs'!E19 -> 1.12 | G15: 325510.3358 | H15: 325510.3358
B16: ='Capital Costs'!B20 -> Oxygen Gas Management System-Anode system side | C16: ='Capital Costs'!D20 -> 145317.1142 | E16: 145317.1142 | F16: ='Capital Costs'!E20 -> 1.12 | G16: 162755.1679 | H16: 162755.1679
B17: ='Capital Costs'!B21 -> Water Reacant Delivery Management System | C17: ='Capital Costs'!D21 -> 174380.537 | E17: 174380.537 | F17: ='Capital Costs'!E21 -> 1.12 | G17: 195306.2015 | H17: 195306.2015
B18: ='Capital Costs'!B22 -> Thermal Management System | C18: ='Capital Costs'!D22 -> 145317.1142 | E18: 145317.1142 | F18: ='Capital Costs'!E22 -> 1.12 | G18: 162755.1679 | H18: 162755.1679
B19: ='Capital Costs'!B23 -> Power Electronics | C19: ='Capital Costs'!D23 -> 581268.4567 | E19: 581268.4567 | F19: ='Capital Costs'!E23 -> 1.12 | G19: 651020.6715 | H19: 651020.6715
B20: ='Capital Costs'!B24 -> Controls & Sensors | C20: ='Capital Costs'!D24 -> 87190.26851 | E20: 87190.26851 | F20: ='Capital Costs'!E24 -> 1.12 | G20: 97653.10073 | H20: 97653.10073
B21: ='Capital Costs'!B25 -> Mechanical Balance of Plant-ss plumbing/copper cabling/Dryer valves... | C21: ='Capital Costs'!D25 -> 145317.1142 | E21: 145317.1142 | F21: ='Capital Costs'!E25 -> 1.12 | G21: 162755.1679 | H21: 162755.1679
B22: ='Capital Costs'!B26 -> Item Breakdown- Other | C22: ='Capital Costs'!D26 -> 29063.42284 | E22: 29063.42284 | F22: ='Capital Costs'!E26 -> 1.12 | G22: 32551.03358 | H22: 32551.03358
B23: ='Capital Costs'!B27 -> Item Breakdown-Assembly Labor | C23: ='Capital Costs'!D27 -> 116253.6913 | E23: 116253.6913 | F23: ='Capital Costs'!E27 -> 1.12 | G23: 130204.1343 | H23: 130204.1343
B24: ='Capital Costs'!B28 -> 0 | C24: ='Capital Costs'!D28 -> 0 | E24: 0 | F24: ='Capital Costs'!E28 -> 0 | G24: 0 | H24: 0
B25: ='Capital Costs'!B29 -> 0 | C25: ='Capital Costs'!D29 -> 0 | E25: 0 | F25: ='Capital Costs'!E29 -> 0 | G25: 0 | H25: 0
B26: ='Capital Costs'!B30 -> 0 | C26: ='Capital Costs'!D30 -> 0 | E26: 0 | F26: ='Capital Costs'!E30 -> 0 | G26: 0 | H26: 0
B27: ='Capital Costs'!B31 -> 0 | C27: ='Capital Costs'!D31 -> 0 | E27: 0 | F27: ='Capital Costs'!E31 -> 0 | G27: 0 | H27: 0
B28: ='Capital Costs'!B32 -> 0 | C28: ='Capital Costs'!D32 -> 0 | E28: 0 | F28: ='Capital Costs'!E32 -> 0 | G28: 0 | H28: 0
B29: ='Capital Costs'!B33 -> 0 | C29: ='Capital Costs'!D33 -> 0 | E29: 0 | F29: ='Capital Costs'!E33 -> 0 | G29: 0 | H29: 0
B30: ='Capital Costs'!B34 -> 0 | C30: ='Capital Costs'!D34 -> 0 | E30: 0 | F30: ='Capital Costs'!E34 -> 0 | G30: 0 | H30: 0
B31: ='Capital Costs'!B35 -> 0 | C31: ='Capital Costs'!D35 -> 0 | E31: 0 | F31: ='Capital Costs'!E35 -> 0 | G31: 0 | H31: 0
B32: ='Capital Costs'!B36 -> 0 | C32: ='Capital Costs'!D36 -> 0 | E32: 0 | F32: ='Capital Costs'!E36 -> 0 | G32: 0 | H32: 0
B33: ='Capital Costs'!B37 -> 0 | C33: ='Capital Costs'!D37 -> 0 | E33: 0 | F33: ='Capital Costs'!E37 -> 0 | G33: 0 | H33: 0
B34: ='Capital Costs'!B38 -> 0 | C34: ='Capital Costs'!D38 -> 0 | E34: 0 | F34: ='Capital Costs'!E38 -> 0 | G34: 0 | H34: 0
B35: TOTALS (including scaling) | C35: =SUM(C13:C34) -> 2906342.284 | E35: =SUM(E13:E34) -> 2906342.284 | G35: =SUM(G13:G34) -> 3255103.358 | H35: =SUM(H13:H34) -> 3255103.358
B38: Plant Scaling Method | C38: Variable Name | D38: Select Method | E38: Scaling Value | F38: ="Reference Year (" & ref_year & ") Escalation" -> Reference Year (2007) Escalation | G38: Combined Multiplier | H38: Notes
B39: Engineering & design ($) | C39: Engin | D39: Use Scale Factor | E39: =VLOOKUP(D39,Scaling_validation_Lookup,2,FALSE) -> 1 | F39: =CPIinflator_production*CEPCInflator_production -> 0.9060376537 | G39: =E39*F39 -> 0.9060376537 | H39: =C39&"_multiplier" -> Engin_multiplier
B40: Site Preparation ($) | C40: Site_prep | D40: Use Scale Factor | E40: 1 | F40: 0.9060376537 | G40: =E40*F40 -> 0.9060376537 | H40: =C40&"_multiplier" -> Site_prep_multiplier
B41: Process contingency ($) | C41: Process_cont | D41: Use Scale Factor | E41: 1 | F41: 0.9060376537 | G41: 0.9060376537 | H41: Process_cont_multiplier
B42: Project contingency ($) | C42: Project_cont | D42: Skip | E42: 1 | F42: 0.9060376537 | G42: 0.9060376537 | H42: Project_cont_multiplier
B43: One-time Licensing Fees ($) | C43: Fees | D43: Use Scale Factor | E43: 1 | F43: 0.9060376537 | G43: 0.9060376537 | H43: Fees_multiplier
B44: Other (Depreciable) capital ($) | C44: Other_indirect | D44: Use Scale Factor | E44: 1 | F44: 0.9060376537 | G44: 0.9060376537 | H44: Other_indirect_multiplier
B45: Up-Front Permitting Costs ($) | C45: Permitting | D45: Use Scale Factor | E45: 1 | F45: 0.9060376537 | G45: 0.9060376537 | H45: Permitting_multiplier
B46: Cost of Land ($/acre) | C46: acre_cost | D46: Use Baseline Value | E46: 1 | F46: =CPIinflator_production -> 0.9616369142 | G46: 0.9616369142 | H46: acre_cost_multiplier
B47: Land required (acres) | C47: acres | D47: Use Scale Factor | E47: 1 | F47: 1 | G47: 1 | H47: acres_multiplier
B48: Other non-depreciable costs ($) | C48: Other_non_depr | D48: Use Scale Factor | E48: 1 | F48: 1 | G48: =E48*F48 -> 1 | H48: Other_non_depr_multiplier
B49: Total plant staff (number of FTEs employed by plant) | C49: FTEs | D49: 0.25 | E49: 1 | F49: 1 | G49: 1 | H49: FTEs_multiplier
B50: Burdened labor cost, including overhead ($/man-hr) | C50: FTE_cost | D50: Use Baseline Value | E50: 1 | F50: =VLOOKUP(ref_year,Tbl_labor_indexes,2,FALSE)/VLOOKUP(BasisYear_production,Tbl_labor_indexes,2,FALSE) -> 0.9114219114 | G50: 0.9114219114 | H50: FTE_cost_multiplier
B51: Licensing, Permits and Fees ($/year) | C51: licensing | D51: Use Scale Factor | E51: 1 | F51: =CPIinflator_production*CEPCInflator_production -> 0.9060376537 | G51: 0.9060376537 | H51: licensing_multiplier
B52: Rent ($/year) | C52: rent | D52: Use Scale Ratio | E52: 1 | F52: =CPIinflator_production -> 0.9616369142 | G52: 0.9616369142 | H52: rent_multiplier
B53: Material costs for maintenance and repairs ($/year) | C53: material | D53: Skip | E53: 1 | F53: =CEPCInflator_production*CPIinflator_production -> 0.9060376537 | G53: 0.9060376537 | H53: material_multiplier
B54: Production Maintenance and Repairs ($/year) | C54: prod_maint | D54: Skip | E54: 1 | F54: =CEPCInflator_production*CPIinflator_production -> 0.9060376537 | G54: 0.9060376537 | H54: prod_maint_multiplier
B55: Other Fees ($/year) | C55: other_fees | D55: Use Scale Ratio | E55: 1 | F55: =CEPCInflator_production*CPIinflator_production -> 0.9060376537 | G55: 0.9060376537 | H55: other_fees_multiplier
B56: Other Fixed O&M Costs ($/year) | C56: other_fixed | D56: Use Scale Factor | E56: 1 | F56: =CEPCInflator_production*CPIinflator_production -> 0.9060376537 | G56: 0.9060376537 | H56: other_fixed_multiplier
B57: Other variable operating costs ($/year) | C57: var_misc | D57: Use Scale Ratio | E57: 1 | F57: =VLOOKUP(ref_year,Chemical_price_indexes,2,FALSE)/VLOOKUP(BasisYear_production,Chemical_price_indexes,2,FALSE) -> 0.7810218978 | G57: 0.7810218978 | H57: var_misc_multiplier
B58: Other Material Costs ($/year) | C58: total_other_raw | D58: Use Scale Ratio | E58: 1 | F58: =VLOOKUP(ref_year,Chemical_price_indexes,2,FALSE)/VLOOKUP(BasisYear_production,Chemical_price_indexes,2,FALSE) -> 0.7810218978 | G58: =E58*F58 -> 0.7810218978 | H58: total_other_raw_multiplier
B59: Waste treatment costs ($/year) | C59: waste_treat | D59: Use Scale Ratio | E59: 1 | F59: =VLOOKUP(ref_year,Chemical_price_indexes,2,FALSE)/VLOOKUP(BasisYear_production,Chemical_price_indexes,2,FALSE) -> 0.7810218978 | G59: 0.7810218978 | H59: waste_treat_multiplier
B60: Solid waste disposal costs ($/year) | C60: solidwaste_treat | D60: Use Scale Ratio | E60: 1 | F60: =VLOOKUP(ref_year,Chemical_price_indexes,2,FALSE)/VLOOKUP(BasisYear_production,Chemical_price_indexes,2,FALSE) -> 0.7810218978 | G60: 0.7810218978 | H60: solidwaste_treat_multiplier
B61: Royalties ($/year) | C61: royalties | D61: Use Scale Ratio | E61: 1 | F61: =CPIinflator_production -> 0.9616369142 | G61: 0.9616369142 | H61: royalties_multiplier
B62: Operator Profit ($/year) | C62: operator_profit | D62: Use Scale Ratio | E62: 1 | F62: =CPIinflator_production -> 0.9616369142 | G62: 0.9616369142 | H62: operator_profit_multiplier
B63: Subsidies, Tax Incentives ($/year) | C63: tax_credit | D63: Use Scale Ratio | E63: 1 | F63: =CPIinflator_production -> 0.9616369142 | G63: 0.9616369142 | H63: tax_credit_multiplier

Sheet Refueling Station - GH2
A2: The refueling station in this tab takes gaseous H2 from either a gaseous-truck or a pipeline. The average capacity can be varied up to 6000 kg/day, and the capital, fixed and operating costs will be varied accordingly. This tab includes storage, dispensing and compression. | F2: COLOR CODING
G3: = Calculated Cells (do not change formulas)
G4: = Input Required; Input Used in Revenue Calculation
G5: = Input Required via Pull-Down Menu
G6: = Optional Input; Input NOT Used in Revenue Calculation
G7: = Information Cells
A9: Unless noted otherwise, data sources can be found in the report: "H2A Hydrogen Delivery Infrastructure Analysis Models and Conventional Pathway Options Analysis Results" http://www.hydrogen.energy.gov/systems_analysis.html
A11: Calculation Outputs (Be sure ALL data is entered before checking) | I11: GH2 Refueling Station Energy Use | L11: GH2 Refueling Station Emissions
B12: Components | I12: On-Site Energy Use [MJ / MJ H2 out] | J12: Upstream Energy Use [MJ / MJ H2 out] | K12: Total Energy Use [MJ / MJ H2 out] | L12: Onsite Emissions [g / MJ H2 out] | M12: Upstream Emissions [g / MJ H2 out] | N12: Total Emissions [g / MJ H2 out]
A13: Results | B13: Compressor | C13: Storage | D13: Dispenser | E13: Refrigeration | F13: Remainder of Station | G13: Total | I13: =G19/(('HyARC Physical Property Data'!C7*'Constants and Conversions'!B29/(1000*ncf_to_Nm3))*1000/('HyARC Physical Property Data'!K7/ncf_to_Nm3)) -> 0.1260749352 | J13: =IF($B$106=2005,IF($B$105="U.S. Average Mix",I13*'HyARC Physical Property Data'!C139/1000000,"N/A"),IF($B$106=2020,IF($B$105="U.S. Average Mix",I13*'HyARC Physical Property Data'!C163/1000000,"N/A"),"N/A")) -> 0.01344295589 | K13: =I13+J13 -> 0.1395178911 | L13: 0 | M13: =IF($B$106=2005,IF($B$105="U.S. Average Mix",$I$13*'HyARC Physical Property Data'!F139,"N/A"),IF($B$106=2020,IF($B$105="U.S. Average Mix",$I$13*'HyARC Physical Property Data'!F163,"N/A"))) -> 0.8107197927 | N13: =L13+M13 -> 0.8107197927 | O13: CO2
A14: ="Gaseous Refueling Station Portion of the Delivered Real Levelized Hydrogen Cost ($("&TEXT(ref_year,"0")&")/kg of Hydrogen)" -> Gaseous Refueling Station Portion of the Delivered Real Levelized Hydrogen Cost ($(2007)/kg of Hydrogen) | B14: =B392 -> 0.791364536 | C14: =B399 -> 0.9310348204 | D14: =B406 -> 0.2471526214 | E14: =B413 -> 0.08498737477 | F14: =B420 -> 0.1428868636 | G14: =SUM(B14:F14) -> 2.197426216 | L14: 0 | M14: =IF($B$106=2005,IF($B$105="U.S. Average Mix",$I$13*'HyARC Physical Property Data'!G139,"N/A"),IF($B$106=2020,IF($B$105="U.S. Average Mix",$I$13*'HyARC Physical Property Data'!G163,"N/A"))) -> 0.0280951078 | N14: =L14+M14 -> 0.0280951078 | O14: CH4
A15: ="Capital Cost Contribution to the Gaseous Refueling Station Portion of the Delivered Real Levelized Hydrogen Cost ($("&TEXT(ref_year,"0")&")/kg of Hydrogen)" -> Capital Cost Contribution to the Gaseous Refueling Station Portion of the Delivered Real Levelized Hydrogen Cost ($(2007)/kg of Hydrogen) | B15: =B387*B368/B168 -> 0.3317008265 | C15: =B394*B372/B168 -> 0.7325315527 | D15: =B401*B376/B168 -> 0.2045896606 | E15: =B408*B380/NetH_ForeC -> 0.05237717016 | F15: =B415*B384/B168 -> 0.02966954528 | G15: =SUM(B15:F15) -> 1.350868755 | L15: 0 | M15: =IF($B$106=2005,IF($B$105="U.S. Average Mix",$I$13*'HyARC Physical Property Data'!H139,"N/A"),IF($B$106=2020,IF($B$105="U.S. Average Mix",$I$13*'HyARC Physical Property Data'!H163,"N/A"))) -> 0.0001462612862 | N15: =L15+M15 -> 0.0001462612862 | O15: N2O
A16: ="Energy/Fuel Contribution to the Gaseous Refueling Station Portion of the Delivered Real Levelized Hydrogen Cost ($("&TEXT(ref_year,"0")&")/kg of Hydrogen)" -> Energy/Fuel Contribution to the Gaseous Refueling Station Portion of the Delivered Real Levelized Hydrogen Cost ($(2007)/kg of Hydrogen) | B16: =B388/B168 -> 0.3567625217 | C16: 0 | D16: 0 | E16: =B409/B168 -> 0.02072926521 | F16: =B416/B168 -> 0 | G16: =SUM(B16:F16) -> 0.3774917869 | L16: =L13+23*L14+296*L15 -> 0 | M16: =M13+23*M14+296*M15 -> 1.500200613 | N16: =L16+M16 -> 1.500200613 | O16: GHGs
A17: ="Other Cost Contribution to the Gaseous Refueling Station Portion of the Delivered Real Levelized Hydrogen Cost ($("&TEXT(ref_year,"0")&")/kg of Hydrogen)" -> Other Cost Contribution to the Gaseous Refueling Station Portion of the Delivered Real Levelized Hydrogen Cost ($(2007)/kg of Hydrogen) | B17: =SUM(B389:B390)/B168 -> 0.1029011879 | C17: =SUM(B396:B397)/B168 -> 0.1985032677 | D17: =SUM(B403:B404)/B168 -> 0.04256296072 | E17: =(B410+B411)/B168 -> 0.0118809394 | F17: =SUM(B417:B418)/B168 -> 0.1132173184 | G17: =SUM(B17:F17) -> 0.4690656741
A18: Mass Efficiency (H2 out/H2 in) | B18: =1-B103 -> 0.9999982924 | C18: - | D18: - | E18: - | F18: - | G18: =B18 -> 0.9999982924
A19: System Energy Use (MJ/kg of H2 out) | B19: =B332/8760/(1000*(B168/8760/60/60)) -> 15.15504732 | C19: - | D19: - | E19: =(B331)/8760/(1000*(B168/8760/60/60)) -> 0.8805661356 | F19: - | G19: =B19 -> 15.15504732
A20: System Energy Efficiency, LHV (%, H2 out/(H2 in + Energy/Fuel Use)) | B20: - | C20: - | D20: - | E20: - | F20: - | G20: =(B168*('HyARC Physical Property Data'!C7*'Constants and Conversions'!B29/(1000*ncf_to_Nm3))/0.08988)/(((B168/(1-B103)*('HyARC Physical Property Data'!C7*'Constants and Conversions'!B29/(1000*ncf_to_Nm3))/0.08988))+(G19*B168)) -> 0.8880416794
A21: Real After-Tax IRR (%) | B21: - | C21: - | D21: - | E21: - | F21: - | G21: =B239 -> 0.1
A22: Land Area (m2) | B22: - | C22: - | D22: - | E22: - | F22: - | G22: =B301 -> 887.057984
A23: =IF(AND(A24="",A25="",A26="",A27="",A28="",A29="",A30=""),"THERE ARE NO ERRORS PRESENT ON THIS SHEET","") -> THERE ARE NO ERRORS PRESENT ON THIS SHEET
A24: =IF(OR(D37<>""),"Please see the error message to the right of the Refueling Station Definition table, and make appropriate changes","") -> 
A25: =IF(OR(G50<>"",G51<>"",G52<>"",G53<>"",G54<>"",G55<>"",G56<>"",G57<>"",G58<>"",G60<>"",G61<>"",G63<>"",G64<>"",G66<>"",G67<>"",G68<>"",G69<>"",G70<>""),"ERROR: Please check the error messages to the right of the top half of the Refueling Station Design Inputs table and fix the appropriate row.","") -> 
A26: =IF(OR(G70<>"",G71<>"",G72<>"",G73<>"",G74<>"",G75<>"",G76<>"",G77<>"",G78<>"",G79<>"",G80<>"",G96<>"",G95<>"",G99<>"",G98<>"",G101<>"",G102<>"",G103<>"",G104<>""),"ERROR: Please check the error messages to the right of the bottom half of the Refueling Station Design Inputs table and fix the appropriate row.","") -> 
A27: =IF(OR(G115<>"",G116<>"",G118<>"",G119<>"",G120<>"",G121<>"",G122<>"",G123<>"",G124<>"",G125<>"",G126<>"",G127<>"",G128<>"",G129<>"",G130<>"",G131<>"",G132<>"",G133<>"",G134<>"",G135<>""),"ERROR: Please check the error messages to the right of the Refueling Station Scenario Inputs table and fix the appropriate row.","") -> 
A28: =IF(OR(G239<>"",G240<>"",G243<>"",G245<>"",G246<>"",G250<>"",G251<>"",G252<>"",G253<>"",G254<>"",G255<>"",G258<>""),"ERROR: Please check the error messages to the right of the Economic Assumptions table and fix the appropriate row.","") -> 
A29: =IF(OR(F304<>"",F306<>"",F308<>"",F310<>"",F312<>""),"ERROR: Please check the error messages to the right of the table located below the Capital Investments table.","") -> 
A30: =IF(OR(G325<>"",G335<>"",G337<>"",G339<>"",G341<>"",G343<>"",G344<>"",G347<>"",G350<>""),"ERROR: Please check the error messages to the right of the Fixed O&M Costs table and fix the appropriate row.","") -> 
A32: Refueling Station Definition
A33: Description | B33: Value | C33: Information
A34: Select Mechanism of Delivery for the Gaseous Hydrogen | B34: onsite production | C34: Please use the pull-down menu to select gaseous - truck or onsite production.
A35: Vehicle Maximum Pressure (bar) | B35: 700
A36: Dispensing Components | B36: Cascade
A37: Average Daily Capacity of Hydrogen Refueling Station (kg/day) | B37: =ROUNDUP(YearlyDispensing,0) -> 1329 | C37: Value input on main input sheet | D37: =IF(B37="","ERROR: Input required","") -> 
A38: Utilization of H2 stations full capacity (% of total number of H2 stations) | B38: 1
A40: Basis year for capital costs | B40: 2007
A41: Current year for capital costs | B41: =CurrentYear -> 2010
A42: ="CEPCI Inflator (" & BasisYear_refueling & " to " & CurrentYear & ")" -> CEPCI Inflator (2007 to 2010) | B42: =VLOOKUP(CurrentYear,Tbl_PlantCostIndexes,2,FALSE)/VLOOKUP(BasisYear_refueling,Tbl_PlantCostIndexes,2,FALSE) -> 1.048344119
A43: ="Consumer Price Inflator (" & CurrentYear & " to " & ref_year &")" -> Consumer Price Inflator (2010 to 2007) | B43: =VLOOKUP(ref_year,DeflatorTable,2,FALSE)/VLOOKUP(CurrentYear,DeflatorTable,2,FALSE) -> 0.9616369142
A44: Basis year conversion for calculated values | B44: =VLOOKUP(BasisYear_refueling,DeflatorTable,2,FALSE)/VLOOKUP(2007,DeflatorTable,2,FALSE) -> 1
A47: Refueling Station Design Inputs | H47: Leak Rate Allowance Estimate Table
A48: Design Input | B48: Value | C48: Comments | E48: Data Source | F48: Information | H48: Design Input | I48: Value | J48: Units | K48: Data Source
A49: =IF(B34="gaseous - truck","Determine GH2 Truck Capacity Based on Tube Water Volume and Pressures?","") ->  | B49: yes | F49: =IF(B34="gaseous - truck","Please use the pull-down menu to the right of the value cell to enter yes or no. If 'no' is selected, input is required in " & CELL("address", B55) & ".","Entry only required if " & CELL("address", B34) & " = gaseous - truck") -> Entry only required if $B$34 = gaseous - truck | H49: Per-fitting limit | I49: 0.17 | J49: cc/min | K49: NFPA 2
A50: =IF(B34="gaseous - truck","Maximum Pressure in the Tube Trailer (atm)","") ->  | B50: 180 | F50: =IF(B34="gaseous - truck","","No input required") -> No input required | G50: =IF(AND($B$34="gaseous - truck",B50=""),"ERROR: Input required","") ->  | H50: Number of fittings | I50: 100
A51: =IF(B34="gaseous - truck","Minimum Pressure in the Tube Trailer (atm)","") ->  | B51: 15 | F51: =IF(B34="gaseous - truck","","No input required") -> No input required | G51: =IF(AND($B$34="gaseous - truck",B51=""),"ERROR: Input required","") ->  | H51: Volumetric flow | I51: =+I49*I50 -> 17 | J51: cc/min
A52: =IF(AND(B49="yes",B34="gaseous - truck"),"Number of Tubes","") ->  | B52: 9 | F52: =IF(B34="gaseous - truck","","No input required") -> No input required | G52: =IF(AND($B$34="gaseous - truck",B50="",$B$49="yes"),"ERROR: Input required","") -> 
A53: =IF(AND(B49="yes",B34="gaseous - truck"),"Tube Water Volume (m3)","") ->  | B53: 2.6 | F53: =IF(B34="gaseous - truck","","No input required") -> No input required | G53: =IF(AND($B$34="gaseous - truck",B51="",$B$49="yes"),"ERROR: Input required","") ->  | H53: STP temperature | I53: 273.14 | J53: K
A54: =IF(AND(B49="yes",B34="gaseous - truck"),"Tube Operating Temperature (degrees C)","") ->  | B54: 25 | F54: =IF(B34="gaseous - truck","","No input required") -> No input required | G54: =IF(AND($B$34="gaseous - truck",B52="",$B$49="yes"),"ERROR: Input required","") ->  | H54: STP pressure | I54: 101325 | J54: P
A55: =IF(AND(B49="no",B34="gaseous - truck"),"Enter Hydrogen Tube Trailer Capacity (kg)","") ->  | B55: 300 | F55: =IF(AND(B34="gaseous - truck",B49="no"),"","No input required") -> No input required | G55: =IF(AND($B$34="gaseous - truck",B53="",$B$49="no"),"ERROR: Input required","") ->  | H55: H2 MW | I55: =1.00794*2/1000 -> 0.00201588 | J55: kg/mol
A56: =IF(B34="onsite production","Pressure of Hydrogen Delivered to Refueling Station (atm)","") -> Pressure of Hydrogen Delivered to Refueling Station (atm) | B56: 20 | C56: =IF(B34="onsite production","Assumed to be 300 psig for the pipeline","") -> Assumed to be 300 psig for the pipeline | F56: ="Entry only required if " & CELL("address", B34) & " = onsite production" -> Entry only required if $B$34 = onsite production | G56: =IF(AND($B$34="onsite production",B56=""),"ERROR: Input required","") -> 
A57: Dispensing Pressure (atm) | B57: =B81 -> 863.3330952 | G57: =IF(B57="","ERROR: Input required","") ->  | H57: Mass density | I57: =I54/8.314/I53/(100)^3*I55 -> 8.994685096e-08 | J57: kg/cc
A58: Hydrogen Temperature at the Station (degrees C) | B58: 25 | C58: Approximately ambient temperature | G58: =IF(B58="","ERROR: Input required","") ->  | H58: Mole density | I58: =I54/8.314/I53/(100)^3 -> 4.461914944e-05 | J58: mol/cc
A59: High Pressure Cascade Storage Vessel
A60: Maximum Pressure (psia) | B60: =IF(B36="Cascade",B35*14.5*1.25,350*14.5*1.25) -> 12687.5 | G60: =IF(B60="","ERROR: Input required","") ->  | H60: Heat of combustion | I60: 286000 | J60: J/mol, HHV
A61: Minimum Pressure (psia) | B61: =IF(OR(B36="Booster Compressor",B35=350),6000,11000) -> 11000 | G61: =IF(B61="","ERROR: Input required","") -> 
A62: Medium Pressure Cascade Storage Vessel | H62: Leak enthalpy flow | I62: =I51*I58*I60/60 -> 3.615638409 | J62: W HHV
A63: Maximum Pressure (psia) | B63: =IF(B36="Cascade",B35*14.5*1.25,350*14.5*1.25) -> 12687.5 | G63: =IF(B63="","ERROR: Input required","") ->  | H63: Leak rate | I63: =I51*I57*60*24 -> 0.002201898912 | J63: kg/day
A64: Minimum Pressure (psia) | B64: =IF(OR(B36="Booster Compressor",B35=350),4350,8000) -> 8000 | G64: =IF(B64="","ERROR: Input required","") ->  | H64: Leak rate | I64: =+I63/(output_kgyear/365) -> 1.707556412e-06 | J64: % of production
A65: Low Pressure Cascade Storage Vessel
A66: Maximum Pressure (psia) | B66: =IF(B36="Cascade",B35*14.5*1.25,350*14.5*1.25) -> 12687.5 | G66: =IF(B66="","ERROR: Input required","") -> 
A67: Minimum Pressure (psia) | B67: =IF(OR(B36="Booster Compressor",B35=350),2000,4000) -> 4000
A68: Vehicle Tank Maximum Pressure (psia) | B68: =B35*14.5 -> 10150
A69: Vehicle fill time (min) | B69: 4.7
A70: Vehicle Lingering time (min) | B70: 2.24
A71: Hoses per dispenser | B71: 2
A72: Maximum Dispensed Amount per Vehicle (kg) | B72: 7
A73: Scaling daily demand profile as % of Chevron peak above average | B73: 1
A74: Design (Average) Hose Occupied Fraction During Peak Hour | B74: 0.5
A75: =IF(B34="onsite production","Maximum Low Pressure Storage Pressure (atm)","") -> Maximum Low Pressure Storage Pressure (atm) | B75: =IF(B34="onsite production",172,"N/A") -> 172 | C75: Approximately 2500 psia. Storage at this pressure was found to be more economical
A76: =IF(B34="onsite production","Minimum Low Pressure Storage Pressure (atm)","") -> Minimum Low Pressure Storage Pressure (atm) | B76: =IF(B34="onsite production",15,"N/A") -> 15 | C76: Assumption that tank can never be "completely" emptied. 15 atm corresponds to ~200 psia.
A77: Hydrogen Temperature at the Station (degrees C) | B77: 25
A78: Cp/Cv ratio | B78: 1.41 | C78: Value for hydrogen
A79: Enter Number of Installed Compressors | B79: 2 | F79: Often times, an extra compressor is purchased and installed so that the system can operate at a higher availability. For example, if two compressors, each designed at 50% of the design flowrate, were installed, and one of those compressors went down, then the system would only be able to operate at 50% capacity.
A80: Enter Number of Compressors in Operation at Any Time | B80: 2 | C80: 2 compressors are in operation at any one time. | F80: Enter the number of required compressors, entered in the row above, that are operating at any given time.
A81: Main Compressor Discharge Pressure (atm) | B81: =B60/14.69595 -> 863.3330952 | C81: Corresponds to a dispensing pressure | H81: ="Steady State COP at " & B82 &"C" -> Steady State COP at -40C | I81: =(B82-10+273)/((B77+10+273)-(B82-10+273)) -> 2.623529412
A82: Max dispensing Temperature (degree C) | B82: -40 | H82: Steady State COP at 4C | I82: =(4-10+273)/((B77+10+273)-(4-10+273)) -> 6.512195122
A83: Number of Booster Compressors | B83: =IF(OR(B36="Cascade",B35=350),0,B152) -> 0 | H83: Transient degradation coef. | I83: 0.9 | J83: =I81*I83/I82 -> 0.3625776603 | K83: COP at -40C as a % of COP at 4C (actual COP at 4C is about 3.0)
A84: Booster Compressor Discharge Pressure (atm) | B84: =B35*14.5/14.69595*1.4 -> 966.9330666
A85: Booster Compressor Flow rate (kg/min) | B85: =IF(OR(B36="Cascade",B35=350),0,B72/B69) -> 0
A86: Number of Refrigeration Units | B86: =IF(B35=350,0,1) -> 1
A87: Max H2 Flow Rate in Refrigeration Unit (kg/min) | B87: =IF(B35=350,0,B72/B69*B152*B74) -> 3.723404255
A88: Capacity of Refrigeration Unit (ton) | B88: =IF(B35=350,0,B87*60*B93*B89*3412/12000) -> 16.39825318
A89: Refrigeration Unit COP | B89: =3*J83 -> 1.087732981
A90: Booster Compressor Average Inlet Pressure (atm) | B90: 350
A91: Booster Compressor Shaft Specific Power (kWh/kg) | B91: =B145*B144/2.0158*(B77+273.15)*(B78/(B78-1))*((B84/B90)^((B78-1)/B78)-1)/B98/3600 -> 0.7637113483
A92: Booster Compressor Shaft Power (kW) | B92: =B91*B72/B69*60 -> 68.24654602
A93: Refrigeration Specific Electricity Use (kWh/kg) | B93: =B78/(B78-1)*(8.315/2)*(B77-B82)/3600/B89 -> 0.2373318764
A94: Design Refueling Station Compressor Based on Compression Ratio per Stage? | B94: no | F94: ="Please select yes or no from the pull-down to the right of the value cell. If yes entered, number of compression stages are calculated using the compression ratio. Otherwise, the number of stages is a required entry in " & CELL("address", B96) & "." -> Please select yes or no from the pull-down to the right of the value cell. If yes entered, number of compression stages are calculated using the compression ratio. Otherwise, the number of stages is a required entry in $B$96.
A95: =IF(B94="yes", "Enter Compression Ratio Per Stage for Refueling Station Compressor","") ->  | F95: The compression ratio is defined as the outlet pressure from a stage divided by the inlet pressure to the same stage. If a multi stage compressor is used, the compression ratio per stage is defined calculated by the following: 10^((log(Outlet P)-log(inlet P))/number of stages). An unreasonable high pressure ratio per stage will cause the interstage temperature to exceed material specifications. | G95: =IF(AND($B$94="yes",B95=""),"ERROR: Input required","") -> 
A96: =IF(B94="no","Number of Compressor Stages for Refueling Station Compressor","") -> Number of Compressor Stages for Refueling Station Compressor | B96: =IF(AND(B35=700,B36="Cascade"),3,2) -> 3 | C96: Number of stages required in a piston compressor specified | F96: ="Entry is only required if " & CELL("address", B94) & " is no." -> Entry is only required if $B$94 is no. | G96: =IF(AND($B$94="no",B96=""),"ERROR: Input required","") -> 
A97: Isentropic Compressor Efficiency Available for Refueling Station Compressor? | B97: yes | F97: ="If the isentropic compressor efficiency is available, the power requirement for the compressor is calculated using first principles. If 'No' is entered, then the user must enter data in " & CELL("address", B99) & "." -> If the isentropic compressor efficiency is available, the power requirement for the compressor is calculated using first principles. If 'No' is entered, then the user must enter data in $B$99.
A98: =IF(B97="yes", "Isentropic Compressor Efficiency for Refueling Station Compressor (%)", "") -> Isentropic Compressor Efficiency for Refueling Station Compressor (%) | B98: 0.75 | F98: Only enter a value in this cell if the Isentropic compressor efficiency is available. | G98: =IF(AND($B$97="yes",B98=""),"ERROR: Input required","") -> 
A99: =IF(B97="yes","","Refueling Station Compressor Efficiency (%)") ->  | F99: ="Entry is only required if " & CELL("address", B97) & " is no." -> Entry is only required if $B$97 is no. | G99: =IF(AND($B$97="no",B99=""),"ERROR: Input required","") -> 
A100: Use Isentropic Compressor Efficiency to Calculate Refueling Station Compressor Power Requirement? | B100: yes | F100: ="Please select yes or no from the pull-down menu. If No is selected, entry is required in " & CELL("address", B101) & "." -> Please select yes or no from the pull-down menu. If No is selected, entry is required in $B$101.
A101: =IF(OR(B100="no",B97="no"), "Please Enter Refueling Station Compressor Power Requirement (kW/(kg of H2/hr))","") ->  | F101: ="Entry is only required if " & CELL("address", B100) & " is no." -> Entry is only required if $B$100 is no. | G101: =IF(AND(B100="no",B101=""),"ERROR: Input required","") -> 
A102: Compressor Motor Sizing Factor+ | B102: 1.1 | C102: Base case value is 110% based on typical industrial practices | F102: =IF(B47="pipeline","No entry is required","Enter the factor, in percentage form, that is required to size the compressor motor.") -> Enter the factor, in percentage form, that is required to size the compressor motor. | G102: =IF(B102="","ERROR: Input required",IF(AND(B102<>"",B102<=1),"ERROR: Motor sizing factor cannot be less than 100%","")) -> 
A103: Hydrogen Lost During Compression (%) | B103: =+I64 -> 1.707556412e-06 | G103: =IF(B103="","ERROR: Input required","") -> 
A104: Percentage of Energy Use from On-site Fuel Combustion | B104: 0
A105: Electricity Generation Technology | B105: U.S. Average Mix
A106: Technology Year for Energy Use and Emissions Calculations | B106: 2005
A112: Refueling Station Scenario Inputs
A113: Delivery Scenario Input | B113: Value | C113: Comments | E113: Data Source | F113: Information
A114: Low Pressure Storage Vessel Capacity For Outage (kg) | B114: =Outage_storagekg -> 1351.442904 | C114: =Outage_storagekg
A115: Distance from Refueling Station to Nearest Electrical Substation (mi) | B115: 1 | F115: It is possible that the amount of power required by the refueling station compressors will necessitate the construction of a trench to bring higher voltage power to the compressor(s). The number entered here is used if and only if the compressor size means higher voltage power is required. | G115: =IF(B115="","ERROR: Input required","") -> 
A116: Cascade Vessel Outer Diameter (m) | B116: 0.4064 | G116: =IF(B116="","ERROR: Input required","") -> 
A117: Cascade Vessel Wall Thickness (m) | B117: =IF(B35=350,0.0362966,0.0362966*2) -> 0.0725932 | G117: =IF(B117="","ERROR: Input required","") -> 
A118: Cascade Vessel Length (m) | B118: 9.144 | G118: =IF(B118="","ERROR: Input required","") -> 
A119: Cascade Vessel Stacking | B119: 6 | C119: H2A Base Case value is 6 which allows cascades to be stacked vertically to save space | G119: =IF(B119="","ERROR: Input required","") -> 
A120: =IF(B34="gaseous - truck","","Low Pressure Storage Vessel Outer Diameter (m)") -> Low Pressure Storage Vessel Outer Diameter (m) | B120: 1.249 | F120: =IF(B34="gaseous - truck","No input is required. LP storage not need for gaseous truck case","") ->  | G120: =IF(AND($B$34="onsite production",B120=""),"ERROR: Input required","") -> 
A121: =IF(B34="gaseous - truck","","Low Pressure Storage Vessel Wall Thickness (m)") -> Low Pressure Storage Vessel Wall Thickness (m) | B121: 0.0635 | F121: =IF(B34="gaseous - truck","No input is required. LP storage not need for gaseous truck case","") ->  | G121: =IF(AND($B$34="onsite production",B121=""),"ERROR: Input required","") -> 
A122: =IF(B34="gaseous - truck","","Low Pressure Storage Vessel Length (m)") -> Low Pressure Storage Vessel Length (m) | B122: 7.589 | F122: =IF(B34="gaseous - truck","No input is required. LP storage not need for gaseous truck case","") ->  | G122: =IF(AND($B$34="onsite production",B122=""),"ERROR: Input required","") -> 
A123: =IF(B34="gaseous - truck","","Low Pressure Storage Stacking") -> Low Pressure Storage Stacking | B123: 2 | F123: =IF(B34="gaseous - truck","No input is required. LP storage not need for gaseous truck case","") ->  | G123: =IF(AND($B$34="onsite production",B123=""),"ERROR: Input required","") -> 
A124: Baseline Station Length (m) | B124: 39.62 | G124: =IF(B124="","ERROR: Input required","") -> 
A125: Baseline Station Width (m) | B125: 33.53
A126: Number of Dispensers for Baseline Station Dimensions | B126: 6
A127: Convenience Store Length (m) | B127: 15.24
A128: Convenience Store Width (m) | B128: 9.14
A129: Baseline Storage Length (m) | B129: 6.1 | C129: Baseline Station is a 6-dispenser Gasoline Station
A130: Baseline Storage Width (m) | B130: 13.72 | C130: Baseline Station is a 6-dispenser Gasoline Station
A131: Setback from Wall Opening (m) | B131: 7.62 | C131: Assumption based on safety requirements
A132: Lot Line Setback (m) | B132: 1.52 | C132: Assumption based on safety requirements
A133: Parked Vehicle Setback (m) | B133: 4.57 | C133: Assumption based on safety requirements
A134: Area per Additional Dispenser Island (m2) | B134: =IF(B153>6,(ROUNDUP((B153-6)/2,0))*20*(B125+B182+B183),0) -> 0 | C134: Dispenser island contains two additional dispensers
A135: =IF(B34="gaseous - truck","Tube Trailer Width (m)","") ->  | B135: 4.572 | F135: =IF(B34="gaseous - truck","","No entry required") -> No entry required | G135: =IF(AND(B34="gaseous - truck",B135=""),"ERROR: Input required","") -> 
A139: Refueling Station Calculations
A140: Item | B140: Value
A141: Hydrogen Delivered Per Tube (kg) | B141: =IF(B34="onsite production","N/A",IF(B49="yes",2/1000*((B50*B53/((B54+273.16)*0.00008205*(H2_ZFactor(B54,B50))))-(B51*B53/((B54+273.16)*0.00008205*(H2_ZFactor(B54,B51))))),B55/B52)) -> N/A
A142: Number of Tubes | B142: =IF(B34="onsite production","N/A",B52) -> N/A
A143: Tube Trailer Delivered Hydrogen Capacity (kg) | B143: =IF(B34="onsite production",0,IF(B49="yes",B142*B141,B55)) -> 0
A144: Gas Constant (kJ/K.kg-mol) | B144: 8.3144
A145: Booster Compressor Compressibility Factor | B145: =(H2_ZFactor(B77,B84)-H2_ZFactor(B77,B90))/LN(H2_ZFactor(B77,B84)/H2_ZFactor(B77,B90)) -> 1.418252545
A146: Mean Compressibility Factor | B146: =IF(B34="onsite production",(H2_ZFactor(B77,B81)-H2_ZFactor(B77,B56))/LN(H2_ZFactor(B77,B81)/H2_ZFactor(B77,B56)),(H2_ZFactor(B77,B81)-H2_ZFactor(B77,(B50-B51)/LN(B50/B51)))/LN(H2_ZFactor(B77,B81)/H2_ZFactor(B77,(B50-B51)/LN(B50/B51)))) -> 1.267584374
A147: Compressibility Factor for Cascade Storage Tanks at Maximum Pressure | B147: =H2_ZFactor(B58,B60/14.7) -> 1.561821455
A148: Compressibility Factor for Low Pressure Storage Tanks at Maximum Pressure | B148: =IF(B34="onsite production",H2_ZFactor(B77,B75),"N/A") -> 1.110107788
A149: Total Cascade Capacity (kg) | B149: =B227 -> 195.7399871
A150: Low Pressure Storage Required at Refueling Station (kg) | B150: =WeeklyStorage + MAX(Outage_storagekg,Daily_Storage) -> 1542.944095
A151: Maximum Number of Fills During Peak Hour | B151: =MAX(Hourly_Demand_ForeC)/B72 -> 17.59221404
A152: Hoses Required | B152: =ROUNDUP(B151*(B69+B70)/60/B74,0) -> 5
A153: Dispensers Required | B153: =ROUNDUP(B152/B71,0) -> 3
A154: C, Compressor Capacity to Meet Demand Requirements (kg/hr) | B154: =B202*B233 -> 125.514795
A155: Design flowrate to each compressor (kg/hr) | B155: =B154/num_op_comp_ForeC -> 62.7573975
A156: =IF(B155>250, "Recommended Number of Compressors","") ->  | B156: =IF(B155>250,ROUNDUP(B80*B155/250,0),"") ->  | C156: Values only show up in this cell if the Design Compressor Capacity is greater than 250 kg/hr.
A157: =IF(B155>250, "Recommended Number of Compressors Installed","") ->  | B157: =IF(B155>250,B156+(B79-B80),"") ->  | C157: Values only show up in this cell if the Design Compressor Capacity is greater than 250 kg/hr.
A158: =IF(B155>250, "Recommended Flowrate to Each Compressor (kg/day)","") ->  | B158: =IF(B155>250,B155*B80/B156,"") ->  | C158: Values only show up in this cell if the Design Compressor Capacity is greater than 250 kg/hr.
A159: Pressure Ratio | B159: =IF(B94="yes",B95,IF(AND(B94="no",B34="onsite production"),10^((LOG(B57)-LOG(B56))/B96),10^((LOG(B57)-LOG(B51))/B96))) -> 3.507918256
A160: Number of Stages | B160: =IF(B94="no",B96,ROUNDUP(((LOG(B57)-LOG(B56))/LOG(B95)),0)) -> 3
A161: Theoretical Power Requirement for each Compressor (kW) | B161: =IF(OR(B97="no",B100="no"), "N/A",IF(B34="onsite production",B146*1/B80*(B154/60/60/2.0158)*B144*(B77+273.15)*B160*(B78/(B78-1))*((B81/B56)^((B78-1)/(B160*B78))-1),B146*1/B80*(B154/60/60/2.0158)*B144*(B77+273.15)*B160*(B78/(B78-1))*((B81/B51)^((B78-1)/(B160*B78))-1))) -> 123.4759847 | C161: ASSUMES EQUAL WORK BY ALL STAGES, AND INTERCOOLING BACK TO ORIGINAL FEED TEMPERATURE
A162: Actual Shaft Power Required per Compressor (kW) | B162: =IF(AND(B100="no",B101<>""),B101*B37,IF(B161="N/A","",B161/B98)) -> 164.6346463
A163: Motor Efficiency | B163: =IF(AND(B162<>0,B162<>""),0.00008*(LN(B162)^4)-0.0015*(LN(B162)^3)+0.0061*(LN(B162)^2)+0.0311*LN(B162)+0.7617,1) -> 0.934185862
A164: Motor Rating per Compressor (kW) | B164: =IF(OR(B162="N/A",B162=""),B162,B162*B102/B163) -> 193.8566171
A165: Motor Efficiency for Booster Compressor | B165: =IF(AND(B92<>"N/A",B92<>0,B92<>""),0.00008*(LN(B92))^4-0.0015*(LN(B92))^3+0.0061*(LN(B92))^2+0.0311*(LN(B92))+0.7617,1) -> 0.9142999986
A166: Motor Rating Per Booster Compressor (kW) | B166: =IF(OR(B92="N/A",B92=""),B92,B92/B165*B102) -> 82.10784287
A167: Electrical Voltage Supply Requirement (Volts) | B167: =IF(OR(B162=0,B162=""),"",IF(B164*B80/0.7456999>600,4160,480)) -> 480
A168: Net Hydrogen Delivered (kg/year) | B168: =output_kgyear -> 470668.5514
A169: Cascade Vessel Capacity (kg) | B169: =((PI()/4)*(B116-2*B117)^2*(B118-2*B117)-(0.083*PI()*(B116-2*B117)^3))/B147*(B60/14.7)*101325/8314*2/(B77+273.16) -> 21.57623142
A170: Cascade Vessel Volume (ft3) | B170: =((PI()/4)*(B116-2*B117)^2*(B118-2*B117)-(0.083*PI()*(B116-2*B117)^3))*35.3147 -> 16.8661737
A171: Cascade Vessel Groups | B171: =num_Cascade -> 3
A172: Total Cascade Vessels | B172: =B171*3 -> 9 | C172: Three cascade levels per group
A173: Number of Cascade Vessel Stacks | B173: =ROUNDUP(B172/B119,0) -> 2
A174: =IF(B34="gaseous - truck","","Low Pressure Storage Vessel Capacity (kg)") -> Low Pressure Storage Vessel Capacity (kg) | B174: =IF(B34="Onsite Production",((PI()/4*(B120-2*B121)^2*(B122-2*B121))-(0.083*PI()*(B120-2*B121)^3))/B148*B75*101325/8314*2/(B77+273.16),"N/A") -> 88.78538098
A175: =IF(B34="gaseous - truck","","Calculated storage useable tank capacity (% of design useable capacity)") -> Calculated storage useable tank capacity (% of design useable capacity) | B175: =IF(B34="onsite production",((B75/(H2_ZFactor(B77,B75)))-B76)/(B75/(H2_ZFactor(B77,B75))),"N/A") -> 0.9031882743 | C175: =IF(B34="onsite production","","Calculation not required for gaseous truck delivery") -> 
A176: =IF(B34="gaseous - truck","","Low Pressure Storage Vessel Useable Capacity (kg)") -> Low Pressure Storage Vessel Useable Capacity (kg) | B176: =IF(B34="gaseous - truck","N/A",B174*B175) -> 80.18991503
A177: =IF(B34="gaseous - truck","","Low Pressure Storage Vessels Required") -> Low Pressure Storage Vessels Required | B177: =IF(B34="onsite production",ROUNDUP(B150/B176,0),"N/A") -> 20
A178: =IF(B34="gaseous - truck","","Number of Low Pressure Storage Vessel Stacks") -> Number of Low Pressure Storage Vessel Stacks | B178: =IF(B34="onsite production",ROUNDUP(B177/B123,0),"N/A") -> 10 | C178: =IF(B34="onsite production","","Calculation not required for gaseous truck delivery") -> 
A179: Total Storage Length, Without Setbacks (m) | B179: =IF(B34="onsite production",B173*(B116)+B178*B120,B173*B116) -> 13.3028 | C179: Vessel and storage length and width are swapped to be consistent with the orientation of the vessels on the station layout - see schematics
A180: Total Storage Width, Without Setbacks (m) | B180: =IF(B34="Gaseous - Truck",B118,IF(B177=0,B118,MAX(B122,B118))) -> 9.144 | C180: Vessel and storage length and width are swapped to be consistent with the orientation of the vessels on the station layout - see schematics
A181: Total Storage Area, Without Setbacks (m2) | B181: =B179*B180 -> 121.6408032
A182: Additional Setback Length between the Lot Line and Storage (m) | B182: =IF(B34="Gaseous - Truck",IF(B132+2*B135+B179>B129,B132+2*B135+B179-B129,B129),IF(B131<B127,0,B131-B127)) -> 0
A183: Additional Setback Width between Lot Line and Storage | B183: =IF(B34="Gaseous - Truck",IF(B130>B180,0,B180-B130),IF(B180+B132>B130,B180+B132-B130,0)) -> 0
A184: Total Storage Length, Including Setbacks (m) | B184: =IF(B34="Gaseous - Truck",B132+2*B135+B179,IF(B129>=B132+B179,B129,B132+B179)) -> 14.8228
A185: Total Storage Width, Including Setbacks (m) | B185: =IF(B34="Gaseous - Truck",B183+B130,MAX(B180+B132,B130)) -> 13.72
A186: Overall Station Length (m) | B186: =IF(B34="Gaseous - Truck",B182+B124,B124+B184-B129) -> 48.3428
A187: Overall Station Width (m) | B187: =B125+B183 -> 33.53
A188: Overall Station Area (m2) | B188: =B186*B187 -> 1620.934084
A189: Baseline Station Area With 6 Dispensers (m2) | B189: =B124*B125 -> 1328.4586
A190: Baseline Station Area With No Convenience Store (m2) | B190: =B189-B127*B128 -> 1189.165
A191: Overall Area Increase to Accommodate Additional Storage Requirements (m2) | B191: =B188-B189 -> 292.475484
A192: Total H2 Area (m2) | B192: =IF(B34="Gaseous - Truck",B191+B190*(B153/B126),IF(B153<=B126,B191+B190*(B153/B126),B190+B191+B134*ROUNDUP((B153-B126)/2,0))) -> 887.057984
A196: Refueling Station Optimization Calculations
A197: Item | B197: Value
A198: Hours the Refueling Station Is Operating | B198: 24
A200: Cap, Adjusted Refueling Station Daily Demand for a Friday in the Summer (kg/day) | B200: =Daily_demand -> 1578.78844
A201: Optimum Number of Cascade Systems | B201: 3
A202: Cm, Lower Limit on Compressor Capacity (kg/hr) | B202: =Daily_demand/B198 -> 65.78285165
A203: Average Compressor Demand During Day Based on Lower Limit of Compressor Capacity (kg/min) | B203: =B202/60 -> 1.096380861
A204: High Pressure Cascade Tank Capacity at Maximum Specified Unit Pressure (kg) | B204: =B170*0.02831685*$B$201*(B60*6894.757)/H2_ZFactor(B58,B60*0.06804596)/(8314.9/2.0158)/(B58+273.15) -> 65.24666235
A205: High Pressure Cascade Tank Capacity at Minimum Specified Unit Pressure (kg) | B205: =B170*0.02831685*$B$201*(B61*6894.757)/H2_ZFactor(B58,B61*0.06804596)/(8314.9/2.0158)/(B58+273.15) -> 59.45196612
A206: Difference Between Capacity at Maximum and Minimum Specified Unit Pressure - High Pressure Cascade Tank (kg) | B206: =B204-B205 -> 5.794696236
A207: Medium Pressure Cascade Tank Capacity at Maximum Specified Unit Pressure (kg) | B207: =B170*0.02831685*$B$201*(B63*6894.757)/H2_ZFactor(B58,B63*0.06804596)/(8314.9/2.0158)/(B58+273.15) -> 65.24666235
A208: Medium Pressure Cascade Tank Capacity at Minimum Specified Unit Pressure (kg) | B208: =B170*0.02831685*$B$201*(B64*6894.757)/H2_ZFactor(B58,B64*0.06804596)/(8314.9/2.0158)/(B58+273.15) -> 47.52631378
A209: Difference Between Capacity at Maximum and Minimum Specified Unit Pressure - Medium Pressure Cascade Tank (kg) | B209: =B207-B208 -> 17.72034857
A210: Low Pressure Cascade Tank Capacity at Maximum Specified Unit Pressure (kg) | B210: =B170*0.02831685*$B$201*(B66*6894.757)/H2_ZFactor(B77,B66*0.06804596)/(8314.9/2.0158)/(B77+273.15) -> 65.24666235
A211: Low Pressure Cascade Tank Capacity at Minimum Specified Unit Pressure (kg) | B211: =B170*0.02831685*$B$201*(B67*6894.757)/H2_ZFactor(B58,B67*0.06804596)/(8314.9/2.0158)/(B58+273.15) -> 27.34974895
A212: Difference Between Capacity at Maximum and Minimum Specified Unit Pressure - Low Pressure Cascade Tank (kg) | B212: =B210-B211 -> 37.8969134
A213: Total Dispensible from Cascade Before Compressor is Needed (kg) | B213: =SUM(B206,B209,B212) -> 61.41195821
A214: Vehicle Tank maximum pressure (psia) | B214: =B68 -> 10150
A215: Vehicle Tank Useable Volume (ft3) | B215: =$B$72/0.02831685/($B$214*6894.757)*H2_ZFactor($B$58,$B$214*0.06804596)*(8314.9/2.0158)*($B$58+273) -> 6.287906282
A216: Maximum number of dispensing vehicles | B216: =B71*B153 -> 6
A217: Total vehicles tank useable volume (ft3) | B217: =B215*B216 -> 37.72743769
A218: ="Maximum mass (kg) inside vehicle tanks at " & TEXT(B61,"0") & " psia" -> Maximum mass (kg) inside vehicle tanks at 11000 psia | B218: =B217*0.02831685*(B68*6894.757)/H2_ZFactor($B$58,B68*0.06804596)/(8314.9/2.0158)/($B$58+273.15) -> 41.9788697
A219: ="Maximum mass (kg) inside vehicle tanks at " & TEXT(B64,"0") & " psia" -> Maximum mass (kg) inside vehicle tanks at 8000 psia | B219: =B217*0.02831685*(B64*6894.757)/H2_ZFactor($B$58,B64*0.06804596)/(8314.9/2.0158)/($B$58+273) -> 35.45456552
... 375 more rows

Sheet Results
B2: Table of Contents
B3: Specific Item Cost Calculation
B4: Energy Data
B5: Production Process Energy Efficiency
B6: Upstream Energy Usage
B7: Emissions Summary
B17: COST RESULTS
B20: Specific Item Cost Calculation | D20: Total Cost of Delivered Hydrogen | F20: =Result_price+D29 -> 7.368417362
B21: Cost Component | C21: Hydrogen Production Cost Contribution ($/kg) | D21: Compression, Storage, and Dispensing Cost Contribution ($/kg)* | F21: Percentage of H2 Cost
B22: Capital Costs | C22: ='Production Cash Flow Analysis'!D119 -> 1.420141265 | D22: =+'Tornado Charts'!AT64+'Tornado Charts'!AW64+'Tornado Charts'!BC64+'Tornado Charts'!BE64 -> 1.117207853 | F22: =IF(D22="",result_cap_contr/H2_TotalPrice_real,(result_cap_contr+D22)/H2_TotalPrice_real) -> 0.3443546957
B23: Decommissioning Costs | C23: ='Production Cash Flow Analysis'!D120 -> 0.016431168 | D23: =-'Tornado Charts'!AS64+'Tornado Charts'!AX64 -> 0 | F23: =IF(D23="",result_decom_contr/H2_TotalPrice_real,(result_decom_contr+D23)/H2_TotalPrice_real) -> 0.002229945345
B24: Fixed O&M | C24: ='Production Cash Flow Analysis'!D121 -> 0.4186704219 | D24: =+'Tornado Charts'!AU64++'Tornado Charts'!AY64 -> 0.427940361 | F24: =IF(D24="",result_Fixed_O_M_contr/H2_TotalPrice_real,(result_Fixed_O_M_contr+D24)/H2_TotalPrice_real) -> 0.1148972352
B25: Feedstock Costs | C25: ='Production Cash Flow Analysis'!D122 -> 3.340211448 | D25: =+'Tornado Charts'!AZ64 -> 0 | F25: =IF(D25="",result_feed_contr/H2_TotalPrice_real,(result_feed_contr+D25)/H2_TotalPrice_real) -> 0.4533146379
B26: Other Raw Material Costs | C26: ='Production Cash Flow Analysis'!D123 -> 0 | D26: =+'Tornado Charts'!BA64 -> 0 | F26: =IF(D26="",result_Other_Mat_contr/H2_TotalPrice_real,(result_Other_Mat_contr+D26)/H2_TotalPrice_real) -> 0
B27: Byproduct Credits | C27: ='Production Cash Flow Analysis'!D124 -> 0 | D27: =-'Tornado Charts'!AR64 -> 0 | F27: =IF(D27="",result_byprod_contr/H2_TotalPrice_real,(result_byprod_contr+D27)/H2_TotalPrice_real) -> 0
B28: Other Variable Costs (including utilities) | C28: ='Production Cash Flow Analysis'!D125 -> 0.0126667113 | D28: =+'Tornado Charts'!AV64+'Tornado Charts'!BB64+'Tornado Charts'!BD64 -> 0.6151481329 | F28: =IF(D28="",result_other_var_contr/H2_TotalPrice_real,(result_other_var_contr+D28)/H2_TotalPrice_real) -> 0.08520348582
B29: Total | C29: =SUM(C22:C28) -> 5.208121014 | D29: =SUM(D22:D28) -> 2.160296347
B30: * Results will be shown in this column only if the detail Refueling Station calculation sheet is used.
B32: SUMMARY ENERGY RESULTS
B33: Energy Usage (kWh/y)
C34: Total Including Production of Fuel | D34: Onsite | F34: Facility Energy Efficiency | I34: =SUM(H38:H39)/SUM(H35:H37) -> 0.5677975817
B35: Production Process Total | C35: =C36+C41 -> 61919530.94 | D35: =D36+D41 -> 25698502.91 | F35: Feedstock energy input (kWh/yr) | H35: =D36 -> 25698502.91 | I35: =H38/(H35+H36) -> 0.6115773214
B36: Total Production Feedstocks | C36: =SUM(C37:C40) -> 61919530.94 | D36: =SUM(D37:D40) -> 25698502.91 | F36: Utility energy input (kWh/yr) | H36: =D41 -> 0
B37: =B89 -> Industrial Electricity | C37: =IF(C70=0,"",(C70*(1+VLOOKUP(B89,Tbl_Emissions,3,FALSE)/1000000))) -> 61919530.94 | D37: =IF(C70=0,"",C70) -> 25698502.91 | F37: Refueling Station energy input (kWh/yr) | H37: =D46 -> 1981469.815
B38: =B90 ->  | C38: =IF(C71=0,"",(C71*(1+VLOOKUP(B90,Tbl_Emissions,3,FALSE)/1000000))) ->  | D38: =IF(C71=0,"",C71) ->  | F38: Hydrogen energy output (kWh/yr) | H38: =L79 -> 15716621.57
B39: =B91 ->  | C39: =IF(C72=0,"",(C72*(1+VLOOKUP(B91,Tbl_Emissions,3,FALSE)/1000000))) ->  | D39: =IF(C72=0,"",C72) ->  | F39: Byproduct energy output (kWh/yr) | H39: =output_kgyear*MJ_to_kWh*1000*(('Production Cash Flow Analysis'!K132*'Production Cash Flow Analysis'!K133)+('Production Cash Flow Analysis'!L132*'Production Cash Flow Analysis'!L133)+('Production Cash Flow Analysis'!M132*'Production Cash Flow Analysis'!M133)+('Production Cash Flow Analysis'!N132*'Production Cash Flow Analysis'!N133)) -> 0
B40: =B92 ->  | C40: =IF(C73=0,"",(C73*(1+VLOOKUP(B92,Tbl_Emissions,3,FALSE)/1000000))) ->  | D40: =IF(C73=0,"",C73) -> 
B41: Total Production Utilities | C41: =SUM(C42:C45) -> 0 | D41: =SUM(D42:D45) -> 0
B42: =B94 ->  | C42: =IF(C75=0,"",(C75*(1+VLOOKUP(B94,Tbl_Emissions,3,FALSE)/1000000))) ->  | D42: =IF(C75=0,"",C75) -> 
B43: =B95 ->  | C43: =IF(C76=0,"",(C76*(1+VLOOKUP(B95,Tbl_Emissions,3,FALSE)/1000000))) ->  | D43: =IF(C76=0,"",C76) -> 
B44: =B96 ->  | C44: =IF(C77=0,"",(C77*(1+VLOOKUP(B96,Tbl_Emissions,3,FALSE)/1000000))) ->  | D44: =IF(C77=0,"",C77) -> 
B45: =B97 ->  | C45: =IF(C78=0,"",(C78*(1+VLOOKUP(B97,Tbl_Emissions,3,FALSE)/1000000))) ->  | D45: =IF(C78=0,"",C78) -> 
B46: Refueling Station Total | C46: =IF(C47=0,"",C47) -> 4774273.504 | D46: =IF(D47=0,"",D47) -> 1981469.815
B47: =B99 -> Commercial Electricity | C47: =IF(C81=0,"",(C81*(1+VLOOKUP(B99,Tbl_Emissions,3,FALSE)/1000000))) -> 4774273.504 | D47: =IF(C81=0,"",C81) -> 1981469.815
B49: SUMMARY EMISSIONS RESULTS
B50: GHG Emissions (kg CO2eq/y) | C50: Upstream | G50: Onsite
C51: CO2 | D51: CH4 | E51: N2O | F51: Total GHG (CO2 eq) | G51: CO2 | H51: CH4 | I51: N2O | J51: Total GHG (CO2 eq)
B52: Production Process Total | C52: =C53+C58 -> 16037636.62 | D52: 27788.77501 | E52: 249.0309214 | F52: 16806567.21 | G52: 0 | H52: 0 | I52: 0 | J52: 0
B53: Total Production Feedstocks | C53: =SUM(C54:C57) -> 16037636.62 | D53: 27788.77501 | E53: 249.0309214 | F53: 16806567.21 | G53: 0 | H53: 0 | I53: 0 | J53: 0
B54: =B89 -> Industrial Electricity | C54: =IF($C70=0,"",($C70*I89)) -> 16037636.62 | D54: =IF($C70=0,"",($C70*J89)) -> 27788.77501 | E54: 249.0309214 | F54: 16806567.21 | G54: =IF($C70=0,"",($C70*E89)) -> 0 | H54: =IF($C70=0,"",($C70*F89)) -> 0 | I54: 0 | J54: 0
B55: =B90 ->  | C55: =IF($C71=0,"",($C71*I90)) ->  | G55: =IF($C71=0,"",($C71*E90)) -> 
B56: =B91 ->  | C56: =IF($C72=0,"",($C72*I91)) ->  | G56: =IF($C72=0,"",($C72*E91)) -> 
B57: =B92 ->  | C57: =IF($C73=0,"",($C73*I92)) ->  | G57: =IF($C73=0,"",($C73*E92)) -> 
B58: Total Production Utilities | C58: =SUM(C59:C62) -> 0 | D58: 0 | E58: 0 | F58: 0 | G58: 0 | H58: 0 | I58: 0 | J58: 0
B59: =B94 ->  | C59: =IF($C75=0,"",($C75*I94)) ->  | D59: =IF($C75=0,"",($C75*J94)) ->  | G59: =IF($C75=0,"",($C75*E94)) ->  | H59: =IF($C75=0,"",($C75*F94)) -> 
B60: =B95 ->  | C60: =IF($C76=0,"",($C76*I95)) ->  | G60: =IF($C76=0,"",($C76*E95)) -> 
B61: =B96 ->  | C61: =IF($C77=0,"",($C77*I96)) ->  | G61: =IF($C77=0,"",($C77*E96)) -> 
B62: =B97 ->  | C62: =IF($C78=0,"",($C78*I97)) ->  | G62: =IF($C78=0,"",($C78*E97)) -> 
B63: Refueling Station Total | C63: =C64 -> 1236573.702 | D63: 2142.639168 | E63: 19.20140078 | F63: 1295861.698 | G63: 0 | H63: 0 | I63: 0 | J63: 0
B64: =B99 -> Commercial Electricity | C64: =IF($C81=0,0,($C81*I99)) -> 1236573.702 | D64: =IF($C81=0,0,($C81*J99)) -> 2142.639168 | E64: =IF($C81=0,0,($C81*K99)) -> 19.20140078 | F64: =IF($C81=0,0,($C81*L99)) -> 1295861.698 | H64: =IF($C81=0,0,($C81*E99)) -> 0 | I64: =IF($C81=0,0,($C81*F99)) -> 0 | J64: =IF($C81=0,0,($C81*G99)) -> 0
C66: Energy use kWh/y
C67: GHG Emissions (kg CO2 eq/year)
B68: System Inputs | E68: Upstream Energy and Emissions | H68: Onsite Energy and Emissions
B69: =B88 -> Production Feedstocks | C69: Energy (kWh/year) | E69: =B88 -> Production Feedstocks
B70: Industrial Electricity | C70: =('Production Cash Flow Analysis'!B133*'Production Cash Flow Analysis'!B132)*output_kgyear*MJ_to_kWh*1000 -> 25698502.91 | E70: Energy (kWh/year) | F70: GHG Emissions (kg CO2eq/year)
C71: =('Production Cash Flow Analysis'!C133*'Production Cash Flow Analysis'!C132)*output_kgyear*MJ_to_kWh*1000 -> 0 | E71: =IF(C70=0,0,(C70*(1+VLOOKUP($B$89,Tbl_Emissions,3,FALSE)/1000000)))+IF(C71=0,0,(C71*(1+VLOOKUP($B$90,Tbl_Emissions,3,FALSE)/1000000)))+IF(C72=0,0,(C72*(1+VLOOKUP($B$91,Tbl_Emissions,3,FALSE)/1000000)))+IF(C73=0,0,(C73*(1+VLOOKUP($B$92,Tbl_Emissions,3,FALSE)/1000000))) -> 61919530.94 | F71: =IF(C70=0,0,(C70*L89))+IF(C71=0,0,(C71*L90))+IF(C72=0,0,(C72*L91))+IF(C73=0,0,(C73*L92)) -> 16806567.21
C72: =('Production Cash Flow Analysis'!D133*'Production Cash Flow Analysis'!D132)*output_kgyear*MJ_to_kWh*1000 -> 0 | E72: =B93 -> Production Utility | H72: Hydrogen Production
C73: =('Production Cash Flow Analysis'!E133*'Production Cash Flow Analysis'!E132)*output_kgyear*MJ_to_kWh*1000 -> 0 | E73: Energy (kWh/year) | F73: GHG Emissions (kg CO2eq/year) | H73: Energy (kWh/year) | I73: GHG Emissions (kg CO2eq/year)
B74: Production Utility | C74: Energy (kWh/year) | E74: =IF(C75=0,0,(C75*(1+VLOOKUP(B94,Tbl_Emissions,3,FALSE)/1000000)))+IF(C76=0,0,(C76*(1+VLOOKUP($B$95,Tbl_Emissions,3,FALSE)/1000000)))+IF(C77=0,0,(C77*(1+VLOOKUP($B$96,Tbl_Emissions,3,FALSE)/1000000)))+IF(C78=0,0,(C78*(1+VLOOKUP($B$97,Tbl_Emissions,3,FALSE)/1000000))) -> 0 | F74: =IF(C75=0,0,(C75*L94))+IF(C76=0,0,(C76*L95))+IF(C77=0,0,(C77*L96))+IF(C78=0,0,(C78*L97)) -> 0 | H74: =SUM(C70:C73,C75:C78) -> 25698502.91 | I74: =IF(C70=0,0,(C70*H89))+IF(C71=0,0,(C71*H90))+IF(C72=0,0,(C72*H91))+IF(C73=0,0,(C73*H92))+IF(C75=0,0,(C75*H94))+IF(C76=0,0,(C76*H95))+IF(C77=0,0,(C77*H96))+IF(C78=0,0,(C78*H97)) -> 0
C75: =('Production Cash Flow Analysis'!F133*'Production Cash Flow Analysis'!F132)*output_kgyear*MJ_to_kWh*1000 -> 0
C76: =('Production Cash Flow Analysis'!G133*'Production Cash Flow Analysis'!G132)*output_kgyear*MJ_to_kWh*1000 -> 0
C77: =('Production Cash Flow Analysis'!H133*'Production Cash Flow Analysis'!H132)*output_kgyear*MJ_to_kWh*1000 -> 0 | E77: =B98 -> Refueling Station Utility | H77: Refueling Station
C78: =('Production Cash Flow Analysis'!I133*'Production Cash Flow Analysis'!I132)*output_kgyear*MJ_to_kWh*1000 -> 0 | E78: Energy (kWh/year) | F78: GHG Emissions (kg CO2eq/year) | H78: Energy (kWh/year) | I78: GHG Emissions (kg CO2eq/year) | K78: Hydrogen Delivered (kg/year) | L78: Hydrogen Delivered (kWh/year)
E79: =IF(C81=0,0,(C81*(1+VLOOKUP(B99,Tbl_Emissions,3,FALSE)/1000000))) -> 4774273.504 | F79: =IF(C81=0,0,(C81*L99)) -> 1295861.698 | H79: =C81 -> 1981469.815 | I79: =IF(C81=0,0,(C81*H99)) -> 0 | K79: =output_kgyear -> 470668.5514 | L79: =output_kgyear*kgH2_to_kWh -> 15716621.57
B80: =B98 -> Refueling Station Utility | C80: Energy (kWh/year)
B81: =B99 -> Commercial Electricity | C81: =('Production Cash Flow Analysis'!J133*'Production Cash Flow Analysis'!J132)*output_kgyear*MJ_to_kWh*1000*avg_daily_demand_GH2/YearlyDispensing -> 1981469.815
B85: Energy and Emissions Results
B87: Energy Data | E87: Process Emissions Factors | I87: Upstream Emissions Factors
B88: Production Feedstocks | C88: Unit | D88: Unit System Conversion Factor | E88: CO2 (kg/kWh feed) | F88: CH4 (kg/kWh feed) | G88: N2O (kg/kWh feed) | H88: Total (kg CO2 eq/kWh feed) | I88: CO2 (kg/kWh feed) | J88: CH4 (kg/kWh feed) | K88: N2O (kg/kWh feed) | L88: Total (kg CO2 eq/kWh feed) | M88: Real levelized cost
B89: =IF('Production Cash Flow Analysis'!B$131=0,"",'Production Cash Flow Analysis'!$B$131) -> Industrial Electricity | C89: =IF($B$89<>"",VLOOKUP($B$89,MASTER_PROPERTY_TABLE,MATCH("H2A Usage Input Unit/ kg H2",key_MPTable,0),FALSE),"") -> kWh | D89: =IF($B89="","",IF(VLOOKUP($B89,MASTER_PROPERTY_TABLE,MATCH("Unit System",key_MPTable,0),FALSE)="English",mmBTU_to_GJ,1)) -> 1 | E89: =IF($B89="","",VLOOKUP($B89,MASTER_PROPERTY_TABLE,MATCH("CO2 Emissions Factor (kg CO2 produced/GJ feed)",key_MPTable,0),FALSE)/$D89/MJ_to_kWh/1000) -> 0 | F89: =IF($B89="","",VLOOKUP($B89,MASTER_PROPERTY_TABLE,MATCH("CH4 Emissions Factor (kg CH4 produced/GJ feed)",key_MPTable,0),FALSE)/$D89/MJ_to_kWh/1000) -> 0 | G89: =IF($B89="","",VLOOKUP($B89,MASTER_PROPERTY_TABLE,MATCH("N2O Emissions Factor (kg N2O produced/GJ feed)",key_MPTable,0),FALSE)/$D89/MJ_to_kWh/1000) -> 0 | H89: =IF($B89="","",$E89*GHG_CO2_factor+$F89*GHG_CH4_factor+$G89*GHG_N2O_factor) -> 0 | I89: =IF($B89="","",VLOOKUP($B89,Tbl_Emissions,6,FALSE)/1000/MJ_to_kWh) -> 0.624068907 | J89: =IF($B89="","",VLOOKUP($B89,Tbl_Emissions,7,FALSE)/1000/MJ_to_kWh) -> 0.001081338283 | K89: =IF($B89="","",VLOOKUP($B89,Tbl_Emissions,8,FALSE)/1000/MJ_to_kWh) -> 9.690483618e-06 | L89: =IF($B89="","",$I89*GHG_CO2_factor+$J89*GHG_CH4_factor+$K89*GHG_N2O_factor) -> 0.6539901282 | M89: =+'Production Cash Flow Analysis'!$B$233 -> 0.06169916173
B90: =IF('Production Cash Flow Analysis'!$C$131=0,"",'Production Cash Flow Analysis'!$C$131) ->  | C90: =IF($B$90<>"",VLOOKUP($B$90,MASTER_PROPERTY_TABLE,MATCH("H2A Usage Input Unit/ kg H2",key_MPTable,0),FALSE),"") ->  | D90: =IF($B90="","",IF(VLOOKUP($B90,MASTER_PROPERTY_TABLE,MATCH("Unit System",key_MPTable,0),FALSE)="English",mmBTU_to_GJ,1)) ->  | E90: =IF($B90="","",VLOOKUP($B90,MASTER_PROPERTY_TABLE,MATCH("CO2 Emissions Factor (kg CO2 produced/GJ feed)",key_MPTable,0),FALSE)/$D90/MJ_to_kWh/1000) ->  | F90: =IF($B90="","",VLOOKUP($B90,MASTER_PROPERTY_TABLE,MATCH("CH4 Emissions Factor (kg CH4 produced/GJ feed)",key_MPTable,0),FALSE)/$D90/MJ_to_kWh/1000) ->  | G90: =IF($B90="","",VLOOKUP($B90,MASTER_PROPERTY_TABLE,MATCH("N2O Emissions Factor (kg N2O produced/GJ feed)",key_MPTable,0),FALSE)/$D90/MJ_to_kWh/1000) ->  | H90: =IF($B90="","",$E90*GHG_CO2_factor+$F90*GHG_CH4_factor+$G90*GHG_N2O_factor) ->  | I90: =IF($B90="","",VLOOKUP($B90,Tbl_Emissions,6,FALSE)/1000/MJ_to_kWh) ->  | J90: =IF($B90="","",VLOOKUP($B90,Tbl_Emissions,7,FALSE)/1000/MJ_to_kWh) ->  | K90: =IF($B90="","",VLOOKUP($B90,Tbl_Emissions,8,FALSE)/1000/MJ_to_kWh) ->  | L90: =IF($B90="","",$I90*GHG_CO2_factor+$J90*GHG_CH4_factor+$K90*GHG_N2O_factor) ->  | M90: =+'Production Cash Flow Analysis'!$C$233 -> 
B91: =IF('Production Cash Flow Analysis'!D$131=0,"",'Production Cash Flow Analysis'!$D$131) ->  | C91: =IF($B$91<>"",VLOOKUP($B$91,MASTER_PROPERTY_TABLE,MATCH("H2A Usage Input Unit/ kg H2",key_MPTable,0),FALSE),"") ->  | D91: =IF($B91="","",IF(VLOOKUP($B91,MASTER_PROPERTY_TABLE,MATCH("Unit System",key_MPTable,0),FALSE)="English",mmBTU_to_GJ,1)) ->  | E91: =IF($B91="","",VLOOKUP($B91,MASTER_PROPERTY_TABLE,MATCH("CO2 Emissions Factor (kg CO2 produced/GJ feed)",key_MPTable,0),FALSE)/$D91/MJ_to_kWh/1000) ->  | F91: =IF($B91="","",VLOOKUP($B91,MASTER_PROPERTY_TABLE,MATCH("CH4 Emissions Factor (kg CH4 produced/GJ feed)",key_MPTable,0),FALSE)/$D91/MJ_to_kWh/1000) ->  | G91: =IF($B91="","",VLOOKUP($B91,MASTER_PROPERTY_TABLE,MATCH("N2O Emissions Factor (kg N2O produced/GJ feed)",key_MPTable,0),FALSE)/$D91/MJ_to_kWh/1000) ->  | H91: =IF($B91="","",$E91*GHG_CO2_factor+$F91*GHG_CH4_factor+$G91*GHG_N2O_factor) ->  | I91: =IF($B91="","",VLOOKUP($B91,Tbl_Emissions,6,FALSE)/1000/MJ_to_kWh) ->  | J91: =IF($B91="","",VLOOKUP($B91,Tbl_Emissions,7,FALSE)/1000/MJ_to_kWh) ->  | K91: =IF($B91="","",VLOOKUP($B91,Tbl_Emissions,8,FALSE)/1000/MJ_to_kWh) ->  | L91: =IF($B91="","",$I91*GHG_CO2_factor+$J91*GHG_CH4_factor+$K91*GHG_N2O_factor) ->  | M91: =+'Production Cash Flow Analysis'!$D$233 -> 
B92: =IF('Production Cash Flow Analysis'!E$131=0,"",'Production Cash Flow Analysis'!$E$131) ->  | C92: =IF($B$92<>"",VLOOKUP($B$92,MASTER_PROPERTY_TABLE,MATCH("H2A Usage Input Unit/ kg H2",key_MPTable,0),FALSE),"") ->  | D92: =IF($B92="","",IF(VLOOKUP($B92,MASTER_PROPERTY_TABLE,MATCH("Unit System",key_MPTable,0),FALSE)="English",mmBTU_to_GJ,1)) ->  | E92: =IF($B92="","",VLOOKUP($B92,MASTER_PROPERTY_TABLE,MATCH("CO2 Emissions Factor (kg CO2 produced/GJ feed)",key_MPTable,0),FALSE)/$D92/MJ_to_kWh/1000) ->  | F92: =IF($B92="","",VLOOKUP($B92,MASTER_PROPERTY_TABLE,MATCH("CH4 Emissions Factor (kg CH4 produced/GJ feed)",key_MPTable,0),FALSE)/$D92/MJ_to_kWh/1000) ->  | G92: =IF($B92="","",VLOOKUP($B92,MASTER_PROPERTY_TABLE,MATCH("N2O Emissions Factor (kg N2O produced/GJ feed)",key_MPTable,0),FALSE)/$D92/MJ_to_kWh/1000) ->  | H92: =IF($B92="","",$E92*GHG_CO2_factor+$F92*GHG_CH4_factor+$G92*GHG_N2O_factor) ->  | I92: =IF($B92="","",VLOOKUP($B92,Tbl_Emissions,6,FALSE)/1000/MJ_to_kWh) ->  | J92: =IF($B92="","",VLOOKUP($B92,Tbl_Emissions,7,FALSE)/1000/MJ_to_kWh) ->  | K92: =IF($B92="","",VLOOKUP($B92,Tbl_Emissions,8,FALSE)/1000/MJ_to_kWh) ->  | L92: =IF($B92="","",$I92*GHG_CO2_factor+$J92*GHG_CH4_factor+$K92*GHG_N2O_factor) ->  | M92: =+'Production Cash Flow Analysis'!$E$233 -> 
B93: Production Utility
B94: =IF('Production Cash Flow Analysis'!F$131=0,"",'Production Cash Flow Analysis'!$F$131) ->  | C94: =IF($B$94<>"",VLOOKUP($B$94,MASTER_PROPERTY_TABLE,MATCH("H2A Usage Input Unit/ kg H2",key_MPTable,0),FALSE),"") ->  | D94: =IF($B94="","",IF(VLOOKUP($B94,MASTER_PROPERTY_TABLE,MATCH("Unit System",key_MPTable,0),FALSE)="English",mmBTU_to_GJ,1)) ->  | E94: =IF($B94="","",VLOOKUP($B94,MASTER_PROPERTY_TABLE,MATCH("CO2 Emissions Factor (kg CO2 produced/GJ feed)",key_MPTable,0),FALSE)/$D94/MJ_to_kWh/1000) ->  | F94: =IF($B94="","",VLOOKUP($B94,MASTER_PROPERTY_TABLE,MATCH("CH4 Emissions Factor (kg CH4 produced/GJ feed)",key_MPTable,0),FALSE)/$D94/MJ_to_kWh/1000) ->  | G94: =IF($B94="","",VLOOKUP($B94,MASTER_PROPERTY_TABLE,MATCH("N2O Emissions Factor (kg N2O produced/GJ feed)",key_MPTable,0),FALSE)/$D94/MJ_to_kWh/1000) ->  | H94: =IF($B94="","",$E94*GHG_CO2_factor+$F94*GHG_CH4_factor+$G94*GHG_N2O_factor) ->  | I94: =IF($B94="","",VLOOKUP($B94,Tbl_Emissions,6,FALSE)/1000/MJ_to_kWh) ->  | J94: =IF($B94="","",VLOOKUP($B94,Tbl_Emissions,7,FALSE)/1000/MJ_to_kWh) ->  | K94: =IF($B94="","",VLOOKUP($B94,Tbl_Emissions,8,FALSE)/1000/MJ_to_kWh) ->  | L94: =IF($B94="","",$I94*GHG_CO2_factor+$J94*GHG_CH4_factor+$K94*GHG_N2O_factor) ->  | M94: =+'Production Cash Flow Analysis'!$F$233 -> 
B95: =IF('Production Cash Flow Analysis'!G$131=0,"",'Production Cash Flow Analysis'!$G$131) ->  | C95: =IF($B$95<>"",VLOOKUP($B$95,MASTER_PROPERTY_TABLE,MATCH("H2A Usage Input Unit/ kg H2",key_MPTable,0),FALSE),"") ->  | D95: =IF($B95="","",IF(VLOOKUP($B95,MASTER_PROPERTY_TABLE,MATCH("Unit System",key_MPTable,0),FALSE)="English",mmBTU_to_GJ,1)) ->  | E95: =IF($B95="","",VLOOKUP($B95,MASTER_PROPERTY_TABLE,MATCH("CO2 Emissions Factor (kg CO2 produced/GJ feed)",key_MPTable,0),FALSE)/$D95/MJ_to_kWh/1000) ->  | F95: =IF($B95="","",VLOOKUP($B95,MASTER_PROPERTY_TABLE,MATCH("CH4 Emissions Factor (kg CH4 produced/GJ feed)",key_MPTable,0),FALSE)/$D95/MJ_to_kWh/1000) ->  | G95: =IF($B95="","",VLOOKUP($B95,MASTER_PROPERTY_TABLE,MATCH("N2O Emissions Factor (kg N2O produced/GJ feed)",key_MPTable,0),FALSE)/$D95/MJ_to_kWh/1000) ->  | H95: =IF($B95="","",$E95*GHG_CO2_factor+$F95*GHG_CH4_factor+$G95*GHG_N2O_factor) ->  | I95: =IF($B95="","",VLOOKUP($B95,Tbl_Emissions,6,FALSE)/1000/MJ_to_kWh) ->  | J95: =IF($B95="","",VLOOKUP($B95,Tbl_Emissions,7,FALSE)/1000/MJ_to_kWh) ->  | K95: =IF($B95="","",VLOOKUP($B95,Tbl_Emissions,8,FALSE)/1000/MJ_to_kWh) ->  | L95: =IF($B95="","",$I95*GHG_CO2_factor+$J95*GHG_CH4_factor+$K95*GHG_N2O_factor) ->  | M95: =+'Production Cash Flow Analysis'!$G$233 -> 
B96: =IF('Production Cash Flow Analysis'!H$131=0,"",'Production Cash Flow Analysis'!$H$131) ->  | C96: =IF($B$96<>"",VLOOKUP($B$96,MASTER_PROPERTY_TABLE,MATCH("H2A Usage Input Unit/ kg H2",key_MPTable,0),FALSE),"") ->  | D96: =IF($B96="","",IF(VLOOKUP($B96,MASTER_PROPERTY_TABLE,MATCH("Unit System",key_MPTable,0),FALSE)="English",mmBTU_to_GJ,1)) ->  | E96: =IF($B96="","",VLOOKUP($B96,MASTER_PROPERTY_TABLE,MATCH("CO2 Emissions Factor (kg CO2 produced/GJ feed)",key_MPTable,0),FALSE)/$D96/MJ_to_kWh/1000) ->  | F96: =IF($B96="","",VLOOKUP($B96,MASTER_PROPERTY_TABLE,MATCH("CH4 Emissions Factor (kg CH4 produced/GJ feed)",key_MPTable,0),FALSE)/$D96/MJ_to_kWh/1000) ->  | G96: =IF($B96="","",VLOOKUP($B96,MASTER_PROPERTY_TABLE,MATCH("N2O Emissions Factor (kg N2O produced/GJ feed)",key_MPTable,0),FALSE)/$D96/MJ_to_kWh/1000) ->  | H96: =IF($B96="","",$E96*GHG_CO2_factor+$F96*GHG_CH4_factor+$G96*GHG_N2O_factor) ->  | I96: =IF($B96="","",VLOOKUP($B96,Tbl_Emissions,6,FALSE)/1000/MJ_to_kWh) ->  | J96: =IF($B96="","",VLOOKUP($B96,Tbl_Emissions,7,FALSE)/1000/MJ_to_kWh) ->  | K96: =IF($B96="","",VLOOKUP($B96,Tbl_Emissions,8,FALSE)/1000/MJ_to_kWh) ->  | L96: =IF($B96="","",$I96*GHG_CO2_factor+$J96*GHG_CH4_factor+$K96*GHG_N2O_factor) ->  | M96: =+'Production Cash Flow Analysis'!$H$233 -> 
B97: =IF('Production Cash Flow Analysis'!I$131=0,"",'Production Cash Flow Analysis'!$I$131) ->  | C97: =IF($B$97<>"",VLOOKUP($B$97,MASTER_PROPERTY_TABLE,MATCH("H2A Usage Input Unit/ kg H2",key_MPTable,0),FALSE),"") ->  | D97: =IF($B97="","",IF(VLOOKUP($B97,MASTER_PROPERTY_TABLE,MATCH("Unit System",key_MPTable,0),FALSE)="English",mmBTU_to_GJ,1)) ->  | E97: =IF($B97="","",VLOOKUP($B97,MASTER_PROPERTY_TABLE,MATCH("CO2 Emissions Factor (kg CO2 produced/GJ feed)",key_MPTable,0),FALSE)/$D97/MJ_to_kWh/1000) ->  | F97: =IF($B97="","",VLOOKUP($B97,MASTER_PROPERTY_TABLE,MATCH("CH4 Emissions Factor (kg CH4 produced/GJ feed)",key_MPTable,0),FALSE)/$D97/MJ_to_kWh/1000) ->  | G97: =IF($B97="","",VLOOKUP($B97,MASTER_PROPERTY_TABLE,MATCH("N2O Emissions Factor (kg N2O produced/GJ feed)",key_MPTable,0),FALSE)/$D97/MJ_to_kWh/1000) ->  | H97: =IF($B97="","",$E97*GHG_CO2_factor+$F97*GHG_CH4_factor+$G97*GHG_N2O_factor) ->  | I97: =IF($B97="","",VLOOKUP($B97,Tbl_Emissions,6,FALSE)/1000/MJ_to_kWh) ->  | J97: =IF($B97="","",VLOOKUP($B97,Tbl_Emissions,7,FALSE)/1000/MJ_to_kWh) ->  | K97: =IF($B97="","",VLOOKUP($B97,Tbl_Emissions,8,FALSE)/1000/MJ_to_kWh) ->  | L97: =IF($B97="","",$I97*GHG_CO2_factor+$J97*GHG_CH4_factor+$K97*GHG_N2O_factor) ->  | M97: =+'Production Cash Flow Analysis'!$I$233 -> 
B98: Refueling Station Utility
B99: =IF('Production Cash Flow Analysis'!J$131=0,"",'Production Cash Flow Analysis'!$J$131) -> Commercial Electricity | C99: =IF($B$99<>"",VLOOKUP($B$99,MASTER_PROPERTY_TABLE,MATCH("H2A Usage Input Unit/ kg H2",key_MPTable,0),FALSE),"") -> kWh | D99: =IF($B99="","",IF(VLOOKUP($B99,MASTER_PROPERTY_TABLE,MATCH("Unit System",key_MPTable,0),FALSE)="English",mmBTU_to_GJ,1)) -> 1 | E99: =IF($B99="","",VLOOKUP($B99,MASTER_PROPERTY_TABLE,MATCH("CO2 Emissions Factor (kg CO2 produced/GJ feed)",key_MPTable,0),FALSE)/$D99/MJ_to_kWh/1000) -> 0 | F99: =IF($B99="","",VLOOKUP($B99,MASTER_PROPERTY_TABLE,MATCH("CH4 Emissions Factor (kg CH4 produced/GJ feed)",key_MPTable,0),FALSE)/$D99/MJ_to_kWh/1000) -> 0 | G99: =IF($B99="","",VLOOKUP($B99,MASTER_PROPERTY_TABLE,MATCH("N2O Emissions Factor (kg N2O produced/GJ feed)",key_MPTable,0),FALSE)/$D99/MJ_to_kWh/1000) -> 0 | H99: =IF($B99="","",$E99*GHG_CO2_factor+$F99*GHG_CH4_factor+$G99*GHG_N2O_factor) -> 0 | I99: =IF($B99="","",VLOOKUP($B99,Tbl_Emissions,6,FALSE)/1000/MJ_to_kWh) -> 0.624068907 | J99: =IF($B99="","",VLOOKUP($B99,Tbl_Emissions,7,FALSE)/1000/MJ_to_kWh) -> 0.001081338283 | K99: =IF($B99="","",VLOOKUP($B99,Tbl_Emissions,8,FALSE)/1000/MJ_to_kWh) -> 9.690483618e-06 | L99: =IF($B99="","",$I99*GHG_CO2_factor+$J99*GHG_CH4_factor+$K99*GHG_N2O_factor) -> 0.6539901282 | M99: =+'Refueling Cash Flow Analysis'!$J$233 -> 0.09102965051

Sheet Tornado Charts
B2: Parameter | C2: Nominal | D2: Enter deviation % for lowering H2 cost | E2: Enter deviation % for increasing H2 cost | F2: Price-decreasing factor | G2: Price-increasing factor | H2: Price-decreasing value | I2: Price-increasing value
B3: Realized fraction of design capacity | C3: 1 | D3: 0.05 | E3: 0.05 | F3: =1+D3 -> 1.05 | G3: =1-E3 -> 0.95 | H3: =+C3*F3 -> 1.05 | I3: =+C3*G3 -> 0.95
B4: Plant design capacity (kg of H2/day) | C4: =+design_cap -> 1500 | D4: 0.05 | E4: 0.05 | F4: =1+D4 -> 1.05 | G4: =1-E4 -> 0.95 | H4: 1575 | I4: 1425
B5: After-tax real IRR | C5: =+real_irr -> 0.1 | D5: 0.05 | E5: 0.05 | F5: =1-D5 -> 0.95 | G5: =1+E5 -> 1.05 | H5: 0.095 | I5: 0.105
B6: Feedstock consumption (% of baseline) | C6: 1 | D6: 0.05 | E6: 0.05 | F6: =1-D6 -> 0.95 | G6: =1+E6 -> 1.05 | H6: 0.95 | I6: 1.05
B7: Utilities consumption (% of baseline) | C7: 1 | D7: 0.05 | E7: 0.05 | F7: =1-D7 -> 0.95 | G7: 1.05 | H7: 0.95 | I7: 1.05
B8: Total capital investment | C8: =+total_cap+'Refueling Station - GH2'!B317 -> 8906165.246 | D8: 0.05 | E8: 0.05 | F8: =1-D8 -> 0.95 | G8: 1.05 | H8: 8460856.984 | I8: 9351473.508
B9: Total fixed operating cost | C9: =+fixed+'Refueling Station - GH2'!B353 -> 380798.0991 | D9: 0.05 | E9: 0.05 | F9: =1-D9 -> 0.95 | G9: 1.05 | H9: 361758.1942 | I9: 399838.0041
C14: Include in tornado: | D14: Production | E14: <-- Choose one from drop-down menu
B61: Visuals data formatting below
B63: Displayed case | C63: 1 | D63: 2 | E63: 3 | F63: 4 | G63: 5 | H63: 6 | I63: 7 | K63: =+D14 -> Production | AA63: Production | AQ63: Refueling | BG63: Both
B64: 1 | C64: =+OFFSET(C66,$B$64,0) -> 1 | D64: 1 | E64: 1 | F64: 1 | G64: =+OFFSET(G66,$B$64,0) -> 1 | H64: =+OFFSET(H66,$B$64,0) -> 1 | I64: =+OFFSET(I66,$B$64,0) -> 1 | K64: =($D$14="Production")*AA64+($D$14="Refueling")*AQ64+($D$14="Both")*(AA64+AQ64) -> 5.208121014 | L64: 0 | M64: 0.016431168 | N64: 1.105406819 | O64: 0.08601462517 | P64: 0.00398865368 | Q64: 0 | R64: 0.016431168 | S64: 0.4186704219 | T64: 3.340211448 | U64: 0 | V64: 0.0126667113 | W64: 0 | X64: 0.2411623358 | Y64: 0 | AA64: =+'Production Cash Flow Analysis'!F118 -> 5.208121014 | AB64: =+'Production Cash Flow Analysis'!Q118 -> 0 | AC64: =+'Production Cash Flow Analysis'!L118 -> 0.016431168 | AD64: =+'Production Cash Flow Analysis'!H117 -> 1.105406819 | AE64: =+'Production Cash Flow Analysis'!I117 -> 0.08601462517 | AF64: =+'Production Cash Flow Analysis'!J117 -> 0.00398865368 | AG64: =+'Production Cash Flow Analysis'!K117 -> 0 | AH64: =+'Production Cash Flow Analysis'!M117 -> 0.016431168 | AI64: =+'Production Cash Flow Analysis'!N117 -> 0.4186704219 | AJ64: =+'Production Cash Flow Analysis'!O117 -> 3.340211448 | AK64: =+'Production Cash Flow Analysis'!P117 -> 0 | AL64: =+'Production Cash Flow Analysis'!R117 -> 0.0126667113 | AM64: =+'Production Cash Flow Analysis'!S117 -> 0 | AN64: =+'Production Cash Flow Analysis'!X117 -> 0.2411623358 | AO64: =+'Production Cash Flow Analysis'!Z117 -> 0 | AQ64: =+'Refueling Cash Flow Analysis'!F118 -> 2.160296347 | AR64: =+'Refueling Cash Flow Analysis'!Q118 -> 0 | AS64: =+'Refueling Cash Flow Analysis'!L118 -> 0.01660658286 | AT64: =+'Refueling Cash Flow Analysis'!H117 -> 1.117207853 | AU64: =+'Refueling Cash Flow Analysis'!I117 -> 0.03755290544 | AV64: =+'Refueling Cash Flow Analysis'!J117 -> 0.0008156341745 | AW64: =+'Refueling Cash Flow Analysis'!K117 -> 0 | AX64: =+'Refueling Cash Flow Analysis'!M117 -> 0.01660658286 | AY64: =+'Refueling Cash Flow Analysis'!N117 -> 0.3903874555 | AZ64: =+'Refueling Cash Flow Analysis'!O117 -> 0 | BA64: =+'Refueling Cash Flow Analysis'!P117 -> 0 | BB64: =+'Refueling Cash Flow Analysis'!R117 -> 0.3799733515 | BC64: =+'Refueling Cash Flow Analysis'!S117 -> 0 | BD64: =+'Refueling Cash Flow Analysis'!X117 -> 0.2343591472 | BE64: =+'Refueling Cash Flow Analysis'!Z117 -> 0 | BG64: =+AA64+AQ64 -> 7.368417362 | BH64: 0 | BI64: 0.03303775085 | BJ64: 2.222614672 | BK64: 0.1235675306 | BL64: 0.004804287855 | BM64: 0 | BN64: 0.03303775085 | BO64: 0.8090578774 | BP64: 3.340211448 | BQ64: 0 | BR64: 0.3926400628 | BS64: 0 | BT64: 0.4755214831 | BU64: 0
B66: Case | C66: Realized fraction of design capacity | D66: Plant Design Capacity (kg of H2/day) | E66: After-tax Real IRR (%) | F66: Feedstock consumption | G66: Utilities consumption | H66: Total Capital Investment | I66: Total Fixed Operating Cost | K66: Revenue from Hydrogen Sales | L66: Revenue from Byproduct Sales | M66: Salvage Value | N66: Initial Equity Depreciable Capital | O66: Yearly Replacement Costs | P66: Cash from Working Capital Reserve | Q66: Other Non-Depreciable Capital Costs | R66: Decommissioning Costs | S66: Fixed Operating Cost | T66: Feedstock Cost | U66: Other Raw Material Cost | V66: Other Variable Operating Costs | W66: Debt Interest | X66: Taxes | Y66: Principal Payment | AA66: Revenue from Hydrogen Sales | AB66: Revenue from Byproduct Sales | AC66: Salvage Value | AD66: Initial Equity Depreciable Capital | AE66: Yearly Replacement Costs | AF66: Cash from Working Capital Reserve | AG66: Other Non-Depreciable Capital Costs | AH66: Decommissioning Costs | AI66: Fixed Operating Cost | AJ66: Feedstock Cost | AK66: Other Raw Material Cost | AL66: Other Variable Operating Costs | AM66: Debt Interest | AN66: Taxes | AO66: Principal Payment | AQ66: Revenue from Hydrogen Sales | AR66: Revenue from Byproduct Sales | AS66: Salvage Value | AT66: Initial Equity Depreciable Capital | AU66: Yearly Replacement Costs | AV66: Cash from Working Capital Reserve | AW66: Other Non-Depreciable Capital Costs | AX66: Decommissioning Costs | AY66: Fixed Operating Cost | AZ66: Feedstock Cost | BA66: Other Raw Material Cost | BB66: Other Variable Operating Costs | BC66: Debt Interest | BD66: Taxes | BE66: Principal Payment | BG66: Revenue from Hydrogen Sales | BH66: Revenue from Byproduct Sales | BI66: Salvage Value | BJ66: Initial Equity Depreciable Capital | BK66: Yearly Replacement Costs | BL66: Cash from Working Capital Reserve | BM66: Other Non-Depreciable Capital Costs | BN66: Decommissioning Costs | BO66: Fixed Operating Cost | BP66: Feedstock Cost | BQ66: Other Raw Material Cost | BR66: Other Variable Operating Costs | BS66: Debt Interest | BT66: Taxes | BU66: Principal Payment
B67: 1 | C67: 1 | D67: 1 | E67: 1 | F67: 1 | G67: 1 | H67: 1 | I67: 1 | K67: =($D$14="Production")*AA67+($D$14="Refueling")*AQ67+($D$14="Both")*BG67 -> 5.208120484 | L67: =($D$14="Production")*AB67+($D$14="Refueling")*AR67+($D$14="Both")*BH67 -> 0 | M67: =($D$14="Production")*AC67+($D$14="Refueling")*AS67+($D$14="Both")*BI67 -> 0.01643116329 | N67: =($D$14="Production")*AD67+($D$14="Refueling")*AT67+($D$14="Both")*BJ67 -> 1.105406502 | O67: =($D$14="Production")*AE67+($D$14="Refueling")*AU67+($D$14="Both")*BK67 -> 0.08601460054 | P67: =($D$14="Production")*AF67+($D$14="Refueling")*AV67+($D$14="Both")*BL67 -> 0.003988653552 | Q67: =($D$14="Production")*AG67+($D$14="Refueling")*AW67+($D$14="Both")*BM67 -> 0 | R67: =($D$14="Production")*AH67+($D$14="Refueling")*AX67+($D$14="Both")*BN67 -> 0.01643116329 | S67: =($D$14="Production")*AI67+($D$14="Refueling")*AY67+($D$14="Both")*BO67 -> 0.418670302 | T67: =($D$14="Production")*AJ67+($D$14="Refueling")*AZ67+($D$14="Both")*BP67 -> 3.340211448 | U67: =($D$14="Production")*AK67+($D$14="Refueling")*BA67+($D$14="Both")*BQ67 -> 0 | V67: =($D$14="Production")*AL67+($D$14="Refueling")*BB67+($D$14="Both")*BR67 -> 0.01266671014 | W67: =($D$14="Production")*AM67+($D$14="Refueling")*BC67+($D$14="Both")*BS67 -> 0 | X67: =($D$14="Production")*AN67+($D$14="Refueling")*BD67+($D$14="Both")*BT67 -> 0.2411622674 | Y67: =($D$14="Production")*AO67+($D$14="Refueling")*BE67+($D$14="Both")*BU67 -> 0 | AA67: 5.208120484 | AB67: 0 | AC67: 0.01643116329 | AD67: 1.105406502 | AE67: 0.08601460054 | AF67: 0.003988653552 | AG67: 0 | AH67: 0.01643116329 | AI67: 0.418670302 | AJ67: 3.340211448 | AK67: 0 | AL67: 0.01266671014 | AM67: 0 | AN67: 0.2411622674 | AO67: 0 | AQ67: 2.160295778 | AR67: 0 | AS67: 0.0166065783 | AT67: 1.117207547 | AU67: 0.03755289585 | AV67: 0.000815633975 | AW67: 0 | AX67: 0.0166065783 | AY67: 0.3903873491 | AZ67: 0 | BA67: 0 | BB67: 0.3799732695 | BC67: 0 | BD67: 0.2343590831 | BE67: 0 | BG67: 7.368416262 | BH67: 0 | BI67: 0.03303774159 | BJ67: 2.222614049 | BK67: 0.1235674964 | BL67: 0.004804287527 | BM67: 0 | BN67: 0.03303774159 | BO67: 0.8090576511 | BP67: 3.340211448 | BQ67: 0 | BR67: 0.3926399796 | BS67: 0 | BT67: 0.4755213505 | BU67: 0
B68: =+B67+1 -> 2 | C68: =+F3 -> 1.05 | D68: 1 | E68: 1 | F68: 1 | G68: 1 | H68: 1 | I68: 1 | K68: 5.205895962 | L68: 0 | M68: 0.01641835956 | N68: 1.104545131 | O68: 0.08601460054 | P68: 0.003987397536 | Q68: 0 | R68: 0.01641835956 | S68: 0.4180882955 | T68: 3.340211448 | U68: 0 | V68: 0.01206353346 | W68: 0 | X68: 0.2409855554 | Y68: 0 | AA68: 5.205895962 | AB68: 0 | AC68: 0.01641835956 | AD68: 1.104545131 | AE68: 0.08601460054 | AF68: 0.003987397536 | AG68: 0 | AH68: 0.01641835956 | AI68: 0.4180882955 | AJ68: 3.340211448 | AK68: 0 | AL68: 0.01206353346 | AM68: 0 | AN68: 0.2409855554 | AO68: 0 | AQ68: 2.07554984 | AR68: 0 | AS68: 0.01581578886 | AT68: 1.064007187 | AU68: 0.03576466271 | AV68: 0.0007959330654 | AW68: 0 | AX68: 0.01581578886 | AY68: 0.3717974753 | AZ68: 0 | BA68: 0 | BB68: 0.3799732695 | BC68: 0 | BD68: 0.2232113116 | BE68: 0 | BG68: 7.281445801 | BH68: 0 | BI68: 0.03223414842 | BJ68: 2.168552319 | BK68: 0.1217792633 | BL68: 0.004783330601 | BM68: 0 | BN68: 0.03223414842 | BO68: 0.7898857709 | BP68: 3.340211448 | BQ68: 0 | BR68: 0.3920368029 | BS68: 0 | BT68: 0.464196867 | BU68: 0
B69: =+B68+1 -> 3 | C69: =+G3 -> 0.95 | D69: 1 | E69: 1 | F69: 1 | G69: 1 | H69: 1 | I69: 1 | K69: 5.210579166 | L69: 0 | M69: 0.01644531478 | N69: 1.106358544 | O69: 0.08601460054 | P69: 0.003990041781 | Q69: 0 | R69: 0.01644531478 | S69: 0.4193135723 | T69: 3.340211448 | U69: 0 | V69: 0.01333337909 | W69: 0 | X69: 0.2413575807 | Y69: 0 | AA69: 5.210579166 | AB69: 0 | AC69: 0.01644531478 | AD69: 1.106358544 | AE69: 0.08601460054 | AF69: 0.003990041781 | AG69: 0 | AH69: 0.01644531478 | AI69: 0.4193135723 | AJ69: 3.340211448 | AK69: 0 | AL69: 0.01333337909 | AM69: 0 | AN69: 0.2413575807 | AO69: 0 | AQ69: 2.253962342 | AR69: 0 | AS69: 0.01748060874 | AT69: 1.176007944 | AU69: 0.03952936405 | AV69: 0.0008374086646 | AW69: 0 | AX69: 0.01748060874 | AY69: 0.4109340517 | AZ69: 0 | BA69: 0 | BB69: 0.3799732695 | BC69: 0 | BD69: 0.2466803041 | BE69: 0 | BG69: 7.464541508 | BH69: 0 | BI69: 0.03392592352 | BJ69: 2.282366488 | BK69: 0.1255439646 | BL69: 0.004827450445 | BM69: 0 | BN69: 0.03392592352 | BO69: 0.830247624 | BP69: 3.340211448 | BQ69: 0 | BR69: 0.3933066486 | BS69: 0 | BT69: 0.4880378848 | BU69: 0
B70: 4 | C70: 1 | D70: =+F4 -> 1.05 | E70: 1 | F70: 1 | G70: 1 | H70: 1 | I70: 1 | K70: 5.267964187 | L70: 0 | M70: 0.01697570665 | N70: 1.142040656 | O70: 0.08856974174 | P70: 0.004002184963 | Q70: 0 | R70: 0.01697570665 | S70: 0.4314386105 | T70: 3.340211448 | U70: 0 | V70: 0.0126667066 | W70: 0 | X70: 0.2490348384 | Y70: 0 | AA70: 5.267964187 | AB70: 0 | AC70: 0.01697570665 | AD70: 1.142040656 | AE70: 0.08856974174 | AF70: 0.004002184963 | AG70: 0 | AH70: 0.01697570665 | AI70: 0.4314386105 | AJ70: 3.340211448 | AK70: 0 | AL70: 0.0126667066 | AM70: 0 | AN70: 0.2490348384 | AO70: 0 | AQ70: 2.12818003 | AR70: 0 | AS70: 0.01631710993 | AT70: 1.097733562 | AU70: 0.03600143975 | AV70: 0.0008083568475 | AW70: 0 | AX70: 0.01631710993 | AY70: 0.3835931647 | AZ70: 0 | BA70: 0 | BB70: 0.3799005825 | BC70: 0 | BD70: 0.2301429239 | BE70: 0 | BG70: 7.396144217 | BH70: 0 | BI70: 0.03329281658 | BJ70: 2.239774219 | BK70: 0.1245711815 | BL70: 0.004810541811 | BM70: 0 | BN70: 0.03329281658 | BO70: 0.8150317752 | BP70: 3.340211448 | BQ70: 0 | BR70: 0.3925672891 | BS70: 0 | BT70: 0.4791777623 | BU70: 0
B71: 5 | C71: 1 | D71: =+G4 -> 0.95 | E71: 1 | F71: 1 | G71: 1 | H71: 1 | I71: 1 | K71: 5.147479211 | L71: 0 | M71: 0.01588004014 | N71: 1.068329692 | O71: 0.08340789156 | P71: 0.003974905023 | Q71: 0 | R71: 0.01588004014 | S71: 0.4056971158 | T71: 3.340211448 | U71: 0 | V71: 0.01266671765 | W71: 0 | X71: 0.23319144 | Y71: 0 | AA71: 5.147479211 | AB71: 0 | AC71: 0.01588004014 | AD71: 1.068329692 | AE71: 0.08340789156 | AF71: 0.003974905023 | AG71: 0 | AH71: 0.01588004014 | AI71: 0.4056971158 | AJ71: 3.340211448 | AK71: 0 | AL71: 0.01266671765 | AM71: 0 | AN71: 0.23319144 | AO71: 0 | AQ71: 2.096393603 | AR71: 0 | AS71: 0.016112262 | AT71: 1.083952418 | AU71: 0.03388850856 | AV71: 0.0007948596516 | AW71: 0 | AX71: 0.016112262 | AY71: 0.3704921334 | AZ71: 0 | BA71: 0 | BB71: 0.3802662916 | BC71: 0 | BD71: 0.2269993922 | BE71: 0 | BG71: 7.243872814 | BH71: 0 | BI71: 0.03199230214 | BJ71: 2.152282111 | BK71: 0.1172964001 | BL71: 0.004769764675 | BM71: 0 | BN71: 0.03199230214 | BO71: 0.7761892492 | BP71: 3.340211448 | BQ71: 0 | BR71: 0.3929330093 | BS71: 0 | BT71: 0.4601908322 | BU71: 0
B72: 6 | C72: 1 | D72: 1 | E72: =+F5 -> 0.95 | F72: 1 | G72: 1 | H72: 1 | I72: 1 | K72: 5.161185588 | L72: 0 | M72: 0.01738830724 | N72: 1.067922382 | O72: 0.08712945288 | P72: 0.003838051678 | Q72: 0 | R72: 0.01738830724 | S72: 0.41866992 | T72: 3.344538182 | U72: 0 | V72: 0.01266670643 | W72: 0 | X72: 0.2264208933 | Y72: 0 | AA72: 5.161185588 | AB72: 0 | AC72: 0.01738830724 | AD72: 1.067922382 | AE72: 0.08712945288 | AF72: 0.003838051678 | AG72: 0 | AH72: 0.01738830724 | AI72: 0.41866992 | AJ72: 3.344538182 | AK72: 0 | AL72: 0.01266670643 | AM72: 0 | AN72: 0.2264208933 | AO72: 0 | AQ72: 2.110865978 | AR72: 0 | AS72: 0.0175739413 | AT72: 1.079323306 | AU72: 0.04000130166 | AV72: 0.0007844130507 | AW72: 0 | AX72: 0.0175739413 | AY72: 0.3903870138 | AZ72: 0 | BA72: 0 | BB72: 0.3803980682 | BC72: 0 | BD72: 0.2199718753 | BE72: 0 | BG72: 7.272051566 | BH72: 0 | BI72: 0.03496224855 | BJ72: 2.147245689 | BK72: 0.1271307545 | BL72: 0.004622464729 | BM72: 0 | BN72: 0.03496224855 | BO72: 0.8090569338 | BP72: 3.344538182 | BQ72: 0 | BR72: 0.3930647747 | BS72: 0 | BT72: 0.4463927686 | BU72: 0
B73: 7 | C73: 1 | D73: 1 | E73: =+G5 -> 1.05 | F73: 1 | G73: 1 | H73: 1 | I73: 1 | K73: 5.255986888 | L73: 0 | M73: 0.01552171316 | N73: 1.143365843 | O73: 0.08488908812 | P73: 0.004137750048 | Q73: 0 | R73: 0.01552171316 | S73: 0.41866992 | T73: 3.335975166 | U73: 0 | V73: 0.01266670643 | W73: 0 | X73: 0.2562824152 | Y73: 0 | AA73: 5.255986888 | AB73: 0 | AC73: 0.01552171316 | AD73: 1.143365843 | AE73: 0.08488908812 | AF73: 0.004137750048 | AG73: 0 | AH73: 0.01552171316 | AI73: 0.41866992 | AJ73: 3.335975166 | AK73: 0 | AL73: 0.01266670643 | AM73: 0 | AN73: 0.2562824152 | AO73: 0 | AQ73: 2.210754965 | AR73: 0 | AS73: 0.01568741983 | AT73: 1.155572186 | AU73: 0.03524704029 | AV73: 0.0008465704493 | AW73: 0 | AX73: 0.01568741983 | AY73: 0.3903870138 | AZ73: 0 | BA73: 0 | BB73: 0.3795561567 | BC73: 0 | BD73: 0.2491459986 | BE73: 0 | BG73: 7.466741854 | BH73: 0 | BI73: 0.03120913299 | BJ73: 2.298938028 | BK73: 0.1201361284 | BL73: 0.004984320497 | BM73: 0 | BN73: 0.03120913299 | BO73: 0.8090569338 | BP73: 3.335975166 | BQ73: 0 | BR73: 0.3922228631 | BS73: 0 | BT73: 0.5054284138 | BU73: 0
B74: 8 | C74: 1 | D74: 1 | E74: 1 | F74: =+F6 -> 0.95 | G74: 1 | H74: 1 | I74: 1 | K74: 4.950048599 | L74: 0 | M74: 0.01562303479 | N74: 1.051039657 | O74: 0.08171379595 | P74: 0.003790539303 | Q74: 0 | R74: 0.01562303479 | S74: 0.3983475302 | T74: 3.173200876 | U74: 0 | V74: 0.01266670643 | W74: 0 | X74: 0.2292894944 | Y74: 0 | AA74: 4.950048599 | AB74: 0 | AC74: 0.01562303479 | AD74: 1.051039657 | AE74: 0.08171379595 | AF74: 0.003790539303 | AG74: 0 | AH74: 0.01562303479 | AI74: 0.3983475302 | AJ74: 3.173200876 | AK74: 0 | AL74: 0.01266670643 | AM74: 0 | AN74: 0.2292894944 | AO74: 0 | AQ74: 2.160293981 | AR74: 0 | AS74: 0.01660656392 | AT74: 1.117206579 | AU74: 0.03755286615 | AV74: 0.0008156333426 | AW74: 0 | AX74: 0.01660656392 | AY74: 0.3903870138 | AZ74: 0 | BA74: 0 | BB74: 0.3799730075 | BC74: 0 | BD74: 0.2343588806 | BE74: 0 | BG74: 7.11034258 | BH74: 0 | BI74: 0.03222959871 | BJ74: 2.168246237 | BK74: 0.1192666621 | BL74: 0.004606172645 | BM74: 0 | BN74: 0.03222959871 | BO74: 0.788734544 | BP74: 3.173200876 | BQ74: 0 | BR74: 0.392639714 | BS74: 0 | BT74: 0.463648375 | BU74: 0
B75: 9 | C75: 1 | D75: 1 | E75: 1 | F75: =+G6 -> 1.05 | G75: 1 | H75: 1 | I75: 1 | K75: 5.466188985 | L75: 0 | M75: 0.01723926181 | N75: 1.159771329 | O75: 0.09031524815 | P75: 0.004186766984 | Q75: 0 | R75: 0.01723926181 | S75: 0.4389923097 | T75: 3.50722202 | U75: 0 | V75: 0.01266670643 | W75: 0 | X75: 0.2530346044 | Y75: 0 | AA75: 5.466188985 | AB75: 0 | AC75: 0.01723926181 | AD75: 1.159771329 | AE75: 0.09031524815 | AF75: 0.004186766984 | AG75: 0 | AH75: 0.01723926181 | AI75: 0.4389923097 | AJ75: 3.50722202 | AK75: 0 | AL75: 0.01266670643 | AM75: 0 | AN75: 0.2530346044 | AO75: 0 | AQ75: 2.160293981 | AR75: 0 | AS75: 0.01660656392 | AT75: 1.117206579 | AU75: 0.03755286615 | AV75: 0.0008156333426 | AW75: 0 | AX75: 0.01660656392 | AY75: 0.3903870138 | AZ75: 0 | BA75: 0 | BB75: 0.3799730075 | BC75: 0 | BD75: 0.2343588806 | BE75: 0 | BG75: 7.626482966 | BH75: 0 | BI75: 0.03384582573 | BJ75: 2.276977909 | BK75: 0.1278681143 | BL75: 0.005002400327 | BM75: 0 | BN75: 0.03384582573 | BO75: 0.8293793235 | BP75: 3.50722202 | BQ75: 0 | BR75: 0.392639714 | BS75: 0 | BT75: 0.487393485 | BU75: 0
B76: 10 | C76: 1 | D76: 1 | E76: 1 | F76: 1 | G76: =+F7 -> 0.95 | H76: 1 | I76: 1 | K76: 5.208118792 | L76: 0 | M76: 0.0164311483 | N76: 1.105405493 | O76: 0.08601452205 | P76: 0.003988653143 | Q76: 0 | R76: 0.0164311483 | S76: 0.41866992 | T76: 3.340211448 | U76: 0 | V76: 0.01266670643 | W76: 0 | X76: 0.2411620494 | Y76: 0 | AA76: 5.208118792 | AB76: 0 | AC76: 0.0164311483 | AD76: 1.105405493 | AE76: 0.08601452205 | AF76: 0.003988653143 | AG76: 0 | AH76: 0.0164311483 | AI76: 0.41866992 | AJ76: 3.340211448 | AK76: 0 | AL76: 0.01266670643 | AM76: 0 | AN76: 0.2411620494 | AO76: 0 | AQ76: 2.141262441 | AR76: 0 | AS76: 0.01660656392 | AT76: 1.117206579 | AU76: 0.03755286615 | AV76: 0.0007955376128 | AW76: 0 | AX76: 0.01660656392 | AY76: 0.3903870138 | AZ76: 0 | BA76: 0 | BB76: 0.3609743572 | BC76: 0 | BD76: 0.2343460864 | BE76: 0 | BG76: 7.349381233 | BH76: 0 | BI76: 0.03303771222 | BJ76: 2.222612073 | BK76: 0.1235673882 | BL76: 0.004784190756 | BM76: 0 | BN76: 0.03303771222 | BO76: 0.8090569338 | BP76: 3.340211448 | BQ76: 0 | BR76: 0.3736410636 | BS76: 0 | BT76: 0.4755081359 | BU76: 0
B77: 11 | C77: 1 | D77: 1 | E77: 1 | F77: 1 | G77: =+G6 -> 1.05 | H77: 1 | I77: 1 | K77: 5.208118792 | L77: 0 | M77: 0.0164311483 | N77: 1.105405493 | O77: 0.08601452205 | P77: 0.003988653143 | Q77: 0 | R77: 0.0164311483 | S77: 0.41866992 | T77: 3.340211448 | U77: 0 | V77: 0.01266670643 | W77: 0 | X77: 0.2411620494 | Y77: 0 | AA77: 5.208118792 | AB77: 0 | AC77: 0.0164311483 | AD77: 1.105405493 | AE77: 0.08601452205 | AF77: 0.003988653143 | AG77: 0 | AH77: 0.0164311483 | AI77: 0.41866992 | AJ77: 3.340211448 | AK77: 0 | AL77: 0.01266670643 | AM77: 0 | AN77: 0.2411620494 | AO77: 0 | AQ77: 2.179325521 | AR77: 0 | AS77: 0.01660656392 | AT77: 1.117206579 | AU77: 0.03755286615 | AV77: 0.0008357290725 | AW77: 0 | AX77: 0.01660656392 | AY77: 0.3903870138 | AZ77: 0 | BA77: 0 | BB77: 0.3989716579 | BC77: 0 | BD77: 0.2343716748 | BE77: 0 | BG77: 7.387444314 | BH77: 0 | BI77: 0.03303771222 | BJ77: 2.222612073 | BK77: 0.1235673882 | BL77: 0.004824382216 | BM77: 0 | BN77: 0.03303771222 | BO77: 0.8090569338 | BP77: 3.340211448 | BQ77: 0 | BR77: 0.4116383643 | BS77: 0 | BT77: 0.4755337242 | BU77: 0
B78: 12 | C78: 1 | D78: 1 | E78: 1 | F78: 1 | G78: 1 | H78: =+F8 -> 0.95 | I78: 1 | K78: 5.132133753 | L78: 0 | M78: 0.01560959088 | N78: 1.050135219 | O78: 0.08601452205 | P78: 0.003978679752 | Q78: 0 | R78: 0.01560959088 | S78: 0.4092589798 | T78: 3.340211448 | U78: 0 | V78: 0.01266670643 | W78: 0 | X78: 0.229868198 | Y78: 0 | AA78: 5.132133753 | AB78: 0 | AC78: 0.01560959088 | AD78: 1.050135219 | AE78: 0.08601452205 | AF78: 0.003978679752 | AG78: 0 | AH78: 0.01560959088 | AI78: 0.4092589798 | AJ78: 3.340211448 | AK78: 0 | AL78: 0.01266670643 | AM78: 0 | AN78: 0.229868198 | AO78: 0 | AQ78: 2.093025647 | AR78: 0 | AS78: 0.01577623573 | AT78: 1.06134625 | AU78: 0.03755286615 | AV78: 0.0008156333426 | AW78: 0 | AX78: 0.01577623573 | AY78: 0.3903870138 | AZ78: 0 | BA78: 0 | BB78: 0.3799730075 | BC78: 0 | BD78: 0.2229508758 | BE78: 0 | BG78: 7.2251594 | BH78: 0 | BI78: 0.03138582661 | BJ78: 2.111481469 | BK78: 0.1235673882 | BL78: 0.004794313095 | BM78: 0 | BN78: 0.03138582661 | BO78: 0.7996459937 | BP78: 3.340211448 | BQ78: 0 | BR78: 0.392639714 | BS78: 0 | BT78: 0.4528190738 | BU78: 0
B79: 13 | C79: 1 | D79: 1 | E79: 1 | F79: 1 | G79: 1 | H79: =+G8 -> 1.05 | I79: 1 | K79: 5.284103832 | L79: 0 | M79: 0.01725270571 | N79: 1.160675768 | O79: 0.08601452205 | P79: 0.003998626534 | Q79: 0 | R79: 0.01725270571 | S79: 0.4280808601 | T79: 3.340211448 | U79: 0 | V79: 0.01266670643 | W79: 0 | X79: 0.2524559008 | Y79: 0 | AA79: 5.284103832 | AB79: 0 | AC79: 0.01725270571 | AD79: 1.160675768 | AE79: 0.08601452205 | AF79: 0.003998626534 | AG79: 0 | AH79: 0.01725270571 | AI79: 0.4280808601 | AJ79: 3.340211448 | AK79: 0 | AL79: 0.01266670643 | AM79: 0 | AN79: 0.2524559008 | AO79: 0 | AQ79: 2.227562315 | AR79: 0 | AS79: 0.01743689212 | AT79: 1.173066908 | AU79: 0.03755286615 | AV79: 0.0008156333426 | AW79: 0 | AX79: 0.01743689212 | AY79: 0.3903870138 | AZ79: 0 | BA79: 0 | BB79: 0.3799730075 | BC79: 0 | BD79: 0.2457668854 | BE79: 0 | BG79: 7.511666147 | BH79: 0 | BI79: 0.03468959783 | BJ79: 2.333742677 | BK79: 0.1235673882 | BL79: 0.004814259877 | BM79: 0 | BN79: 0.03468959783 | BO79: 0.8184678739 | BP79: 3.340211448 | BQ79: 0 | BR79: 0.392639714 | BS79: 0 | BT79: 0.4982227863 | BU79: 0
B80: 14 | C80: 1 | D80: 1 | E80: 1 | F80: 1 | G80: 1 | H80: 1 | I80: =+F9 -> 0.95 | K80: 5.187148988 | L80: 0 | M80: 0.0164311483 | N80: 1.105405493 | O80: 0.08601452205 | P80: 0.003966468543 | Q80: 0 | R80: 0.0164311483 | S80: 0.397736424 | T80: 3.340211448 | U80: 0 | V80: 0.01266670643 | W80: 0 | X80: 0.2411479253 | Y80: 0 | AA80: 5.187148988 | AB80: 0 | AC80: 0.0164311483 | AD80: 1.105405493 | AE80: 0.08601452205 | AF80: 0.003966468543 | AG80: 0 | AH80: 0.0164311483 | AI80: 0.397736424 | AJ80: 3.340211448 | AK80: 0 | AL80: 0.01266670643 | AM80: 0 | AN80: 0.2411479253 | AO80: 0 | AQ80: 2.140740774 | AR80: 0 | AS80: 0.01660656392 | AT80: 1.117206579 | AU80: 0.03755286615 | AV80: 0.0007949474053 | AW80: 0 | AX80: 0.01660656392 | AY80: 0.3708676631 | AZ80: 0 | BA80: 0 | BB80: 0.3799730075 | BC80: 0 | BD80: 0.2343457107 | BE80: 0 | BG80: 7.327889762 | BH80: 0 | BI80: 0.03303771222 | BJ80: 2.222612073 | BK80: 0.1235673882 | BL80: 0.004761415949 | BM80: 0 | BN80: 0.03303771222 | BO80: 0.7686040871 | BP80: 3.340211448 | BQ80: 0 | BR80: 0.392639714 | BS80: 0 | BT80: 0.475493636 | BU80: 0
B81: 15 | C81: 1 | D81: 1 | E81: 1 | F81: 1 | G81: 1 | H81: 1 | I81: =+G9 -> 1.05 | K81: 5.229088597 | L81: 0 | M81: 0.0164311483 | N81: 1.105405493 | O81: 0.08601452205 | P81: 0.004010837743 | Q81: 0 | R81: 0.0164311483 | S81: 0.439603416 | T81: 3.340211448 | U81: 0 | V81: 0.01266670643 | W81: 0 | X81: 0.2411761735 | Y81: 0 | AA81: 5.229088597 | AB81: 0 | AC81: 0.0164311483 | AD81: 1.105405493 | AE81: 0.08601452205 | AF81: 0.004010837743 | AG81: 0 | AH81: 0.0164311483 | AI81: 0.439603416 | AJ81: 3.340211448 | AK81: 0 | AL81: 0.01266670643 | AM81: 0 | AN81: 0.2411761735 | AO81: 0 | AQ81: 2.179847187 | AR81: 0 | AS81: 0.01660656392 | AT81: 1.117206579 | AU81: 0.03755286615 | AV81: 0.0008363192799 | AW81: 0 | AX81: 0.01660656392 | AY81: 0.4099063645 | AZ81: 0 | BA81: 0 | BB81: 0.3799730075 | BC81: 0 | BD81: 0.2343720505 | BE81: 0 | BG81: 7.408935785 | BH81: 0 | BI81: 0.03303771222 | BJ81: 2.222612073 | BK81: 0.1235673882 | BL81: 0.004847157023 | BM81: 0 | BN81: 0.03303771222 | BO81: 0.8495097805 | BP81: 3.340211448 | BQ81: 0 | BR81: 0.392639714 | BS81: 0 | BT81: 0.475548224 | BU81: 0
A82: Production | B82: =+B81+1 -> 16 | C82: =(C$98=1)*$F$3 +(C$98=2) +(C$98=3) +(C$98=4) +(C$98=5) -> 1 | D82: 1 | E82: 1 | F82: =(F$98=1)*$F$6 +(F$98=2) +(F$98=3) +(F$98=4) +(F$98=5) -> 0.95 | G82: =(G$98=1)*$F$7 +(G$98=2) +(G$98=3) +(G$98=4) +(G$98=5) -> 1 | H82: =(H$98=1)*$F$8 +(H$98=2) +(H$98=3) +(H$98=4) +(H$98=5) -> 1 | I82: =(I$98=1)*$F$9 +(I$98=2) +(I$98=3) +(I$98=4) +(I$98=5) -> 1 | AA82: 4.950048599 | AB82: 0 | AC82: 0.01562303479 | AD82: 1.051039657 | AE82: 0.08171379595 | AF82: 0.003790539303 | AG82: 0 | AH82: 0.01562303479 | AI82: 0.3983475302 | AJ82: 3.173200876 | AK82: 0 | AL82: 0.01266670643 | AM82: 0 | AN82: 0.2292894944 | AO82: 0 | AQ82: 2.160293981 | AR82: 0 | AS82: 0.01660656392 | AT82: 1.117206579 | AU82: 0.03755286615 | AV82: 0.0008156333426 | AW82: 0 | AX82: 0.01660656392 | AY82: 0.3903870138 | AZ82: 0 | BA82: 0 | BB82: 0.3799730075 | BC82: 0 | BD82: 0.2343588806 | BE82: 0 | BG82: 7.11034258 | BH82: 0 | BI82: 0.03222959871 | BJ82: 2.168246237 | BK82: 0.1192666621 | BL82: 0.004606172645 | BM82: 0 | BN82: 0.03222959871 | BO82: 0.788734544 | BP82: 3.173200876 | BQ82: 0 | BR82: 0.392639714 | BS82: 0 | BT82: 0.463648375 | BU82: 0
B83: =+B82+1 -> 17 | C83: =(C$98=1)*$F$3 +(C$98=2)*$F$3 +(C$98=3) +(C$98=4) +(C$98=5) -> 1 | D83: 1 | E83: 1 | F83: =(F$98=1)*$F$6 +(F$98=2)*$F$6 +(F$98=3) +(F$98=4) +(F$98=5) -> 0.95 | G83: =(G$98=1)*$F$7 +(G$98=2)*$F$7 +(G$98=3) +(G$98=4) +(G$98=5) -> 1 | H83: =(H$98=1)*$F$8 +(H$98=2)*$F$8 +(H$98=3) +(H$98=4) +(H$98=5) -> 0.95 | I83: =(I$98=1)*$F$9 +(I$98=2)*$F$9 +(I$98=3) +(I$98=4) +(I$98=5) -> 1 | AA83: 4.877800641 | AB83: 0 | AC83: 0.01484188305 | AD83: 0.9984876746 | AE83: 0.08171379595 | AF83: 0.003781056421 | AG83: 0 | AH83: 0.01484188305 | AI83: 0.3893994371 | AJ83: 3.173200876 | AK83: 0 | AL83: 0.01266670643 | AM83: 0 | AN83: 0.218551095 | AO83: 0 | AQ83: 2.093025647 | AR83: 0 | AS83: 0.01577623573 | AT83: 1.06134625 | AU83: 0.03755286615 | AV83: 0.0008156333426 | AW83: 0 | AX83: 0.01577623573 | AY83: 0.3903870138 | AZ83: 0 | BA83: 0 | BB83: 0.3799730075 | BC83: 0 | BD83: 0.2229508758 | BE83: 0 | BG83: 6.970826288 | BH83: 0 | BI83: 0.03061811878 | BJ83: 2.059833925 | BK83: 0.1192666621 | BL83: 0.004596689763 | BM83: 0 | BN83: 0.03061811878 | BO83: 0.7797864509 | BP83: 3.173200876 | BQ83: 0 | BR83: 0.392639714 | BS83: 0 | BT83: 0.4415019708 | BU83: 0
B84: 18 | C84: =(C$98=1)*$F$3 +(C$98=2)*$F$3 +(C$98=3)*$F$3 +(C$98=4) +(C$98=5) -> 1 | D84: 1 | E84: 1 | F84: =(F$98=1)*$F$6 +(F$98=2)*$F$6 +(F$98=3)*$F$6 +(F$98=4) +(F$98=5) -> 0.95 | G84: =(G$98=1)*$F$7 +(G$98=2)*$F$7 +(G$98=3)*$F$7 +(G$98=4) +(G$98=5) -> 1 | H84: =(H$98=1)*$F$8 +(H$98=2)*$F$8 +(H$98=3)*$F$8 +(H$98=4) +(H$98=5) -> 0.95 | I84: =(I$98=1)*$F$9 +(I$98=2)*$F$9 +(I$98=3)*$F$9 +(I$98=4) +(I$98=5) -> 0.95 | AA84: 4.858296899 | AB84: 0 | AC84: 0.01484188305 | AD84: 0.9984876746 | AE84: 0.08171379595 | AF84: 0.003760422814 | AG84: 0 | AH84: 0.01484188305 | AI84: 0.3699294652 | AJ84: 3.173200876 | AK84: 0 | AL84: 0.01266670643 | AM84: 0 | AN84: 0.2185379584 | AO84: 0 | AQ84: 2.073472441 | AR84: 0 | AS84: 0.01577623573 | AT84: 1.06134625 | AU84: 0.03755286615 | AV84: 0.0007949474053 | AW84: 0 | AX84: 0.01577623573 | AY84: 0.3708676631 | AZ84: 0 | BA84: 0 | BB84: 0.3799730075 | BC84: 0 | BD84: 0.2229377058 | BE84: 0 | BG84: 6.93176934 | BH84: 0 | BI84: 0.03061811878 | BJ84: 2.059833925 | BK84: 0.1192666621 | BL84: 0.004555370219 | BM84: 0 | BN84: 0.03061811878 | BO84: 0.7407971284 | BP84: 3.173200876 | BQ84: 0 | BR84: 0.392639714 | BS84: 0 | BT84: 0.4414756642 | BU84: 0
B85: 19 | C85: =(C$98=1)*$F$3 +(C$98=2)*$F$3 +(C$98=3)*$F$3 +(C$98=4)*$F$3 +(C$98=5) -> 1.05 | D85: 1 | E85: 1 | F85: =(F$98=1)*$F$6 +(F$98=2)*$F$6 +(F$98=3)*$F$6 +(F$98=4)*$F$6 +(F$98=5) -> 0.95 | G85: =(G$98=1)*$F$7 +(G$98=2)*$F$7 +(G$98=3)*$F$7 +(G$98=4)*$F$7 +(G$98=5) -> 1 | H85: =(H$98=1)*$F$8 +(H$98=2)*$F$8 +(H$98=3)*$F$8 +(H$98=4)*$F$8 +(H$98=5) -> 0.95 | I85: =(I$98=1)*$F$9 +(I$98=2)*$F$9 +(I$98=3)*$F$9 +(I$98=4)*$F$9 +(I$98=5) -> 0.95 | AA85: 4.856160372 | AB85: 0 | AC85: 0.01482971952 | AD85: 0.9976693729 | AE85: 0.08171379595 | AF85: 0.00375920502 | AG85: 0 | AH85: 0.01482971952 | AI85: 0.3693835263 | AJ85: 3.173200876 | AK85: 0 | AL85: 0.01206352993 | AM85: 0 | AN85: 0.2183700664 | AO85: 0 | AQ85: 1.992860934 | AR85: 0 | AS85: 0.01502498641 | AT85: 1.010805953 | AU85: 0.03576463443 | AV85: 0.0007762315573 | AW85: 0 | AX85: 0.01502498641 | AY85: 0.3532072982 | AZ85: 0 | BA85: 0 | BB85: 0.3799730075 | BC85: 0 | BD85: 0.2123338095 | BE85: 0 | BG85: 6.849021306 | BH85: 0 | BI85: 0.02985470592 | BJ85: 2.008475326 | BK85: 0.1174784304 | BL85: 0.004535436578 | BM85: 0 | BN85: 0.02985470592 | BO85: 0.7225908245 | BP85: 3.173200876 | BQ85: 0 | BR85: 0.3920365375 | BS85: 0 | BT85: 0.430703876 | BU85: 0
B86: 20 | C86: =(C$98=1)*$F$3 +(C$98=2)*$F$3 +(C$98=3)*$F$3 +(C$98=4)*$F$3 +(C$98=5)*$F$3 -> 1.05 | D86: 1 | E86: 1 | F86: =(F$98=1)*$F$6 +(F$98=2)*$F$6 +(F$98=3)*$F$6 +(F$98=4)*$F$6 +(F$98=5)*$F$6 -> 0.95 | G86: =(G$98=1)*$F$7 +(G$98=2)*$F$7 +(G$98=3)*$F$7 +(G$98=4)*$F$7 +(G$98=5)*$F$7 -> 0.95 | H86: =(H$98=1)*$F$8 +(H$98=2)*$F$8 +(H$98=3)*$F$8 +(H$98=4)*$F$8 +(H$98=5)*$F$8 -> 0.95 | I86: =(I$98=1)*$F$9 +(I$98=2)*$F$9 +(I$98=3)*$F$9 +(I$98=4)*$F$9 +(I$98=5)*$F$9 -> 0.95 | AA86: 4.856160372 | AB86: 0 | AC86: 0.01482971952 | AD86: 0.9976693729 | AE86: 0.08171379595 | AF86: 0.00375920502 | AG86: 0 | AH86: 0.01482971952 | AI86: 0.3693835263 | AJ86: 3.173200876 | AK86: 0 | AL86: 0.01206352993 | AM86: 0 | AN86: 0.2183700664 | AO86: 0 | AQ86: 1.973829394 | AR86: 0 | AS86: 0.01502498641 | AT86: 1.010805953 | AU86: 0.03576463443 | AV86: 0.0007561358275 | AW86: 0 | AX86: 0.01502498641 | AY86: 0.3532072982 | AZ86: 0 | BA86: 0 | BB86: 0.3609743572 | BC86: 0 | BD86: 0.2123210154 | BE86: 0 | BG86: 6.829989766 | BH86: 0 | BI86: 0.02985470592 | BJ86: 2.008475326 | BK86: 0.1174784304 | BL86: 0.004515340848 | BM86: 0 | BN86: 0.02985470592 | BO86: 0.7225908245 | BP86: 3.173200876 | BQ86: 0 | BR86: 0.3730378871 | BS86: 0 | BT86: 0.4306910818 | BU86: 0
A87: Refueling | B87: 21 | C87: =(C$99=1)*$F$3 +(C$99=2) +(C$99=3) +(C$99=4) +(C$99=5) -> 1.05 | D87: 1 | E87: 1 | F87: =(F$99=1)*$F$6 +(F$99=2) +(F$99=3) +(F$99=4) +(F$99=5) -> 1 | G87: =(G$99=1)*$F$7 +(G$99=2) +(G$99=3) +(G$99=4) +(G$99=5) -> 1 | H87: =(H$99=1)*$F$8 +(H$99=2) +(H$99=3) +(H$99=4) +(H$99=5) -> 1 | I87: =(I$99=1)*$F$9 +(I$99=2) +(I$99=3) +(I$99=4) +(I$99=5) -> 1 | AA87: 5.205894272 | AB87: 0 | AC87: 0.01641834458 | AD87: 1.104544123 | AE87: 0.08601452205 | AF87: 0.003987397128 | AG87: 0 | AH87: 0.01641834458 | AI87: 0.418087914 | AJ87: 3.340211448 | AK87: 0 | AL87: 0.01206352993 | AM87: 0 | AN87: 0.2409853375 | AO87: 0 | AQ87: 2.075548115 | AR87: 0 | AS87: 0.01581577516 | AT87: 1.064006266 | AU87: 0.03576463443 | AV87: 0.00079593245 | AW87: 0 | AX87: 0.01581577516 | AY87: 0.371797156 | AZ87: 0 | BA87: 0 | BB87: 0.3799730075 | BC87: 0 | BD87: 0.2232111188 | BE87: 0 | BG87: 7.281442387 | BH87: 0 | BI87: 0.03223411974 | BJ87: 2.168550389 | BK87: 0.1217791565 | BL87: 0.004783329578 | BM87: 0 | BN87: 0.03223411974 | BO87: 0.78988507 | BP87: 3.340211448 | BQ87: 0 | BR87: 0.3920365375 | BS87: 0 | BT87: 0.4641964564 | BU87: 0
B88: 22 | C88: =(C$99=1)*$F$3 +(C$99=2)*$F$3 +(C$99=3) +(C$99=4) +(C$99=5) -> 1.05 | D88: 1 | E88: 1 | F88: =(F$99=1)*$F$6 +(F$99=2)*$F$6 +(F$99=3) +(F$99=4) +(F$99=5) -> 1 | G88: =(G$99=1)*$F$7 +(G$99=2)*$F$7 +(G$99=3) +(G$99=4) +(G$99=5) -> 1 | H88: =(H$99=1)*$F$8 +(H$99=2)*$F$8 +(H$99=3) +(H$99=4) +(H$99=5) -> 0.95 | I88: =(I$99=1)*$F$9 +(I$99=2)*$F$9 +(I$99=3) +(I$99=4) +(I$99=5) -> 1 | AA88: 5.129968442 | AB88: 0 | AC88: 0.01559742735 | AD88: 1.049316917 | AE88: 0.08601452205 | AF88: 0.003977431508 | AG88: 0 | AH88: 0.01559742735 | AI88: 0.4086843072 | AJ88: 3.340211448 | AK88: 0 | AL88: 0.01206352993 | AM88: 0 | AN88: 0.2297002867 | AO88: 0 | AQ88: 2.011483036 | AR88: 0 | AS88: 0.01502498641 | AT88: 1.010805953 | AU88: 0.03576463443 | AV88: 0.00079593245 | AW88: 0 | AX88: 0.01502498641 | AY88: 0.371797156 | AZ88: 0 | BA88: 0 | BB88: 0.3799730075 | BC88: 0 | BD88: 0.2123463523 | BE88: 0 | BG88: 7.141451478 | BH88: 0 | BI88: 0.03062241376 | BJ88: 2.06012287 | BK88: 0.1217791565 | BL88: 0.004773363958 | BM88: 0 | BN88: 0.03062241376 | BO88: 0.7804814633 | BP88: 3.340211448 | BQ88: 0 | BR88: 0.3920365375 | BS88: 0 | BT88: 0.442046639 | BU88: 0
B89: 23 | C89: =(C$99=1)*$F$3 +(C$99=2)*$F$3 +(C$99=3)*$F$3 +(C$99=4) +(C$99=5) -> 1.05 | D89: 1 | E89: 1 | F89: =(F$99=1)*$F$6 +(F$99=2)*$F$6 +(F$99=3)*$F$6 +(F$99=4) +(F$99=5) -> 1 | G89: =(G$99=1)*$F$7 +(G$99=2)*$F$7 +(G$99=3)*$F$7 +(G$99=4) +(G$99=5) -> 1 | H89: =(H$99=1)*$F$8 +(H$99=2)*$F$8 +(H$99=3)*$F$8 +(H$99=4) +(H$99=5) -> 0.95 | I89: =(I$99=1)*$F$9 +(I$99=2)*$F$9 +(I$99=3)*$F$9 +(I$99=4) +(I$99=5) -> 0.95 | AA89: 5.109498784 | AB89: 0 | AC89: 0.01559742735 | AD89: 1.049316917 | AE89: 0.08601452205 | AF89: 0.003955776029 | AG89: 0 | AH89: 0.01559742735 | AI89: 0.3882500919 | AJ89: 3.340211448 | AK89: 0 | AL89: 0.01206352993 | AM89: 0 | AN89: 0.2296864995 | AO89: 0 | AQ89: 1.992860934 | AR89: 0 | AS89: 0.01502498641 | AT89: 1.010805953 | AU89: 0.03576463443 | AV89: 0.0007762315573 | AW89: 0 | AX89: 0.01502498641 | AY89: 0.3532072982 | AZ89: 0 | BA89: 0 | BB89: 0.3799730075 | BC89: 0 | BD89: 0.2123338095 | BE89: 0 | BG89: 7.102359719 | BH89: 0 | BI89: 0.03062241376 | BJ89: 2.06012287 | BK89: 0.1217791565 | BL89: 0.004732007586 | BM89: 0 | BN89: 0.03062241376 | BO89: 0.7414573901 | BP89: 3.340211448 | BQ89: 0 | BR89: 0.3920365375 | BS89: 0 | BT89: 0.442020309 | BU89: 0
B90: 24 | C90: =(C$99=1)*$F$3 +(C$99=2)*$F$3 +(C$99=3)*$F$3 +(C$99=4)*$F$3 +(C$99=5) -> 1.05 | D90: 1 | E90: 1 | F90: =(F$99=1)*$F$6 +(F$99=2)*$F$6 +(F$99=3)*$F$6 +(F$99=4)*$F$6 +(F$99=5) -> 1 | G90: =(G$99=1)*$F$7 +(G$99=2)*$F$7 +(G$99=3)*$F$7 +(G$99=4)*$F$7 +(G$99=5) -> 0.95 | H90: =(H$99=1)*$F$8 +(H$99=2)*$F$8 +(H$99=3)*$F$8 +(H$99=4)*$F$8 +(H$99=5) -> 0.95 | I90: =(I$99=1)*$F$9 +(I$99=2)*$F$9 +(I$99=3)*$F$9 +(I$99=4)*$F$9 +(I$99=5) -> 0.95 | AA90: 5.109498784 | AB90: 0 | AC90: 0.01559742735 | AD90: 1.049316917 | AE90: 0.08601452205 | AF90: 0.003955776029 | AG90: 0 | AH90: 0.01559742735 | AI90: 0.3882500919 | AJ90: 3.340211448 | AK90: 0 | AL90: 0.01206352993 | AM90: 0 | AN90: 0.2296864995 | AO90: 0 | AQ90: 1.973829394 | AR90: 0 | AS90: 0.01502498641 | AT90: 1.010805953 | AU90: 0.03576463443 | AV90: 0.0007561358275 | AW90: 0 | AX90: 0.01502498641 | AY90: 0.3532072982 | AZ90: 0 | BA90: 0 | BB90: 0.3609743572 | BC90: 0 | BD90: 0.2123210154 | BE90: 0 | BG90: 7.083328178 | BH90: 0 | BI90: 0.03062241376 | BJ90: 2.06012287 | BK90: 0.1217791565 | BL90: 0.004711911856 | BM90: 0 | BN90: 0.03062241376 | BO90: 0.7414573901 | BP90: 3.340211448 | BQ90: 0 | BR90: 0.3730378871 | BS90: 0 | BT90: 0.4420075148 | BU90: 0
A91: Both | B91: 25 | C91: =(C$99=1)*$F$3 +(C$99=2)*$F$3 +(C$99=3)*$F$3 +(C$99=4)*$F$3 +(C$99=5)*$F$3 -> 1.05 | D91: 1 | E91: 1 | F91: =(F$99=1)*$F$6 +(F$99=2)*$F$6 +(F$99=3)*$F$6 +(F$99=4)*$F$6 +(F$99=5)*$F$6 -> 0.95 | G91: =(G$99=1)*$F$7 +(G$99=2)*$F$7 +(G$99=3)*$F$7 +(G$99=4)*$F$7 +(G$99=5)*$F$7 -> 0.95 | H91: =(H$99=1)*$F$8 +(H$99=2)*$F$8 +(H$99=3)*$F$8 +(H$99=4)*$F$8 +(H$99=5)*$F$8 -> 0.95 | I91: =(I$99=1)*$F$9 +(I$99=2)*$F$9 +(I$99=3)*$F$9 +(I$99=4)*$F$9 +(I$99=5)*$F$9 -> 0.95 | AA91: 4.856160372 | AB91: 0 | AC91: 0.01482971952 | AD91: 0.9976693729 | AE91: 0.08171379595 | AF91: 0.00375920502 | AG91: 0 | AH91: 0.01482971952 | AI91: 0.3693835263 | AJ91: 3.173200876 | AK91: 0 | AL91: 0.01206352993 | AM91: 0 | AN91: 0.2183700664 | AO91: 0 | AQ91: 1.973829394 | AR91: 0 | AS91: 0.01502498641 | AT91: 1.010805953 | AU91: 0.03576463443 | AV91: 0.0007561358275 | AW91: 0 | AX91: 0.01502498641 | AY91: 0.3532072982 | AZ91: 0 | BA91: 0 | BB91: 0.3609743572 | BC91: 0 | BD91: 0.2123210154 | BE91: 0 | BG91: 6.829989766 | BH91: 0 | BI91: 0.02985470592 | BJ91: 2.008475326 | BK91: 0.1174784304 | BL91: 0.004515340848 | BM91: 0 | BN91: 0.02985470592 | BO91: 0.7225908245 | BP91: 3.173200876 | BQ91: 0 | BR91: 0.3730378871 | BS91: 0 | BT91: 0.4306910818 | BU91: 0
B92: 26 | C92: =(C$100=1)*$F$3 +(C$100=2) +(C$100=3) +(C$100=4) +(C$100=5) -> 1 | D92: 1 | E92: 1 | F92: =(F$100=1)*$F$6 +(F$100=2) +(F$100=3) +(F$100=4) +(F$100=5) -> 0.95 | G92: =(G$100=1)*$F$7 +(G$100=2) +(G$100=3) +(G$100=4) +(G$100=5) -> 1 | H92: =(H$100=1)*$F$8 +(H$100=2) +(H$100=3) +(H$100=4) +(H$100=5) -> 1 | I92: =(I$100=1)*$F$9 +(I$100=2) +(I$100=3) +(I$100=4) +(I$100=5) -> 1 | AA92: 4.950048599 | AB92: 0 | AC92: 0.01562303479 | AD92: 1.051039657 | AE92: 0.08171379595 | AF92: 0.003790539303 | AG92: 0 | AH92: 0.01562303479 | AI92: 0.3983475302 | AJ92: 3.173200876 | AK92: 0 | AL92: 0.01266670643 | AM92: 0 | AN92: 0.2292894944 | AO92: 0 | AQ92: 2.160293981 | AR92: 0 | AS92: 0.01660656392 | AT92: 1.117206579 | AU92: 0.03755286615 | AV92: 0.0008156333426 | AW92: 0 | AX92: 0.01660656392 | AY92: 0.3903870138 | AZ92: 0 | BA92: 0 | BB92: 0.3799730075 | BC92: 0 | BD92: 0.2343588806 | BE92: 0 | BG92: 7.11034258 | BH92: 0 | BI92: 0.03222959871 | BJ92: 2.168246237 | BK92: 0.1192666621 | BL92: 0.004606172645 | BM92: 0 | BN92: 0.03222959871 | BO92: 0.788734544 | BP92: 3.173200876 | BQ92: 0 | BR92: 0.392639714 | BS92: 0 | BT92: 0.463648375 | BU92: 0
B93: 27 | C93: =(C$100=1)*$F$3 +(C$100=2)*$F$3 +(C$100=3) +(C$100=4) +(C$100=5) -> 1 | D93: 1 | E93: 1 | F93: =(F$100=1)*$F$6 +(F$100=2)*$F$6 +(F$100=3) +(F$100=4) +(F$100=5) -> 0.95 | G93: =(G$100=1)*$F$7 +(G$100=2)*$F$7 +(G$100=3) +(G$100=4) +(G$100=5) -> 1 | H93: =(H$100=1)*$F$8 +(H$100=2)*$F$8 +(H$100=3) +(H$100=4) +(H$100=5) -> 0.95 | I93: =(I$100=1)*$F$9 +(I$100=2)*$F$9 +(I$100=3) +(I$100=4) +(I$100=5) -> 1 | AA93: 4.877800641 | AB93: 0 | AC93: 0.01484188305 | AD93: 0.9984876746 | AE93: 0.08171379595 | AF93: 0.003781056421 | AG93: 0 | AH93: 0.01484188305 | AI93: 0.3893994371 | AJ93: 3.173200876 | AK93: 0 | AL93: 0.01266670643 | AM93: 0 | AN93: 0.218551095 | AO93: 0 | AQ93: 2.093025647 | AR93: 0 | AS93: 0.01577623573 | AT93: 1.06134625 | AU93: 0.03755286615 | AV93: 0.0008156333426 | AW93: 0 | AX93: 0.01577623573 | AY93: 0.3903870138 | AZ93: 0 | BA93: 0 | BB93: 0.3799730075 | BC93: 0 | BD93: 0.2229508758 | BE93: 0 | BG93: 6.970826288 | BH93: 0 | BI93: 0.03061811878 | BJ93: 2.059833925 | BK93: 0.1192666621 | BL93: 0.004596689763 | BM93: 0 | BN93: 0.03061811878 | BO93: 0.7797864509 | BP93: 3.173200876 | BQ93: 0 | BR93: 0.392639714 | BS93: 0 | BT93: 0.4415019708 | BU93: 0
B94: 28 | C94: =(C$100=1)*$F$3 +(C$100=2)*$F$3 +(C$100=3)*$F$3 +(C$100=4) +(C$100=5) -> 1.05 | D94: 1 | E94: 1 | F94: =(F$100=1)*$F$6 +(F$100=2)*$F$6 +(F$100=3)*$F$6 +(F$100=4) +(F$100=5) -> 0.95 | G94: =(G$100=1)*$F$7 +(G$100=2)*$F$7 +(G$100=3)*$F$7 +(G$100=4) +(G$100=5) -> 1 | H94: =(H$100=1)*$F$8 +(H$100=2)*$F$8 +(H$100=3)*$F$8 +(H$100=4) +(H$100=5) -> 0.95 | I94: =(I$100=1)*$F$9 +(I$100=2)*$F$9 +(I$100=3)*$F$9 +(I$100=4) +(I$100=5) -> 1 | AA94: 4.875635331 | AB94: 0 | AC94: 0.01482971952 | AD94: 0.9976693729 | AE94: 0.08171379595 | AF94: 0.003779808177 | AG94: 0 | AH94: 0.01482971952 | AI94: 0.3888247645 | AJ94: 3.173200876 | AK94: 0 | AL94: 0.01206352993 | AM94: 0 | AN94: 0.2183831837 | AO94: 0 | AQ94: 2.011483036 | AR94: 0 | AS94: 0.01502498641 | AT94: 1.010805953 | AU94: 0.03576463443 | AV94: 0.00079593245 | AW94: 0 | AX94: 0.01502498641 | AY94: 0.371797156 | AZ94: 0 | BA94: 0 | BB94: 0.3799730075 | BC94: 0 | BD94: 0.2123463523 | BE94: 0 | BG94: 6.887118366 | BH94: 0 | BI94: 0.02985470592 | BJ94: 2.008475326 | BK94: 0.1174784304 | BL94: 0.004575740627 | BM94: 0 | BN94: 0.02985470592 | BO94: 0.7606219205 | BP94: 3.173200876 | BQ94: 0 | BR94: 0.3920365375 | BS94: 0 | BT94: 0.430729536 | BU94: 0
B95: 29 | C95: =(C$100=1)*$F$3 +(C$100=2)*$F$3 +(C$100=3)*$F$3 +(C$100=4)*$F$3 +(C$100=5) -> 1.05 | D95: 1 | E95: 1 | F95: =(F$100=1)*$F$6 +(F$100=2)*$F$6 +(F$100=3)*$F$6 +(F$100=4)*$F$6 +(F$100=5) -> 0.95 | G95: =(G$100=1)*$F$7 +(G$100=2)*$F$7 +(G$100=3)*$F$7 +(G$100=4)*$F$7 +(G$100=5) -> 1 | H95: =(H$100=1)*$F$8 +(H$100=2)*$F$8 +(H$100=3)*$F$8 +(H$100=4)*$F$8 +(H$100=5) -> 0.95 | I95: =(I$100=1)*$F$9 +(I$100=2)*$F$9 +(I$100=3)*$F$9 +(I$100=4)*$F$9 +(I$100=5) -> 0.95 | AA95: 4.856160372 | AB95: 0 | AC95: 0.01482971952 | AD95: 0.9976693729 | AE95: 0.08171379595 | AF95: 0.00375920502 | AG95: 0 | AH95: 0.01482971952 | AI95: 0.3693835263 | AJ95: 3.173200876 | AK95: 0 | AL95: 0.01206352993 | AM95: 0 | AN95: 0.2183700664 | AO95: 0 | AQ95: 1.992860934 | AR95: 0 | AS95: 0.01502498641 | AT95: 1.010805953 | AU95: 0.03576463443 | AV95: 0.0007762315573 | AW95: 0 | AX95: 0.01502498641 | AY95: 0.3532072982 | AZ95: 0 | BA95: 0 | BB95: 0.3799730075 | BC95: 0 | BD95: 0.2123338095 | BE95: 0 | BG95: 6.849021306 | BH95: 0 | BI95: 0.02985470592 | BJ95: 2.008475326 | BK95: 0.1174784304 | BL95: 0.004535436578 | BM95: 0 | BN95: 0.02985470592 | BO95: 0.7225908245 | BP95: 3.173200876 | BQ95: 0 | BR95: 0.3920365375 | BS95: 0 | BT95: 0.430703876 | BU95: 0
B96: 30 | C96: =(C$100=1)*$F$3 +(C$100=2)*$F$3 +(C$100=3)*$F$3 +(C$100=4)*$F$3 +(C$100=5)*$F$3 -> 1.05 | D96: 1 | E96: 1 | F96: =(F$100=1)*$F$6 +(F$100=2)*$F$6 +(F$100=3)*$F$6 +(F$100=4)*$F$6 +(F$100=5)*$F$6 -> 0.95 | G96: =(G$100=1)*$F$7 +(G$100=2)*$F$7 +(G$100=3)*$F$7 +(G$100=4)*$F$7 +(G$100=5)*$F$7 -> 0.95 | H96: =(H$100=1)*$F$8 +(H$100=2)*$F$8 +(H$100=3)*$F$8 +(H$100=4)*$F$8 +(H$100=5)*$F$8 -> 0.95 | I96: =(I$100=1)*$F$9 +(I$100=2)*$F$9 +(I$100=3)*$F$9 +(I$100=4)*$F$9 +(I$100=5)*$F$9 -> 0.95 | AA96: 4.856160372 | AB96: 0 | AC96: 0.01482971952 | AD96: 0.9976693729 | AE96: 0.08171379595 | AF96: 0.00375920502 | AG96: 0 | AH96: 0.01482971952 | AI96: 0.3693835263 | AJ96: 3.173200876 | AK96: 0 | AL96: 0.01206352993 | AM96: 0 | AN96: 0.2183700664 | AO96: 0 | AQ96: 1.973829394 | AR96: 0 | AS96: 0.01502498641 | AT96: 1.010805953 | AU96: 0.03576463443 | AV96: 0.0007561358275 | AW96: 0 | AX96: 0.01502498641 | AY96: 0.3532072982 | AZ96: 0 | BA96: 0 | BB96: 0.3609743572 | BC96: 0 | BD96: 0.2123210154 | BE96: 0 | BG96: 6.829989766 | BH96: 0 | BI96: 0.02985470592 | BJ96: 2.008475326 | BK96: 0.1174784304 | BL96: 0.004515340848 | BM96: 0 | BN96: 0.02985470592 | BO96: 0.7225908245 | BP96: 3.173200876 | BQ96: 0 | BR96: 0.3730378871 | BS96: 0 | BT96: 0.4306910818 | BU96: 0
B98: Production waterfall priority | C98: =6-RANK($S$130,($S$130,$S$133:$S$136)) -> 4 | F98: =6-RANK($S$133,($S$130,$S$133:$S$136)) -> 1 | G98: =6-RANK($S$134,($S$130,$S$133:$S$136)) -> 5 | H98: =6-RANK($S$135,($S$130,$S$133:$S$136)) -> 2 | I98: =6-RANK($S$136,($S$130,$S$133:$S$136)) -> 3
B99: Refueling waterfall priority | C99: =6-RANK($T$130,($T$130,$T$133:$T$136)) -> 1 | F99: =6-RANK($T$133,($T$130,$T$133:$T$136)) -> 5 | G99: =6-RANK($T$134,($T$130,$T$133:$T$136)) -> 4 | H99: =6-RANK($T$135,($T$130,$T$133:$T$136)) -> 2 | I99: =6-RANK($T$136,($T$130,$T$133:$T$136)) -> 3
B100: Both waterfall priority | C100: =6-RANK($U$130,($U$130,$U$133:$U$136)) -> 3 | F100: =6-RANK($U$133,($U$130,$U$133:$U$136)) -> 1 | G100: =6-RANK($U$134,($U$130,$U$133:$U$136)) -> 5 | H100: =6-RANK($U$135,($U$130,$U$133:$U$136)) -> 2 | I100: =6-RANK($U$136,($U$130,$U$133:$U$136)) -> 4
B104: Visualization data formatting
B106: parameter | C106: level | D106: Chart titles | E106: Revenue from Hydrogen Sales | F106: Revenue from Byproduct Sales | G106: Salvage Value | H106: Initial Equity Depreciable Capital | I106: Yearly Replacement Costs | J106: Cash for Working Capital Reserve | K106: Other Non-Depreciable Capital Costs | L106: Decommissioning Costs | M106: Fixed Operating Cost | N106: Feedstock Cost | O106: Other Raw Material Cost | P106: Other Variable Operating Costs | Q106: Debt Interest | R106: Taxes | S106: Principal Payment
B107: =+$B$3 -> Realized fraction of design capacity | C107: =+H3 -> 1.05 | D107: =+B107&" = "&C107*100&"%" -> Realized fraction of design capacity = 105% | E107: =+K68 -> 5.205895962 | F107: =+L68 -> 0 | G107: =+M68 -> 0.01641835956 | H107: 1.104545131 | I107: 0.08601460054 | J107: 0.003987397536 | K107: 0 | L107: 0.01641835956 | M107: 0.4180882955 | N107: 3.340211448 | O107: 0 | P107: 0.01206353346 | Q107: 0 | R107: 0.2409855554 | S107: 0
B108: =+$B$3 -> Realized fraction of design capacity | C108: =+C3 -> 1 | D108: =+B108&" = "&C108*100&"%" -> Realized fraction of design capacity = 100% | E108: =+K$67 -> 5.208120484 | F108: 0 | G108: 0.01643116329 | H108: 1.105406502 | I108: 0.08601460054 | J108: 0.003988653552 | K108: 0 | L108: 0.01643116329 | M108: 0.418670302 | N108: 3.340211448 | O108: 0 | P108: 0.01266671014 | Q108: 0 | R108: 0.2411622674 | S108: 0
B109: Realized fraction of design capacity | C109: =+I3 -> 0.95 | D109: Realized fraction of design capacity = 95% | E109: =+K69 -> 5.210579166 | F109: 0 | G109: 0.01644531478 | H109: 1.106358544 | I109: 0.08601460054 | J109: 0.003990041781 | K109: 0 | L109: 0.01644531478 | M109: 0.4193135723 | N109: 3.340211448 | O109: 0 | P109: 0.01333337909 | Q109: 0 | R109: 0.2413575807 | S109: 0
B110: =+$B$4 -> Plant design capacity (kg of H2/day) | C110: =ROUND(H4,0) -> 1575 | D110: =+B110&" = "&TEXT(C110,"0,000") -> Plant design capacity (kg of H2/day) = 1,575 | E110: 5.267964187 | F110: 0 | G110: 0.01697570665 | H110: 1.142040656 | I110: 0.08856974174 | J110: 0.004002184963 | K110: 0 | L110: 0.01697570665 | M110: 0.4314386105 | N110: 3.340211448 | O110: 0 | P110: 0.0126667066 | Q110: 0 | R110: 0.2490348384 | S110: 0
B111: =+$B$4 -> Plant design capacity (kg of H2/day) | C111: =+ROUND(C4,0) -> 1500 | D111: =+B111&" = "&TEXT(C111,"0,000") -> Plant design capacity (kg of H2/day) = 1,500 | E111: =+K$67 -> 5.208120484 | F111: 0 | G111: 0.01643116329 | H111: 1.105406502 | I111: 0.08601460054 | J111: 0.003988653552 | K111: 0 | L111: 0.01643116329 | M111: 0.418670302 | N111: 3.340211448 | O111: 0 | P111: 0.01266671014 | Q111: 0 | R111: 0.2411622674 | S111: 0
B112: Plant design capacity (kg of H2/day) | C112: =ROUND(I4,0) -> 1425 | D112: Plant design capacity (kg of H2/day) = 1,425 | E112: =+K71 -> 5.147479211 | F112: 0 | G112: 0.01588004014 | H112: 1.068329692 | I112: 0.08340789156 | J112: 0.003974905023 | K112: 0 | L112: 0.01588004014 | M112: 0.4056971158 | N112: 3.340211448 | O112: 0 | P112: 0.01266671765 | Q112: 0 | R112: 0.23319144 | S112: 0
B113: =+$B$5 -> After-tax real IRR | C113: =+ROUND(H5,2) -> 0.1 | D113: =+B113&" = "&C113*100&"%" -> After-tax real IRR = 10% | E113: 5.161185588 | F113: 0 | G113: 0.01738830724 | H113: 1.067922382 | I113: 0.08712945288 | J113: 0.003838051678 | K113: 0 | L113: 0.01738830724 | M113: 0.41866992 | N113: 3.344538182 | O113: 0 | P113: 0.01266670643 | Q113: 0 | R113: 0.2264208933 | S113: 0
B114: =+$B$5 -> After-tax real IRR | C114: =ROUND(C5,2) -> 0.1 | D114: After-tax real IRR = 10% | E114: =+K$67 -> 5.208120484 | F114: 0 | G114: 0.01643116329 | H114: 1.105406502 | I114: 0.08601460054 | J114: 0.003988653552 | K114: 0 | L114: 0.01643116329 | M114: 0.418670302 | N114: 3.340211448 | O114: 0 | P114: 0.01266671014 | Q114: 0 | R114: 0.2411622674 | S114: 0
B115: After-tax real IRR | C115: =ROUND(I5,2) -> 0.11 | D115: After-tax real IRR = 11% | E115: =+K73 -> 5.255986888 | F115: 0 | G115: 0.01552171316 | H115: 1.143365843 | I115: 0.08488908812 | J115: 0.004137750048 | K115: 0 | L115: 0.01552171316 | M115: 0.41866992 | N115: 3.335975166 | O115: 0 | P115: 0.01266670643 | Q115: 0 | R115: 0.2562824152 | S115: 0
B116: =+$B$6 -> Feedstock consumption (% of baseline) | C116: =+ROUND(H6,3) -> 0.95 | D116: =+B116&" = "&C116*100&"%" -> Feedstock consumption (% of baseline) = 95% | E116: 4.950048599 | F116: 0 | G116: 0.01562303479 | H116: 1.051039657 | I116: 0.08171379595 | J116: 0.003790539303 | K116: 0 | L116: 0.01562303479 | M116: 0.3983475302 | N116: 3.173200876 | O116: 0 | P116: 0.01266670643 | Q116: 0 | R116: 0.2292894944 | S116: 0
B117: =+$B$6 -> Feedstock consumption (% of baseline) | C117: =+ROUND(C6,3) -> 1 | D117: =+B117&" = "&C117*100&"%" -> Feedstock consumption (% of baseline) = 100% | E117: =+K$67 -> 5.208120484 | F117: 0 | G117: 0.01643116329 | H117: 1.105406502 | I117: 0.08601460054 | J117: 0.003988653552 | K117: 0 | L117: 0.01643116329 | M117: 0.418670302 | N117: 3.340211448 | O117: 0 | P117: 0.01266671014 | Q117: 0 | R117: 0.2411622674 | S117: 0
B118: Feedstock consumption (% of baseline) | C118: =+ROUND(I6,3) -> 1.05 | D118: =+B118&" = "&C118*100&"%" -> Feedstock consumption (% of baseline) = 105% | E118: =+K75 -> 5.466188985 | F118: 0 | G118: 0.01723926181 | H118: 1.159771329 | I118: 0.09031524815 | J118: 0.004186766984 | K118: 0 | L118: 0.01723926181 | M118: 0.4389923097 | N118: 3.50722202 | O118: 0 | P118: 0.01266670643 | Q118: 0 | R118: 0.2530346044 | S118: 0
B119: =+$B$7 -> Utilities consumption (% of baseline) | C119: =+ROUND(H7,3) -> 0.95 | D119: =+B119&" = "&C119*100&"%" -> Utilities consumption (% of baseline) = 95% | E119: 5.208118792 | F119: 0 | G119: 0.0164311483 | H119: 1.105405493 | I119: 0.08601452205 | J119: 0.003988653143 | K119: 0 | L119: 0.0164311483 | M119: 0.41866992 | N119: 3.340211448 | O119: 0 | P119: 0.01266670643 | Q119: 0 | R119: 0.2411620494 | S119: 0
B120: =+$B$7 -> Utilities consumption (% of baseline) | C120: =+ROUND(C7,3) -> 1 | D120: Utilities consumption (% of baseline) = 100% | E120: =+K$67 -> 5.208120484 | F120: =+L$67 -> 0 | G120: 0.01643116329 | H120: 1.105406502 | I120: 0.08601460054 | J120: 0.003988653552 | K120: 0 | L120: 0.01643116329 | M120: 0.418670302 | N120: 3.340211448 | O120: 0 | P120: 0.01266671014 | Q120: 0 | R120: 0.2411622674 | S120: 0
B121: Utilities consumption (% of baseline) | C121: =+ROUND(I7,3) -> 1.05 | D121: Utilities consumption (% of baseline) = 105% | E121: =+K77 -> 5.208118792 | F121: 0 | G121: 0.0164311483 | H121: 1.105405493 | I121: 0.08601452205 | J121: 0.003988653143 | K121: 0 | L121: 0.0164311483 | M121: 0.41866992 | N121: 3.340211448 | O121: 0 | P121: 0.01266670643 | Q121: 0 | R121: 0.2411620494 | S121: 0
B122: =+$B$8 -> Total capital investment | C122: =+ROUND(H8,0) -> 8460857 | D122: =+B122&" = "&TEXT(C122/1000,"$0,000K") -> Total capital investment = $8,461K | E122: 5.132133753 | F122: 0 | G122: 0.01560959088 | H122: 1.050135219 | I122: 0.08601452205 | J122: 0.003978679752 | K122: 0 | L122: 0.01560959088 | M122: 0.4092589798 | N122: 3.340211448 | O122: 0 | P122: 0.01266670643 | Q122: 0 | R122: 0.229868198 | S122: 0
B123: =+$B$8 -> Total capital investment | C123: =+ROUND(C8,0) -> 8906165 | D123: Total capital investment = $8,906K | E123: =+K$67 -> 5.208120484 | F123: 0 | G123: 0.01643116329 | H123: 1.105406502 | I123: 0.08601460054 | J123: 0.003988653552 | K123: 0 | L123: 0.01643116329 | M123: 0.418670302 | N123: 3.340211448 | O123: 0 | P123: 0.01266671014 | Q123: 0 | R123: 0.2411622674 | S123: 0
B124: Total capital investment | C124: =+ROUND(I8,0) -> 9351474 | D124: Total capital investment = $9,351K | E124: =+K79 -> 5.284103832 | F124: 0 | G124: 0.01725270571 | H124: 1.160675768 | I124: 0.08601452205 | J124: 0.003998626534 | K124: 0 | L124: 0.01725270571 | M124: 0.4280808601 | N124: 3.340211448 | O124: 0 | P124: 0.01266670643 | Q124: 0 | R124: 0.2524559008 | S124: 0
B125: =+$B$9 -> Total fixed operating cost | C125: =+ROUND(H9,0) -> 361758 | D125: Total fixed operating cost = $0,362K | E125: 5.187148988 | F125: 0 | G125: 0.0164311483 | H125: 1.105405493 | I125: 0.08601452205 | J125: 0.003966468543 | K125: 0 | L125: 0.0164311483 | M125: 0.397736424 | N125: 3.340211448 | O125: 0 | P125: 0.01266670643 | Q125: 0 | R125: 0.2411479253 | S125: 0
B126: =+$B$9 -> Total fixed operating cost | C126: =+ROUND(C9,0) -> 380798 | D126: Total fixed operating cost = $0,381K | E126: =+K$67 -> 5.208120484 | F126: 0 | G126: 0.01643116329 | H126: 1.105406502 | I126: 0.08601460054 | J126: 0.003988653552 | K126: 0 | L126: 0.01643116329 | M126: 0.418670302 | N126: 3.340211448 | O126: 0 | P126: 0.01266671014 | Q126: 0 | R126: 0.2411622674 | S126: 0
B127: Total fixed operating cost | C127: =+ROUND(I9,0) -> 399838 | D127: Total fixed operating cost = $0,400K | E127: =+K81 -> 5.229088597 | F127: =+L81 -> 0 | G127: =+M81 -> 0.0164311483 | H127: 1.105405493 | I127: 0.08601452205 | J127: 0.004010837743 | K127: 0 | L127: 0.0164311483 | M127: 0.439603416 | N127: 3.340211448 | O127: 0 | P127: 0.01266670643 | Q127: 0 | R127: 0.2411761735 | S127: 0
P128: aa | Q128: aq | R128: bg
B129: Standard Toranado | C129: Rank | D129: Titles | E129: Low cost price | F129: Default price | G129: High price | H129: dL0 | I129: dL1 | J129: dL2 | L129: Unsorted titles | M129: Results spread ($/kg) | N129: Importance ranking | P129: Production spread ($/kg) | Q129: Refueling spread ($/kg) | R129: Both spread ($/kg) | S129: Production ranking | T129: Refueling ranking | U129: Both ranking
C130: 1 | D130: =OFFSET(L$129,MATCH($C130,$N$130:$N$136,0),0) -> Feedstock consumption (% of baseline) (95%, 100%, 105%) | E130: =OFFSET(E$106,MATCH($C130,$N$130:$N$136,0)*3-2,0) -> 4.950048599 | F130: =+$K$67 -> 5.208120484 | G130: =OFFSET(E$106,MATCH($C130,$N$130:$N$136,0)*3,0) -> 5.466188985 | H130: =MIN(E130:G130) -> 4.950048599 | I130: =+MEDIAN(E130:G130)-H130 -> 0.2580718844 | J130: =+MAX(E130:G130)-MEDIAN(E130:G130) -> 0.2580685017 | L130: =+B3&" ("&TEXT(H3,"0%, ")&TEXT(C3,"0%, ")&TEXT(I3,"0%)") -> Realized fraction of design capacity (105%, 100%, 95%) | M130: =ABS(K68-K69)+0.000000001 -> 0.004683205652 | N130: =+RANK(M130,$M$130:$M$136) -> 6 | P130: =ABS(AA68-AA69)+0.000000001 -> 0.004683205652 | Q130: =ABS(AQ68-AQ69)+0.000000001 -> 0.1784125033 | R130: =ABS(BG68-BG69)+0.000000001 -> 0.1830957079 | S130: =+RANK(P130,P$130:P$136) -> 6 | T130: =+RANK(Q130,Q$130:Q$136) -> 1 | U130: 4
C131: 2 | D131: Total capital investment ($8,461K, $8,906K, $9,351K) | E131: 5.132133753 | F131: 5.208120484 | G131: 5.284103832 | H131: 5.132133753 | I131: 0.07598673096 | J131: 0.0759833482 | L131: =+B4&" ("&TEXT(C209,"0,000")&", "&TEXT(D209,"0,000")&", "&TEXT(E209,"0,000")&") " -> Plant design capacity (kg of H2/day) (1,425, 1,500, 1,575) | M131: =+ABS(K70-K71)+0.000000002 -> 0.1204849781 | N131: 3 | P131: =+ABS(AA70-AA71)+0.000000002 -> 0.1204849781 | Q131: =+ABS(AQ70-AQ71)+0.000000002 -> 0.03178642858 | R131: =+ABS(BG70-BG71)+0.000000002 -> 0.1522714047 | S131: =+RANK(P131,P$130:P$136) -> 3 | T131: 6 | U131: 5
C132: 3 | D132: Plant design capacity (kg of H2/day) (1,425, 1,500, 1,575) | E132: 5.267964187 | F132: 5.208120484 | G132: 5.147479211 | H132: 5.147479211 | I132: 0.06064127329 | J132: 0.05984370286 | L132: =+B5&" ("&TEXT(H5,"0%, ")&TEXT(C5,"0%, ")&TEXT(I5,"0%)") -> After-tax real IRR (10%, 10%, 11%) | M132: =+ABS(K72-K73)+0.000000003 -> 0.09480130329 | N132: 4 | P132: =+ABS(AA72-AA73)+0.000000003 -> 0.09480130329 | Q132: =+ABS(AQ72-AQ73)+0.000000003 -> 0.09988899008 | R132: =+ABS(BG72-BG73)+0.000000003 -> 0.1946902904 | S132: 4 | T132: 3 | U132: 3
C133: 4 | D133: After-tax real IRR (10%, 10%, 11%) | E133: 5.161185588 | F133: 5.208120484 | G133: 5.255986888 | H133: 5.161185588 | I133: 0.0469348957 | J133: 0.04786640459 | L133: =+B6&" ("&TEXT(H6,"0%, ")&TEXT(C6,"0%, ")&TEXT(I6,"0%)") -> Feedstock consumption (% of baseline) (95%, 100%, 105%) | M133: =+ABS(K74-K75)+0.000000004 -> 0.5161403901 | N133: 1 | P133: =+ABS(AA74-AA75)+0.000000004 -> 0.5161403901 | Q133: =+ABS(AQ74-AQ75)+0.000000004 -> 4e-09 | R133: =+ABS(BG74-BG75)+0.000000004 -> 0.5161403901 | S133: 1 | T133: 7 | U133: 1
C134: 5 | D134: Total fixed operating cost ($0,362K, $0,381K, $0,400K) | E134: 5.187148988 | F134: 5.208120484 | G134: 5.229088597 | H134: 5.187148988 | I134: 0.02097149605 | J134: 0.0209681133 | L134: =+B7&" ("&TEXT(H7,"0%, ")&TEXT(C7,"0%, ")&TEXT(I7,"0%)") -> Utilities consumption (% of baseline) (95%, 100%, 105%) | M134: =+ABS(K76-K77)+0.000000005 -> 5e-09 | N134: 7 | P134: =+ABS(AA76-AA77)+0.000000005 -> 5e-09 | Q134: =+ABS(AQ76-AQ77)+0.000000005 -> 0.03806308556 | R134: =+ABS(BG76-BG77)+0.000000005 -> 0.03806308556 | S134: 7 | T134: 5 | U134: 7
C135: 6 | D135: Realized fraction of design capacity (105%, 100%, 95%) | E135: 5.205895962 | F135: 5.208120484 | G135: 5.210579166 | H135: 5.205895962 | I135: 0.00222452221 | J135: 0.002458682442 | L135: =+B8&" ("&TEXT(H8/1000,"$0,000K")&", "&TEXT(C8/1000,"$0,000K")&", "&TEXT(I8/1000,"$0,000K")&") " -> Total capital investment ($8,461K, $8,906K, $9,351K) | M135: =+ABS(K78-K79)+0.000000006 -> 0.1519700852 | N135: 2 | P135: =+ABS(AA78-AA79)+0.000000006 -> 0.1519700852 | Q135: =+ABS(AQ78-AQ79)+0.000000006 -> 0.1345366736 | R135: =+ABS(BG78-BG79)+0.000000006 -> 0.2865067528 | S135: 2 | T135: 2 | U135: 2
C136: 7 | D136: Utilities consumption (% of baseline) (95%, 100%, 105%) | E136: 5.208118792 | F136: 5.208120484 | G136: 5.208118792 | H136: 5.208118792 | I136: 0 | J136: 1.691376835e-06 | L136: =+B9&" ("&TEXT(H9/1000,"$0,000K")&", "&TEXT(C9/1000,"$0,000K")&", "&TEXT(I9/1000,"$0,000K")&") " -> Total fixed operating cost ($0,362K, $0,381K, $0,400K) | M136: =+ABS(K80-K81)+0.00000007 -> 0.04193967934 | N136: 5 | P136: =+ABS(AA80-AA81)+0.00000007 -> 0.04193967934 | Q136: =+ABS(AQ80-AQ81)+0.00000007 -> 0.03910648312 | R136: =+ABS(BG80-BG81)+0.00000007 -> 0.08104609247 | S136: 5 | T136: 4 | U136: 6
B139: Simple bar chart | C139: Rank | D139: Chart titles | E139: Hydrogen Sales | F139: Byproduct Sales | G139: Salvage Value | H139: Initial Equity Depreciable Capital | I139: Yearly Replacement Costs | J139: Cash for Working Capital Reserve | K139: Other Non-Depreciable Capital Costs | L139: Decommissioning Costs | M139: Fixed Operating Cost | N139: Feedstock Cost | O139: Other Raw Material Cost | P139: Other Variable Operating Costs | Q139: Debt Interest | R139: Taxes | S139: Principal Payment
C140: 1 | D140: Base case | E140: =OFFSET(E$106,MATCH($C140,$N$130:$N$136,0)*3-1,0) -> 5.208120484 | F140: =OFFSET(F$106,MATCH($C140,$N$130:$N$136,0)*3-1,0) -> 0 | G140: =OFFSET(G$106,MATCH($C140,$N$130:$N$136,0)*3-1,0) -> 0.01643116329
H141: =OFFSET(H$106,MATCH($C140,$N$130:$N$136,0)*3-1,0) -> 1.105406502 | I141: 0.08601460054 | J141: 0.003988653552 | K141: 0 | L141: 0.01643116329 | M141: 0.418670302 | N141: 3.340211448 | O141: 0 | P141: 0.01266671014 | Q141: 0 | R141: 0.2411622674 | S141: 0
C144: 1 | D144: =OFFSET(D$106,MATCH($C144,$N$130:$N$136,0)*3-2,0) -> Feedstock consumption (% of baseline) = 95% | E144: =OFFSET(E$106,MATCH($C144,$N$130:$N$136,0)*3-2,0) -> 4.950048599 | F144: =OFFSET(F$106,MATCH($C144,$N$130:$N$136,0)*3-2,0) -> 0 | G144: =OFFSET(G$106,MATCH($C144,$N$130:$N$136,0)*3-2,0) -> 0.01562303479
H145: =OFFSET(H$106,MATCH($C144,$N$130:$N$136,0)*3-2,0) -> 1.051039657 | I145: 0.08171379595 | J145: 0.003790539303 | K145: 0 | L145: 0.01562303479 | M145: 0.3983475302 | N145: 3.173200876 | O145: 0 | P145: 0.01266670643 | Q145: 0 | R145: 0.2292894944 | S145: 0
C146: 1 | D146: =OFFSET(D$106,MATCH($C146,$N$130:$N$136,0)*3,0) -> Feedstock consumption (% of baseline) = 105% | E146: =OFFSET(E$106,MATCH($C146,$N$130:$N$136,0)*3,0) -> 5.466188985 | F146: =OFFSET(F$106,MATCH($C146,$N$130:$N$136,0)*3,0) -> 0 | G146: =OFFSET(G$106,MATCH($C146,$N$130:$N$136,0)*3,0) -> 0.01723926181
H147: =OFFSET(H$106,MATCH($C146,$N$130:$N$136,0)*3,0) -> 1.159771329 | I147: 0.09031524815 | J147: 0.004186766984 | K147: 0 | L147: 0.01723926181 | M147: 0.4389923097 | N147: 3.50722202 | O147: 0 | P147: 0.01266670643 | Q147: 0 | R147: 0.2530346044 | S147: 0
C149: 2 | D149: =OFFSET(D$106,MATCH($C149,$N$130:$N$136,0)*3-2,0) -> Total capital investment = $8,461K | E149: =OFFSET(E$106,MATCH($C149,$N$130:$N$136,0)*3-2,0) -> 5.132133753 | F149: =OFFSET(F$106,MATCH($C149,$N$130:$N$136,0)*3-2,0) -> 0 | G149: =OFFSET(G$106,MATCH($C149,$N$130:$N$136,0)*3-2,0) -> 0.01560959088
H150: =OFFSET(H$106,MATCH($C149,$N$130:$N$136,0)*3-2,0) -> 1.050135219 | I150: 0.08601452205 | J150: 0.003978679752 | K150: 0 | L150: 0.01560959088 | M150: 0.4092589798 | N150: 3.340211448 | O150: 0 | P150: 0.01266670643 | Q150: 0 | R150: 0.229868198 | S150: 0
C151: 2 | D151: =OFFSET(D$106,MATCH($C151,$N$130:$N$136,0)*3,0) -> Total capital investment = $9,351K | E151: =OFFSET(E$106,MATCH($C151,$N$130:$N$136,0)*3,0) -> 5.284103832 | F151: =OFFSET(F$106,MATCH($C151,$N$130:$N$136,0)*3,0) -> 0 | G151: =OFFSET(G$106,MATCH($C151,$N$130:$N$136,0)*3,0) -> 0.01725270571
H152: =OFFSET(H$106,MATCH($C151,$N$130:$N$136,0)*3,0) -> 1.160675768 | I152: 0.08601452205 | J152: 0.003998626534 | K152: 0 | L152: 0.01725270571 | M152: 0.4280808601 | N152: 3.340211448 | O152: 0 | P152: 0.01266670643 | Q152: 0 | R152: 0.2524559008 | S152: 0
C154: 3 | D154: =OFFSET(D$106,MATCH($C154,$N$130:$N$136,0)*3-2,0) -> Plant design capacity (kg of H2/day) = 1,575 | E154: =OFFSET(E$106,MATCH($C154,$N$130:$N$136,0)*3-2,0) -> 5.267964187 | F154: =OFFSET(F$106,MATCH($C154,$N$130:$N$136,0)*3-2,0) -> 0 | G154: =OFFSET(G$106,MATCH($C154,$N$130:$N$136,0)*3-2,0) -> 0.01697570665
H155: =OFFSET(H$106,MATCH($C154,$N$130:$N$136,0)*3-2,0) -> 1.142040656 | I155: 0.08856974174 | J155: 0.004002184963 | K155: 0 | L155: 0.01697570665 | M155: 0.4314386105 | N155: 3.340211448 | O155: 0 | P155: 0.0126667066 | Q155: 0 | R155: 0.2490348384 | S155: 0
C156: 3 | D156: =OFFSET(D$106,MATCH($C156,$N$130:$N$136,0)*3,0) -> Plant design capacity (kg of H2/day) = 1,425 | E156: =OFFSET(E$106,MATCH($C156,$N$130:$N$136,0)*3,0) -> 5.147479211 | F156: =OFFSET(F$106,MATCH($C156,$N$130:$N$136,0)*3,0) -> 0 | G156: =OFFSET(G$106,MATCH($C156,$N$130:$N$136,0)*3,0) -> 0.01588004014
H157: =OFFSET(H$106,MATCH($C156,$N$130:$N$136,0)*3,0) -> 1.068329692 | I157: 0.08340789156 | J157: 0.003974905023 | K157: 0 | L157: 0.01588004014 | M157: 0.4056971158 | N157: 3.340211448 | O157: 0 | P157: 0.01266671765 | Q157: 0 | R157: 0.23319144 | S157: 0
C159: 4 | D159: =OFFSET(D$106,MATCH($C159,$N$130:$N$136,0)*3-2,0) -> After-tax real IRR = 10% | E159: =OFFSET(E$106,MATCH($C159,$N$130:$N$136,0)*3-2,0) -> 5.161185588 | F159: =OFFSET(F$106,MATCH($C159,$N$130:$N$136,0)*3-2,0) -> 0 | G159: =OFFSET(G$106,MATCH($C159,$N$130:$N$136,0)*3-2,0) -> 0.01738830724
H160: =OFFSET(H$106,MATCH($C159,$N$130:$N$136,0)*3-2,0) -> 1.067922382 | I160: 0.08712945288 | J160: 0.003838051678 | K160: 0 | L160: 0.01738830724 | M160: 0.41866992 | N160: 3.344538182 | O160: 0 | P160: 0.01266670643 | Q160: 0 | R160: 0.2264208933 | S160: 0
C161: 4 | D161: =OFFSET(D$106,MATCH($C161,$N$130:$N$136,0)*3,0) -> After-tax real IRR = 11% | E161: =OFFSET(E$106,MATCH($C161,$N$130:$N$136,0)*3,0) -> 5.255986888 | F161: =OFFSET(F$106,MATCH($C161,$N$130:$N$136,0)*3,0) -> 0 | G161: =OFFSET(G$106,MATCH($C161,$N$130:$N$136,0)*3,0) -> 0.01552171316
H162: =OFFSET(H$106,MATCH($C161,$N$130:$N$136,0)*3,0) -> 1.143365843 | I162: 0.08488908812 | J162: 0.004137750048 | K162: 0 | L162: 0.01552171316 | M162: 0.41866992 | N162: 3.335975166 | O162: 0 | P162: 0.01266670643 | Q162: 0 | R162: 0.2562824152 | S162: 0
C164: 5 | D164: =OFFSET(D$106,MATCH($C164,$N$130:$N$136,0)*3-2,0) -> Total fixed operating cost = $0,362K | E164: =OFFSET(E$106,MATCH($C164,$N$130:$N$136,0)*3-2,0) -> 5.187148988 | F164: =OFFSET(F$106,MATCH($C164,$N$130:$N$136,0)*3-2,0) -> 0 | G164: =OFFSET(G$106,MATCH($C164,$N$130:$N$136,0)*3-2,0) -> 0.0164311483
H165: =OFFSET(H$106,MATCH($C164,$N$130:$N$136,0)*3-2,0) -> 1.105405493 | I165: 0.08601452205 | J165: 0.003966468543 | K165: 0 | L165: 0.0164311483 | M165: 0.397736424 | N165: 3.340211448 | O165: 0 | P165: 0.01266670643 | Q165: 0 | R165: 0.2411479253 | S165: 0
C166: 5 | D166: =OFFSET(D$106,MATCH($C166,$N$130:$N$136,0)*3,0) -> Total fixed operating cost = $0,400K | E166: =OFFSET(E$106,MATCH($C166,$N$130:$N$136,0)*3,0) -> 5.229088597 | F166: =OFFSET(F$106,MATCH($C166,$N$130:$N$136,0)*3,0) -> 0 | G166: =OFFSET(G$106,MATCH($C166,$N$130:$N$136,0)*3,0) -> 0.0164311483
H167: =OFFSET(H$106,MATCH($C166,$N$130:$N$136,0)*3,0) -> 1.105405493 | I167: 0.08601452205 | J167: 0.004010837743 | K167: 0 | L167: 0.0164311483 | M167: 0.439603416 | N167: 3.340211448 | O167: 0 | P167: 0.01266670643 | Q167: 0 | R167: 0.2411761735 | S167: 0
C169: 6 | D169: =OFFSET(D$106,MATCH($C169,$N$130:$N$136,0)*3-2,0) -> Realized fraction of design capacity = 105% | E169: =OFFSET(E$106,MATCH($C169,$N$130:$N$136,0)*3-2,0) -> 5.205895962 | F169: =OFFSET(F$106,MATCH($C169,$N$130:$N$136,0)*3-2,0) -> 0 | G169: =OFFSET(G$106,MATCH($C169,$N$130:$N$136,0)*3-2,0) -> 0.01641835956
H170: =OFFSET(H$106,MATCH($C169,$N$130:$N$136,0)*3-2,0) -> 1.104545131 | I170: 0.08601460054 | J170: 0.003987397536 | K170: 0 | L170: 0.01641835956 | M170: 0.4180882955 | N170: 3.340211448 | O170: 0 | P170: 0.01206353346 | Q170: 0 | R170: 0.2409855554 | S170: 0
C171: 6 | D171: =OFFSET(D$106,MATCH($C171,$N$130:$N$136,0)*3,0) -> Realized fraction of design capacity = 95% | E171: =OFFSET(E$106,MATCH($C171,$N$130:$N$136,0)*3,0) -> 5.210579166 | F171: =OFFSET(F$106,MATCH($C171,$N$130:$N$136,0)*3,0) -> 0 | G171: =OFFSET(G$106,MATCH($C171,$N$130:$N$136,0)*3,0) -> 0.01644531478
H172: =OFFSET(H$106,MATCH($C171,$N$130:$N$136,0)*3,0) -> 1.106358544 | I172: 0.08601460054 | J172: 0.003990041781 | K172: 0 | L172: 0.01644531478 | M172: 0.4193135723 | N172: 3.340211448 | O172: 0 | P172: 0.01333337909 | Q172: 0 | R172: 0.2413575807 | S172: 0
C174: 7 | D174: =OFFSET(D$106,MATCH($C174,$N$130:$N$136,0)*3-2,0) -> Utilities consumption (% of baseline) = 95% | E174: =OFFSET(E$106,MATCH($C174,$N$130:$N$136,0)*3-2,0) -> 5.208118792 | F174: =OFFSET(F$106,MATCH($C174,$N$130:$N$136,0)*3-2,0) -> 0 | G174: =OFFSET(G$106,MATCH($C174,$N$130:$N$136,0)*3-2,0) -> 0.0164311483
H175: =OFFSET(H$106,MATCH($C174,$N$130:$N$136,0)*3-2,0) -> 1.105405493 | I175: 0.08601452205 | J175: 0.003988653143 | K175: 0 | L175: 0.0164311483 | M175: 0.41866992 | N175: 3.340211448 | O175: 0 | P175: 0.01266670643 | Q175: 0 | R175: 0.2411620494 | S175: 0
C176: 7 | D176: =OFFSET(D$106,MATCH($C176,$N$130:$N$136,0)*3,0) -> Utilities consumption (% of baseline) = 105% | E176: =OFFSET(E$106,MATCH($C176,$N$130:$N$136,0)*3,0) -> 5.208118792 | F176: =OFFSET(F$106,MATCH($C176,$N$130:$N$136,0)*3,0) -> 0 | G176: =OFFSET(G$106,MATCH($C176,$N$130:$N$136,0)*3,0) -> 0.0164311483
H177: =OFFSET(H$106,MATCH($C176,$N$130:$N$136,0)*3,0) -> 1.105405493 | I177: 0.08601452205 | J177: 0.003988653143 | K177: 0 | L177: 0.0164311483 | M177: 0.41866992 | N177: 3.340211448 | O177: 0 | P177: 0.01266670643 | Q177: 0 | R177: 0.2411620494 | S177: 0
B181: Parado chart
D182: Unsorted
D183: Title | E183: Unsorted production values | F183: Unsorted refueling values | G183: Unsorted total | I183: Y value | J183: Unsorted Ranking | K183: Sorted ranking | L183: Sorted titles | M183: Sorted production values | N183: Sorted refueling values | O183: Sorted total value | R183: Grayed Titles | S183: Colored titles | T183: Revenues $/kg H2 | U183: Expenses $/kg H2 | W183: Revenues $/kg H2 | X183: Expenses $/kg H2
B184: Revenues | C184: 1 | D184: Cost of Hydrogen | E184: =+AA64+C184/10000000000 -> 5.208121015 | F184: =+AQ64+C184/10000000000 -> 2.160296347 | G184: =+F184+E184 -> 7.368417362 | I184: 16 | J184: =+RANK(G184,$G$184:$G$186) -> 1 | K184: 1 | L184: =OFFSET($D$183,MATCH($K184,$J$184:$J$186,0),0) -> Cost of Hydrogen | M184: =OFFSET($E$183,MATCH($K184,$J$184:$J$186,0),0)-OFFSET($C$183,MATCH($K184,$J$184:$J$186,0),0)/10000000000 -> 5.208121014 | N184: =OFFSET($F$183,MATCH($K184,$J$184:$J$186,0),0)-OFFSET($C$183,MATCH($K184,$J$184:$J$186,0),0)/10000000000 -> 2.160296347 | O184: =+SUM(M184:N184) -> 7.368417362 | R184: =+L184 -> Cost of Hydrogen | S184: =+IF(O184>0,R184,"") -> Cost of Hydrogen | T184: =+M184 -> 5.208121014 | W184: =+N184 -> 2.160296347
C185: 2 | D185: =+F139 -> Byproduct Sales | E185: =+AB64+C185/10000000000 -> 2e-10 | F185: =+AR64+C185/10000000000 -> 2e-10 | G185: =+F185+E185 -> 4e-10 | I185: =+I184-1 -> 15 | J185: =+RANK(G185,$G$184:$G$186) -> 3 | K185: 2 | L185: =OFFSET($D$183,MATCH($K185,$J$184:$J$186,0),0) -> Salvage Value | M185: =OFFSET($E$183,MATCH($K185,$J$184:$J$186,0),0)-OFFSET($C$183,MATCH($K185,$J$184:$J$186,0),0)/10000000000 -> 0.016431168 | N185: =OFFSET($F$183,MATCH($K185,$J$184:$J$186,0),0)-OFFSET($C$183,MATCH($K185,$J$184:$J$186,0),0)/10000000000 -> 0.01660658286 | O185: =+SUM(M185:N185) -> 0.03303775085 | R185: =+L185 -> Salvage Value | S185: =+IF(O185>0,R185,"") -> Salvage Value | T185: =+M185 -> 0.016431168 | W185: =+N185 -> 0.01660658286
C186: 3 | D186: =+G139 -> Salvage Value | E186: =+AC64+C186/10000000000 -> 0.0164311683 | F186: =+AS64+C186/10000000000 -> 0.01660658316 | G186: =+F186+E186 -> 0.03303775145 | I186: =+I185-1 -> 14 | J186: 2 | K186: 3 | L186: =OFFSET($D$183,MATCH($K186,$J$184:$J$186,0),0) -> Byproduct Sales | M186: =OFFSET($E$183,MATCH($K186,$J$184:$J$186,0),0)-OFFSET($C$183,MATCH($K186,$J$184:$J$186,0),0)/10000000000 -> 0 | N186: =OFFSET($F$183,MATCH($K186,$J$184:$J$186,0),0)-OFFSET($C$183,MATCH($K186,$J$184:$J$186,0),0)/10000000000 -> 0 | O186: 0 | R186: Byproduct Sales | T186: 0 | W186: 0
I187: 13 | S187: =+IF(T187>0.01,R187,"") -> 
B188: Expenses | C188: 1 | D188: =+H139 -> Initial Equity Depreciable Capital | E188: =+AD64+C188/10000000000 -> 1.105406819 | F188: =+AT64+C188/10000000000 -> 1.117207853 | G188: =+F188+E188 -> 2.222614672 | I188: 12 | J188: =+RANK(G188,$G$188:$G$199) -> 2 | K188: 1 | L188: =OFFSET($D$187,MATCH($K188,$J$188:$J$199,0),0) -> Feedstock Cost | M188: =OFFSET($E$187,MATCH($K188,$J$188:$J$199,0),0)-OFFSET($C$187,MATCH($K188,$J$188:$J$199,0),0)/10000000000 -> 3.340211448 | N188: =OFFSET($F$187,MATCH($K188,$J$188:$J$199,0),0)-OFFSET($C$187,MATCH($K188,$J$188:$J$199,0),0)/10000000000 -> 0 | O188: =+SUM(M188:N188) -> 3.340211448 | R188: Feedstock Cost | S188: =+IF(O188>0,R188,"") -> Feedstock Cost | U188: =+M188 -> 3.340211448 | X188: =+N188 -> 0
C189: =+C188+1 -> 2 | D189: =+I139 -> Yearly Replacement Costs | E189: =+AE64+C189/10000000000 -> 0.08601462537 | F189: =+AU64+C189/10000000000 -> 0.03755290564 | G189: 0.123567531 | I189: 11 | J189: =+RANK(G189,$G$188:$G$199) -> 6 | K189: 2 | L189: Initial Equity Depreciable Capital | M189: 1.105406819 | N189: 1.117207853 | O189: 2.222614672 | R189: Initial Equity Depreciable Capital | S189: =+IF(O189>0,R189,"") -> Initial Equity Depreciable Capital | U189: =+M189 -> 1.105406819 | X189: =+N189 -> 1.117207853
C190: =+C189+1 -> 3 | D190: =+J139 -> Cash for Working Capital Reserve | E190: =+AF64+C190/10000000000 -> 0.00398865398 | F190: =+AV64+C190/10000000000 -> 0.0008156344745 | G190: 0.004804288455 | I190: 10 | J190: 8 | K190: 3 | L190: Fixed Operating Cost | M190: 0.4186704219 | N190: 0.3903874555 | O190: 0.8090578774 | R190: Fixed Operating Cost | S190: Fixed Operating Cost | U190: 0.4186704219 | X190: 0.3903874555
C191: 4 | D191: =+K139 -> Other Non-Depreciable Capital Costs | E191: =+AG64+C191/10000000000 -> 4e-10 | F191: =+AW64+C191/10000000000 -> 4e-10 | G191: 8e-10 | I191: 9 | J191: 12 | K191: 4 | L191: Taxes | M191: 0.2411623358 | N191: 0.2343591472 | O191: 0.4755214831 | R191: Taxes | S191: Taxes | U191: 0.2411623358 | X191: 0.2343591472
C192: 5 | D192: =+L139 -> Decommissioning Costs | E192: =+AH64+C192/10000000000 -> 0.0164311685 | F192: =+AX64+C192/10000000000 -> 0.01660658336 | G192: 0.03303775185 | I192: 8 | J192: 7 | K192: 5 | L192: Other Variable Operating Costs | M192: 0.0126667113 | N192: 0.3799733515 | O192: 0.3926400628 | R192: Other Variable Operating Costs | S192: Other Variable Operating Costs | U192: 0.0126667113 | X192: 0.3799733515
C193: 6 | D193: =+M139 -> Fixed Operating Cost | E193: =+AI64+C193/10000000000 -> 0.4186704225 | F193: =+AY64+C193/10000000000 -> 0.3903874561 | G193: 0.8090578786 | I193: 7 | J193: 3 | K193: 6 | L193: Yearly Replacement Costs | M193: 0.08601462517 | N193: 0.03755290544 | O193: 0.1235675306 | R193: Yearly Replacement Costs | S193: Yearly Replacement Costs | U193: 0.08601462517 | X193: 0.03755290544
C194: 7 | D194: =+N139 -> Feedstock Cost | E194: =+AJ64+C194/10000000000 -> 3.340211449 | F194: =+AZ64+C194/10000000000 -> 7e-10 | G194: 3.340211449 | I194: 6 | J194: 1 | K194: 7 | L194: Decommissioning Costs | M194: 0.016431168 | N194: 0.01660658286 | O194: 0.03303775085 | R194: Decommissioning Costs | S194: Decommissioning Costs | U194: 0.016431168 | X194: 0.01660658286
C195: 8 | D195: =+O139 -> Other Raw Material Cost | E195: =+AK64+C195/10000000000 -> 8e-10 | F195: =+BA64+C195/10000000000 -> 8e-10 | G195: 1.6e-09 | I195: 5 | J195: 11 | K195: 8 | L195: Cash for Working Capital Reserve | M195: 0.00398865368 | N195: 0.0008156341745 | O195: 0.004804287855 | R195: Cash for Working Capital Reserve | S195: Cash for Working Capital Reserve | U195: 0.00398865368 | X195: 0.0008156341745
C196: 9 | D196: =+P139 -> Other Variable Operating Costs | E196: =+AL64+C196/10000000000 -> 0.0126667122 | F196: =+BB64+C196/10000000000 -> 0.3799733524 | G196: 0.3926400646 | I196: 4 | J196: 5 | K196: 9 | L196: Principal Payment | M196: 0 | N196: 0 | O196: 0 | R196: Principal Payment | U196: 0 | X196: 0
C197: 10 | D197: =+Q139 -> Debt Interest | E197: =+AM64+C197/10000000000 -> 1e-09 | F197: =+BC64+C197/10000000000 -> 1e-09 | G197: 2e-09 | I197: 3 | J197: 10 | K197: 10 | L197: Debt Interest | M197: 0 | N197: 0 | O197: 0 | R197: Debt Interest | U197: 0 | X197: 0
C198: 11 | D198: =+R139 -> Taxes | E198: =+AN64+C198/10000000000 -> 0.2411623369 | F198: =+BD64+C198/10000000000 -> 0.2343591483 | G198: 0.4755214853 | I198: 2 | J198: 4 | K198: 11 | L198: Other Raw Material Cost | M198: 0 | N198: 0 | O198: 0 | R198: Other Raw Material Cost | U198: 0 | X198: 0
C199: 12 | D199: =+S139 -> Principal Payment | E199: =+AO64+C199/10000000000 -> 1.2e-09 | F199: =+BE64+C199/10000000000 -> 1.2e-09 | G199: 2.4e-09 | I199: 1 | J199: 9 | K199: 12 | L199: Other Non-Depreciable Capital Costs | M199: 0 | N199: 0 | O199: 0 | R199: Other Non-Depreciable Capital Costs | U199: 0 | X199: 0
R200: Total | T200: =+SUM(T184:T199) -> 5.224552182 | U200: =+SUM(U184:U199) -> 5.224552182 | W200: =+SUM(W184:W199) -> 2.17690293 | X200: =+SUM(X184:X199) -> 2.17690293
B203: Fix for plant capacity tornado chart (sizes are not always monotonous vs. capacity)
B204: Size | C204: =+H4 -> 1575 | D204: =+C4 -> 1500 | E204: =+I4 -> 1425
B205: Hydrogen cost | C205: =+K70+0.000000001 -> 5.267964188 | D205: =+K67+0.000000002 -> 5.208120486 | E205: =+K71+0.000000003 -> 5.147479214
B206: Rank | C206: =4-RANK(C205,$C$205:$E$205) -> 3 | D206: =4-RANK(D205,$C$205:$E$205) -> 2 | E206: 1
B208: Sorted
B209: Size | C209: =+OFFSET($B$204,0,MATCH(1,$C206:$E206,0)) -> 1425 | D209: =+OFFSET($B$204,0,MATCH(2,$C206:$E206,0)) -> 1500 | E209: =+OFFSET($B$204,0,MATCH(3,$C206:$E206,0)) -> 1575
B212: Data for visuals in Results sheet
D213: =+'Production Cash Flow Analysis'!F64 -> Revenue | E213: =+'Production Cash Flow Analysis'!G64 -> Portion of Initial Depreciable Capital Investment Financed with Debt (value ONLY used in debt financing calculations) | F213: =+'Production Cash Flow Analysis'!H64 -> Initial Equity Depreciable Capital | G213: =+'Production Cash Flow Analysis'!I64 -> Yearly Replacement Costs | H213: =+'Production Cash Flow Analysis'!J64 -> Working Capital | I213: =+'Production Cash Flow Analysis'!K64 -> Other Non-Depreciable Capital Costs | J213: =+'Production Cash Flow Analysis'!L64 -> Salvage Value | K213: =+'Production Cash Flow Analysis'!M64 -> Decommissioning Costs | L213: =+'Production Cash Flow Analysis'!N64 -> Fixed Operating Cost | M213: =+'Production Cash Flow Analysis'!O64 -> Feed Cost | N213: =+'Production Cash Flow Analysis'!P64 -> Other Raw Material Cost | O213: =+'Production Cash Flow Analysis'!Q64 -> Byproduct Credit | P213: =+'Production Cash Flow Analysis'!R64 -> Other Variable Operating Costs | Q213: =+'Production Cash Flow Analysis'!S64 -> Debt Interest | R213: =+'Production Cash Flow Analysis'!T64 -> Pre-Depreciation Income | S213: =+'Production Cash Flow Analysis'!U64 -> Depreciation Charge | T213: =+'Production Cash Flow Analysis'!V64 -> Taxable Income | U213: =+'Production Cash Flow Analysis'!W64 -> Tax Rate | V213: =+'Production Cash Flow Analysis'!X64 -> Total Taxes | W213: =+'Production Cash Flow Analysis'!Y64 -> After-Tax Income | X213: =+'Production Cash Flow Analysis'!Z64 -> Principal Payment | Y213: =+'Production Cash Flow Analysis'!AA64 -> After-Tax Post-Depreciation Cash Flow | Z213: =+'Production Cash Flow Analysis'!AB64 -> Cumulative Cash Flow | AA213: =+'Production Cash Flow Analysis'!AC64 -> Pre-Tax Cash Flow | AB213: =+'Production Cash Flow Analysis'!AD64 -> 0 | AC213: =+'Production Cash Flow Analysis'!AE64 -> H2 sales (kg/year) | AD213: =+'Production Cash Flow Analysis'!AF64 -> Tax Credit | AE213: =+'Production Cash Flow Analysis'!AG64 -> output_kgyear
C214: =+'Production Cash Flow Analysis'!E117 -> Expenses $/kg H2 | D214: =+'Refueling Cash Flow Analysis'!F117 -> 0 | E214: =+'Refueling Cash Flow Analysis'!G117 -> 0 | F214: =+'Refueling Cash Flow Analysis'!H117 -> 1.117207853 | G214: =+'Refueling Cash Flow Analysis'!I117 -> 0.03755290544 | H214: =+'Refueling Cash Flow Analysis'!J117 -> 0.0008156341745 | I214: =+'Refueling Cash Flow Analysis'!K117 -> 0 | J214: =+'Refueling Cash Flow Analysis'!L117 -> 0 | K214: =+'Refueling Cash Flow Analysis'!M117 -> 0.01660658286 | L214: =+'Refueling Cash Flow Analysis'!N117 -> 0.3903874555 | M214: =+'Refueling Cash Flow Analysis'!O117 -> 0 | N214: =+'Refueling Cash Flow Analysis'!P117 -> 0 | O214: =+'Refueling Cash Flow Analysis'!Q117 -> 0 | P214: =+'Refueling Cash Flow Analysis'!R117 -> 0.3799733515 | Q214: =+'Refueling Cash Flow Analysis'!S117 -> 0 | R214: =+'Refueling Cash Flow Analysis'!T117 -> 0 | S214: =+'Refueling Cash Flow Analysis'!U117 -> 0 | T214: =+'Refueling Cash Flow Analysis'!V117 -> 0 | U214: =+'Refueling Cash Flow Analysis'!W117 -> 0 | V214: =+'Refueling Cash Flow Analysis'!X117 -> 0.2343591472 | W214: =+'Refueling Cash Flow Analysis'!Y117 -> 0 | X214: =+'Refueling Cash Flow Analysis'!Z117 -> 0 | Y214: =+'Refueling Cash Flow Analysis'!AA117 -> 0 | Z214: =+'Refueling Cash Flow Analysis'!AB117 -> 0 | AA214: =+'Refueling Cash Flow Analysis'!AC117 -> 0 | AB214: =+'Refueling Cash Flow Analysis'!AD117 -> 0 | AC214: =+'Refueling Cash Flow Analysis'!AE117 -> 0 | AD214: =+'Refueling Cash Flow Analysis'!AF117 -> 0 | AE214: =+'Refueling Cash Flow Analysis'!AG117 -> 2.17690293
C215: =+'Production Cash Flow Analysis'!E118 -> Revenues $/kg H2 | D215: =+'Refueling Cash Flow Analysis'!F118 -> 2.160296347 | E215: =+'Refueling Cash Flow Analysis'!G118 -> 0 | F215: =+'Refueling Cash Flow Analysis'!H118 -> 0 | G215: =+'Refueling Cash Flow Analysis'!I118 -> 0 | H215: =+'Refueling Cash Flow Analysis'!J118 -> 0 | I215: =+'Refueling Cash Flow Analysis'!K118 -> 0 | J215: =+'Refueling Cash Flow Analysis'!L118 -> 0.01660658286 | K215: =+'Refueling Cash Flow Analysis'!M118 -> 0 | L215: =+'Refueling Cash Flow Analysis'!N118 -> 0 | M215: =+'Refueling Cash Flow Analysis'!O118 -> 0 | N215: =+'Refueling Cash Flow Analysis'!P118 -> 0 | O215: =+'Refueling Cash Flow Analysis'!Q118 -> 0 | P215: =+'Refueling Cash Flow Analysis'!R118 -> 0 | Q215: =+'Refueling Cash Flow Analysis'!S118 -> 0 | R215: =+'Refueling Cash Flow Analysis'!T118 -> 0 | S215: =+'Refueling Cash Flow Analysis'!U118 -> 0 | T215: =+'Refueling Cash Flow Analysis'!V118 -> 0 | U215: =+'Refueling Cash Flow Analysis'!W118 -> 0 | V215: =+'Refueling Cash Flow Analysis'!X118 -> 0 | W215: =+'Refueling Cash Flow Analysis'!Y118 -> 0 | X215: =+'Refueling Cash Flow Analysis'!Z118 -> 0 | Y215: =+'Refueling Cash Flow Analysis'!AA118 -> 0 | Z215: =+'Refueling Cash Flow Analysis'!AB118 -> 0 | AA215: =+'Refueling Cash Flow Analysis'!AC118 -> 0 | AB215: =+'Refueling Cash Flow Analysis'!AD118 -> 0 | AC215: =+'Refueling Cash Flow Analysis'!AE118 -> 0 | AD215: =+'Refueling Cash Flow Analysis'!AF118 -> 0 | AE215: =+'Refueling Cash Flow Analysis'!AG118 -> 2.17690293
C217: =+C214 -> Expenses $/kg H2 | D217: =+'Production Cash Flow Analysis'!F117 -> 0 | E217: =+'Production Cash Flow Analysis'!G117 -> 0 | F217: =+'Production Cash Flow Analysis'!H117 -> 1.105406819 | G217: =+'Production Cash Flow Analysis'!I117 -> 0.08601462517 | H217: =+'Production Cash Flow Analysis'!J117 -> 0.00398865368 | I217: =+'Production Cash Flow Analysis'!K117 -> 0 | J217: =+'Production Cash Flow Analysis'!L117 -> 0 | K217: =+'Production Cash Flow Analysis'!M117 -> 0.016431168 | L217: =+'Production Cash Flow Analysis'!N117 -> 0.4186704219 | M217: =+'Production Cash Flow Analysis'!O117 -> 3.340211448 | N217: =+'Production Cash Flow Analysis'!P117 -> 0 | O217: =+'Production Cash Flow Analysis'!Q117 -> 0 | P217: =+'Production Cash Flow Analysis'!R117 -> 0.0126667113 | Q217: =+'Production Cash Flow Analysis'!S117 -> 0 | R217: =+'Production Cash Flow Analysis'!T117 -> 0 | S217: =+'Production Cash Flow Analysis'!U117 -> 0 | T217: =+'Production Cash Flow Analysis'!V117 -> 0 | U217: =+'Production Cash Flow Analysis'!W117 -> 0 | V217: =+'Production Cash Flow Analysis'!X117 -> 0.2411623358 | W217: =+'Production Cash Flow Analysis'!Y117 -> 0 | X217: =+'Production Cash Flow Analysis'!Z117 -> 0 | Y217: =+'Production Cash Flow Analysis'!AA117 -> 0 | Z217: =+'Production Cash Flow Analysis'!AB117 -> 0 | AA217: =+'Production Cash Flow Analysis'!AC117 -> 0 | AB217: =+'Production Cash Flow Analysis'!AD117 -> 0 | AC217: =+'Production Cash Flow Analysis'!AE117 -> 0 | AD217: =+'Production Cash Flow Analysis'!AF117 -> 0 | AE217: =+'Production Cash Flow Analysis'!AG117 -> 5.224552182
C218: =+C215 -> Revenues $/kg H2 | D218: =+'Production Cash Flow Analysis'!F118 -> 5.208121014 | E218: =+'Production Cash Flow Analysis'!G118 -> 0 | F218: =+'Production Cash Flow Analysis'!H118 -> 0 | G218: =+'Production Cash Flow Analysis'!I118 -> 0 | H218: =+'Production Cash Flow Analysis'!J118 -> 0 | I218: =+'Production Cash Flow Analysis'!K118 -> 0 | J218: =+'Production Cash Flow Analysis'!L118 -> 0.016431168 | K218: =+'Production Cash Flow Analysis'!M118 -> 0 | L218: =+'Production Cash Flow Analysis'!N118 -> 0 | M218: =+'Production Cash Flow Analysis'!O118 -> 0 | N218: =+'Production Cash Flow Analysis'!P118 -> 0 | O218: =+'Production Cash Flow Analysis'!Q118 -> 0 | P218: =+'Production Cash Flow Analysis'!R118 -> 0 | Q218: =+'Production Cash Flow Analysis'!S118 -> 0 | R218: =+'Production Cash Flow Analysis'!T118 -> 0 | S218: =+'Production Cash Flow Analysis'!U118 -> 0 | T218: =+'Production Cash Flow Analysis'!V118 -> 0 | U218: =+'Production Cash Flow Analysis'!W118 -> 0 | V218: =+'Production Cash Flow Analysis'!X118 -> 0 | W218: =+'Production Cash Flow Analysis'!Y118 -> 0 | X218: =+'Production Cash Flow Analysis'!Z118 -> 0 | Y218: =+'Production Cash Flow Analysis'!AA118 -> 0 | Z218: =+'Production Cash Flow Analysis'!AB118 -> 0 | AA218: =+'Production Cash Flow Analysis'!AC118 -> 0 | AB218: =+'Production Cash Flow Analysis'!AD118 -> 0 | AC218: =+'Production Cash Flow Analysis'!AE118 -> 0 | AD218: =+'Production Cash Flow Analysis'!AF118 -> 0 | AE218: =+'Production Cash Flow Analysis'!AG118 -> 5.224552182
B220: Waterfall Chart | D220: Value | E220: Base | F220: Decrease | G220: Increase
B221: 0 | C221: Baseline | D221: =($D$14="Production")*$AA$67+ ($D$14="Refueling")*$AQ$67+ ($D$14="Both")*$BG$67 -> 5.208120484 | E221: =+D221 -> 5.208120484
B222: 1 | C222: =OFFSET($B$66,0,MATCH($B222, IF($D$14="Production",$C$98:$I$98, IF($D$14="Refueling",$C$99:$I$99, $C$100:$I$100)),0))& IF(OFFSET($F$2,MATCH($B222,IF($D$14="Production",$C$98:$I$98, IF($D$14="Refueling",$C$99:$I$99, $C$100:$I$100)),0),0)<1, " = "&OFFSET($F$2,MATCH($B222,IF($D$14="Production",$C$98:$I$98, IF($D$14="Refueling",$C$99:$I$99, $C$100:$I$100)),0),0)*100-100, " = +"&OFFSET($F$2,MATCH($B222,IF($D$14="Production",$C$98:$I$98, IF($D$14="Refueling",$C$99:$I$99, $C$100:$I$100)),0),0)*100-100) &"%" -> Feedstock consumption = -5% | D222: =($D$14="Production")*$AA$82+ ($D$14="Refueling")*$AQ$87+ ($D$14="Both")*$BG$92 -> 4.950048599 | E222: =+E221+G221-F222 -> 4.950048599 | F222: =+MAX(D221-D222,0) -> 0.2580718844 | G222: =+MAX(D222-D221,0) -> 0
B223: 2 | C223: =OFFSET($B$66,0,MATCH($B223, IF($D$14="Production",$C$98:$I$98, IF($D$14="Refueling",$C$99:$I$99, $C$100:$I$100)),0))& IF(OFFSET($F$2,MATCH($B223,IF($D$14="Production",$C$98:$I$98, IF($D$14="Refueling",$C$99:$I$99, $C$100:$I$100)),0),0)<1, " = "&OFFSET($F$2,MATCH($B223,IF($D$14="Production",$C$98:$I$98, IF($D$14="Refueling",$C$99:$I$99, $C$100:$I$100)),0),0)*100-100, " = +"&OFFSET($F$2,MATCH($B223,IF($D$14="Production",$C$98:$I$98, IF($D$14="Refueling",$C$99:$I$99, $C$100:$I$100)),0),0)*100-100) &"%" -> Total Capital Investment = -5% | D223: =($D$14="Production")*$AA$83+ ($D$14="Refueling")*$AQ$88+ ($D$14="Both")*$BG$93 -> 4.877800641 | E223: 4.877800641 | F223: =+MAX(D222-D223,0) -> 0.07224795828 | G223: =+MAX(D223-D222,0) -> 0
B224: 3 | C224: =OFFSET($B$66,0,MATCH($B224, IF($D$14="Production",$C$98:$I$98, IF($D$14="Refueling",$C$99:$I$99, $C$100:$I$100)),0))& IF(OFFSET($F$2,MATCH($B224,IF($D$14="Production",$C$98:$I$98, IF($D$14="Refueling",$C$99:$I$99, $C$100:$I$100)),0),0)<1, " = "&OFFSET($F$2,MATCH($B224,IF($D$14="Production",$C$98:$I$98, IF($D$14="Refueling",$C$99:$I$99, $C$100:$I$100)),0),0)*100-100, " = +"&OFFSET($F$2,MATCH($B224,IF($D$14="Production",$C$98:$I$98, IF($D$14="Refueling",$C$99:$I$99, $C$100:$I$100)),0),0)*100-100) &"%" -> Total Fixed Operating Cost = -5% | D224: =($D$14="Production")*$AA$84+ ($D$14="Refueling")*$AQ$89+ ($D$14="Both")*$BG$94 -> 4.858296899 | E224: 4.858296899 | F224: =+MAX(D223-D224,0) -> 0.01950374208 | G224: =+MAX(D224-D223,0) -> 0
B225: 4 | C225: =OFFSET($B$66,0,MATCH($B225, IF($D$14="Production",$C$98:$I$98, IF($D$14="Refueling",$C$99:$I$99, $C$100:$I$100)),0))& IF(OFFSET($F$2,MATCH($B225,IF($D$14="Production",$C$98:$I$98, IF($D$14="Refueling",$C$99:$I$99, $C$100:$I$100)),0),0)<1, " = "&OFFSET($F$2,MATCH($B225,IF($D$14="Production",$C$98:$I$98, IF($D$14="Refueling",$C$99:$I$99, $C$100:$I$100)),0),0)*100-100, " = +"&OFFSET($F$2,MATCH($B225,IF($D$14="Production",$C$98:$I$98, IF($D$14="Refueling",$C$99:$I$99, $C$100:$I$100)),0),0)*100-100) &"%" -> Realized fraction of design capacity = +5% | D225: =($D$14="Production")*$AA$85+ ($D$14="Refueling")*$AQ$90+ ($D$14="Both")*$BG$95 -> 4.856160372 | E225: 4.856160372 | F225: =+MAX(D224-D225,0) -> 0.002136526914 | G225: =+MAX(D225-D224,0) -> 0
B226: 5 | C226: =OFFSET($B$66,0,MATCH($B226, IF($D$14="Production",$C$98:$I$98, IF($D$14="Refueling",$C$99:$I$99, $C$100:$I$100)),0))& IF(OFFSET($F$2,MATCH($B226,IF($D$14="Production",$C$98:$I$98, IF($D$14="Refueling",$C$99:$I$99, $C$100:$I$100)),0),0)<1, " = "&OFFSET($F$2,MATCH($B226,IF($D$14="Production",$C$98:$I$98, IF($D$14="Refueling",$C$99:$I$99, $C$100:$I$100)),0),0)*100-100, " = +"&OFFSET($F$2,MATCH($B226,IF($D$14="Production",$C$98:$I$98, IF($D$14="Refueling",$C$99:$I$99, $C$100:$I$100)),0),0)*100-100) &"%" -> Utilities consumption = -5% | D226: =($D$14="Production")*$AA$86+ ($D$14="Refueling")*$AQ$91+ ($D$14="Both")*$BG$96 -> 4.856160372 | E226: 4.856160372 | F226: =+MAX(D225-D226,0) -> 0 | G226: =+MAX(D226-D225,0) -> 0
B227: 6 | C227: Adjusted | D227: =($D$14="Production")*$AA$86+ ($D$14="Refueling")*$AQ$91+ ($D$14="Both")*$BG$96 -> 4.856160372 | E227: 4.856160372
B231: Sensivity Chart
C232: Y-value | I232: Arrows data
C233: =+C234+1 -> 22 | D233: =+D140 -> Base case | E233: =+E140 -> 5.208120484 | I233: 22 | J233: =+$E$233 -> 5.208120484
C234: 21 | I234: =+I233-1 -> 21
C235: 20 | D235: =+D144 -> Feedstock consumption (% of baseline) = 95% | E235: =+E144 -> 4.950048599 | I235: =+I234-1 -> 20 | J235: =+E235 -> 4.950048599
C236: 19 | D236: =+D146 -> Feedstock consumption (% of baseline) = 105% | E236: =+E146 -> 5.466188985 | I236: =+I235-0.5 -> 19.5 | J236: =+$E$233 -> 5.208120484
C237: 18 | I237: =+I236-0.5 -> 19 | J237: =+E236 -> 5.466188985
C238: 17 | D238: =+D149 -> Total capital investment = $8,461K | E238: =+E149 -> 5.132133753 | I238: 18
C239: 16 | D239: =+D151 -> Total capital investment = $9,351K | E239: =+E151 -> 5.284103832 | I239: 17 | J239: =+E238 -> 5.132133753
C240: 15 | I240: =+I239-0.5 -> 16.5 | J240: =+$E$233 -> 5.208120484
C241: 14 | D241: =+D154 -> Plant design capacity (kg of H2/day) = 1,575 | E241: =+E154 -> 5.267964187 | I241: =+I240-0.5 -> 16 | J241: =+E239 -> 5.284103832
C242: 13 | D242: =+D156 -> Plant design capacity (kg of H2/day) = 1,425 | E242: =+E156 -> 5.147479211 | I242: 15
C243: 12 | I243: 14 | J243: =+E241 -> 5.267964187
C244: 11 | D244: =+D159 -> After-tax real IRR = 10% | E244: =+E159 -> 5.161185588 | I244: =+I243-0.5 -> 13.5 | J244: =+$E$233 -> 5.208120484
C245: 10 | D245: =+D161 -> After-tax real IRR = 11% | E245: =+E161 -> 5.255986888 | I245: =+I244-0.5 -> 13 | J245: =+E242 -> 5.147479211
C246: 9 | I246: 12
C247: 8 | D247: =+D164 -> Total fixed operating cost = $0,362K | E247: =+E164 -> 5.187148988 | I247: 11 | J247: =+E244 -> 5.161185588
C248: 7 | D248: =+D166 -> Total fixed operating cost = $0,400K | E248: =+E166 -> 5.229088597 | I248: =+I247-0.5 -> 10.5 | J248: =+$E$233 -> 5.208120484
C249: 6 | I249: =+I248-0.5 -> 10 | J249: =+E245 -> 5.255986888
C250: 5 | D250: =+D169 -> Realized fraction of design capacity = 105% | E250: =+E169 -> 5.205895962 | I250: 9
C251: 4 | D251: =+D171 -> Realized fraction of design capacity = 95% | E251: =+E171 -> 5.210579166 | I251: 8 | J251: =+E247 -> 5.187148988
C252: 3 | I252: =+I251-0.5 -> 7.5 | J252: =+$E$233 -> 5.208120484
C253: =+C254+1 -> 2 | D253: =+D174 -> Utilities consumption (% of baseline) = 95% | E253: =+E174 -> 5.208118792 | I253: =+I252-0.5 -> 7 | J253: =+E248 -> 5.229088597
C254: 1 | D254: =+D176 -> Utilities consumption (% of baseline) = 105% | E254: =+E176 -> 5.208118792 | I254: 6
I255: 5 | J255: =+E250 -> 5.205895962
I256: =+I255-0.5 -> 4.5 | J256: =+$E$233 -> 5.208120484
I257: =+I256-0.5 -> 4 | J257: =+E251 -> 5.210579166
I258: 3
I259: 2 | J259: =+E253 -> 5.208118792
I260: =+I259-0.5 -> 1.5 | J260: =+$E$233 -> 5.208120484
I261: =+I260-0.5 -> 1 | J261: =+E254 -> 5.208118792

Sheet Production Cash Flow Analysis
A2: TABLE OF CONTENTS
A3: DCF Calculations
A4: Yearly Cash Flow Calculations
A5: Specific Item Cost Calculation
A6: Feedstock, Utility, and Byproduct Cost Information
A15: DCF CALCULATION INPUTS: | D15: DCF CALCULATION OUTPUTS:
A16: Process | D16: ="Hydrogen Cost (Year "&TEXT(ref_year,"0")&" Real $/kg)" -> Hydrogen Cost (Year 2007 Real $/kg) | E16: =H2_price_nominal/INFLATION_FACTOR -> 5.208121014
A17: Actual Hydrogen Produced (kg/yr) | B17: =output_kgyear*sensitivity_01 -> 470668.5514 | D17: Hydrogen Cost (Start-up Year Nominal $/kg) | E17: =+SUM(X57:AB57)/AC57*(1+inflation_rate)^construct -> 5.51066003
A18: Actual Hydrogen Energy Produced (MMBtu(LHV)/yr) | B18: =B17*H2_LHV_MJ_p_kg/1000/mmBTU_to_GJ -> 53630.17787 | D18: After Tax Real IRR | E18: =((E20+1)/(1+B30))-1 -> 0.1
A19: Actual Hydrogen Energy Produced (MJ(LHV)/yr) | B19: =B17*H2_LHV_MJ_p_kg -> 56579837.66 | D19: Pre Tax Real IRR | E19: =((E21+1)/(1+B30))-1 -> 0.135164176
A20: Design Capacity (kg/day) | B20: =design_cap -> 1500 | D20: After Tax Nominal IRR | E20: =IRR(AA65:AA113) -> 0.1209
A21: Design Capacity (kg/yr) | B21: =B20*365 -> 547500 | D21: Pre Tax Nominal IRR | E21: =IRR(AC65:AC113) -> 0.1567322954
A22: Capacity Factor | B22: =cap_factor -> 0.859668587 | D22: After Tax Real Capital Recovery Factor | E22: =(real_irr*(1+real_irr)^anal_period)/(((1+real_irr)^anal_period)-1) -> 0.1174596248
D23: After Tax Nominal Capital Recovery Factor | E23: =(nominal_irr*(1+nominal_irr)^anal_period)/(((1+nominal_irr)^anal_period)-1) -> 0.1346347157
A24: Financial | D24: Total Real Fixed Charge Rate | E24: =(E22*(1-total_tax_rate*INDEX(Depreciation!B12:H37,MATCH("NPV - Real IRR",Depreciation!B12:B37,0),MATCH(depr_length,recovery_period,0))))/(1-total_tax_rate) -> 0.138290168
A25: Start-up Year | B25: =startup_year -> 2010 | D25: Total Nominal Fixed Charge Rate | E25: =(E23*(1-total_tax_rate*INDEX(Depreciation!B12:H37,MATCH("NPV - Nominal IRR",Depreciation!B12:B37,0),MATCH(depr_length,recovery_period,0))))/(1-total_tax_rate) -> 0.1621303197
A26: After-Tax Real IRR | B26: =real_irr -> 0.1 | D26: NPV | E26: =NPV(nominal_irr,AA65:AA113) -> 5.73819835e-09
A27: After-Tax Nominal IRR | B27: =((1+B26)*(1+B30))-1 -> 0.1209
A28: Analysis Period (yrs) | B28: =anal_period -> 20
A29: Plant Life (yrs) | B29: =plant_life -> 20
A30: Inflation Rate | B30: =inflation_rate -> 0.019
A31: Debt Financing | B31: =100%-B32 -> 0
A32: Equity Financing | B32: =equity -> 1
A33: Total Tax Rate | B33: =total_tax_rate -> 0.389
A35: Cost of Debt Financing
A36: Debt Financing Period (yrs) | B36: =debt_period -> 7
A37: Interest Rate on Debt | B37: =debt_interest -> 0.06
A39: Construction/Start Up Information
A40: Construction Period (yrs) | B40: =construct -> 1
A41: Start-up Period (yrs) | B41: =start_time -> 0
A42: % Revenue During Start-up | B42: =percnt_revs -> 0.5
A43: % Variable Costs During Start-up | B43: =percnt_var -> 0.5
A44: % Fixed Costs During Start-up | B44: =percnt_fixed -> 0.75
A46: Depreciation Parameters
A47: Depreciation Type | B47: =depr_type -> MACRS
A48: Depreciation Period (yrs) | B48: =depr_length -> 7
A50: Plant Costs (Inflated to Start-up Year $)
A51: Total Depreciable Capital Costs | B51: =(total_cap-non_dep_cap)*INFLATION_FACTOR -> 4686744.335
A52: Total Non-Depreciable Capital Costs | B52: =non_dep_cap*INFLATION_FACTOR -> 0
A53: Total Capital Investment | B53: =SUM(B51:B52) -> 4686744.335 | W53: Closed form formulas for calculating price of hydrogen.
A54: Decommissioning | B54: =decom_percent*depr_cap_infl -> 468674.4335 | X54: Capital Costs | Y54: Depr | Z54: Principal | AA54: Op costs | AB54: Tax incentives | AC54: H2 sales (kg)
A55: Salvage Value | B55: =salvage_perct*B53 -> 468674.4335 | W55: Discounted values | X55: =-SUM(H116:K116) -> 4973840.564 | Y55: =-U116 -> 3397768.648 | Z55: =-Z116 -> 0 | AA55: =-SUM(L116:S116) -> 15692590.65 | AB55: =+AF116 -> 0 | AC55: =+AE116 -> 4007066.703
A56: Fixed Operating Costs ($/year) | B56: =fixed*INFLATION_FACTOR -> 208501.8982 | W56: Tax coefficient | X56: 1 | Y56: =-total_tax_rate -> -0.389 | Z56: 1 | AA56: =1-total_tax_rate -> 0.611 | AB56: -1 | AC56: =1-total_tax_rate -> 0.611
A57: Other Raw Material ($/year) | B57: =total_other_raw*INFLATION_FACTOR*sensitivity_01 -> 0 | W57: LCOE cost contribution factors | X57: =+X55*X56 -> 4973840.564 | Y57: -1321732.004 | Z57: 0 | AA57: =+AA55*AA56 -> 9588172.889 | AB57: =+AB55*AB56 -> 0 | AC57: =+AC55*AC56 -> 2448317.756
A58: Other Variable O&M Costs (not including tax credits and incentives) | B58: =(var_misc+royalties+operator_profit+waste_treat+solidwaste_treat)*INFLATION_FACTOR -> 2023.025487
W59: Target after-tax nominal IRR | X59: =+(1+real_irr)*(1+inflation_rate)-1 -> 0.1209
W60: =+D16 -> Hydrogen Cost (Year 2007 Real $/kg) | X60: =+SUM(X57:AB57)/AC57*(1+inflation_rate)^construct/INFLATION_FACTOR -> 5.208121014
O61: =+O66*2 -> -3122823.023
A63: CASH FLOW ANALYSIS
A64: Actual Year | B64: Analysis Year | C64: Operation Year | D64: Plant Life | E64: Inflation Price Increase Factor | F64: Revenue | G64: Portion of Initial Depreciable Capital Investment Financed with Debt (value ONLY used in debt financing calculations) | H64: Initial Equity Depreciable Capital | I64: Yearly Replacement Costs | J64: Working Capital | K64: Other Non-Depreciable Capital Costs | L64: Salvage Value | M64: Decommissioning Costs | N64: Fixed Operating Cost | O64: Feed Cost | P64: Other Raw Material Cost | Q64: Byproduct Credit | R64: Other Variable Operating Costs | S64: Debt Interest | T64: Pre-Depreciation Income | U64: Depreciation Charge | V64: Taxable Income | W64: Tax Rate | X64: Total Taxes | Y64: After-Tax Income | Z64: Principal Payment | AA64: After-Tax Post-Depreciation Cash Flow | AB64: Cumulative Cash Flow | AC64: Pre-Tax Cash Flow | AE64: H2 sales (kg/year) | AF64: Tax Credit | AG64: output_kgyear
A65: =startup_year-construct -> 2009 | B65: 1 | C65: =IF(construct=0,1,-construct) -> -1 | D65: =IF(C65="","",IF(C65<=plant_life,C65,IF(D64=plant_life,1,D64+1))) -> -1 | E65: =IF(C65="","",(1+inflation_rate)^(A65-$B$25)) -> 0.9813542689 | F65: =IF(C65="","",IF(C65<0,0,IF(AND(C65=1,start_time<1),E65*(H2_price_nominal*output_kgyear*sensitivity_01*start_time*percnt_revs+H2_price_nominal*output_kgyear*sensitivity_01*(1-start_time)),IF(C65<=start_time,H2_price_nominal*E65*output_kgyear*sensitivity_01*percnt_revs,H2_price_nominal*output_kgyear*sensitivity_01*E65)))) -> 0 | G65: =-$B$31*depr_cap_infl*E65 -> 0 | H65: =IF(C65<0,-E65*equity*depr_cap_infl*percent_cap1,IF(C65=1,-E65*equity*depr_cap_infl,0)) -> -4599356.56 | I65: =IF(OR(C65<0,C65=""),"",-E65*INDEX('Replacement Costs'!$A$15:$G$56,MATCH(C65,'Replacement Costs'!$C$15:$C$56,0),MATCH("Total Yearly Replacement Costs",'Replacement Costs'!$A$15:$G$15,0))) ->  | J65: =IF(AND(C65>=1,C65<anal_period),WorkingCap*SUM(N65:R65)-WorkingCap*SUM(N64:R64),0) -> 0 | K65: =IF(C65=-construct,-E65*non_dep_infl,"") -> 0 | L65: =IF(C65=anal_period,salvage*E65,"") ->  | M65: =IF(D65=plant_life,-E65*decom,"") ->  | N65: =IF(C65="","",IF(C65<0,0,IF(AND(C65=1,start_time<1),-(inflated_fixed*percnt_fixed*start_time+(inflated_fixed*(1-start_time))),IF(C65<=start_time,-inflated_fixed*percnt_fixed*E65,-inflated_fixed*E65)))) -> 0 | O65: =IF(C65="","",IF(C65<0,0,IF(AND(C65=1,start_time<1),-(SUM(B138:E138)*output_kgyear*E65*percnt_var*start_time+SUM(B138:E138)*output_kgyear*E65*(1-start_time)),IF(C65<=start_time,-SUM(B138:E138)*output_kgyear*E65*percnt_var,-SUM(B138:E138)*output_kgyear*E65)))) -> 0 | P65: =IF(C65="","",IF(C65<0,0,IF(AND(C65=1,start_time<1),-(inflated_otherraw*E65*percnt_var*start_time+inflated_otherraw*E65*(1-start_time)),IF(C65<=start_time,-inflated_otherraw*E65*percnt_var,-(inflated_otherraw*E65))))) -> 0 | Q65: =IF(C65="","",IF(C65<0,0,IF(AND(C65=1,start_time<1),SUM(K138:N138,T138:V138)*output_kgyear*E65*percnt_var*start_time+SUM(K138:N138,T138:V138)*output_kgyear*E65*(1-start_time),IF(C65<=start_time,SUM(K138:N138,T138:V138)*output_kgyear*E65*percnt_var,SUM(K138:N138,T138:V138)*output_kgyear*E65)))) -> 0 | R65: =IF(C65="","",IF(C65<0,0,IF(AND(C65=1,start_time<1),-((SUM(F138:I138,P138:R138)*output_kgyear+inflated_othervar)*E65*percnt_var*start_time+(SUM(F138:I138,P138:R138)*output_kgyear+inflated_othervar)*E65*(1-start_time)),IF(C65<=start_time,-(SUM(F138:I138,P138:R138)*output_kgyear+inflated_othervar)*E65*percnt_var,-E65*(SUM(F138:I138,P138:R138)*output_kgyear+inflated_othervar))))) -> 0 | S65: =IF(B65="","",IF($B$31=0,"",-'Debt Financing Calculations'!E14)) ->  | T65: =IF(C65="","",F65+SUM(L65:S65)) -> 0 | U65: =IF(C65="","",IF(C65<-1,0,IF(C65=anal_period,-LOOKUP(C65,depr_yr,depr_cost)-Depreciation!$C$141-Depreciation!$B$166,-LOOKUP(C65,depr_yr,depr_cost)))) -> 0 | V65: =IF(C65="","",SUM(T65:U65)) -> 0 | W65: =IF(C65="","",$B$33) -> 0.389 | X65: =IF(C65="","",-V65*W65 + tax_credit) -> 0 | Y65: =IF(C65="","",SUM(T65,X65)) -> 0 | Z65: =IF(C65="","",IF($B$31=0,"",-'Debt Financing Calculations'!F14)) ->  | AA65: =IF(C65="","",SUM(H65,I65,J65,K65,T65,X65,Z65)) -> -4599356.56 | AB65: =AA65 -> -4599356.56 | AC65: =IF(C65="","",SUM(H65,I65,J65,K65,T65,Z65)) -> -4599356.56 | AE65: =IF(C65="","",IF(C65<0,0,IF(AND(C65=1,start_time<1),(output_kgyear*sensitivity_01*start_time*percnt_revs+output_kgyear*sensitivity_01*(1-start_time)),IF(C65<=start_time,output_kgyear*sensitivity_01*percnt_revs,output_kgyear*sensitivity_01)))) -> 0 | AF65: =IF(C65="","",tax_credit) -> 0
A66: =IF(B66<>"",A65+1,"") -> 2010 | B66: =IF(MAX($B$65:B65)<(construct+anal_period),B65+1,"") -> 2 | C66: =IF(B66="","",IF(C65=-1,1,C65+1)) -> 1 | D66: 1 | E66: 1 | F66: 2593694.373 | H66: =IF(C66<0,-E66*equity*depr_cap_infl*percent_cap2,0) -> 0 | I66: =IF(OR(C66<0,C66=""),"",-E66*INDEX('Replacement Costs'!$A$15:$G$56,MATCH(C66,'Replacement Costs'!$C$15:$C$56,0),MATCH("Total Yearly Replacement Costs",'Replacement Costs'!$A$15:$G$15,0))) -> 0 | J66: =IF(AND(C66>=1,C66<anal_period),WorkingCap*SUM(N66:R66)-WorkingCap*SUM(N65:R65),IF(C66<0,0,IF(B66="","",-SUM(J$65:J65)))) -> -17762.21554 | N66: -208501.8982 | O66: -1561411.511 | P66: 0 | Q66: 0 | R66: =IF(C66="","",IF(C66<0,0,IF(AND(C66=1,start_time<1),-((SUM(F139:I139,P139:R139)*output_kgyear+inflated_othervar)*E66*percnt_var*start_time+(SUM(F139:I139,P139:R139)*output_kgyear+inflated_othervar)*E66*(1-start_time)),IF(C66<=start_time,-(SUM(F139:I139,P139:R139)*output_kgyear+inflated_othervar)*E66*percnt_var,-E66*(SUM(F139:I139,P139:R139)*output_kgyear+inflated_othervar))))) -> -6308.144096 | S66: =IF(B66="","",IF($B$31=0,"",-'Debt Financing Calculations'!E15)) ->  | T66: 817472.8198 | U66: =IF(C66="","",IF(C66<-1,0,IF(C66=anal_period,-LOOKUP(C66,depr_yr,depr_cost)-Depreciation!$C$141-Depreciation!$B$166,-LOOKUP(C66,depr_yr,depr_cost)))) -> -657248.0525 | V66: 160224.7673 | W66: 0.389 | X66: =IF(C66="","",-V66*W66+tax_credit) -> -62327.43448 | Y66: 755145.3853 | Z66: =IF(C66="","",IF($B$31=0,"",-'Debt Financing Calculations'!F15)) ->  | AA66: 737383.1698 | AB66: =IF(C66="","",AB65+AA66) -> -3861973.391 | AC66: 799710.6042 | AE66: 470668.5514 | AF66: 0
A67: 2011 | B67: =IF(MAX($B$65:B66)<(construct+anal_period),B66+1,"") -> 3 | C67: 2 | D67: 2 | E67: 1.019 | F67: 2642974.567 | H67: =IF(C67="","",0) -> 0 | I67: =IF(OR(C67<0,C67=""),"",-E67*INDEX('Replacement Costs'!$A$15:$G$56,MATCH(C67,'Replacement Costs'!$C$15:$C$56,0),MATCH("Total Yearly Replacement Costs",'Replacement Costs'!$A$15:$G$15,0))) -> 0 | J67: =IF(AND(C67>=1,C67<anal_period),WorkingCap*SUM(N67:R67)-WorkingCap*SUM(N66:R66),IF(C67<0,0,IF(B67="","",-SUM(J$65:J66)))) -> -749.8423333 | N67: -212463.4343 | O67: -1632314.354 | P67: 0 | Q67: 0 | R67: -6427.998834 | S67: =IF(B67="","",IF($B$31=0,"",-'Debt Financing Calculations'!E16)) ->  | T67: 791768.7795 | U67: =IF(C67="","",IF(C67<-1,0,IF(C67=anal_period,-LOOKUP(C67,depr_yr,depr_cost)-Depreciation!$C$141-Depreciation!$B$166,-LOOKUP(C67,depr_yr,depr_cost)))) -> -1126382.422 | V67: -334613.6421 | W67: 0.389 | X67: 130164.7068 | Y67: 921933.4863 | Z67: =IF(C67="","",IF($B$31=0,"",-'Debt Financing Calculations'!F16)) ->  | AA67: 921183.644 | AB67: -2940789.747 | AC67: 791018.9372 | AE67: 470668.5514 | AF67: 0
A68: 2012 | B68: =IF(MAX($B$65:B67)<(construct+anal_period),B67+1,"") -> 4 | C68: 3 | D68: 3 | E68: 1.038361 | F68: 2693191.083 | H68: 0 | I68: =IF(OR(C68<0,C68=""),"",-E68*INDEX('Replacement Costs'!$A$15:$G$56,MATCH(C68,'Replacement Costs'!$C$15:$C$56,0),MATCH("Total Yearly Replacement Costs",'Replacement Costs'!$A$15:$G$15,0))) -> 0 | J68: =IF(AND(C68>=1,C68<anal_period),WorkingCap*SUM(N68:R68)-WorkingCap*SUM(N67:R67),IF(C68<0,0,IF(B68="","",-SUM(J$65:J67)))) -> -247.4470814 | N68: -216500.2395 | O68: -1652900.125 | P68: 0 | Q68: 0 | R68: -6550.130812 | S68: =IF(B68="","",IF($B$31=0,"",-'Debt Financing Calculations'!E17)) ->  | T68: 817240.5882 | U68: =IF(C68="","",IF(C68<-1,0,IF(C68=anal_period,-LOOKUP(C68,depr_yr,depr_cost)-Depreciation!$C$141-Depreciation!$B$166,-LOOKUP(C68,depr_yr,depr_cost)))) -> -804427.4624 | V68: 12813.12577 | W68: 0.389 | X68: -4984.305923 | Y68: 812256.2822 | Z68: =IF(C68="","",IF($B$31=0,"",-'Debt Financing Calculations'!F17)) ->  | AA68: 812008.8352 | AB68: -2128780.911 | AC68: 816993.1411 | AE68: 470668.5514 | AF68: 0
A69: 2013 | B69: =IF(MAX($B$65:B68)<(construct+anal_period),B68+1,"") -> 5 | C69: 4 | D69: 4 | E69: 1.058089859 | F69: 2744361.714 | H69: 0 | I69: =IF(OR(C69<0,C69=""),"",-E69*INDEX('Replacement Costs'!$A$15:$G$56,MATCH(C69,'Replacement Costs'!$C$15:$C$56,0),MATCH("Total Yearly Replacement Costs",'Replacement Costs'!$A$15:$G$15,0))) -> 0 | J69: =IF(AND(C69>=1,C69<anal_period),WorkingCap*SUM(N69:R69)-WorkingCap*SUM(N68:R68),IF(C69<0,0,IF(B69="","",-SUM(J$65:J68)))) -> -285.2868628 | N69: -220613.7441 | O69: -1677190.854 | P69: 0 | Q69: 0 | R69: -6674.583297 | S69: =IF(B69="","",IF($B$31=0,"",-'Debt Financing Calculations'!E18)) ->  | T69: 839882.5325 | U69: =IF(C69="","",IF(C69<-1,0,IF(C69=anal_period,-LOOKUP(C69,depr_yr,depr_cost)-Depreciation!$C$141-Depreciation!$B$166,-LOOKUP(C69,depr_yr,depr_cost)))) -> -574459.6344 | V69: 265422.8981 | W69: 0.389 | X69: -103249.5074 | Y69: 736633.0251 | Z69: =IF(C69="","",IF($B$31=0,"",-'Debt Financing Calculations'!F18)) ->  | AA69: 736347.7383 | AB69: -1392433.173 | AC69: 839597.2456 | AE69: 470668.5514 | AF69: 0
A70: 2014 | B70: =IF(MAX($B$65:B69)<(construct+anal_period),B69+1,"") -> 6 | C70: 5 | D70: 5 | E70: 1.078193566 | F70: 2796504.586 | H70: 0 | I70: =IF(OR(C70<0,C70=""),"",-E70*INDEX('Replacement Costs'!$A$15:$G$56,MATCH(C70,'Replacement Costs'!$C$15:$C$56,0),MATCH("Total Yearly Replacement Costs",'Replacement Costs'!$A$15:$G$15,0))) -> 0 | J70: =IF(AND(C70>=1,C70<anal_period),WorkingCap*SUM(N70:R70)-WorkingCap*SUM(N69:R69),IF(C70<0,0,IF(B70="","",-SUM(J$65:J69)))) -> -477.1267099 | N70: -224805.4052 | O70: -1720585.047 | P70: 0 | Q70: 0 | R70: -6801.40038 | S70: =IF(B70="","",IF($B$31=0,"",-'Debt Financing Calculations'!E19)) ->  | T70: 844312.734 | U70: =IF(C70="","",IF(C70<-1,0,IF(C70=anal_period,-LOOKUP(C70,depr_yr,depr_cost)-Depreciation!$C$141-Depreciation!$B$166,-LOOKUP(C70,depr_yr,depr_cost)))) -> -410722.5408 | V70: 433590.1932 | W70: 0.389 | X70: -168666.5852 | Y70: 675646.1489 | Z70: =IF(C70="","",IF($B$31=0,"",-'Debt Financing Calculations'!F19)) ->  | AA70: 675169.0222 | AB70: -717264.151 | AC70: 843835.6073 | AE70: 470668.5514 | AF70: 0
A71: 2015 | B71: =IF(MAX($B$65:B70)<(construct+anal_period),B70+1,"") -> 7 | C71: 6 | D71: 6 | E71: 1.098679244 | F71: 2849638.174 | H71: 0 | I71: =IF(OR(C71<0,C71=""),"",-E71*INDEX('Replacement Costs'!$A$15:$G$56,MATCH(C71,'Replacement Costs'!$C$15:$C$56,0),MATCH("Total Yearly Replacement Costs",'Replacement Costs'!$A$15:$G$15,0))) -> 0 | J71: =IF(AND(C71>=1,C71<anal_period),WorkingCap*SUM(N71:R71)-WorkingCap*SUM(N70:R70),IF(C71<0,0,IF(B71="","",-SUM(J$65:J70)))) -> -492.5433309 | N71: -229076.7079 | O71: -1765438.851 | P71: 0 | Q71: 0 | R71: -6930.626987 | S71: =IF(B71="","",IF($B$31=0,"",-'Debt Financing Calculations'!E20)) ->  | T71: 848191.9881 | U71: =IF(C71="","",IF(C71<-1,0,IF(C71=anal_period,-LOOKUP(C71,depr_yr,depr_cost)-Depreciation!$C$141-Depreciation!$B$166,-LOOKUP(C71,depr_yr,depr_cost)))) -> -410262.6052 | V71: 437929.3829 | W71: 0.389 | X71: -170354.53 | Y71: 677837.4581 | Z71: =IF(C71="","",IF($B$31=0,"",-'Debt Financing Calculations'!F20)) ->  | AA71: 677344.9148 | AB71: -39919.23618 | AC71: 847699.4448 | AE71: 470668.5514 | AF71: 0
A72: 2016 | B72: =IF(MAX($B$65:B71)<(construct+anal_period),B71+1,"") -> 8 | C72: 7 | D72: 7 | E72: 1.11955415 | F72: 2903781.299 | H72: 0 | I72: =IF(OR(C72<0,C72=""),"",-E72*INDEX('Replacement Costs'!$A$15:$G$56,MATCH(C72,'Replacement Costs'!$C$15:$C$56,0),MATCH("Total Yearly Replacement Costs",'Replacement Costs'!$A$15:$G$15,0))) -> 0 | J72: =IF(AND(C72>=1,C72<anal_period),WorkingCap*SUM(N72:R72)-WorkingCap*SUM(N71:R71),IF(C72<0,0,IF(B72="","",-SUM(J$65:J71)))) -> -688.7214248 | N72: -233429.1653 | O72: -1829826.854 | P72: 0 | Q72: 0 | R72: -7062.3089 | S72: =IF(B72="","",IF($B$31=0,"",-'Debt Financing Calculations'!E21)) ->  | T72: 833462.9709 | U72: =IF(C72="","",IF(C72<-1,0,IF(C72=anal_period,-LOOKUP(C72,depr_yr,depr_cost)-Depreciation!$C$141-Depreciation!$B$166,-LOOKUP(C72,depr_yr,depr_cost)))) -> -410722.5408 | V72: 422740.4301 | W72: 0.389 | X72: -164446.0273 | Y72: 669016.9436 | Z72: =IF(C72="","",IF($B$31=0,"",-'Debt Financing Calculations'!F21)) ->  | AA72: 668328.2222 | AB72: 628408.986 | AC72: 832774.2495 | AE72: 470668.5514 | AF72: 0
A73: 2017 | B73: =IF(MAX($B$65:B72)<(construct+anal_period),B72+1,"") -> 9 | C73: 8 | D73: 8 | E73: 1.140825679 | F73: 2958953.144 | H73: 0 | I73: =IF(OR(C73<0,C73=""),"",-E73*INDEX('Replacement Costs'!$A$15:$G$56,MATCH(C73,'Replacement Costs'!$C$15:$C$56,0),MATCH("Total Yearly Replacement Costs",'Replacement Costs'!$A$15:$G$15,0))) -> -589383.3761 | J73: =IF(AND(C73>=1,C73<anal_period),WorkingCap*SUM(N73:R73)-WorkingCap*SUM(N72:R72),IF(C73<0,0,IF(B73="","",-SUM(J$65:J72)))) -> -705.7092177 | N73: -237864.3195 | O73: -1895828.438 | P73: 0 | Q73: 0 | R73: -7196.492769 | S73: =IF(B73="","",IF($B$31=0,"",-'Debt Financing Calculations'!E22)) ->  | T73: 818063.8938 | U73: =IF(C73="","",IF(C73<-1,0,IF(C73=anal_period,-LOOKUP(C73,depr_yr,depr_cost)-Depreciation!$C$141-Depreciation!$B$166,-LOOKUP(C73,depr_yr,depr_cost)))) -> -289354.187 | V73: 528709.7068 | W73: 0.389 | X73: -205668.0759 | Y73: 612395.8179 | Z73: =IF(C73="","",IF($B$31=0,"",-'Debt Financing Calculations'!F22)) ->  | AA73: 22306.73256 | AB73: 650715.7186 | AC73: 227974.8085 | AE73: 470668.5514 | AF73: 0
A74: 2018 | B74: =IF(MAX($B$65:B73)<(construct+anal_period),B73+1,"") -> 10 | C74: 9 | D74: 9 | E74: 1.162501366 | F74: 3015173.253 | H74: 0 | I74: =IF(OR(C74<0,C74=""),"",-E74*INDEX('Replacement Costs'!$A$15:$G$56,MATCH(C74,'Replacement Costs'!$C$15:$C$56,0),MATCH("Total Yearly Replacement Costs",'Replacement Costs'!$A$15:$G$15,0))) -> 0 | J74: =IF(AND(C74>=1,C74<anal_period),WorkingCap*SUM(N74:R74)-WorkingCap*SUM(N73:R73),IF(C74<0,0,IF(B74="","",-SUM(J$65:J73)))) -> -730.376689 | N74: -242383.7416 | O74: -1964209.951 | P74: 0 | Q74: 0 | R74: -7333.226131 | S74: =IF(B74="","",IF($B$31=0,"",-'Debt Financing Calculations'!E23)) ->  | T74: 801246.3347 | U74: =IF(C74="","",IF(C74<-1,0,IF(C74=anal_period,-LOOKUP(C74,depr_yr,depr_cost)-Depreciation!$C$141-Depreciation!$B$166,-LOOKUP(C74,depr_yr,depr_cost)))) -> -144339.9888 | V74: 656906.3458 | W74: 0.389 | X74: -255536.5685 | Y74: 545709.7661 | Z74: =IF(C74="","",IF($B$31=0,"",-'Debt Financing Calculations'!F23)) ->  | AA74: 544979.3894 | AB74: 1195695.108 | AC74: 800515.958 | AE74: 470668.5514 | AF74: 0
A75: 2019 | B75: =IF(MAX($B$65:B74)<(construct+anal_period),B74+1,"") -> 11 | C75: 10 | D75: 10 | E75: 1.184588892 | F75: 3072461.545 | H75: 0 | I75: =IF(OR(C75<0,C75=""),"",-E75*INDEX('Replacement Costs'!$A$15:$G$56,MATCH(C75,'Replacement Costs'!$C$15:$C$56,0),MATCH("Total Yearly Replacement Costs",'Replacement Costs'!$A$15:$G$15,0))) -> 0 | J75: =IF(AND(C75>=1,C75<anal_period),WorkingCap*SUM(N75:R75)-WorkingCap*SUM(N74:R74),IF(C75<0,0,IF(B75="","",-SUM(J$65:J74)))) -> -691.8116656 | N75: -246989.0326 | O75: -2028646.495 | P75: 0 | Q75: 0 | R75: -7472.557428 | S75: =IF(B75="","",IF($B$31=0,"",-'Debt Financing Calculations'!E24)) ->  | T75: 789353.4599 | U75: =IF(C75="","",IF(C75<-1,0,IF(C75=anal_period,-LOOKUP(C75,depr_yr,depr_cost)-Depreciation!$C$141-Depreciation!$B$166,-LOOKUP(C75,depr_yr,depr_cost)))) -> -103083.1525 | V75: 686270.3074 | W75: 0.389 | X75: -266959.1496 | Y75: 522394.3103 | Z75: =IF(C75="","",IF($B$31=0,"",-'Debt Financing Calculations'!F24)) ->  | AA75: 521702.4987 | AB75: 1717397.607 | AC75: 788661.6482 | AE75: 470668.5514 | AF75: 0
A76: 2020 | B76: =IF(MAX($B$65:B75)<(construct+anal_period),B75+1,"") -> 12 | C76: 11 | D76: 11 | E76: 1.207096081 | F76: 3130838.314 | H76: 0 | I76: =IF(OR(C76<0,C76=""),"",-E76*INDEX('Replacement Costs'!$A$15:$G$56,MATCH(C76,'Replacement Costs'!$C$15:$C$56,0),MATCH("Total Yearly Replacement Costs",'Replacement Costs'!$A$15:$G$15,0))) -> 0 | J76: =IF(AND(C76>=1,C76<anal_period),WorkingCap*SUM(N76:R76)-WorkingCap*SUM(N75:R75),IF(C76<0,0,IF(B76="","",-SUM(J$65:J75)))) -> -821.4496503 | N76: -251681.8243 | O76: -2105956.69 | P76: 0 | Q76: 0 | R76: -7614.536019 | S76: =IF(B76="","",IF($B$31=0,"",-'Debt Financing Calculations'!E25)) ->  | T76: 765585.2642 | U76: =IF(C76="","",IF(C76<-1,0,IF(C76=anal_period,-LOOKUP(C76,depr_yr,depr_cost)-Depreciation!$C$141-Depreciation!$B$166,-LOOKUP(C76,depr_yr,depr_cost)))) -> -73613.98368 | V76: 691971.2806 | W76: 0.389 | X76: -269176.8281 | Y76: 496408.4361 | Z76: =IF(C76="","",IF($B$31=0,"",-'Debt Financing Calculations'!F25)) ->  | AA76: 495586.9864 | AB76: 2212984.593 | AC76: 764763.8146 | AE76: 470668.5514 | AF76: 0
A77: 2021 | B77: =IF(MAX($B$65:B76)<(construct+anal_period),B76+1,"") -> 13 | C77: 12 | D77: 12 | E77: 1.230030907 | F77: 3190324.242 | H77: 0 | I77: =IF(OR(C77<0,C77=""),"",-E77*INDEX('Replacement Costs'!$A$15:$G$56,MATCH(C77,'Replacement Costs'!$C$15:$C$56,0),MATCH("Total Yearly Replacement Costs",'Replacement Costs'!$A$15:$G$15,0))) -> 0 | J77: =IF(AND(C77>=1,C77<anal_period),WorkingCap*SUM(N77:R77)-WorkingCap*SUM(N76:R76),IF(C77<0,0,IF(B77="","",-SUM(J$65:J76)))) -> -771.476806 | N77: -256463.7789 | O77: -2178177.74 | P77: 0 | Q77: 0 | R77: -7759.212203 | S77: =IF(B77="","",IF($B$31=0,"",-'Debt Financing Calculations'!E26)) ->  | T77: 747923.5116 | U77: =IF(C77="","",IF(C77<-1,0,IF(C77=anal_period,-LOOKUP(C77,depr_yr,depr_cost)-Depreciation!$C$141-Depreciation!$B$166,-LOOKUP(C77,depr_yr,depr_cost)))) -> -52631.93549 | V77: 695291.5761 | W77: 0.389 | X77: -270468.4231 | Y77: 477455.0885 | Z77: =IF(C77="","",IF($B$31=0,"",-'Debt Financing Calculations'!F26)) ->  | AA77: 476683.6117 | AB77: 2689668.205 | AC77: 747152.0348 | AE77: 470668.5514 | AF77: 0
A78: 2022 | B78: =IF(MAX($B$65:B77)<(construct+anal_period),B77+1,"") -> 14 | C78: 13 | D78: 13 | E78: 1.253401494 | F78: 3250940.403 | H78: 0 | I78: =IF(OR(C78<0,C78=""),"",-E78*INDEX('Replacement Costs'!$A$15:$G$56,MATCH(C78,'Replacement Costs'!$C$15:$C$56,0),MATCH("Total Yearly Replacement Costs",'Replacement Costs'!$A$15:$G$15,0))) -> 0 | J78: =IF(AND(C78>=1,C78<anal_period),WorkingCap*SUM(N78:R78)-WorkingCap*SUM(N77:R77),IF(C78<0,0,IF(B78="","",-SUM(J$65:J77)))) -> -721.0102125 | N78: -261336.5907 | O78: -2245258.524 | P78: 0 | Q78: 0 | R78: -7906.637235 | S78: =IF(B78="","",IF($B$31=0,"",-'Debt Financing Calculations'!E27)) ->  | T78: 736438.651 | U78: =IF(C78="","",IF(C78<-1,0,IF(C78=anal_period,-LOOKUP(C78,depr_yr,depr_cost)-Depreciation!$C$141-Depreciation!$B$166,-LOOKUP(C78,depr_yr,depr_cost)))) -> -52572.99715 | V78: 683865.6538 | W78: 0.389 | X78: -266023.7393 | Y78: 470414.9116 | Z78: =IF(C78="","",IF($B$31=0,"",-'Debt Financing Calculations'!F27)) ->  | AA78: 469693.9014 | AB78: 3159362.106 | AC78: 735717.6408 | AE78: 470668.5514 | AF78: 0
A79: 2023 | B79: =IF(MAX($B$65:B78)<(construct+anal_period),B78+1,"") -> 15 | C79: 14 | D79: 14 | E79: 1.277216123 | F79: 3312708.271 | H79: 0 | I79: =IF(OR(C79<0,C79=""),"",-E79*INDEX('Replacement Costs'!$A$15:$G$56,MATCH(C79,'Replacement Costs'!$C$15:$C$56,0),MATCH("Total Yearly Replacement Costs",'Replacement Costs'!$A$15:$G$15,0))) -> 0 | J79: =IF(AND(C79>=1,C79<anal_period),WorkingCap*SUM(N79:R79)-WorkingCap*SUM(N78:R78),IF(C79<0,0,IF(B79="","",-SUM(J$65:J78)))) -> -475.5967026 | N79: -266301.9859 | O79: -2287702.573 | P79: 0 | Q79: 0 | R79: -8056.863343 | S79: =IF(B79="","",IF($B$31=0,"",-'Debt Financing Calculations'!E28)) ->  | T79: 750646.8484 | U79: =IF(C79="","",IF(C79<-1,0,IF(C79=anal_period,-LOOKUP(C79,depr_yr,depr_cost)-Depreciation!$C$141-Depreciation!$B$166,-LOOKUP(C79,depr_yr,depr_cost)))) -> -52631.93549 | V79: 698014.9129 | W79: 0.389 | X79: -271527.8011 | Y79: 479119.0473 | Z79: =IF(C79="","",IF($B$31=0,"",-'Debt Financing Calculations'!F28)) ->  | AA79: 478643.4506 | AB79: 3638005.557 | AC79: 750171.2517 | AE79: 470668.5514 | AF79: 0
A80: 2024 | B80: =IF(MAX($B$65:B79)<(construct+anal_period),B79+1,"") -> 16 | C80: 15 | D80: 15 | E80: 1.301483229 | F80: 3375649.728 | H80: 0 | I80: =IF(OR(C80<0,C80=""),"",-E80*INDEX('Replacement Costs'!$A$15:$G$56,MATCH(C80,'Replacement Costs'!$C$15:$C$56,0),MATCH("Total Yearly Replacement Costs",'Replacement Costs'!$A$15:$G$15,0))) -> -672383.69 | J80: =IF(AND(C80>=1,C80<anal_period),WorkingCap*SUM(N80:R80)-WorkingCap*SUM(N79:R79),IF(C80<0,0,IF(B80="","",-SUM(J$65:J79)))) -> -512.1716492 | N80: -271361.7237 | O80: -2333706.92 | P80: 0 | Q80: 0 | R80: -8209.943746 | S80: =IF(B80="","",IF($B$31=0,"",-'Debt Financing Calculations'!E29)) ->  | T80: 762371.1406 | U80: =IF(C80="","",IF(C80<-1,0,IF(C80=anal_period,-LOOKUP(C80,depr_yr,depr_cost)-Depreciation!$C$141-Depreciation!$B$166,-LOOKUP(C80,depr_yr,depr_cost)))) -> -122370.1279 | V80: 640001.0127 | W80: 0.389 | X80: -248960.3939 | Y80: 513410.7466 | Z80: =IF(C80="","",IF($B$31=0,"",-'Debt Financing Calculations'!F29)) ->  | AA80: -159485.115 | AB80: 3478520.442 | AC80: 89475.27896 | AE80: 470668.5514 | AF80: 0
A81: 2025 | B81: =IF(MAX($B$65:B80)<(construct+anal_period),B80+1,"") -> 17 | C81: 16 | D81: 16 | E81: 1.32621141 | F81: 3439787.073 | H81: 0 | I81: =IF(OR(C81<0,C81=""),"",-E81*INDEX('Replacement Costs'!$A$15:$G$56,MATCH(C81,'Replacement Costs'!$C$15:$C$56,0),MATCH("Total Yearly Replacement Costs",'Replacement Costs'!$A$15:$G$15,0))) -> 0 | J81: =IF(AND(C81>=1,C81<anal_period),WorkingCap*SUM(N81:R81)-WorkingCap*SUM(N80:R80),IF(C81<0,0,IF(B81="","",-SUM(J$65:J80)))) -> -495.8657562 | N81: -276517.5964 | O81: -2377981.634 | P81: 0 | Q81: 0 | R81: -8365.932677 | S81: =IF(B81="","",IF($B$31=0,"",-'Debt Financing Calculations'!E30)) ->  | T81: 776921.9098 | U81: =IF(C81="","",IF(C81<-1,0,IF(C81=anal_period,-LOOKUP(C81,depr_yr,depr_cost)-Depreciation!$C$141-Depreciation!$B$166,-LOOKUP(C81,depr_yr,depr_cost)))) -> -164666.7657 | V81: 612255.1441 | W81: 0.389 | X81: -238167.2511 | Y81: 538754.6587 | Z81: =IF(C81="","",IF($B$31=0,"",-'Debt Financing Calculations'!F30)) ->  | AA81: 538258.793 | AB81: 4016779.235 | AC81: 776426.044 | AE81: 470668.5514 | AF81: 0
A82: 2026 | B82: =IF(MAX($B$65:B81)<(construct+anal_period),B81+1,"") -> 18 | C82: 17 | D82: 17 | E82: 1.351409427 | F82: 3505143.027 | H82: 0 | I82: =IF(OR(C82<0,C82=""),"",-E82*INDEX('Replacement Costs'!$A$15:$G$56,MATCH(C82,'Replacement Costs'!$C$15:$C$56,0),MATCH("Total Yearly Replacement Costs",'Replacement Costs'!$A$15:$G$15,0))) -> 0 | J82: =IF(AND(C82>=1,C82<anal_period),WorkingCap*SUM(N82:R82)-WorkingCap*SUM(N81:R81),IF(C82<0,0,IF(B82="","",-SUM(J$65:J81)))) -> -542.8164336 | N82: -281771.4308 | O82: -2426850.49 | P82: 0 | Q82: 0 | R82: -8524.885398 | S82: =IF(B82="","",IF($B$31=0,"",-'Debt Financing Calculations'!E31)) ->  | T82: 787996.2208 | U82: =IF(C82="","",IF(C82<-1,0,IF(C82=anal_period,-LOOKUP(C82,depr_yr,depr_cost)-Depreciation!$C$141-Depreciation!$B$166,-LOOKUP(C82,depr_yr,depr_cost)))) -> -117599.9074 | V82: 670396.3134 | W82: 0.389 | X82: -260784.1659 | Y82: 527212.0549 | Z82: =IF(C82="","",IF($B$31=0,"",-'Debt Financing Calculations'!F31)) ->  | AA82: 526669.2385 | AB82: 4543448.473 | AC82: 787453.4044 | AE82: 470668.5514 | AF82: 0
A83: 2027 | B83: =IF(MAX($B$65:B82)<(construct+anal_period),B82+1,"") -> 19 | C83: 18 | D83: 18 | E83: 1.377086206 | F83: 3571740.745 | H83: 0 | I83: =IF(OR(C83<0,C83=""),"",-E83*INDEX('Replacement Costs'!$A$15:$G$56,MATCH(C83,'Replacement Costs'!$C$15:$C$56,0),MATCH("Total Yearly Replacement Costs",'Replacement Costs'!$A$15:$G$15,0))) -> 0 | J83: =IF(AND(C83>=1,C83<anal_period),WorkingCap*SUM(N83:R83)-WorkingCap*SUM(N82:R82),IF(C83<0,0,IF(B83="","",-SUM(J$65:J82)))) -> -849.3179697 | N83: -287125.0879 | O83: -2506266.657 | P83: 0 | Q83: 0 | R83: -8686.858221 | S83: =IF(B83="","",IF($B$31=0,"",-'Debt Financing Calculations'!E32)) ->  | T83: 769662.1414 | U83: =IF(C83="","",IF(C83<-1,0,IF(C83=anal_period,-LOOKUP(C83,depr_yr,depr_cost)-Depreciation!$C$141-Depreciation!$B$166,-LOOKUP(C83,depr_yr,depr_cost)))) -> -83980.72288 | V83: 685681.4185 | W83: 0.389 | X83: -266730.0718 | Y83: 502932.0696 | Z83: =IF(C83="","",IF($B$31=0,"",-'Debt Financing Calculations'!F32)) ->  | AA83: 502082.7516 | AB83: 5045531.225 | AC83: 768812.8234 | AE83: 470668.5514 | AF83: 0
A84: 2028 | B84: =IF(MAX($B$65:B83)<(construct+anal_period),B83+1,"") -> 20 | C84: 19 | D84: 19 | E84: 1.403250844 | F84: 3639603.819 | H84: 0 | I84: =IF(OR(C84<0,C84=""),"",-E84*INDEX('Replacement Costs'!$A$15:$G$56,MATCH(C84,'Replacement Costs'!$C$15:$C$56,0),MATCH("Total Yearly Replacement Costs",'Replacement Costs'!$A$15:$G$15,0))) -> 0 | J84: =IF(AND(C84>=1,C84<anal_period),WorkingCap*SUM(N84:R84)-WorkingCap*SUM(N83:R83),IF(C84<0,0,IF(B84="","",-SUM(J$65:J83)))) -> -997.8750529 | N84: -292580.4646 | O84: -2600433.735 | P84: 0 | Q84: 0 | R84: -8851.908527 | S84: =IF(B84="","",IF($B$31=0,"",-'Debt Financing Calculations'!E33)) ->  | T84: 737737.7102 | U84: =IF(C84="","",IF(C84<-1,0,IF(C84=anal_period,-LOOKUP(C84,depr_yr,depr_cost)-Depreciation!$C$141-Depreciation!$B$166,-LOOKUP(C84,depr_yr,depr_cost)))) -> -60043.86351 | V84: 677693.8467 | W84: 0.389 | X84: -263622.9064 | Y84: 474114.8038 | Z84: =IF(C84="","",IF($B$31=0,"",-'Debt Financing Calculations'!F33)) ->  | AA84: 473116.9288 | AB84: 5518648.154 | AC84: 736739.8352 | AE84: 470668.5514 | AF84: 0
A85: 2029 | B85: =IF(MAX($B$65:B84)<(construct+anal_period),B84+1,"") -> 21 | C85: 20 | D85: 20 | E85: 1.42991261 | F85: 3708756.291 | H85: 0 | I85: =IF(OR(C85<0,C85=""),"",-E85*INDEX('Replacement Costs'!$A$15:$G$56,MATCH(C85,'Replacement Costs'!$C$15:$C$56,0),MATCH("Total Yearly Replacement Costs",'Replacement Costs'!$A$15:$G$15,0))) -> 0 | J85: =IF(AND(C85>=1,C85<anal_period),WorkingCap*SUM(N85:R85)-WorkingCap*SUM(N84:R84),IF(C85<0,0,IF(B85="","",-SUM(J$65:J84)))) -> 29018.66109 | L85: 670163.4825 | M85: -670163.4825 | N85: -298139.4934 | O85: -2692604.216 | P85: 0 | Q85: 0 | R85: -9020.094789 | S85: =IF(B85="","",IF($B$31=0,"",-'Debt Financing Calculations'!E34)) ->  | T85: 708992.4872 | U85: =IF(C85="","",IF(C85<-1,0,IF(C85=anal_period,-LOOKUP(C85,depr_yr,depr_cost)-Depreciation!$C$141-Depreciation!$B$166,-LOOKUP(C85,depr_yr,depr_cost)))) -> -150008.8012 | V85: 558983.686 | W85: 0.389 | X85: -217444.6539 | Y85: 491547.8334 | Z85: =IF(C85="","",IF($B$31=0,"",-'Debt Financing Calculations'!F34)) ->  | AA85: 520566.4945 | AB85: 6039214.648 | AC85: 738011.1483 | AE85: 470668.5514 | AF85: 0
B86: =IF(MAX($B$65:B85)<(construct+anal_period),B85+1,"") ->  | I86: =IF(OR(C86<0,C86=""),"",-E86*INDEX('Replacement Costs'!$A$15:$G$56,MATCH(C86,'Replacement Costs'!$C$15:$C$56,0),MATCH("Total Yearly Replacement Costs",'Replacement Costs'!$A$15:$G$15,0))) ->  | J86: =IF(AND(C86>=1,C86<anal_period),WorkingCap*SUM(N86:R86)-WorkingCap*SUM(N85:R85),IF(C86<0,0,IF(B86="","",-SUM(J$65:J85)))) ->  | S86: =IF(B86="","",IF($B$31=0,"",-'Debt Financing Calculations'!E35)) ->  | U86: =IF(C86="","",IF(C86<-1,0,IF(C86=anal_period,-LOOKUP(C86,depr_yr,depr_cost)-Depreciation!$C$141-Depreciation!$B$166,-LOOKUP(C86,depr_yr,depr_cost)))) ->  | Z86: =IF(C86="","",IF($B$31=0,"",-'Debt Financing Calculations'!F35)) -> 
B87: =IF(MAX($B$65:B86)<(construct+anal_period),B86+1,"") ->  | I87: =IF(OR(C87<0,C87=""),"",-E87*INDEX('Replacement Costs'!$A$15:$G$56,MATCH(C87,'Replacement Costs'!$C$15:$C$56,0),MATCH("Total Yearly Replacement Costs",'Replacement Costs'!$A$15:$G$15,0))) ->  | J87: =IF(AND(C87>=1,C87<anal_period),WorkingCap*SUM(N87:R87)-WorkingCap*SUM(N86:R86),IF(C87<0,0,IF(B87="","",-SUM(J$65:J86)))) ->  | S87: =IF(B87="","",IF($B$31=0,"",-'Debt Financing Calculations'!E36)) ->  | U87: =IF(C87="","",IF(C87<-1,0,IF(C87=anal_period,-LOOKUP(C87,depr_yr,depr_cost)-Depreciation!$C$141-Depreciation!$B$166,-LOOKUP(C87,depr_yr,depr_cost)))) ->  | Z87: =IF(C87="","",IF($B$31=0,"",-'Debt Financing Calculations'!F36)) -> 
B88: =IF(MAX($B$65:B87)<(construct+anal_period),B87+1,"") ->  | I88: =IF(OR(C88<0,C88=""),"",-E88*INDEX('Replacement Costs'!$A$15:$G$56,MATCH(C88,'Replacement Costs'!$C$15:$C$56,0),MATCH("Total Yearly Replacement Costs",'Replacement Costs'!$A$15:$G$15,0))) ->  | J88: =IF(AND(C88>=1,C88<anal_period),WorkingCap*SUM(N88:R88)-WorkingCap*SUM(N87:R87),IF(C88<0,0,IF(B88="","",-SUM(J$65:J87)))) ->  | S88: =IF(B88="","",IF($B$31=0,"",-'Debt Financing Calculations'!E37)) ->  | U88: =IF(C88="","",IF(C88<-1,0,IF(C88=anal_period,-LOOKUP(C88,depr_yr,depr_cost)-Depreciation!$C$141-Depreciation!$B$166,-LOOKUP(C88,depr_yr,depr_cost)))) ->  | Z88: =IF(C88="","",IF($B$31=0,"",-'Debt Financing Calculations'!F37)) -> 
B89: =IF(MAX($B$65:B88)<(construct+anal_period),B88+1,"") ->  | I89: =IF(OR(C89<0,C89=""),"",-E89*INDEX('Replacement Costs'!$A$15:$G$56,MATCH(C89,'Replacement Costs'!$C$15:$C$56,0),MATCH("Total Yearly Replacement Costs",'Replacement Costs'!$A$15:$G$15,0))) ->  | J89: =IF(AND(C89>=1,C89<anal_period),WorkingCap*SUM(N89:R89)-WorkingCap*SUM(N88:R88),IF(C89<0,0,IF(B89="","",-SUM(J$65:J88)))) ->  | S89: =IF(B89="","",IF($B$31=0,"",-'Debt Financing Calculations'!E38)) ->  | U89: =IF(C89="","",IF(C89<-1,0,IF(C89=anal_period,-LOOKUP(C89,depr_yr,depr_cost)-Depreciation!$C$141-Depreciation!$B$166,-LOOKUP(C89,depr_yr,depr_cost)))) ->  | Z89: =IF(C89="","",IF($B$31=0,"",-'Debt Financing Calculations'!F38)) -> 
B90: =IF(MAX($B$65:B89)<(construct+anal_period),B89+1,"") ->  | I90: =IF(OR(C90<0,C90=""),"",-E90*INDEX('Replacement Costs'!$A$15:$G$56,MATCH(C90,'Replacement Costs'!$C$15:$C$56,0),MATCH("Total Yearly Replacement Costs",'Replacement Costs'!$A$15:$G$15,0))) ->  | J90: =IF(AND(C90>=1,C90<anal_period),WorkingCap*SUM(N90:R90)-WorkingCap*SUM(N89:R89),IF(C90<0,0,IF(B90="","",-SUM(J$65:J89)))) ->  | S90: =IF(B90="","",IF($B$31=0,"",-'Debt Financing Calculations'!E39)) ->  | U90: =IF(C90="","",IF(C90<-1,0,IF(C90=anal_period,-LOOKUP(C90,depr_yr,depr_cost)-Depreciation!$C$141-Depreciation!$B$166,-LOOKUP(C90,depr_yr,depr_cost)))) ->  | Z90: =IF(C90="","",IF($B$31=0,"",-'Debt Financing Calculations'!F39)) -> 
B91: =IF(MAX($B$65:B90)<(construct+anal_period),B90+1,"") ->  | I91: =IF(OR(C91<0,C91=""),"",-E91*INDEX('Replacement Costs'!$A$15:$G$56,MATCH(C91,'Replacement Costs'!$C$15:$C$56,0),MATCH("Total Yearly Replacement Costs",'Replacement Costs'!$A$15:$G$15,0))) ->  | J91: =IF(AND(C91>=1,C91<anal_period),WorkingCap*SUM(N91:R91)-WorkingCap*SUM(N90:R90),IF(C91<0,0,IF(B91="","",-SUM(J$65:J90)))) ->  | S91: =IF(B91="","",IF($B$31=0,"",-'Debt Financing Calculations'!E40)) ->  | U91: =IF(C91="","",IF(C91<-1,0,IF(C91=anal_period,-LOOKUP(C91,depr_yr,depr_cost)-Depreciation!$C$141-Depreciation!$B$166,-LOOKUP(C91,depr_yr,depr_cost)))) ->  | Z91: =IF(C91="","",IF($B$31=0,"",-'Debt Financing Calculations'!F40)) -> 
B92: =IF(MAX($B$65:B91)<(construct+anal_period),B91+1,"") ->  | I92: =IF(OR(C92<0,C92=""),"",-E92*INDEX('Replacement Costs'!$A$15:$G$56,MATCH(C92,'Replacement Costs'!$C$15:$C$56,0),MATCH("Total Yearly Replacement Costs",'Replacement Costs'!$A$15:$G$15,0))) ->  | J92: =IF(AND(C92>=1,C92<anal_period),WorkingCap*SUM(N92:R92)-WorkingCap*SUM(N91:R91),IF(C92<0,0,IF(B92="","",-SUM(J$65:J91)))) ->  | S92: =IF(B92="","",IF($B$31=0,"",-'Debt Financing Calculations'!E41)) ->  | U92: =IF(C92="","",IF(C92<-1,0,IF(C92=anal_period,-LOOKUP(C92,depr_yr,depr_cost)-Depreciation!$C$141-Depreciation!$B$166,-LOOKUP(C92,depr_yr,depr_cost)))) ->  | Z92: =IF(C92="","",IF($B$31=0,"",-'Debt Financing Calculations'!F41)) -> 
B93: =IF(MAX($B$65:B92)<(construct+anal_period),B92+1,"") ->  | I93: =IF(OR(C93<0,C93=""),"",-E93*INDEX('Replacement Costs'!$A$15:$G$56,MATCH(C93,'Replacement Costs'!$C$15:$C$56,0),MATCH("Total Yearly Replacement Costs",'Replacement Costs'!$A$15:$G$15,0))) ->  | J93: =IF(AND(C93>=1,C93<anal_period),WorkingCap*SUM(N93:R93)-WorkingCap*SUM(N92:R92),IF(C93<0,0,IF(B93="","",-SUM(J$65:J92)))) ->  | S93: =IF(B93="","",IF($B$31=0,"",-'Debt Financing Calculations'!E42)) ->  | U93: =IF(C93="","",IF(C93<-1,0,IF(C93=anal_period,-LOOKUP(C93,depr_yr,depr_cost)-Depreciation!$C$141-Depreciation!$B$166,-LOOKUP(C93,depr_yr,depr_cost)))) ->  | Z93: =IF(C93="","",IF($B$31=0,"",-'Debt Financing Calculations'!F42)) -> 
B94: =IF(MAX($B$65:B93)<(construct+anal_period),B93+1,"") ->  | I94: =IF(OR(C94<0,C94=""),"",-E94*INDEX('Replacement Costs'!$A$15:$G$56,MATCH(C94,'Replacement Costs'!$C$15:$C$56,0),MATCH("Total Yearly Replacement Costs",'Replacement Costs'!$A$15:$G$15,0))) ->  | J94: =IF(AND(C94>=1,C94<anal_period),WorkingCap*SUM(N94:R94)-WorkingCap*SUM(N93:R93),IF(C94<0,0,IF(B94="","",-SUM(J$65:J93)))) ->  | S94: =IF(B94="","",IF($B$31=0,"",-'Debt Financing Calculations'!E43)) ->  | U94: =IF(C94="","",IF(C94<-1,0,IF(C94=anal_period,-LOOKUP(C94,depr_yr,depr_cost)-Depreciation!$C$141-Depreciation!$B$166,-LOOKUP(C94,depr_yr,depr_cost)))) ->  | Z94: =IF(C94="","",IF($B$31=0,"",-'Debt Financing Calculations'!F43)) -> 
B95: =IF(MAX($B$65:B94)<(construct+anal_period),B94+1,"") ->  | I95: =IF(OR(C95<0,C95=""),"",-E95*INDEX('Replacement Costs'!$A$15:$G$56,MATCH(C95,'Replacement Costs'!$C$15:$C$56,0),MATCH("Total Yearly Replacement Costs",'Replacement Costs'!$A$15:$G$15,0))) ->  | J95: =IF(AND(C95>=1,C95<anal_period),WorkingCap*SUM(N95:R95)-WorkingCap*SUM(N94:R94),IF(C95<0,0,IF(B95="","",-SUM(J$65:J94)))) ->  | S95: =IF(B95="","",IF($B$31=0,"",-'Debt Financing Calculations'!E44)) ->  | U95: =IF(C95="","",IF(C95<-1,0,IF(C95=anal_period,-LOOKUP(C95,depr_yr,depr_cost)-Depreciation!$C$141-Depreciation!$B$166,-LOOKUP(C95,depr_yr,depr_cost)))) ->  | Z95: =IF(C95="","",IF($B$31=0,"",-'Debt Financing Calculations'!F44)) -> 
B96: =IF(MAX($B$65:B95)<(construct+anal_period),B95+1,"") ->  | I96: =IF(OR(C96<0,C96=""),"",-E96*INDEX('Replacement Costs'!$A$15:$G$56,MATCH(C96,'Replacement Costs'!$C$15:$C$56,0),MATCH("Total Yearly Replacement Costs",'Replacement Costs'!$A$15:$G$15,0))) ->  | J96: =IF(AND(C96>=1,C96<anal_period),WorkingCap*SUM(N96:R96)-WorkingCap*SUM(N95:R95),IF(C96<0,0,IF(B96="","",-SUM(J$65:J95)))) ->  | S96: =IF(B96="","",IF($B$31=0,"",-'Debt Financing Calculations'!E45)) ->  | U96: =IF(C96="","",IF(C96<-1,0,IF(C96=anal_period,-LOOKUP(C96,depr_yr,depr_cost)-Depreciation!$C$141-Depreciation!$B$166,-LOOKUP(C96,depr_yr,depr_cost)))) ->  | Z96: =IF(C96="","",IF($B$31=0,"",-'Debt Financing Calculations'!F45)) -> 
B97: =IF(MAX($B$65:B96)<(construct+anal_period),B96+1,"") ->  | D97: =IF(C97="","",IF(C97<=plant_life,C97,IF(D96=plant_life,1,D96+1))) ->  | E97: =IF(C97="","",(1+inflation_rate)^(A97-$B$25)) ->  | F97: =IF(C97="","",IF(C97<0,0,IF(AND(C97=1,start_time<1),E97*(H2_price_nominal*output_kgyear*sensitivity_01*start_time*percnt_revs+H2_price_nominal*output_kgyear*sensitivity_01*(1-start_time)),IF(C97<=start_time,H2_price_nominal*E97*output_kgyear*sensitivity_01*percnt_revs,H2_price_nominal*output_kgyear*sensitivity_01*E97)))) ->  | I97: =IF(OR(C97<0,C97=""),"",-E97*INDEX('Replacement Costs'!$A$15:$G$56,MATCH(C97,'Replacement Costs'!$C$15:$C$56,0),MATCH("Total Yearly Replacement Costs",'Replacement Costs'!$A$15:$G$15,0))) ->  | J97: =IF(AND(C97>=1,C97<anal_period),WorkingCap*SUM(N97:R97)-WorkingCap*SUM(N96:R96),IF(C97<0,0,IF(B97="","",-SUM(J$65:J96)))) ->  | K97: =IF(C97=-construct,-E97*non_dep_infl,"") ->  | L97: =IF(C97=anal_period,salvage*E97,"") ->  | M97: =IF(D97=plant_life,-E97*decom,"") ->  | N97: =IF(C97="","",IF(C97<0,0,IF(AND(C97=1,start_time<1),-(inflated_fixed*percnt_fixed*start_time+(inflated_fixed*(1-start_time))),IF(C97<=start_time,-inflated_fixed*percnt_fixed*E97,-inflated_fixed*E97)))) ->  | P97: =IF(C97="","",IF(C97<0,0,IF(AND(C97=1,start_time<1),-(inflated_otherraw*E97*percnt_var*start_time+inflated_otherraw*E97*(1-start_time)),IF(C97<=start_time,-inflated_otherraw*E97*percnt_var,-(inflated_otherraw*E97))))) ->  | S97: =IF(B97="","",IF($B$31=0,"",-'Debt Financing Calculations'!E46)) ->  | T97: =IF(C97="","",F97+SUM(L97:S97)) ->  | U97: =IF(C97="","",IF(C97<-1,0,IF(C97=anal_period,-LOOKUP(C97,depr_yr,depr_cost)-Depreciation!$C$141-Depreciation!$B$166,-LOOKUP(C97,depr_yr,depr_cost)))) ->  | V97: =IF(C97="","",SUM(T97:U97)) ->  | W97: =IF(C97="","",$B$33) ->  | X97: =IF(C97="","",-V97*W97+tax_credit) ->  | Y97: =IF(C97="","",SUM(T97,X97)) ->  | Z97: =IF(C97="","",IF($B$31=0,"",-'Debt Financing Calculations'!F46)) ->  | AA97: =IF(C97="","",SUM(H97,I97,J97,K97,T97,X97,Z97)) ->  | AC97: =IF(C97="","",SUM(H97,I97,J97,K97,T97,Z97)) ->  | AF97: =IF(C97="","",tax_credit) -> 
B98: =IF(MAX($B$65:B97)<(construct+anal_period),B97+1,"") ->  | I98: =IF(OR(C98<0,C98=""),"",-E98*INDEX('Replacement Costs'!$A$15:$G$56,MATCH(C98,'Replacement Costs'!$C$15:$C$56,0),MATCH("Total Yearly Replacement Costs",'Replacement Costs'!$A$15:$G$15,0))) ->  | J98: =IF(AND(C98>=1,C98<anal_period),WorkingCap*SUM(N98:R98)-WorkingCap*SUM(N97:R97),IF(C98<0,0,IF(B98="","",-SUM(J$65:J97)))) ->  | S98: =IF(B98="","",IF($B$31=0,"",-'Debt Financing Calculations'!E47)) ->  | U98: =IF(C98="","",IF(C98<-1,0,IF(C98=anal_period,-LOOKUP(C98,depr_yr,depr_cost)-Depreciation!$C$141-Depreciation!$B$166,-LOOKUP(C98,depr_yr,depr_cost)))) ->  | Z98: =IF(C98="","",IF($B$31=0,"",-'Debt Financing Calculations'!F47)) -> 
B99: =IF(MAX($B$65:B98)<(construct+anal_period),B98+1,"") ->  | I99: =IF(OR(C99<0,C99=""),"",-E99*INDEX('Replacement Costs'!$A$15:$G$56,MATCH(C99,'Replacement Costs'!$C$15:$C$56,0),MATCH("Total Yearly Replacement Costs",'Replacement Costs'!$A$15:$G$15,0))) ->  | J99: =IF(AND(C99>=1,C99<anal_period),WorkingCap*SUM(N99:R99)-WorkingCap*SUM(N98:R98),IF(C99<0,0,IF(B99="","",-SUM(J$65:J98)))) ->  | S99: =IF(B99="","",IF($B$31=0,"",-'Debt Financing Calculations'!E48)) ->  | U99: =IF(C99="","",IF(C99<-1,0,IF(C99=anal_period,-LOOKUP(C99,depr_yr,depr_cost)-Depreciation!$C$141-Depreciation!$B$166,-LOOKUP(C99,depr_yr,depr_cost)))) ->  | Z99: =IF(C99="","",IF($B$31=0,"",-'Debt Financing Calculations'!F48)) -> 
B100: =IF(MAX($B$65:B99)<(construct+anal_period),B99+1,"") ->  | I100: =IF(OR(C100<0,C100=""),"",-E100*INDEX('Replacement Costs'!$A$15:$G$56,MATCH(C100,'Replacement Costs'!$C$15:$C$56,0),MATCH("Total Yearly Replacement Costs",'Replacement Costs'!$A$15:$G$15,0))) ->  | J100: =IF(AND(C100>=1,C100<anal_period),WorkingCap*SUM(N100:R100)-WorkingCap*SUM(N99:R99),IF(C100<0,0,IF(B100="","",-SUM(J$65:J99)))) ->  | S100: =IF(B100="","",IF($B$31=0,"",-'Debt Financing Calculations'!E49)) ->  | U100: =IF(C100="","",IF(C100<-1,0,IF(C100=anal_period,-LOOKUP(C100,depr_yr,depr_cost)-Depreciation!$C$141-Depreciation!$B$166,-LOOKUP(C100,depr_yr,depr_cost)))) ->  | Z100: =IF(C100="","",IF($B$31=0,"",-'Debt Financing Calculations'!F49)) -> 
B101: =IF(MAX($B$65:B100)<(construct+anal_period),B100+1,"") ->  | I101: =IF(OR(C101<0,C101=""),"",-E101*INDEX('Replacement Costs'!$A$15:$G$56,MATCH(C101,'Replacement Costs'!$C$15:$C$56,0),MATCH("Total Yearly Replacement Costs",'Replacement Costs'!$A$15:$G$15,0))) ->  | J101: =IF(AND(C101>=1,C101<anal_period),WorkingCap*SUM(N101:R101)-WorkingCap*SUM(N100:R100),IF(C101<0,0,IF(B101="","",-SUM(J$65:J100)))) ->  | S101: =IF(B101="","",IF($B$31=0,"",-'Debt Financing Calculations'!E50)) ->  | U101: =IF(C101="","",IF(C101<-1,0,IF(C101=anal_period,-LOOKUP(C101,depr_yr,depr_cost)-Depreciation!$C$141-Depreciation!$B$166,-LOOKUP(C101,depr_yr,depr_cost)))) ->  | Z101: =IF(C101="","",IF($B$31=0,"",-'Debt Financing Calculations'!F50)) -> 
B102: =IF(MAX($B$65:B101)<(construct+anal_period),B101+1,"") ->  | I102: =IF(OR(C102<0,C102=""),"",-E102*INDEX('Replacement Costs'!$A$15:$G$56,MATCH(C102,'Replacement Costs'!$C$15:$C$56,0),MATCH("Total Yearly Replacement Costs",'Replacement Costs'!$A$15:$G$15,0))) ->  | J102: =IF(AND(C102>=1,C102<anal_period),WorkingCap*SUM(N102:R102)-WorkingCap*SUM(N101:R101),IF(C102<0,0,IF(B102="","",-SUM(J$65:J101)))) ->  | S102: =IF(B102="","",IF($B$31=0,"",-'Debt Financing Calculations'!E51)) ->  | U102: =IF(C102="","",IF(C102<-1,0,IF(C102=anal_period,-LOOKUP(C102,depr_yr,depr_cost)-Depreciation!$C$141-Depreciation!$B$166,-LOOKUP(C102,depr_yr,depr_cost)))) ->  | Z102: =IF(C102="","",IF($B$31=0,"",-'Debt Financing Calculations'!F51)) -> 
B103: =IF(MAX($B$65:B102)<(construct+anal_period),B102+1,"") ->  | I103: =IF(OR(C103<0,C103=""),"",-E103*INDEX('Replacement Costs'!$A$15:$G$56,MATCH(C103,'Replacement Costs'!$C$15:$C$56,0),MATCH("Total Yearly Replacement Costs",'Replacement Costs'!$A$15:$G$15,0))) ->  | J103: =IF(AND(C103>=1,C103<anal_period),WorkingCap*SUM(N103:R103)-WorkingCap*SUM(N102:R102),IF(C103<0,0,IF(B103="","",-SUM(J$65:J102)))) ->  | S103: =IF(B103="","",IF($B$31=0,"",-'Debt Financing Calculations'!E52)) ->  | U103: =IF(C103="","",IF(C103<-1,0,IF(C103=anal_period,-LOOKUP(C103,depr_yr,depr_cost)-Depreciation!$C$141-Depreciation!$B$166,-LOOKUP(C103,depr_yr,depr_cost)))) ->  | Z103: =IF(C103="","",IF($B$31=0,"",-'Debt Financing Calculations'!F52)) -> 
B104: =IF(MAX($B$65:B103)<(construct+anal_period),B103+1,"") ->  | I104: =IF(OR(C104<0,C104=""),"",-E104*INDEX('Replacement Costs'!$A$15:$G$56,MATCH(C104,'Replacement Costs'!$C$15:$C$56,0),MATCH("Total Yearly Replacement Costs",'Replacement Costs'!$A$15:$G$15,0))) ->  | J104: =IF(AND(C104>=1,C104<anal_period),WorkingCap*SUM(N104:R104)-WorkingCap*SUM(N103:R103),IF(C104<0,0,IF(B104="","",-SUM(J$65:J103)))) ->  | S104: =IF(B104="","",IF($B$31=0,"",-'Debt Financing Calculations'!E53)) ->  | U104: =IF(C104="","",IF(C104<-1,0,IF(C104=anal_period,-LOOKUP(C104,depr_yr,depr_cost)-Depreciation!$C$141-Depreciation!$B$166,-LOOKUP(C104,depr_yr,depr_cost)))) ->  | Z104: =IF(C104="","",IF($B$31=0,"",-'Debt Financing Calculations'!F53)) -> 
B105: =IF(MAX($B$65:B104)<(construct+anal_period),B104+1,"") ->  | I105: =IF(OR(C105<0,C105=""),"",-E105*INDEX('Replacement Costs'!$A$15:$G$56,MATCH(C105,'Replacement Costs'!$C$15:$C$56,0),MATCH("Total Yearly Replacement Costs",'Replacement Costs'!$A$15:$G$15,0))) ->  | J105: =IF(AND(C105>=1,C105<anal_period),WorkingCap*SUM(N105:R105)-WorkingCap*SUM(N104:R104),IF(C105<0,0,IF(B105="","",-SUM(J$65:J104)))) ->  | S105: =IF(B105="","",IF($B$31=0,"",-'Debt Financing Calculations'!E54)) ->  | U105: =IF(C105="","",IF(C105<-1,0,IF(C105=anal_period,-LOOKUP(C105,depr_yr,depr_cost)-Depreciation!$C$141-Depreciation!$B$166,-LOOKUP(C105,depr_yr,depr_cost)))) ->  | Z105: =IF(C105="","",IF($B$31=0,"",-'Debt Financing Calculations'!F54)) -> 
B106: =IF(MAX($B$65:B105)<(construct+anal_period),B105+1,"") ->  | I106: =IF(OR(C106<0,C106=""),"",-E106*INDEX('Replacement Costs'!$A$15:$G$56,MATCH(C106,'Replacement Costs'!$C$15:$C$56,0),MATCH("Total Yearly Replacement Costs",'Replacement Costs'!$A$15:$G$15,0))) ->  | J106: =IF(AND(C106>=1,C106<anal_period),WorkingCap*SUM(N106:R106)-WorkingCap*SUM(N105:R105),IF(C106<0,0,IF(B106="","",-SUM(J$65:J105)))) ->  | S106: =IF(B106="","",IF($B$31=0,"",-'Debt Financing Calculations'!E55)) ->  | U106: =IF(C106="","",IF(C106<-1,0,IF(C106=anal_period,-LOOKUP(C106,depr_yr,depr_cost)-Depreciation!$C$141-Depreciation!$B$166,-LOOKUP(C106,depr_yr,depr_cost)))) ->  | Z106: =IF(C106="","",IF($B$31=0,"",-'Debt Financing Calculations'!F55)) -> 
B107: =IF(MAX($B$65:B106)<(construct+anal_period),B106+1,"") ->  | I107: =IF(OR(C107<0,C107=""),"",-E107*INDEX('Replacement Costs'!$A$15:$G$56,MATCH(C107,'Replacement Costs'!$C$15:$C$56,0),MATCH("Total Yearly Replacement Costs",'Replacement Costs'!$A$15:$G$15,0))) ->  | J107: =IF(AND(C107>=1,C107<anal_period),WorkingCap*SUM(N107:R107)-WorkingCap*SUM(N106:R106),IF(C107<0,0,IF(B107="","",-SUM(J$65:J106)))) ->  | S107: =IF(B107="","",IF($B$31=0,"",-'Debt Financing Calculations'!E56)) ->  | U107: =IF(C107="","",IF(C107<-1,0,IF(C107=anal_period,-LOOKUP(C107,depr_yr,depr_cost)-Depreciation!$C$141-Depreciation!$B$166,-LOOKUP(C107,depr_yr,depr_cost)))) ->  | Z107: =IF(C107="","",IF($B$31=0,"",-'Debt Financing Calculations'!F56)) -> 
B108: =IF(MAX($B$65:B107)<(construct+anal_period),B107+1,"") ->  | I108: =IF(OR(C108<0,C108=""),"",-E108*INDEX('Replacement Costs'!$A$15:$G$56,MATCH(C108,'Replacement Costs'!$C$15:$C$56,0),MATCH("Total Yearly Replacement Costs",'Replacement Costs'!$A$15:$G$15,0))) ->  | J108: =IF(AND(C108>=1,C108<anal_period),WorkingCap*SUM(N108:R108)-WorkingCap*SUM(N107:R107),IF(C108<0,0,IF(B108="","",-SUM(J$65:J107)))) ->  | S108: =IF(B108="","",IF($B$31=0,"",-'Debt Financing Calculations'!E57)) ->  | U108: =IF(C108="","",IF(C108<-1,0,IF(C108=anal_period,-LOOKUP(C108,depr_yr,depr_cost)-Depreciation!$C$141-Depreciation!$B$166,-LOOKUP(C108,depr_yr,depr_cost)))) ->  | Z108: =IF(C108="","",IF($B$31=0,"",-'Debt Financing Calculations'!F57)) -> 
B109: =IF(MAX($B$65:B108)<(construct+anal_period),B108+1,"") ->  | I109: =IF(OR(C109<0,C109=""),"",-E109*INDEX('Replacement Costs'!$A$15:$G$56,MATCH(C109,'Replacement Costs'!$C$15:$C$56,0),MATCH("Total Yearly Replacement Costs",'Replacement Costs'!$A$15:$G$15,0))) ->  | J109: =IF(AND(C109>=1,C109<anal_period),WorkingCap*SUM(N109:R109)-WorkingCap*SUM(N108:R108),IF(C109<0,0,IF(B109="","",-SUM(J$65:J108)))) ->  | S109: =IF(B109="","",IF($B$31=0,"",-'Debt Financing Calculations'!E58)) ->  | U109: =IF(C109="","",IF(C109<-1,0,IF(C109=anal_period,-LOOKUP(C109,depr_yr,depr_cost)-Depreciation!$C$141-Depreciation!$B$166,-LOOKUP(C109,depr_yr,depr_cost)))) ->  | Z109: =IF(C109="","",IF($B$31=0,"",-'Debt Financing Calculations'!F58)) -> 
B110: =IF(MAX($B$65:B109)<(construct+anal_period),B109+1,"") ->  | I110: =IF(OR(C110<0,C110=""),"",-E110*INDEX('Replacement Costs'!$A$15:$G$56,MATCH(C110,'Replacement Costs'!$C$15:$C$56,0),MATCH("Total Yearly Replacement Costs",'Replacement Costs'!$A$15:$G$15,0))) ->  | J110: =IF(AND(C110>=1,C110<anal_period),WorkingCap*SUM(N110:R110)-WorkingCap*SUM(N109:R109),IF(C110<0,0,IF(B110="","",-SUM(J$65:J109)))) ->  | S110: =IF(B110="","",IF($B$31=0,"",-'Debt Financing Calculations'!E59)) ->  | U110: =IF(C110="","",IF(C110<-1,0,IF(C110=anal_period,-LOOKUP(C110,depr_yr,depr_cost)-Depreciation!$C$141-Depreciation!$B$166,-LOOKUP(C110,depr_yr,depr_cost)))) ->  | Z110: =IF(C110="","",IF($B$31=0,"",-'Debt Financing Calculations'!F59)) -> 
B111: =IF(MAX($B$65:B110)<(construct+anal_period),B110+1,"") ->  | I111: =IF(OR(C111<0,C111=""),"",-E111*INDEX('Replacement Costs'!$A$15:$G$56,MATCH(C111,'Replacement Costs'!$C$15:$C$56,0),MATCH("Total Yearly Replacement Costs",'Replacement Costs'!$A$15:$G$15,0))) ->  | J111: =IF(AND(C111>=1,C111<anal_period),WorkingCap*SUM(N111:R111)-WorkingCap*SUM(N110:R110),IF(C111<0,0,IF(B111="","",-SUM(J$65:J110)))) ->  | S111: =IF(B111="","",IF($B$31=0,"",-'Debt Financing Calculations'!E60)) ->  | U111: =IF(C111="","",IF(C111<-1,0,IF(C111=anal_period,-LOOKUP(C111,depr_yr,depr_cost)-Depreciation!$C$141-Depreciation!$B$166,-LOOKUP(C111,depr_yr,depr_cost)))) ->  | Z111: =IF(C111="","",IF($B$31=0,"",-'Debt Financing Calculations'!F60)) -> 
B112: =IF(MAX($B$65:B111)<(construct+anal_period),B111+1,"") ->  | I112: =IF(OR(C112<0,C112=""),"",-E112*INDEX('Replacement Costs'!$A$15:$G$56,MATCH(C112,'Replacement Costs'!$C$15:$C$56,0),MATCH("Total Yearly Replacement Costs",'Replacement Costs'!$A$15:$G$15,0))) ->  | J112: =IF(AND(C112>=1,C112<anal_period),WorkingCap*SUM(N112:R112)-WorkingCap*SUM(N111:R111),IF(C112<0,0,IF(B112="","",-SUM(J$65:J111)))) ->  | O112: =IF(C112="","",IF(C112<0,0,IF(AND(C112=1,start_time<1),-(SUM(B279:E279)*output_kgyear*E112*percnt_var*start_time+SUM(B279:E279)*output_kgyear*E112*(1-start_time)),IF(C112<=start_time,-SUM(B279:E279)*output_kgyear*E112*percnt_var,-SUM(B279:E279)*output_kgyear*E112)))) ->  | Q112: =IF(C112="","",IF(C112<0,0,IF(AND(C112=1,start_time<1),SUM(K279:N279,T279:V279)*output_kgyear*E112*percnt_var*start_time+SUM(K279:N279,T279:V279)*output_kgyear*E112*(1-start_time),IF(C112<=start_time,SUM(K279:N279,T279:V279)*output_kgyear*E112*percnt_var,SUM(K279:N279,T279:V279)*output_kgyear*E112)))) ->  | R112: =IF(C112="","",IF(C112<0,0,IF(AND(C112=1,start_time<1),-((SUM(F279:I279,P279:R279)*output_kgyear+inflated_othervar)*E112*percnt_var*start_time+(SUM(F279:I279,P279:R279)*output_kgyear+inflated_othervar)*E112*(1-start_time)),IF(C112<=start_time,-(SUM(F279:I279,P279:R279)*output_kgyear+inflated_othervar)*E112*percnt_var,-E112*(SUM(F279:I279,P279:R279)*output_kgyear+inflated_othervar))))) ->  | S112: =IF(B112="","",IF($B$31=0,"",-'Debt Financing Calculations'!E61)) ->  | U112: =IF(C112="","",IF(C112<-1,0,IF(C112=anal_period,-LOOKUP(C112,depr_yr,depr_cost)-Depreciation!$C$141-Depreciation!$B$166,-LOOKUP(C112,depr_yr,depr_cost)))) ->  | Z112: =IF(C112="","",IF($B$31=0,"",-'Debt Financing Calculations'!F61)) -> 
B113: =IF(MAX($B$65:B112)<(construct+anal_period),B112+1,"") ->  | I113: =IF(OR(C113<0,C113=""),"",-E113*INDEX('Replacement Costs'!$A$15:$G$56,MATCH(C113,'Replacement Costs'!$C$15:$C$56,0),MATCH("Total Yearly Replacement Costs",'Replacement Costs'!$A$15:$G$15,0))) ->  | J113: =IF(AND(C113>=1,C113<anal_period),WorkingCap*SUM(N113:R113)-WorkingCap*SUM(N112:R112),IF(C113<0,0,IF(B113="","",-SUM(J$65:J112)))) ->  | O113: =IF(C113="","",IF(C113<0,0,IF(AND(C113=1,start_time<1),-(SUM(B280:D280)*output_kgyear*E113*percnt_var*start_time+SUM(B280:D280)*output_kgyear*E113*(1-start_time)),IF(C113<=start_time,-SUM(B280:D280)*output_kgyear*E113*percnt_var,-SUM(B280:D280)*output_kgyear*E113)))) ->  | Q113: =IF(C113="","",IF(C113<0,0,IF(AND(C113=1,start_time<1),SUM(J280:M280,S280:U280)*output_kgyear*E113*percnt_var*start_time+SUM(J280:M280,S280:U280)*output_kgyear*E113*(1-start_time),IF(C113<=start_time,SUM(J280:M280,S280:U280)*output_kgyear*E113*percnt_var,SUM(J280:M280,S280:U280)*output_kgyear*E113)))) ->  | R113: =IF(C113="","",IF(C113<0,0,IF(AND(C113=1,start_time<1),-((SUM(E280:H280,O280:Q280)*output_kgyear+inflated_othervar)*E113*percnt_var*start_time+(SUM(E280:H280,O280:Q280)*output_kgyear+inflated_othervar)*E113*(1-start_time)),IF(C113<=start_time,-(SUM(E280:H280,O280:Q280)*output_kgyear+inflated_othervar)*E113*percnt_var,-E113*(SUM(E280:H280,O280:Q280)*output_kgyear+inflated_othervar))))) ->  | S113: =IF(B113="","",IF($B$31=0,"",-'Debt Financing Calculations'!E62)) ->  | U113: =IF(C113="","",IF(C113<-1,0,IF(C113=anal_period,-LOOKUP(C113,depr_yr,depr_cost)-Depreciation!$C$141-Depreciation!$B$166,-LOOKUP(C113,depr_yr,depr_cost)))) ->  | Z113: =IF(C113="","",IF($B$31=0,"",-'Debt Financing Calculations'!F62)) ->  | AE113: =IF(C113="","",IF(C113<0,0,IF(AND(C113=1,start_time<1),(output_kgyear*start_time*percnt_revs+output_kgyear*(1-start_time)),IF(C113<=start_time,output_kgyear*percnt_revs,output_kgyear)))) -> 
E114: Cumulative Total | F114: =SUM(F65:F113) -> 62396225.65 | G114: 0 | H114: -4599356.56 | I114: -1261767.066 | J114: 0 | K114: 0 | L114: 670163.4825 | M114: -670163.4825 | N114: -5015907.665 | O114: -41483291.66 | P114: 0 | Q114: 0 | R114: -151754.3418 | S114: 0 | T114: 15745271.99 | U114: -5861123.626 | V114: 9884148.36 | W114: 8.169 | X114: -3844933.712 | Y114: 11900338.27 | Z114: 0 | AA114: 6039214.648 | AB114: 28853862.89 | AC114: 9884148.36
E115: PV of Cash Flow | F115: =NPV(nominal_irr,F65:F113) -> 19332549.8 | G115: 0 | H115: -4103271.086 | I115: -319286.3645 | J115: -14805.88598 | K115: 0 | L115: 60992.5101 | M115: -60992.5101 | N115: -1554104.975 | O115: =NPV(nominal_irr,$O$65:$O$113) -> -12398867.84 | P115: 0 | Q115: 0 | R115: -47018.84352 | S115: 0 | T115: 5332558.14 | U115: -3031286.152 | V115: 2301271.988 | W115: 2.924702806 | X115: -895194.8033 | Y115: 4437363.337 | Z115: 0 | AA115: 5.73819835e-09 | AB115: -4546214.391 | AC115: 895194.8033
E116: Discounted Values | F116: =+F65+NPV($X$59,F66:F113) -> 21669855.07 | G116: 0 | H116: -4599356.56 | I116: -357888.086 | J116: -16595.9176 | K116: 0 | L116: 68366.50457 | M116: -68366.50457 | N116: -1741996.267 | O116: -13897890.96 | P116: 0 | Q116: 0 | R116: -52703.4217 | S116: 0 | T116: 5977264.419 | U116: -3397768.648 | V116: 2579495.771 | W116: 3.278299375 | X116: -1003423.855 | Y116: 4973840.564 | Z116: 0 | AA116: 8.381903172e-09 | AB116: -5095851.711 | AC116: 1003423.855 | AE116: =+AE65+NPV(real_irr,AE66:AE113) -> 4007066.703 | AF116: =+AF65+NPV($X$59,AF66:AF113) -> 0
A117: Specific Item Cost Calculation | E117: Expenses $/kg H2 | H117: =-H116/$AE$116*(1+inflation_rate)^construct/INFLATION_FACTOR -> 1.105406819 | I117: =-I116/$AE$116*(1+inflation_rate)^construct/INFLATION_FACTOR -> 0.08601462517 | J117: =-J116/$AE$116*(1+inflation_rate)^construct/INFLATION_FACTOR -> 0.00398865368 | K117: =-K116/$AE$116*(1+inflation_rate)^construct/INFLATION_FACTOR -> 0 | M117: =-M116/$AE$116*(1+inflation_rate)^construct/INFLATION_FACTOR -> 0.016431168 | N117: =-N116/$AE$116*(1+inflation_rate)^construct/INFLATION_FACTOR -> 0.4186704219 | O117: =-O116/$AE$116*(1+inflation_rate)^construct/INFLATION_FACTOR -> 3.340211448 | P117: =-P116/$AE$116*(1+inflation_rate)^construct/INFLATION_FACTOR -> 0 | R117: =-R116/$AE$116*(1+inflation_rate)^construct/INFLATION_FACTOR -> 0.0126667113 | S117: =-S116/$AE$116*(1+inflation_rate)^construct/INFLATION_FACTOR -> 0 | X117: =-X116/$AE$116*(1+inflation_rate)^construct/INFLATION_FACTOR -> 0.2411623358 | Z117: =-Z116/$AE$116*(1+inflation_rate)^construct/INFLATION_FACTOR -> 0 | AG117: =+SUM(F117:AC117) -> 5.224552182
A118: Cost Component | B118: After Tax Present Value | C118: % of Total | D118: $/kg of H2 | E118: Revenues $/kg H2 | F118: =F116/$AE$116*(1+inflation_rate)^construct/INFLATION_FACTOR -> 5.208121014 | L118: =L116/$AE$116*(1+inflation_rate)^construct/INFLATION_FACTOR -> 0.016431168 | Q118: =Q116/$AE$116*(1+inflation_rate)^construct/INFLATION_FACTOR -> 0 | AG118: =+SUM(F118:AC118) -> 5.224552182
A119: Capital-Related Costs | B119: =(SUM(H115:K115)+L115*(1-total_tax_rate)+S115*(1-total_tax_rate)+U115*(-total_tax_rate)+Z115)/(1-total_tax_rate) -> -5271565.63 | C119: =B119/SUM($B$118:$B$125) -> 0.2726782387 | D119: =H2_price_real*C119 -> 1.420141265
A120: Decommissioning Costs | B120: =M115 -> -60992.5101 | C120: 0.003154912866 | D120: 0.016431168
A121: Fixed O&M | B121: =N115 -> -1554104.975 | C121: 0.08038799803 | D121: 0.4186704219
A122: Feedstock Costs | B122: =O115 -> -12398867.84 | C122: 0.6413467427 | D122: 3.340211448
A123: Other Raw Material Costs | B123: =P115 -> 0 | C123: 0 | D123: 0
A124: Byproduct Credits | B124: =Q115 -> 0 | C124: 0 | D124: 0
A125: Other Variable Costs (including utilities) | B125: =R115 -> -47018.84352 | C125: 0.002432107715 | D125: 0.0126667113
A128: INFLATION FACTOR (1 + inflation rate)^(startup year - reference year) = | B128: =(1+inflation_rate)^(startup_year-ref_year) -> 1.058089859
A129: Feedstock, Utility and Byproduct Cost Information (Start-Up Year $)
B130: Energy Feedstocks | F130: Energy Utilities | J130: Forecourt Station Electricity Usage | K130: Energy Byproducts | O130: Other Material Inputs | S130: Other Material Byproducts
A131: Feedstock Name | B131: =Input_Sheet_Template!$B$125 -> Industrial Electricity | J131: =IF(FC_CashFlow_euse>0,"Commercial Electricity","") -> Commercial Electricity | O131: Type | P131: =Input_Sheet_Template!$B$144 -> Process Water | S131: Type
A132: Conversion to $/GJ | B132: =Input_Sheet_Template!$C$125 -> 0.0036 | J132: =IF(J131="",0,VLOOKUP(J131,MASTER_PROPERTY_TABLE,9,FALSE)) -> 0.0036 | O132: Usage (/kg H2) | P132: =Input_Sheet_Template!$D$144 -> 4.76 | S132: Usage (/kg H2)
A133: Usage (/kg H2) | B133: =feedstockIndustrial_Electricity_Usage -> 54.6 | J133: =FC_eUse_kWhpkg -> 4.209735366 | O133: Cost (/usage unit) | P133: =Input_Sheet_Template!$C$144 -> 0.001807665884 | S133: Price (/usage unit)
A134: Price ($/ usage unit) | B134: =feedstockIndustrial_Electricity_Price -> 0.05742314849 | J134: =IF(J131="",0,StartYr_comm_electricity) -> 0.0868102485 | O134: Lookup Price? | P134: =Input_Sheet_Template!$F$144 -> Yes | S134: Lookup Price?
A135: Lookup Price? | B135: =Input_Sheet_Template!$G$125 -> yes | J135: =IF(J131="","","yes") -> yes
A136: CO2 Emissions (kg CO2/kg H2) | B136: =IF(B131="",0,VLOOKUP(B131,MASTER_PROPERTY_TABLE,11,FALSE)*B132*B133) -> 0 | C136: =IF(C131="",0,VLOOKUP(C131,MASTER_PROPERTY_TABLE,11,FALSE)*C132*C133) -> 0 | D136: =IF(D131="",0,VLOOKUP(D131,MASTER_PROPERTY_TABLE,11,FALSE)*D132*D133) -> 0 | E136: =IF(E131="",0,VLOOKUP(E131,MASTER_PROPERTY_TABLE,11,FALSE)*E132*E133) -> 0 | F136: =IF(F131="",,VLOOKUP(F131,MASTER_PROPERTY_TABLE,11,FALSE)*F132*F133) -> 0 | G136: =IF(G131="",,VLOOKUP(G131,MASTER_PROPERTY_TABLE,11,FALSE)*G132*G133) -> 0 | H136: =IF(H131="",,VLOOKUP(H131,MASTER_PROPERTY_TABLE,11,FALSE)*H132*H133) -> 0 | I136: =IF(I131="",,VLOOKUP(I131,MASTER_PROPERTY_TABLE,11,FALSE)*I132*I133) -> 0 | J136: =IF($J$131="",0,VLOOKUP($J$131,MASTER_PROPERTY_TABLE,12,FALSE)*$J$132*$J$133) -> 0
A137: Actual Year | B137: =IF(B$131="","",B$131&" ($/kg of H2)") -> Industrial Electricity ($/kg of H2) | P137: =IF(P$131="","",P$131&" ($/kg of H2)") -> Process Water ($/kg of H2) | Q137: =IF(Q$131="","",Q$131&" ($/kg of H2)") ->  | R137: =IF(R$131="","",R$131&" ($/kg of H2)") ->  | T137: =IF(T$131="","",T$131&" ($/kg of H2)") ->  | U137: =IF(U$131="","",U$131&" ($/kg of H2)") ->  | V137: =IF(V$131="","",V$131&" ($/kg of H2)") -> 
A138: =IF(A65="","",A65) -> 2009 | B138: =IF($A138="","",IF($B$131="","",IF($B$135="no",INFLATION_FACTOR*$B$133*$B$134,INFLATION_FACTOR*$B$133*$B$132*INDEX(FEEDPRICETABLE,MATCH($B$131,List_Energy_Feedstocks,0),MATCH($A138,Feedstock_Year,0))))) -> 3.777018458 | C138: =IF($A138="","",IF($C$131="","",IF($C$135="no",INFLATION_FACTOR*$C$133*$C$134,INFLATION_FACTOR*$C$133*$C$132*INDEX(FEEDPRICETABLE,MATCH($C$131,List_Energy_Feedstocks,0),MATCH($A138,Feedstock_Year,0))))) ->  | D138: =IF($A138="","",IF($D$131="","",IF($D$135="no",INFLATION_FACTOR*$D$133*$D$134,INFLATION_FACTOR*$D$133*$D$132*INDEX(FEEDPRICETABLE,MATCH($D$131,List_Energy_Feedstocks,0),MATCH($A138,Feedstock_Year,0))))) ->  | E138: =IF($A138="","",IF($E$131="","",IF($E$135="no",INFLATION_FACTOR*$E$133*$E$134,INFLATION_FACTOR*$E$133*$E$132*INDEX(FEEDPRICETABLE,MATCH($E$131,List_Energy_Feedstocks,0),MATCH($A138,Feedstock_Year,0))))) ->  | F138: =IF($A138="","",IF($F$131="","",IF($F$135="no",INFLATION_FACTOR*$F$133*$F$134,INFLATION_FACTOR*$F$133*$F$132*INDEX(FEEDPRICETABLE,MATCH($F$131,List_Energy_Feedstocks,0),MATCH($A138,Feedstock_Year,0))))) ->  | G138: =IF($A138="","",IF($G$131="","",IF($G$135="no",INFLATION_FACTOR*$G$133*$G$134,INFLATION_FACTOR*$G$133*$G$132*INDEX(FEEDPRICETABLE,MATCH($G$131,List_Energy_Feedstocks,0),MATCH($A138,Feedstock_Year,0))))) ->  | H138: =IF($A138="","",IF($H$131="","",IF($H$135="no",INFLATION_FACTOR*$H$133*$H$134,INFLATION_FACTOR*$H$133*$H$132*INDEX(FEEDPRICETABLE,MATCH(H$131,List_Energy_Feedstocks,0),MATCH($A138,Feedstock_Year,0))))) ->  | I138: =IF($A138="","",IF($I$131="","",IF($I$135="no",INFLATION_FACTOR*$I$133*$I$134,INFLATION_FACTOR*$I$133*$I$132*INDEX(FEEDPRICETABLE,MATCH($I$131,List_Energy_Feedstocks,0),MATCH($A138,Feedstock_Year,0))))) ->  | J138: =IF($A138="","",IF($J$131="","",IF($J$135="no",INFLATION_FACTOR*$J$133*$J$134,INFLATION_FACTOR*$J$133*$J$132*INDEX(FEEDPRICETABLE,MATCH($J$131,List_Energy_Feedstocks,0),MATCH($A138,Feedstock_Year,0))))) -> 0.4196072749 | K138: =IF($A138="","",IF($K$131="","",IF($K$135="no",INFLATION_FACTOR*$K$133*$K$134,INFLATION_FACTOR*$K$133*$K$132*INDEX(FEEDPRICETABLE,MATCH($K$131,List_Energy_Feedstocks,0),MATCH($A138,Feedstock_Year,0))))) ->  | L138: =IF($A138="","",IF($L$131="","",IF($L$135="no",INFLATION_FACTOR*$L$133*$L$134,INFLATION_FACTOR*$L$133*$L$132*INDEX(FEEDPRICETABLE,MATCH($L$131,List_Energy_Feedstocks,0),MATCH($A138,Feedstock_Year,0))))) ->  | M138: =IF($A138="","",IF(M$131="","",IF($M$135="no",INFLATION_FACTOR*$M$133*$M$134,INFLATION_FACTOR*$M$133*$M$132*INDEX(FEEDPRICETABLE,MATCH($M$131,List_Energy_Feedstocks,0),MATCH($A138,Feedstock_Year,0))))) ->  | N138: =IF($A138="","",IF($N$131="","",IF($N$135="no",INFLATION_FACTOR*$N$133*$N$134,INFLATION_FACTOR*$N$133*$N$132*INDEX(FEEDPRICETABLE,MATCH($N$131,List_Energy_Feedstocks,0),MATCH($A138,Feedstock_Year,0))))) ->  | P138: =IF(OR($A138="",$P$131=""),"",IF($P$134="No",INFLATION_FACTOR*$P$132*$P$133,INFLATION_FACTOR*$P$132*INDEX(Tbl_Other_Inputs_and_Byproducts,MATCH($P$131,Other_Inputs_List,0),MATCH($A138,Other_Inputs_years,0)))) -> 0.009104323194 | Q138: =IF(OR($A138="",$Q$131=""),"",IF($Q$134="No",INFLATION_FACTOR*$Q$132*$Q$133,INFLATION_FACTOR*$Q$132*INDEX(Tbl_Other_Inputs_and_Byproducts,MATCH($Q$131,Other_Inputs_List,0),MATCH($A138,Other_Inputs_years,0)))) ->  | R138: =IF(OR($A138="",$R$131=""),"",IF($R$134="No",INFLATION_FACTOR*$R$132*$R$133,INFLATION_FACTOR*$R$132*INDEX(Tbl_Other_Inputs_and_Byproducts,MATCH($R$131,Other_Inputs_List,0),MATCH($A138,Other_Inputs_years,0)))) ->  | T138: =IF(OR($A138="",$T$131=""),"",IF($T$134="No",INFLATION_FACTOR*$T$132*$T$133,INFLATION_FACTOR*$T$132*INDEX(Tbl_Other_Inputs_and_Byproducts,MATCH($T$131,Other_Inputs_List,0),MATCH($A138,Other_Inputs_years,0)))) ->  | U138: =IF(OR($A138="",$U$131=""),"",IF($U$134="No",INFLATION_FACTOR*$U$132*$U$133,INFLATION_FACTOR*$U$132*INDEX(Tbl_Other_Inputs_and_Byproducts,MATCH($U$131,Other_Inputs_List,0),MATCH($A138,Other_Inputs_years,0)))) ->  | V138: =IF(OR($A138="",$V$131=""),"",IF($V$134="No",INFLATION_FACTOR*$V$132*$V$133,INFLATION_FACTOR*$V$132*INDEX(Tbl_Other_Inputs_and_Byproducts,MATCH($V$131,Other_Inputs_List,0),MATCH($A138,Other_Inputs_years,0)))) -> 
A139: 2010 | B139: =IF($A139="","",IF($B$131="","",IF($B$135="no",INFLATION_FACTOR*$B$133*$B$134,INFLATION_FACTOR*$B$133*$B$132*INDEX(FEEDPRICETABLE,MATCH($B$131,List_Energy_Feedstocks,0),MATCH($A139,Feedstock_Year,0))))) -> 3.31743327 | F139: =IF($A139="","",IF($F$131="","",IF($F$135="no",INFLATION_FACTOR*$F$133*$F$134,INFLATION_FACTOR*$F$133*$F$132*INDEX(FEEDPRICETABLE,MATCH($F$131,List_Energy_Feedstocks,0),MATCH($A139,Feedstock_Year,0))))) ->  | J139: 0.3774868062 | P139: 0.009104323194
A140: 2011 | B140: 3.403411285 | J140: 0.3888205144 | P140: 0.009104323194
A141: 2012 | B141: 3.38207367 | J141: 0.3866770061 | P141: 0.009104323194
A142: 2013 | B142: =IF($A142="","",IF($B$131="","",IF($B$135="no",INFLATION_FACTOR*$B$133*$B$134,INFLATION_FACTOR*$B$133*$B$132*INDEX(FEEDPRICETABLE,MATCH($B$131,List_Energy_Feedstocks,0),MATCH($A142,Feedstock_Year,0))))) -> 3.367788056 | J142: 0.387131521 | P142: 0.009104323194
A143: 2014 | B143: 3.390503735 | J143: 0.3902041496 | P143: 0.009104323194
A144: 2015 | B144: 3.414024068 | J144: 0.391587292 | P144: 0.009104323194
A145: 2016 | B145: 3.472559627 | J145: 0.3967153844 | P145: 0.009104323194
A146: 2017 | B146: 3.53073046 | J146: 0.4022992673 | P146: 0.009104323194
A147: 2018 | B147: 3.589874398 | J147: 0.4086460673 | P147: 0.009104323194
A148: 2019 | B148: 3.638509707 | J148: 0.4129602481 | P148: 0.009104323194
A149: 2020 | B149: 3.706742473 | J149: 0.4198100063 | P149: 0.009104323194
A150: 2021 | B150: 3.762375262 | J150: 0.4256213206 | P150: 0.009104323194
A151: 2022 | B151: 3.805931476 | J151: 0.4293141745 | P151: 0.009104323194
A152: 2023 | B152: 3.80557239 | J152: 0.4284169149 | P152: 0.009104323194
A153: 2024 | B153: 3.809715605 | J153: 0.4286733949 | P153: 0.009104323194
A154: 2025 | B154: 3.809610323 | J154: 0.4277076594 | P154: 0.009104323194
A155: 2026 | B155: 3.815407215 | J155: 0.4282967198 | P155: 0.009104323194
A156: 2027 | B156: 3.866793387 | J156: 0.4331106119 | P156: 0.009104323194
A157: 2028 | B157: 3.937270912 | J157: 0.4395002021 | P157: 0.009104323194
A158: 2029 | B158: 4.000809237 | J158: 0.4451824501 | P158: 0.009104323194
A184: Tables to calculate equivalent price in startup year
A185: Actual Year | B185: =IF(B$131="","",B$131&" ($/year)") -> Industrial Electricity ($/year) | C185: =IF(C$131="","",C$131&" ($/year)") ->  | J185: Commercial Electricity ($/year)
A186: =+A139 -> 2010 | B186: =IF($C65="","",IF($C65<0,0,IF(AND($C65=1,start_time<1),-(SUM(B139)*output_kgyear*$E65*percnt_var*start_time+SUM(B139)*output_kgyear*$E65*(1-start_time)),IF($C65<=start_time,-SUM(B139)*output_kgyear*$E65*percnt_var,-SUM(B139)*output_kgyear*$E65)))) -> 0 | C186: 0 | D186: 0 | E186: 0 | F186: 0 | G186: 0 | H186: 0 | I186: 0 | J186: 0 | K186: 0 | L186: 0 | M186: 0 | N186: 0
A187: =+A140 -> 2011 | B187: =IF($C66="","",IF($C66<0,0,IF(AND($C66=1,start_time<1),-(SUM(B140)*output_kgyear*$E66*percnt_var*start_time+SUM(B140)*output_kgyear*$E66*(1-start_time)),IF($C66<=start_time,-SUM(B140)*output_kgyear*$E66*percnt_var,-SUM(B140)*output_kgyear*$E66)))) -> -1601878.659 | C187: 0 | D187: 0 | E187: 0 | F187: 0 | G187: 0 | H187: 0 | I187: 0 | J187: -183005.5882 | K187: 0 | L187: 0 | M187: 0 | N187: 0
A188: 2012 | B188: =IF($C67="","",IF($C67<0,0,IF(AND($C67=1,start_time<1),-(SUM(B141)*output_kgyear*$E67*percnt_var*start_time+SUM(B141)*output_kgyear*$E67*(1-start_time)),IF($C67<=start_time,-SUM(B141)*output_kgyear*$E67*percnt_var,-SUM(B141)*output_kgyear*$E67)))) -> -1622080.594 | C188: 0 | D188: 0 | E188: 0 | F188: 0 | G188: 0 | H188: 0 | I188: 0 | J188: -185454.6437 | K188: 0 | L188: 0 | M188: 0 | N188: 0
A189: 2013 | B189: =IF($C68="","",IF($C68<0,0,IF(AND($C68=1,start_time<1),-(SUM(B142)*output_kgyear*$E68*percnt_var*start_time+SUM(B142)*output_kgyear*$E68*(1-start_time)),IF($C68<=start_time,-SUM(B142)*output_kgyear*$E68*percnt_var,-SUM(B142)*output_kgyear*$E68)))) -> -1645918.404 | C189: 0 | D189: 0 | E189: 0 | F189: 0 | G189: 0 | H189: 0 | I189: 0 | J189: -189200.4142 | K189: 0 | L189: 0 | M189: 0 | N189: 0
A190: 2014 | B190: =IF($C69="","",IF($C69<0,0,IF(AND($C69=1,start_time<1),-(SUM(B143)*output_kgyear*$E69*percnt_var*start_time+SUM(B143)*output_kgyear*$E69*(1-start_time)),IF($C69<=start_time,-SUM(B143)*output_kgyear*$E69*percnt_var,-SUM(B143)*output_kgyear*$E69)))) -> -1688503.481 | C190: 0 | D190: 0 | E190: 0 | F190: 0 | G190: 0 | H190: 0 | I190: 0 | J190: -194325.4207 | K190: 0 | L190: 0 | M190: 0 | N190: 0
A191: 2015 | B191: =IF($C70="","",IF($C70<0,0,IF(AND($C70=1,start_time<1),-(SUM(B144)*output_kgyear*$E70*percnt_var*start_time+SUM(B144)*output_kgyear*$E70*(1-start_time)),IF($C70<=start_time,-SUM(B144)*output_kgyear*$E70*percnt_var,-SUM(B144)*output_kgyear*$E70)))) -> -1732520.953 | C191: 0 | D191: 0 | E191: 0 | F191: 0 | G191: 0 | H191: 0 | I191: 0 | J191: -198719.5095 | K191: 0 | L191: 0 | M191: 0 | N191: 0
A192: 2016 | B192: =IF($C71="","",IF($C71<0,0,IF(AND($C71=1,start_time<1),-(SUM(B145)*output_kgyear*$E71*percnt_var*start_time+SUM(B145)*output_kgyear*$E71*(1-start_time)),IF($C71<=start_time,-SUM(B145)*output_kgyear*$E71*percnt_var,-SUM(B145)*output_kgyear*$E71)))) -> -1795708.394 | C192: 0 | D192: 0 | E192: 0 | F192: 0 | G192: 0 | H192: 0 | I192: 0 | J192: -205146.9873 | K192: 0 | L192: 0 | M192: 0 | N192: 0
A193: 2017 | B193: =IF($C72="","",IF($C72<0,0,IF(AND($C72=1,start_time<1),-(SUM(B146)*output_kgyear*$E72*percnt_var*start_time+SUM(B146)*output_kgyear*$E72*(1-start_time)),IF($C72<=start_time,-SUM(B146)*output_kgyear*$E72*percnt_var,-SUM(B146)*output_kgyear*$E72)))) -> -1860479.33 | C193: 0 | D193: 0 | E193: 0 | F193: 0 | G193: 0 | H193: 0 | I193: 0 | J193: -211987.1454 | K193: 0 | L193: 0 | M193: 0 | N193: 0
A194: 2018 | B194: =IF($C73="","",IF($C73<0,0,IF(AND($C73=1,start_time<1),-(SUM(B147)*output_kgyear*$E73*percnt_var*start_time+SUM(B147)*output_kgyear*$E73*(1-start_time)),IF($C73<=start_time,-SUM(B147)*output_kgyear*$E73*percnt_var,-SUM(B147)*output_kgyear*$E73)))) -> -1927585.82 | C194: 0 | D194: 0 | E194: 0 | F194: 0 | G194: 0 | H194: 0 | I194: 0 | J194: -219422.8203 | K194: 0 | L194: 0 | M194: 0 | N194: 0
A195: 2019 | B195: =IF($C74="","",IF($C74<0,0,IF(AND($C74=1,start_time<1),-(SUM(B148)*output_kgyear*$E74*percnt_var*start_time+SUM(B148)*output_kgyear*$E74*(1-start_time)),IF($C74<=start_time,-SUM(B148)*output_kgyear*$E74*percnt_var,-SUM(B148)*output_kgyear*$E74)))) -> -1990820.898 | C195: 0 | D195: 0 | E195: 0 | F195: 0 | G195: 0 | H195: 0 | I195: 0 | J195: -225952.3701 | K195: 0 | L195: 0 | M195: 0 | N195: 0
A196: 2020 | B196: =IF($C75="","",IF($C75<0,0,IF(AND($C75=1,start_time<1),-(SUM(B149)*output_kgyear*$E75*percnt_var*start_time+SUM(B149)*output_kgyear*$E75*(1-start_time)),IF($C75<=start_time,-SUM(B149)*output_kgyear*$E75*percnt_var,-SUM(B149)*output_kgyear*$E75)))) -> -2066689.588 | C196: 0 | D196: 0 | E196: 0 | F196: 0 | G196: 0 | H196: 0 | I196: 0 | J196: -234064.5392 | K196: 0 | L196: 0 | M196: 0 | N196: 0
A197: 2021 | B197: =IF($C76="","",IF($C76<0,0,IF(AND($C76=1,start_time<1),-(SUM(B150)*output_kgyear*$E76*percnt_var*start_time+SUM(B150)*output_kgyear*$E76*(1-start_time)),IF($C76<=start_time,-SUM(B150)*output_kgyear*$E76*percnt_var,-SUM(B150)*output_kgyear*$E76)))) -> -2137564.023 | C197: 0 | D197: 0 | E197: 0 | F197: 0 | G197: 0 | H197: 0 | I197: 0 | J197: -241813.4182 | K197: 0 | L197: 0 | M197: 0 | N197: 0
A198: 2022 | B198: =IF($C77="","",IF($C77<0,0,IF(AND($C77=1,start_time<1),-(SUM(B151)*output_kgyear*$E77*percnt_var*start_time+SUM(B151)*output_kgyear*$E77*(1-start_time)),IF($C77<=start_time,-SUM(B151)*output_kgyear*$E77*percnt_var,-SUM(B151)*output_kgyear*$E77)))) -> -2203394.037 | C198: 0 | D198: 0 | E198: 0 | F198: 0 | G198: 0 | H198: 0 | I198: 0 | J198: -248545.8024 | K198: 0 | L198: 0 | M198: 0 | N198: 0
A199: 2023 | B199: =IF($C78="","",IF($C78<0,0,IF(AND($C78=1,start_time<1),-(SUM(B152)*output_kgyear*$E78*percnt_var*start_time+SUM(B152)*output_kgyear*$E78*(1-start_time)),IF($C78<=start_time,-SUM(B152)*output_kgyear*$E78*percnt_var,-SUM(B152)*output_kgyear*$E78)))) -> -2245046.686 | C199: 0 | D199: 0 | E199: 0 | F199: 0 | G199: 0 | H199: 0 | I199: 0 | J199: -252738.8463 | K199: 0 | L199: 0 | M199: 0 | N199: 0
A200: 2024 | B200: =IF($C79="","",IF($C79<0,0,IF(AND($C79=1,start_time<1),-(SUM(B153)*output_kgyear*$E79*percnt_var*start_time+SUM(B153)*output_kgyear*$E79*(1-start_time)),IF($C79<=start_time,-SUM(B153)*output_kgyear*$E79*percnt_var,-SUM(B153)*output_kgyear*$E79)))) -> -2290193.248 | C200: 0 | D200: 0 | E200: 0 | F200: 0 | G200: 0 | H200: 0 | I200: 0 | J200: -257695.0661 | K200: 0 | L200: 0 | M200: 0 | N200: 0
A201: 2025 | B201: =IF($C80="","",IF($C80<0,0,IF(AND($C80=1,start_time<1),-(SUM(B154)*output_kgyear*$E80*percnt_var*start_time+SUM(B154)*output_kgyear*$E80*(1-start_time)),IF($C80<=start_time,-SUM(B154)*output_kgyear*$E80*percnt_var,-SUM(B154)*output_kgyear*$E80)))) -> -2333642.428 | C201: 0 | D201: 0 | E201: 0 | F201: 0 | G201: 0 | H201: 0 | I201: 0 | J201: -261999.6945 | K201: 0 | L201: 0 | M201: 0 | N201: 0
A202: 2026 | B202: =IF($C81="","",IF($C81<0,0,IF(AND($C81=1,start_time<1),-(SUM(B155)*output_kgyear*$E81*percnt_var*start_time+SUM(B155)*output_kgyear*$E81*(1-start_time)),IF($C81<=start_time,-SUM(B155)*output_kgyear*$E81*percnt_var,-SUM(B155)*output_kgyear*$E81)))) -> -2381600.088 | C202: 0 | D202: 0 | E202: 0 | F202: 0 | G202: 0 | H202: 0 | I202: 0 | J202: -267345.3837 | K202: 0 | L202: 0 | M202: 0 | N202: 0
A203: 2027 | B203: =IF($C82="","",IF($C82<0,0,IF(AND($C82=1,start_time<1),-(SUM(B156)*output_kgyear*$E82*percnt_var*start_time+SUM(B156)*output_kgyear*$E82*(1-start_time)),IF($C82<=start_time,-SUM(B156)*output_kgyear*$E82*percnt_var,-SUM(B156)*output_kgyear*$E82)))) -> -2459535.483 | C203: 0 | D203: 0 | E203: 0 | F203: 0 | G203: 0 | H203: 0 | I203: 0 | J203: -275486.8987 | K203: 0 | L203: 0 | M203: 0 | N203: 0
A204: 2028 | B204: =IF($C83="","",IF($C83<0,0,IF(AND($C83=1,start_time<1),-(SUM(B157)*output_kgyear*$E83*percnt_var*start_time+SUM(B157)*output_kgyear*$E83*(1-start_time)),IF($C83<=start_time,-SUM(B157)*output_kgyear*$E83*percnt_var,-SUM(B157)*output_kgyear*$E83)))) -> -2551946.747 | C204: 0 | D204: 0 | E204: 0 | F204: 0 | G204: 0 | H204: 0 | I204: 0 | J204: -284862.5701 | K204: 0 | L204: 0 | M204: 0 | N204: 0
A205: 2029 | B205: =IF($C84="","",IF($C84<0,0,IF(AND($C84=1,start_time<1),-(SUM(B158)*output_kgyear*$E84*percnt_var*start_time+SUM(B158)*output_kgyear*$E84*(1-start_time)),IF($C84<=start_time,-SUM(B158)*output_kgyear*$E84*percnt_var,-SUM(B158)*output_kgyear*$E84)))) -> -2642398.642 | C205: 0 | D205: 0 | E205: 0 | F205: 0 | G205: 0 | H205: 0 | I205: 0 | J205: -294027.8908 | K205: 0 | L205: 0 | M205: 0 | N205: 0
B206: =IF($C85="","",IF($C85<0,0,IF(AND($C85=1,start_time<1),-(SUM(B159)*output_kgyear*$E85*percnt_var*start_time+SUM(B159)*output_kgyear*$E85*(1-start_time)),IF($C85<=start_time,-SUM(B159)*output_kgyear*$E85*percnt_var,-SUM(B159)*output_kgyear*$E85)))) -> 0 | C206: 0 | D206: 0 | E206: 0 | F206: 0 | G206: 0 | H206: 0 | I206: 0 | J206: 0 | K206: 0 | L206: 0 | M206: 0 | N206: 0
B207: =IF($C86="","",IF($C86<0,0,IF(AND($C86=1,start_time<1),-(SUM(B160)*output_kgyear*$E86*percnt_var*start_time+SUM(B160)*output_kgyear*$E86*(1-start_time)),IF($C86<=start_time,-SUM(B160)*output_kgyear*$E86*percnt_var,-SUM(B160)*output_kgyear*$E86)))) -> 
B208: =IF($C87="","",IF($C87<0,0,IF(AND($C87=1,start_time<1),-(SUM(B161)*output_kgyear*$E87*percnt_var*start_time+SUM(B161)*output_kgyear*$E87*(1-start_time)),IF($C87<=start_time,-SUM(B161)*output_kgyear*$E87*percnt_var,-SUM(B161)*output_kgyear*$E87)))) -> 
B209: =IF($C88="","",IF($C88<0,0,IF(AND($C88=1,start_time<1),-(SUM(B162)*output_kgyear*$E88*percnt_var*start_time+SUM(B162)*output_kgyear*$E88*(1-start_time)),IF($C88<=start_time,-SUM(B162)*output_kgyear*$E88*percnt_var,-SUM(B162)*output_kgyear*$E88)))) -> 
B210: =IF($C89="","",IF($C89<0,0,IF(AND($C89=1,start_time<1),-(SUM(B163)*output_kgyear*$E89*percnt_var*start_time+SUM(B163)*output_kgyear*$E89*(1-start_time)),IF($C89<=start_time,-SUM(B163)*output_kgyear*$E89*percnt_var,-SUM(B163)*output_kgyear*$E89)))) -> 
B211: =IF($C90="","",IF($C90<0,0,IF(AND($C90=1,start_time<1),-(SUM(B164)*output_kgyear*$E90*percnt_var*start_time+SUM(B164)*output_kgyear*$E90*(1-start_time)),IF($C90<=start_time,-SUM(B164)*output_kgyear*$E90*percnt_var,-SUM(B164)*output_kgyear*$E90)))) -> 
B212: =IF($C91="","",IF($C91<0,0,IF(AND($C91=1,start_time<1),-(SUM(B165)*output_kgyear*$E91*percnt_var*start_time+SUM(B165)*output_kgyear*$E91*(1-start_time)),IF($C91<=start_time,-SUM(B165)*output_kgyear*$E91*percnt_var,-SUM(B165)*output_kgyear*$E91)))) -> 
B213: =IF($C92="","",IF($C92<0,0,IF(AND($C92=1,start_time<1),-(SUM(B166)*output_kgyear*$E92*percnt_var*start_time+SUM(B166)*output_kgyear*$E92*(1-start_time)),IF($C92<=start_time,-SUM(B166)*output_kgyear*$E92*percnt_var,-SUM(B166)*output_kgyear*$E92)))) -> 
B214: =IF($C93="","",IF($C93<0,0,IF(AND($C93=1,start_time<1),-(SUM(B167)*output_kgyear*$E93*percnt_var*start_time+SUM(B167)*output_kgyear*$E93*(1-start_time)),IF($C93<=start_time,-SUM(B167)*output_kgyear*$E93*percnt_var,-SUM(B167)*output_kgyear*$E93)))) -> 
B215: =IF($C94="","",IF($C94<0,0,IF(AND($C94=1,start_time<1),-(SUM(B168)*output_kgyear*$E94*percnt_var*start_time+SUM(B168)*output_kgyear*$E94*(1-start_time)),IF($C94<=start_time,-SUM(B168)*output_kgyear*$E94*percnt_var,-SUM(B168)*output_kgyear*$E94)))) -> 
B216: =IF($C95="","",IF($C95<0,0,IF(AND($C95=1,start_time<1),-(SUM(B169)*output_kgyear*$E95*percnt_var*start_time+SUM(B169)*output_kgyear*$E95*(1-start_time)),IF($C95<=start_time,-SUM(B169)*output_kgyear*$E95*percnt_var,-SUM(B169)*output_kgyear*$E95)))) -> 
B217: =IF($C96="","",IF($C96<0,0,IF(AND($C96=1,start_time<1),-(SUM(B170)*output_kgyear*$E96*percnt_var*start_time+SUM(B170)*output_kgyear*$E96*(1-start_time)),IF($C96<=start_time,-SUM(B170)*output_kgyear*$E96*percnt_var,-SUM(B170)*output_kgyear*$E96)))) -> 
B218: =IF($C97="","",IF($C97<0,0,IF(AND($C97=1,start_time<1),-(SUM(B171)*output_kgyear*$E97*percnt_var*start_time+SUM(B171)*output_kgyear*$E97*(1-start_time)),IF($C97<=start_time,-SUM(B171)*output_kgyear*$E97*percnt_var,-SUM(B171)*output_kgyear*$E97)))) -> 
B219: =IF($C98="","",IF($C98<0,0,IF(AND($C98=1,start_time<1),-(SUM(B172)*output_kgyear*$E98*percnt_var*start_time+SUM(B172)*output_kgyear*$E98*(1-start_time)),IF($C98<=start_time,-SUM(B172)*output_kgyear*$E98*percnt_var,-SUM(B172)*output_kgyear*$E98)))) -> 
B220: =IF($C99="","",IF($C99<0,0,IF(AND($C99=1,start_time<1),-(SUM(B173)*output_kgyear*$E99*percnt_var*start_time+SUM(B173)*output_kgyear*$E99*(1-start_time)),IF($C99<=start_time,-SUM(B173)*output_kgyear*$E99*percnt_var,-SUM(B173)*output_kgyear*$E99)))) -> 
B221: =IF($C100="","",IF($C100<0,0,IF(AND($C100=1,start_time<1),-(SUM(B174)*output_kgyear*$E100*percnt_var*start_time+SUM(B174)*output_kgyear*$E100*(1-start_time)),IF($C100<=start_time,-SUM(B174)*output_kgyear*$E100*percnt_var,-SUM(B174)*output_kgyear*$E100)))) -> 
B222: =IF($C101="","",IF($C101<0,0,IF(AND($C101=1,start_time<1),-(SUM(B175)*output_kgyear*$E101*percnt_var*start_time+SUM(B175)*output_kgyear*$E101*(1-start_time)),IF($C101<=start_time,-SUM(B175)*output_kgyear*$E101*percnt_var,-SUM(B175)*output_kgyear*$E101)))) -> 
B223: =IF($C102="","",IF($C102<0,0,IF(AND($C102=1,start_time<1),-(SUM(B176)*output_kgyear*$E102*percnt_var*start_time+SUM(B176)*output_kgyear*$E102*(1-start_time)),IF($C102<=start_time,-SUM(B176)*output_kgyear*$E102*percnt_var,-SUM(B176)*output_kgyear*$E102)))) -> 
B224: =IF($C103="","",IF($C103<0,0,IF(AND($C103=1,start_time<1),-(SUM(B177)*output_kgyear*$E103*percnt_var*start_time+SUM(B177)*output_kgyear*$E103*(1-start_time)),IF($C103<=start_time,-SUM(B177)*output_kgyear*$E103*percnt_var,-SUM(B177)*output_kgyear*$E103)))) -> 
B225: =IF($C104="","",IF($C104<0,0,IF(AND($C104=1,start_time<1),-(SUM(B178)*output_kgyear*$E104*percnt_var*start_time+SUM(B178)*output_kgyear*$E104*(1-start_time)),IF($C104<=start_time,-SUM(B178)*output_kgyear*$E104*percnt_var,-SUM(B178)*output_kgyear*$E104)))) -> 
B226: =IF($C105="","",IF($C105<0,0,IF(AND($C105=1,start_time<1),-(SUM(B179)*output_kgyear*$E105*percnt_var*start_time+SUM(B179)*output_kgyear*$E105*(1-start_time)),IF($C105<=start_time,-SUM(B179)*output_kgyear*$E105*percnt_var,-SUM(B179)*output_kgyear*$E105)))) -> 
B227: =IF($C106="","",IF($C106<0,0,IF(AND($C106=1,start_time<1),-(SUM(B180)*output_kgyear*$E106*percnt_var*start_time+SUM(B180)*output_kgyear*$E106*(1-start_time)),IF($C106<=start_time,-SUM(B180)*output_kgyear*$E106*percnt_var,-SUM(B180)*output_kgyear*$E106)))) -> 
B228: =IF($C107="","",IF($C107<0,0,IF(AND($C107=1,start_time<1),-(SUM(B181)*output_kgyear*$E107*percnt_var*start_time+SUM(B181)*output_kgyear*$E107*(1-start_time)),IF($C107<=start_time,-SUM(B181)*output_kgyear*$E107*percnt_var,-SUM(B181)*output_kgyear*$E107)))) -> 
A229: 0 | B229: =IF($C108="","",IF($C108<0,0,IF(AND($C108=1,start_time<1),-(SUM(B182)*output_kgyear*$E108*percnt_var*start_time+SUM(B182)*output_kgyear*$E108*(1-start_time)),IF($C108<=start_time,-SUM(B182)*output_kgyear*$E108*percnt_var,-SUM(B182)*output_kgyear*$E108)))) -> 
A231: Discounted value | B231: =+B186+NPV($X$59,B187:B228) -> -13755382.21 | C231: =+C186+NPV($X$59,C187:C228) -> 0 | D231: 0 | E231: 0 | F231: 0 | G231: 0 | H231: 0 | I231: 0 | J231: -1564726.462 | K231: 0 | L231: 0 | M231: 0 | N231: 0
A232: Cost per kg H2 | B232: =-B231/$AE$116*(1+inflation_rate)^construct/INFLATION_FACTOR -> 3.305960972 | C232: 0 | D232: 0 | E232: 0 | F232: 0 | G232: 0 | H232: 0 | I232: 0 | J232: 0.3760654947 | K232: 0 | L232: 0 | M232: 0 | N232: 0
A233: Levelized and escalated cost in startup year | B233: =IF(B132>0,B232/B133*(1+inflation_rate)^construct,"") -> 0.06169916173 | J233: 0.09102965051
A279: Lookup Electricity prices for forecourt and CCS
A280: Feed | B280: LHV | C280: Start Year Column | D280: Raw Price ($/GJ) | E280: Price in Usage Units
A281: ='HyARC Physical Property Data'!A76 -> Commercial Electricity | B281: =VLOOKUP(A281,MASTER_PROPERTY_TABLE,9,FALSE) -> 0.0036 | C281: =MATCH(startup_year,Feedstock_Year,0)+2 -> 16 | D281: =VLOOKUP(A281,FEEDPRICETABLE,C281,FALSE) -> 24.11395792 | E281: =B281*D281 -> 0.0868102485

Sheet Refueling Cash Flow Analysis
A2: TABLE OF CONTENTS
A3: DCF Calculations
A4: Yearly Cash Flow Calculations
A5: Specific Item Cost Calculation
A6: Feedstock, Utility, and Byproduct Cost Information
A15: DCF CALCULATION INPUTS: | D15: DCF CALCULATION OUTPUTS:
A16: Process | D16: ="Hydrogen Cost (Year "&TEXT(ref_year,"0")&" Real $/kg)" -> Hydrogen Cost (Year 2007 Real $/kg) | E16: =H2_price_nominal/INFLATION_FACTOR -> 2.160296347
A17: Actual Hydrogen Produced (kg/yr) | B17: =output_kgyear*sensitivity_01 -> 470668.5514 | D17: Hydrogen Cost (Start-up Year Nominal $/kg) | E17: =+SUM(X57:AB57)/AC57*(1+inflation_rate)^construct -> 2.285787657
A18: Actual Hydrogen Energy Produced (MMBtu(LHV)/yr) | B18: =B17*H2_LHV_MJ_p_kg/1000/mmBTU_to_GJ -> 53630.17787 | D18: After Tax Real IRR | E18: =((E20+1)/(1+B30))-1 -> 0.1
A19: Actual Hydrogen Energy Produced (MJ(LHV)/yr) | B19: =B17*H2_LHV_MJ_p_kg -> 56579837.66 | D19: Pre Tax Real IRR | E19: =((E21+1)/(1+B30))-1 -> 0.1304606094
A20: Design Capacity (kg/day) | B20: =design_cap -> 1500 | D20: After Tax Nominal IRR | E20: =IRR(AA65:AA113) -> 0.1209
A21: Design Capacity (kg/yr) | B21: =B20*365 -> 547500 | D21: Pre Tax Nominal IRR | E21: =IRR(AC65:AC113) -> 0.151939361
A22: Capacity Factor | B22: =cap_factor -> 0.859668587 | D22: After Tax Real Capital Recovery Factor | E22: =(real_irr*(1+real_irr)^anal_period)/(((1+real_irr)^anal_period)-1) -> 0.1174596248
D23: After Tax Nominal Capital Recovery Factor | E23: =(nominal_irr*(1+nominal_irr)^anal_period)/(((1+nominal_irr)^anal_period)-1) -> 0.1346347157
A24: Financial | D24: Total Real Fixed Charge Rate | E24: =(E22*(1-total_tax_rate*INDEX(Depreciation!B12:H37,MATCH("NPV - Real IRR",Depreciation!B12:B37,0),MATCH(depr_length,recovery_period,0))))/(1-total_tax_rate) -> 0.138290168
A25: Start-up Year | B25: =startup_year -> 2010 | D25: Total Nominal Fixed Charge Rate | E25: =(E23*(1-total_tax_rate*INDEX(Depreciation!B12:H37,MATCH("NPV - Nominal IRR",Depreciation!B12:B37,0),MATCH(depr_length,recovery_period,0))))/(1-total_tax_rate) -> 0.1621303197
A26: After-Tax Real IRR | B26: =real_irr -> 0.1 | D26: NPV | E26: =NPV(nominal_irr,AA65:AA113) -> 2.336822858e-09
A27: After-Tax Nominal IRR | B27: =((1+B26)*(1+B30))-1 -> 0.1209
A28: Analysis Period (yrs) | B28: =anal_period -> 20
A29: Plant Life (yrs) | B29: =plant_life -> 20
A30: Inflation Rate | B30: =inflation_rate -> 0.019
A31: Debt Financing | B31: =100%-B32 -> 0
A32: Equity Financing | B32: =equity -> 1
A33: Total Tax Rate | B33: =total_tax_rate -> 0.389
A35: Cost of Debt Financing
A36: Debt Financing Period (yrs) | B36: =debt_period -> 7
A37: Interest Rate on Debt | B37: =debt_interest -> 0.06
A39: Construction/Start Up Information
A40: Construction Period (yrs) | B40: =construct -> 1
A41: Start-up Period (yrs) | B41: =start_time -> 0
A42: % Revenue During Start-up | B42: =percnt_revs -> 0.5
A43: % Variable Costs During Start-up | B43: =percnt_var -> 0.5
A44: % Fixed Costs During Start-up | B44: =percnt_fixed -> 0.75
A46: Depreciation Parameters
A47: Depreciation Type | B47: =depr_type -> MACRS
A48: Depreciation Period (yrs) | B48: =depr_length -> 7
A50: Plant Costs (Inflated to Start-up Year $)
A51: Total Depreciable Capital Costs | B51: =('Refueling Station - GH2'!B317-'Refueling Station - GH2'!B302)*INFLATION_FACTOR*sensitivity_06 -> 4736778.795
A52: Total Non-Depreciable Capital Costs | B52: =+'Refueling Station - GH2'!B302*INFLATION_FACTOR -> 0 | C52: land
A53: Total Capital Investment | B53: =SUM(B51:B52) -> 4736778.795 | W53: Closed form formulas for calculating price of hydrogen.
A54: Decommissioning | B54: =decom_percent*depr_cap_infl -> 473677.8795 | X54: Capital Costs | Y54: Depr | Z54: Principal | AA54: Op costs | AB54: Tax incentives | AC54: H2 sales (kg)
A55: Salvage Value | B55: =salvage_perct*B53 -> 473677.8795 | W55: Discounted values | X55: =-SUM(H116:K116) -> 4808101.212 | Y55: =-U116 -> 3276490.278 | Z55: =-Z116 -> 0 | AA55: =-SUM(L116:S116) -> 3205303.217 | AB55: =+AF116 -> 0 | AC55: =+AE116 -> 4007066.703
A56: Fixed Operating Costs ($/year) | B56: ='Refueling Station - GH2'!B353*INFLATION_FACTOR*sensitivity_07 -> 194416.7088 | W56: Tax coefficient | X56: 1 | Y56: =-total_tax_rate -> -0.389 | Z56: 1 | AA56: =1-total_tax_rate -> 0.611 | AB56: -1 | AC56: =1-total_tax_rate -> 0.611
A57: Other Raw Material ($/year) | B57: =0*INFLATION_FACTOR -> 0 | C57: N/A | W57: LCOE cost contribution factors | X57: =+X55*X56 -> 4808101.212 | Y57: -1274554.718 | Z57: 0 | AA57: =+AA55*AA56 -> 1958440.265 | AB57: =+AB55*AB56 -> 0 | AC57: =+AC55*AC56 -> 2448317.756
A58: Other Variable O&M Costs (not including tax credits and incentives) | B58: =(0)*INFLATION_FACTOR -> 0 | C58: N/A
W59: Target after-tax nominal IRR | X59: =+(1+real_irr)*(1+inflation_rate)-1 -> 0.1209
W60: =+D16 -> Hydrogen Cost (Year 2007 Real $/kg) | X60: =+SUM(X57:AB57)/AC57*(1+inflation_rate)^construct/INFLATION_FACTOR -> 2.160296347
A63: CASH FLOW ANALYSIS
A64: Actual Year | B64: Analysis Year | C64: Operation Year | D64: Plant Life | E64: Inflation Price Increase Factor | F64: Revenue | G64: Portion of Initial Depreciable Capital Investment Financed with Debt (value ONLY used in debt financing calculations) | H64: Initial Equity Depreciable Capital | I64: Yearly Replacement Costs | J64: Cash from Working Capital Reserve | K64: Other Non-Depreciable Capital Costs | L64: Salvage Value | M64: Decommissioning Costs | N64: Fixed Operating Cost | O64: Feed Cost | P64: Other Raw Material Cost | Q64: Byproduct Credit | R64: Other Variable Operating Costs | S64: Debt Interest | T64: Pre-Depreciation Income | U64: Depreciation Charge | V64: Taxable Income | W64: Tax Rate | X64: Total Taxes | Y64: After-Tax Income | Z64: Principal Payment | AA64: After-Tax Post-Depreciation Cash Flow | AB64: Cumulative Cash Flow | AC64: Pre-Tax Cash Flow | AE64: H2 sales (kg/year)
A65: =startup_year-construct -> 2009 | B65: 1 | C65: =IF(construct=0,1,-construct) -> -1 | D65: =IF(C65="","",IF(C65<=plant_life,C65,IF(D64=plant_life,1,D64+1))) -> -1 | E65: =IF(C65="","",(1+inflation_rate)^(A65-$B$25)) -> 0.9813542689 | F65: =IF(C65="","",IF(C65<0,0,IF(AND(C65=1,start_time<1),E65*(H2_price_nominal*output_kgyear*sensitivity_01*start_time*percnt_revs+H2_price_nominal*output_kgyear*sensitivity_01*(1-start_time)),IF(C65<=start_time,H2_price_nominal*E65*output_kgyear*sensitivity_01*percnt_revs,H2_price_nominal*output_kgyear*sensitivity_01*E65)))) -> 0 | G65: =-$B$31*depr_cap_infl*E65 -> 0 | H65: =IF(C65<0,-E65*equity*depr_cap_infl*percent_cap1,IF(C65=1,-E65*equity*depr_cap_infl,0)) -> -4648458.091 | I65: =IF(OR(C65<0,C65=""),"",-E65*SUM(OFFSET('Refueling Station - GH2'!$I$360:$K$360,MATCH(C65,'Refueling Station - GH2'!$E$361:$E$401,0),0))) ->  | J65: =IF(AND(C65>=1,C65<anal_period),WorkingCap*SUM(N65:R65)-WorkingCap*SUM(N64:R64),0) -> 0 | K65: =IF(C65=-construct,-E65*non_dep_infl,"") -> 0 | L65: =IF(C65=anal_period,salvage*E65,"") ->  | M65: =IF(D65=plant_life,-E65*decom,"") ->  | N65: =IF(C65="","",IF(C65<0,0,IF(AND(C65=1,start_time<1),-(inflated_fixed*percnt_fixed*start_time+(inflated_fixed*(1-start_time))),IF(C65<=start_time,-inflated_fixed*percnt_fixed*E65,-inflated_fixed*E65)))) -> 0 | O65: =IF(C65="","",IF(C65<0,0,IF(AND(C65=1,start_time<1),-(SUM(B138:E138)*output_kgyear*E65*percnt_var*start_time+SUM(B138:E138)*output_kgyear*E65*(1-start_time)),IF(C65<=start_time,-SUM(B138:E138)*output_kgyear*E65*percnt_var,-SUM(B138:E138)*output_kgyear*E65)))) -> 0 | P65: =IF(C65="","",IF(C65<0,0,IF(AND(C65=1,start_time<1),-(inflated_otherraw*E65*percnt_var*start_time+inflated_otherraw*E65*(1-start_time)),IF(C65<=start_time,-inflated_otherraw*E65*percnt_var,-(inflated_otherraw*E65))))) -> 0 | Q65: =IF(C65="","",IF(C65<0,0,IF(AND(C65=1,start_time<1),SUM(K138:N138,T138:V138)*output_kgyear*E65*percnt_var*start_time+SUM(K138:N138,T138:V138)*output_kgyear*E65*(1-start_time),IF(C65<=start_time,SUM(K138:N138,T138:V138)*output_kgyear*E65*percnt_var,SUM(K138:N138,T138:V138)*output_kgyear*E65)))) -> 0 | R65: =IF(C65="","",IF(C65<0,0,IF(AND(C65=1,start_time<1),-((SUM(J138,P138:R138)*output_kgyear+inflated_othervar)*E65*percnt_var*start_time+(SUM(J138,P138:R138)*output_kgyear+inflated_othervar)*E65*(1-start_time)),IF(C65<=start_time,-(SUM(J138,P138:R138)*output_kgyear+inflated_othervar)*E65*percnt_var,-E65*(SUM(J138,P138:R138)*output_kgyear+inflated_othervar))))) -> 0 | S65: =IF(B65="","",IF($B$31=0,"",-'Debt Financing Calculations'!E69)) ->  | T65: =IF(C65="","",F65+SUM(L65:S65)) -> 0 | U65: =IF(C65="","",IF(C65<-1,0,IF(C65=anal_period,-LOOKUP(C65,depr_yr2,depr_cost2)-Depreciation!$C$279-Depreciation!$B$304,-LOOKUP(C65,depr_yr2,depr_cost2)))) -> 0 | V65: =IF(C65="","",SUM(T65:U65)) -> 0 | W65: =IF(C65="","",$B$33) -> 0.389 | X65: =IF(C65="","",-V65*W65 + tax_credit) -> 0 | Y65: =IF(C65="","",SUM(T65,X65)) -> 0 | Z65: =IF(C65="","",IF($B$31=0,"",-'Debt Financing Calculations'!F69)) ->  | AA65: =IF(C65="","",SUM(H65,I65,J65,K65,T65,X65,Z65)) -> -4648458.091 | AB65: =AA65 -> -4648458.091 | AC65: =IF(C65="","",SUM(H65,I65,J65,K65,T65,Z65)) -> -4648458.091 | AE65: =IF(C65="","",IF(C65<0,0,IF(AND(C65=1,start_time<1),(output_kgyear*sensitivity_01*start_time*percnt_revs+output_kgyear*sensitivity_01*(1-start_time)),IF(C65<=start_time,output_kgyear*sensitivity_01*percnt_revs,output_kgyear*sensitivity_01)))) -> 0
A66: =IF(B66<>"",A65+1,"") -> 2010 | B66: =IF(MAX($B$65:B65)<(construct+anal_period),B65+1,"") -> 2 | C66: =IF(B66="","",IF(C65=-1,1,C65+1)) -> 1 | D66: 1 | E66: 1 | F66: 1075848.366 | H66: =IF(C66<0,-E66*equity*depr_cap_infl*percent_cap2,0) -> 0 | I66: =IF(OR(C66<0,C66=""),"",-E66*SUM(OFFSET('Refueling Station - GH2'!$I$360:$K$360,MATCH(C66,'Refueling Station - GH2'!$E$361:$E$401,0),0))) -> 0 | J66: =IF(AND(C66>=1,C66<anal_period),WorkingCap*SUM(N66:R66)-WorkingCap*SUM(N65:R65),IF(C66<0,0,IF(B66="","",-SUM(J$65:J65)))) -> -3720.878771 | N66: -194416.7088 | O66: 0 | P66: 0 | Q66: 0 | R66: -177671.1683 | S66: =IF(B66="","",IF($B$31=0,"",-'Debt Financing Calculations'!E70)) ->  | T66: 703760.4884 | U66: =IF(C66="","",IF(C66<-1,0,IF(C66=anal_period,-LOOKUP(C66,depr_yr2,depr_cost2)-Depreciation!$C$279-Depreciation!$B$304,-LOOKUP(C66,depr_yr2,depr_cost2)))) -> -664264.6612 | V66: 39495.82723 | W66: 0.389 | X66: =IF(C66="","",-V66*W66+tax_credit) -> -15363.87679 | Y66: 688396.6116 | Z66: =IF(C66="","",IF($B$31=0,"",-'Debt Financing Calculations'!F70)) ->  | AA66: 684675.7328 | AB66: =IF(C66="","",AB65+AA66) -> -3963782.358 | AC66: 700039.6096 | AE66: 470668.5514
A67: 2011 | B67: =IF(MAX($B$65:B66)<(construct+anal_period),B66+1,"") -> 3 | C67: 2 | D67: 2 | E67: 1.019 | F67: 1096289.484 | H67: =IF(C67="","",0) -> 0 | I67: =IF(OR(C67<0,C67=""),"",-E67*SUM(OFFSET('Refueling Station - GH2'!$I$360:$K$360,MATCH(C67,'Refueling Station - GH2'!$E$361:$E$401,0),0))) -> 0 | J67: =IF(AND(C67>=1,C67<anal_period),WorkingCap*SUM(N67:R67)-WorkingCap*SUM(N66:R66),IF(C67<0,0,IF(B67="","",-SUM(J$65:J66)))) -> -125.0544362 | N67: -198110.6263 | O67: 0 | P67: 0 | Q67: 0 | R67: -186482.6944 | S67: =IF(B67="","",IF($B$31=0,"",-'Debt Financing Calculations'!E71)) ->  | T67: 711696.1637 | U67: =IF(C67="","",IF(C67<-1,0,IF(C67=anal_period,-LOOKUP(C67,depr_yr2,depr_cost2)-Depreciation!$C$279-Depreciation!$B$304,-LOOKUP(C67,depr_yr2,depr_cost2)))) -> -1138407.386 | V67: -426711.2227 | W67: 0.389 | X67: 165990.6656 | Y67: 877686.8294 | Z67: =IF(C67="","",IF($B$31=0,"",-'Debt Financing Calculations'!F71)) ->  | AA67: 877561.7749 | AB67: -3086220.583 | AC67: 711571.1093 | AE67: 470668.5514
A68: 2012 | B68: =IF(MAX($B$65:B67)<(construct+anal_period),B67+1,"") -> 4 | C68: 3 | D68: 3 | E68: 1.038361 | F68: 1117118.985 | H68: 0 | I68: =IF(OR(C68<0,C68=""),"",-E68*SUM(OFFSET('Refueling Station - GH2'!$I$360:$K$360,MATCH(C68,'Refueling Station - GH2'!$E$361:$E$401,0),0))) -> 0 | J68: =IF(AND(C68>=1,C68<anal_period),WorkingCap*SUM(N68:R68)-WorkingCap*SUM(N67:R67),IF(C68<0,0,IF(B68="","",-SUM(J$65:J67)))) -> -62.59689425 | N68: -201874.7282 | O68: 0 | P68: 0 | Q68: 0 | R68: -188978.2819 | S68: =IF(B68="","",IF($B$31=0,"",-'Debt Financing Calculations'!E72)) ->  | T68: 726265.9745 | U68: =IF(C68="","",IF(C68<-1,0,IF(C68=anal_period,-LOOKUP(C68,depr_yr2,depr_cost2)-Depreciation!$C$279-Depreciation!$B$304,-LOOKUP(C68,depr_yr2,depr_cost2)))) -> -813015.3201 | V68: -86749.34557 | W68: 0.389 | X68: 33745.49543 | Y68: 760011.4699 | Z68: =IF(C68="","",IF($B$31=0,"",-'Debt Financing Calculations'!F72)) ->  | AA68: 759948.873 | AB68: -2326271.71 | AC68: 726203.3776 | AE68: 470668.5514
A69: 2013 | B69: =IF(MAX($B$65:B68)<(construct+anal_period),B68+1,"") -> 5 | C69: 4 | D69: 4 | E69: 1.058089859 | F69: 1138344.245 | H69: 0 | I69: =IF(OR(C69<0,C69=""),"",-E69*SUM(OFFSET('Refueling Station - GH2'!$I$360:$K$360,MATCH(C69,'Refueling Station - GH2'!$E$361:$E$401,0),0))) -> 0 | J69: =IF(AND(C69>=1,C69<anal_period),WorkingCap*SUM(N69:R69)-WorkingCap*SUM(N68:R68),IF(C69<0,0,IF(B69="","",-SUM(J$65:J68)))) -> -76.52559989 | N69: -205710.348 | O69: 0 | P69: 0 | Q69: 0 | R69: -192795.2221 | S69: =IF(B69="","",IF($B$31=0,"",-'Debt Financing Calculations'!E73)) ->  | T69: 739838.6752 | U69: =IF(C69="","",IF(C69<-1,0,IF(C69=anal_period,-LOOKUP(C69,depr_yr2,depr_cost2)-Depreciation!$C$279-Depreciation!$B$304,-LOOKUP(C69,depr_yr2,depr_cost2)))) -> -580592.4155 | V69: 159246.2597 | W69: 0.389 | X69: -61946.79502 | Y69: 677891.8802 | Z69: =IF(C69="","",IF($B$31=0,"",-'Debt Financing Calculations'!F73)) ->  | AA69: 677815.3546 | AB69: -1648456.355 | AC69: 739762.1496 | AE69: 470668.5514
A70: 2014 | B70: =IF(MAX($B$65:B69)<(construct+anal_period),B69+1,"") -> 6 | C70: 5 | D70: 5 | E70: 1.078193566 | F70: 1159972.786 | H70: 0 | I70: =IF(OR(C70<0,C70=""),"",-E70*SUM(OFFSET('Refueling Station - GH2'!$I$360:$K$360,MATCH(C70,'Refueling Station - GH2'!$E$361:$E$401,0),0))) -> 0 | J70: =IF(AND(C70>=1,C70<anal_period),WorkingCap*SUM(N70:R70)-WorkingCap*SUM(N69:R69),IF(C70<0,0,IF(B70="","",-SUM(J$65:J69)))) -> -91.30878219 | N70: -209618.8447 | O70: 0 | P70: 0 | Q70: 0 | R70: -198017.6037 | S70: =IF(B70="","",IF($B$31=0,"",-'Debt Financing Calculations'!E74)) ->  | T70: 752336.3377 | U70: =IF(C70="","",IF(C70<-1,0,IF(C70=anal_period,-LOOKUP(C70,depr_yr2,depr_cost2)-Depreciation!$C$279-Depreciation!$B$304,-LOOKUP(C70,depr_yr2,depr_cost2)))) -> -415107.3075 | V70: 337229.0302 | W70: 0.389 | X70: -131182.0927 | Y70: 621154.2449 | Z70: =IF(C70="","",IF($B$31=0,"",-'Debt Financing Calculations'!F74)) ->  | AA70: 621062.9362 | AB70: -1027393.419 | AC70: 752245.0289 | AE70: 470668.5514
A71: 2015 | B71: =IF(MAX($B$65:B70)<(construct+anal_period),B70+1,"") -> 7 | C71: 6 | D71: 6 | E71: 1.098679244 | F71: 1182012.269 | H71: 0 | I71: =IF(OR(C71<0,C71=""),"",-E71*SUM(OFFSET('Refueling Station - GH2'!$I$360:$K$360,MATCH(C71,'Refueling Station - GH2'!$E$361:$E$401,0),0))) -> 0 | J71: =IF(AND(C71>=1,C71<anal_period),WorkingCap*SUM(N71:R71)-WorkingCap*SUM(N70:R70),IF(C71<0,0,IF(B71="","",-SUM(J$65:J70)))) -> -84.60334486 | N71: -213601.6027 | O71: 0 | P71: 0 | Q71: 0 | R71: -202495.1801 | S71: =IF(B71="","",IF($B$31=0,"",-'Debt Financing Calculations'!E75)) ->  | T71: 765915.4861 | U71: =IF(C71="","",IF(C71<-1,0,IF(C71=anal_period,-LOOKUP(C71,depr_yr2,depr_cost2)-Depreciation!$C$279-Depreciation!$B$304,-LOOKUP(C71,depr_yr2,depr_cost2)))) -> -414642.4617 | V71: 351273.0244 | W71: 0.389 | X71: -136645.2065 | Y71: 629270.2796 | Z71: =IF(C71="","",IF($B$31=0,"",-'Debt Financing Calculations'!F75)) ->  | AA71: 629185.6763 | AB71: -398207.7429 | AC71: 765830.8828 | AE71: 470668.5514
A72: 2016 | B72: =IF(MAX($B$65:B71)<(construct+anal_period),B71+1,"") -> 8 | C72: 7 | D72: 7 | E72: 1.11955415 | F72: 1204470.502 | H72: 0 | I72: =IF(OR(C72<0,C72=""),"",-E72*SUM(OFFSET('Refueling Station - GH2'!$I$360:$K$360,MATCH(C72,'Refueling Station - GH2'!$E$361:$E$401,0),0))) -> 0 | J72: =IF(AND(C72>=1,C72<anal_period),WorkingCap*SUM(N72:R72)-WorkingCap*SUM(N71:R71),IF(C72<0,0,IF(B72="","",-SUM(J$65:J71)))) -> -106.080304 | N72: -217660.0332 | O72: 0 | P72: 0 | Q72: 0 | R72: -209044.7801 | S72: =IF(B72="","",IF($B$31=0,"",-'Debt Financing Calculations'!E76)) ->  | T72: 777765.6888 | U72: =IF(C72="","",IF(C72<-1,0,IF(C72=anal_period,-LOOKUP(C72,depr_yr2,depr_cost2)-Depreciation!$C$279-Depreciation!$B$304,-LOOKUP(C72,depr_yr2,depr_cost2)))) -> -415107.3075 | V72: 362658.3813 | W72: 0.389 | X72: -141074.1103 | Y72: 636691.5785 | Z72: =IF(C72="","",IF($B$31=0,"",-'Debt Financing Calculations'!F76)) ->  | AA72: 636585.4982 | AB72: 238377.7552 | AC72: 777659.6085 | AE72: 470668.5514
A73: 2017 | B73: =IF(MAX($B$65:B72)<(construct+anal_period),B72+1,"") -> 9 | C73: 8 | D73: 8 | E73: 1.140825679 | F73: 1227355.442 | H73: 0 | I73: =IF(OR(C73<0,C73=""),"",-E73*SUM(OFFSET('Refueling Station - GH2'!$I$360:$K$360,MATCH(C73,'Refueling Station - GH2'!$E$361:$E$401,0),0))) -> 0 | J73: =IF(AND(C73>=1,C73<anal_period),WorkingCap*SUM(N73:R73)-WorkingCap*SUM(N72:R72),IF(C73<0,0,IF(B73="","",-SUM(J$65:J72)))) -> -111.0566168 | N73: -221795.5738 | O73: 0 | P73: 0 | Q73: 0 | R73: -216014.9011 | S73: =IF(B73="","",IF($B$31=0,"",-'Debt Financing Calculations'!E77)) ->  | T73: 789544.9667 | U73: =IF(C73="","",IF(C73<-1,0,IF(C73=anal_period,-LOOKUP(C73,depr_yr2,depr_cost2)-Depreciation!$C$279-Depreciation!$B$304,-LOOKUP(C73,depr_yr2,depr_cost2)))) -> -207321.2308 | V73: 582223.7358 | W73: 0.389 | X73: -226485.0332 | Y73: 563059.9334 | Z73: =IF(C73="","",IF($B$31=0,"",-'Debt Financing Calculations'!F77)) ->  | AA73: 562948.8768 | AB73: 801326.6321 | AC73: 789433.9101 | AE73: 470668.5514
A74: 2018 | B74: =IF(MAX($B$65:B73)<(construct+anal_period),B73+1,"") -> 10 | C74: 9 | D74: 9 | E74: 1.162501366 | F74: 1250675.195 | H74: 0 | I74: =IF(OR(C74<0,C74=""),"",-E74*SUM(OFFSET('Refueling Station - GH2'!$I$360:$K$360,MATCH(C74,'Refueling Station - GH2'!$E$361:$E$401,0),0))) -> 0 | J74: =IF(AND(C74>=1,C74<anal_period),WorkingCap*SUM(N74:R74)-WorkingCap*SUM(N73:R73),IF(C74<0,0,IF(B74="","",-SUM(J$65:J73)))) -> -117.9106864 | N74: -226009.6897 | O74: 0 | P74: 0 | Q74: 0 | R74: -223591.8539 | S74: =IF(B74="","",IF($B$31=0,"",-'Debt Financing Calculations'!E78)) ->  | T74: 801073.6514 | U74: =IF(C74="","",IF(C74<-1,0,IF(C74=anal_period,-LOOKUP(C74,depr_yr2,depr_cost2)-Depreciation!$C$279-Depreciation!$B$304,-LOOKUP(C74,depr_yr2,depr_cost2)))) -> 0 | V74: 801073.6514 | W74: 0.389 | X74: -311617.6504 | Y74: 489456.001 | Z74: =IF(C74="","",IF($B$31=0,"",-'Debt Financing Calculations'!F78)) ->  | AA74: 489338.0903 | AB74: 1290664.722 | AC74: 800955.7408 | AE74: 470668.5514
A75: 2019 | B75: =IF(MAX($B$65:B74)<(construct+anal_period),B74+1,"") -> 11 | C75: 10 | D75: 10 | E75: 1.184588892 | F75: 1274438.024 | H75: 0 | I75: =IF(OR(C75<0,C75=""),"",-E75*SUM(OFFSET('Refueling Station - GH2'!$I$360:$K$360,MATCH(C75,'Refueling Station - GH2'!$E$361:$E$401,0),0))) -> 0 | J75: =IF(AND(C75>=1,C75<anal_period),WorkingCap*SUM(N75:R75)-WorkingCap*SUM(N74:R74),IF(C75<0,0,IF(B75="","",-SUM(J$65:J74)))) -> -109.477954 | N75: -230303.8738 | O75: 0 | P75: 0 | Q75: 0 | R75: -230245.4652 | S75: =IF(B75="","",IF($B$31=0,"",-'Debt Financing Calculations'!E79)) ->  | T75: 813888.6848 | U75: =IF(C75="","",IF(C75<-1,0,IF(C75=anal_period,-LOOKUP(C75,depr_yr2,depr_cost2)-Depreciation!$C$279-Depreciation!$B$304,-LOOKUP(C75,depr_yr2,depr_cost2)))) -> 0 | V75: 813888.6848 | W75: 0.389 | X75: -316602.6984 | Y75: 497285.9864 | Z75: =IF(C75="","",IF($B$31=0,"",-'Debt Financing Calculations'!F79)) ->  | AA75: 497176.5084 | AB75: 1787841.231 | AC75: 813779.2068 | AE75: 470668.5514
A76: 2020 | B76: =IF(MAX($B$65:B75)<(construct+anal_period),B75+1,"") -> 12 | C76: 11 | D76: 11 | E76: 1.207096081 | F76: 1298652.346 | H76: 0 | I76: =IF(OR(C76<0,C76=""),"",-E76*SUM(OFFSET('Refueling Station - GH2'!$I$360:$K$360,MATCH(C76,'Refueling Station - GH2'!$E$361:$E$401,0),0))) -> -524943.0864 | J76: =IF(AND(C76>=1,C76<anal_period),WorkingCap*SUM(N76:R76)-WorkingCap*SUM(N75:R75),IF(C76<0,0,IF(B76="","",-SUM(J$65:J75)))) -> -126.4207391 | N76: -234679.6474 | O76: 0 | P76: 0 | Q76: 0 | R76: -238511.7655 | S76: =IF(B76="","",IF($B$31=0,"",-'Debt Financing Calculations'!E80)) ->  | T76: 825460.9333 | U76: =IF(C76="","",IF(C76<-1,0,IF(C76=anal_period,-LOOKUP(C76,depr_yr2,depr_cost2)-Depreciation!$C$279-Depreciation!$B$304,-LOOKUP(C76,depr_yr2,depr_cost2)))) -> -75014.36705 | V76: 750446.5662 | W76: 0.389 | X76: -291923.7143 | Y76: 533537.219 | Z76: =IF(C76="","",IF($B$31=0,"",-'Debt Financing Calculations'!F80)) ->  | AA76: 8467.711861 | AB76: 1796308.943 | AC76: 300391.4261 | AE76: 470668.5514
A77: 2021 | B77: =IF(MAX($B$65:B76)<(construct+anal_period),B76+1,"") -> 13 | C77: 12 | D77: 12 | E77: 1.230030907 | F77: 1323326.741 | H77: 0 | I77: =IF(OR(C77<0,C77=""),"",-E77*SUM(OFFSET('Refueling Station - GH2'!$I$360:$K$360,MATCH(C77,'Refueling Station - GH2'!$E$361:$E$401,0),0))) -> 0 | J77: =IF(AND(C77>=1,C77<anal_period),WorkingCap*SUM(N77:R77)-WorkingCap*SUM(N76:R76),IF(C77<0,0,IF(B77="","",-SUM(J$65:J76)))) -> -123.5502093 | N77: -239138.5607 | O77: 0 | P77: 0 | Q77: 0 | R77: -246407.8731 | S77: =IF(B77="","",IF($B$31=0,"",-'Debt Financing Calculations'!E81)) ->  | T77: 837780.3069 | U77: =IF(C77="","",IF(C77<-1,0,IF(C77=anal_period,-LOOKUP(C77,depr_yr2,depr_cost2)-Depreciation!$C$279-Depreciation!$B$304,-LOOKUP(C77,depr_yr2,depr_cost2)))) -> -128558.5619 | V77: 709221.7451 | W77: 0.389 | X77: -275887.2588 | Y77: 561893.0481 | Z77: =IF(C77="","",IF($B$31=0,"",-'Debt Financing Calculations'!F81)) ->  | AA77: 561769.4979 | AB77: 2358078.441 | AC77: 837656.7567 | AE77: 470668.5514
A78: 2022 | B78: =IF(MAX($B$65:B77)<(construct+anal_period),B77+1,"") -> 14 | C78: 13 | D78: 13 | E78: 1.253401494 | F78: 1348469.949 | H78: 0 | I78: =IF(OR(C78<0,C78=""),"",-E78*SUM(OFFSET('Refueling Station - GH2'!$I$360:$K$360,MATCH(C78,'Refueling Station - GH2'!$E$361:$E$401,0),0))) -> 0 | J78: =IF(AND(C78>=1,C78<anal_period),WorkingCap*SUM(N78:R78)-WorkingCap*SUM(N77:R77),IF(C78<0,0,IF(B78="","",-SUM(J$65:J77)))) -> -114.0393215 | N78: -243682.1933 | O78: 0 | P78: 0 | Q78: 0 | R78: -253268.1726 | S78: =IF(B78="","",IF($B$31=0,"",-'Debt Financing Calculations'!E82)) ->  | T78: 851519.5829 | U78: =IF(C78="","",IF(C78<-1,0,IF(C78=anal_period,-LOOKUP(C78,depr_yr2,depr_cost2)-Depreciation!$C$279-Depreciation!$B$304,-LOOKUP(C78,depr_yr2,depr_cost2)))) -> -91812.54582 | V78: 759707.037 | W78: 0.389 | X78: -295526.0374 | Y78: 555993.5455 | Z78: =IF(C78="","",IF($B$31=0,"",-'Debt Financing Calculations'!F82)) ->  | AA78: 555879.5061 | AB78: 2913957.947 | AC78: 851405.5435 | AE78: 470668.5514
A79: 2023 | B79: =IF(MAX($B$65:B78)<(construct+anal_period),B78+1,"") -> 15 | C79: 14 | D79: 14 | E79: 1.277216123 | F79: 1374090.878 | H79: 0 | I79: =IF(OR(C79<0,C79=""),"",-E79*SUM(OFFSET('Refueling Station - GH2'!$I$360:$K$360,MATCH(C79,'Refueling Station - GH2'!$E$361:$E$401,0),0))) -> 0 | J79: =IF(AND(C79>=1,C79<anal_period),WorkingCap*SUM(N79:R79)-WorkingCap*SUM(N78:R78),IF(C79<0,0,IF(B79="","",-SUM(J$65:J78)))) -> -89.02673402 | N79: -248312.155 | O79: 0 | P79: 0 | Q79: 0 | R79: -257540.8843 | S79: =IF(B79="","",IF($B$31=0,"",-'Debt Financing Calculations'!E83)) ->  | T79: 868237.8385 | U79: =IF(C79="","",IF(C79<-1,0,IF(C79=anal_period,-LOOKUP(C79,depr_yr2,depr_cost2)-Depreciation!$C$279-Depreciation!$B$304,-LOOKUP(C79,depr_yr2,depr_cost2)))) -> -65565.39149 | V79: 802672.447 | W79: 0.389 | X79: -312239.5819 | Y79: 555998.2566 | Z79: =IF(C79="","",IF($B$31=0,"",-'Debt Financing Calculations'!F83)) ->  | AA79: 555909.2299 | AB79: 3469867.177 | AC79: 868148.8118 | AE79: 470668.5514
A80: 2024 | B80: =IF(MAX($B$65:B79)<(construct+anal_period),B79+1,"") -> 16 | C80: 15 | D80: 15 | E80: 1.301483229 | F80: 1400198.605 | H80: 0 | I80: =IF(OR(C80<0,C80=""),"",-E80*SUM(OFFSET('Refueling Station - GH2'!$I$360:$K$360,MATCH(C80,'Refueling Station - GH2'!$E$361:$E$401,0),0))) -> 0 | J80: =IF(AND(C80>=1,C80<anal_period),WorkingCap*SUM(N80:R80)-WorkingCap*SUM(N79:R79),IF(C80<0,0,IF(B80="","",-SUM(J$65:J79)))) -> -97.68318988 | N80: -253030.086 | O80: 0 | P80: 0 | Q80: 0 | R80: -262591.2724 | S80: =IF(B80="","",IF($B$31=0,"",-'Debt Financing Calculations'!E84)) ->  | T80: 884577.2462 | U80: =IF(C80="","",IF(C80<-1,0,IF(C80=anal_period,-LOOKUP(C80,depr_yr2,depr_cost2)-Depreciation!$C$279-Depreciation!$B$304,-LOOKUP(C80,depr_yr2,depr_cost2)))) -> -46877.41762 | V80: 837699.8286 | W80: 0.389 | X80: -325865.2333 | Y80: 558712.0129 | Z80: =IF(C80="","",IF($B$31=0,"",-'Debt Financing Calculations'!F84)) ->  | AA80: 558614.3297 | AB80: 4028481.506 | AC80: 884479.563 | AE80: 470668.5514
A81: 2025 | B81: =IF(MAX($B$65:B80)<(construct+anal_period),B80+1,"") -> 17 | C81: 16 | D81: 16 | E81: 1.32621141 | F81: 1426802.378 | H81: 0 | I81: =IF(OR(C81<0,C81=""),"",-E81*SUM(OFFSET('Refueling Station - GH2'!$I$360:$K$360,MATCH(C81,'Refueling Station - GH2'!$E$361:$E$401,0),0))) -> -41408.48934 | J81: =IF(AND(C81>=1,C81<anal_period),WorkingCap*SUM(N81:R81)-WorkingCap*SUM(N80:R80),IF(C81<0,0,IF(B81="","",-SUM(J$65:J80)))) -> -91.93987935 | N81: -257837.6576 | O81: 0 | P81: 0 | Q81: 0 | R81: -266977.6887 | S81: =IF(B81="","",IF($B$31=0,"",-'Debt Financing Calculations'!E85)) ->  | T81: 901987.0317 | U81: =IF(C81="","",IF(C81<-1,0,IF(C81=anal_period,-LOOKUP(C81,depr_yr2,depr_cost2)-Depreciation!$C$279-Depreciation!$B$304,-LOOKUP(C81,depr_yr2,depr_cost2)))) -> -52742.19644 | V81: 849244.8353 | W81: 0.389 | X81: -330356.2409 | Y81: 571630.7908 | Z81: =IF(C81="","",IF($B$31=0,"",-'Debt Financing Calculations'!F85)) ->  | AA81: 530130.3616 | AB81: 4558611.868 | AC81: 860486.6025 | AE81: 470668.5514
